Workbook

Sheet Menu
A1: Center for Educational Performance and Information (CEPI)
A4: Financial Information Database (FID)
A5: =CONCATENATE(BTS!B4," ","Summary Report:") -> 2014-2015 Summary Report:
A6: Expenditures
A18: Contents
A19: Tab Name | E19: Description
A20: Menu | E20: Menu and title page.
A21: Notes and Definitions | E21: Introduction, common definitions, and code descriptions.
A22: Expenditures (State) | E22: State level summary of expenditure data.
A23: Expenditures (Fund by Function) | E23: District level summary of expenditure data by fund and function category.
A24: Operational Expenditures (Fund) | E24: District level summary of operating expenditures by fund and object category.
A25: GF Expenditures (District) | E25: District level summary of operating expenditures by function and object categories.
A26: Purchased Services | E26: District level summary of General Fund Purchased Services by function category.
A27: Compensation | E27: State level summary of compensation data.
A28: Compensation (District) | E28: District level summary of compensation data.

Sheet Notes and Definitions
A1: Center for Educational Performance and Information
A2: =CONCATENATE(BTS!B4," ","FID Summary") -> 2014-2015 FID Summary
A3: Technical Notes and Definitions
A5: Source Data
A6: The summaries in these tables reflect the Fall 2015 Financial Information Database (FID) Submission. The preliminary data files used are available for download from the CEPI Web site at http://www.michigan.gov/cepi/0,1607,7-113-21423_35782---,00.html. The FID supports the submission of district financial data using account codes compliant with the Michigan School Accounting Manual Chart of Accounts. This submission process provides a level of financial data that facilitates compliance reporting and will facilitate informed decision-making at the school, state and federal levels. Provided below are definitions for the terminology used in the tables, along with the account combinations used for these aggregations. Cross-referencing these account combinations with the Chart of Accounts will provide more detailed information regarding the type of transactions that are included in the totals.
A9: Michigan Public School Accounting Manual
A10: School districts in the state are required to follow the Generally Accepted Accounting Principles for Governmental Entities, which are accounting rules used to prepare, present, and report financial statements. The Michigan School Accounting Manual (Bulletin 1022) serves as a mandatory guide to the uniform classification and recording of accounting transactions for Michigan public school districts. The Chart of Accounts (COA) is a listing of standardized accounting codes and related definitions districts must use when reporting financial data in the FID. These codes are necessary to assure that financial data reported to the state of Michigan are consistent and comparable from district to district. A link to the COA is in the publications section of the Office of State Aid and School Finance on the MIchigan Department of Education (MDE) Web site, http://www.michigan.gov/mde/. The Chart of Accounts is contained within the "Appendix - Definitions for Accounting Codes" located on the Manual page.
A13: School Code Master
A14: The FID collects financial data based on the previous school year. For the 2014-15 collection, the FID collected data from any district which was opened between July 1, 2014, and June 30, 2015.
A15: Intermediate School District (ISD) | C15: Intermediate school districts (ISDs) provide various administrative services and cooperative, coordinated educational services among many school districts in the name of economy and efficiency.
A16: Local Education Agency (LEA) | C16: A local education agency (LEA) is a public school operating in accordance with statutes, regulations, and policies of the Michigan Department of Education. An LEA has a set geographical boundary and may include any grade configuration along with educational settings (e.g., alternative education, special education, career and technical education).
A17: Public School Academy (PSA) | C17: A public school academy (PSA), also known as a charter school, is considered to be a school district under Michigan state law and that is subject to the supervision of the State Board of Education. PSAs are independent public schools designed and operated by educators, parents, community leaders, educational entrepreneurs and others. They are authorized by traditional K-12 school districts, ISDs, community colleges or state public universities, which monitor their quality and effectiveness but allow them to operate outside of the traditional system of public schools.
A18: Funds
A19: Fund | B19: A sum of money or other resources set aside for the specific activities of a school district. A fund constitutes a complete accounting entity; all of the financial transactions for the particular fund are recorded therein.
A20: General Fund | B20: 11 | C20: The fund used to record all operating revenue and expenditures of the district pertaining to education, except: school food service, athletics, certain special education center programs, certain large non-instructional programs, purchase of sites, construction of buildings, and the retirement of bonded debt.
A21: Special Revenue Funds | B21: 21-28 | C21: Funds used to record the transactions pertaining to food services, community services, bookstore, and interscholastic athletics. Special Revenue Funds are subsidiary operations and obligations of the school district General Fund. GASB 54 took effect in FY 2010-11. This caused some districts to report interscholastic athletics activities within the general fund instead of in a separate athletic special revenue fund.
A22: Debt Retirement Funds | B22: 31-39 | C22: Funds designated for recording transactions in monies and other assets earmarked for use in payment of principal and interest on long-term debt.
A23: Capital Projects Funds | B23: 41-49 | C23: Funds designated for recording transactions in monies and other assets earmarked for use in acquiring new school sites, buildings and equipment, and major remodeling of, or additions to, facilities.
A24: Trust Funds | B24: 51-59 | C24: Funds used to account for assets held by a school district as the trustee for individuals or organizations.
A25: Agency Funds | B25: 61-69 | C25: The agency fund is an account used for funds that are held in a custodial capacity by a school district for individuals, private organizations, or other governments. Agency funds may include those used to account for student activities or taxes collected.
A26: Enterprise Funds | B26: 71-79 | C26: The enterprise fund can be used to account for any activity for which a fee is charged to external users for goods or services.
A27: Internal Service Funds | B27: 81-89 | C27: The internal service fund can be used to account for any activity within the school district that provides goods or services to other funds, departments, or other governments on a cost-reimbursement basis. The use of an internal service fund is appropriate only for activities in which the school district is the predominant participant in the activity. Some examples may include a district-wide print shop operation or a self-funded insurance program.
A28: Balance Sheet Accounts
A29: Assets | B29: 1xx-3xx | C29: Something of value owned which is currently available to the district to be used in meeting future costs of the educational program.
A30: Liabilities | B30: 4xx | C30: Debts or other legal obligations arising from past transactions which are payable, but not necessarily due, immediately.
A31: Fund Balance | C31: The excess of assets of a fund over its liabilities and reserves available for meeting future school district program operations.
A32: Unreserved Fund Balance | B32: 74x | C32: The excess of assets of a fund over its liabilities and reserves except in the case of funds subject to budgetary accounting where, prior to the end of the fiscal period, it represents the excess of the fund's assets and estimated revenues for the period.
A33: Reserves | B33: 71x | C33: A reserve representing the segregation of a portion of a fund balance to provide for unliquidated encumbrances, obligations, a special purpose reserve, e.g., inventories, prepaid expenditures, specially designated millages and energy conservation projects.
A34: Designations | B34: 75x | C34: Various board designations of fund balance.
A35: Revenue Major Class Categories
A36: Local Sources | B36: 11x-19x, 51x-52x | C36: Revenue produced within the school district boundaries for operating the district and available to the district in the amount produced. The major source of local revenue in most districts is the general property tax levy.
A37: State Sources | B37: 3xx | C37: Revenue received or to be received from the state of Michigan which is appropriated by the state out of state-levied funds. The major source of state revenue in most districts is the State School Aid foundation allowance.
A38: Federal Sources | B38: 4xx | C38: Revenue received or to be received directly from the federal government, which is redistributed by the state; or redistributed by a local unit of government, such as a county or a city; or allocated directly by a federal agency, e.g., the U.S. Department of Education.
A39: Other Sources | B39: 2xx | C39: Revenue received or to be received from a non-public educational entity or a governmental unit other than the state or federal government.
A40: Expenditure Object Categories
A41: Salaries | B41: 1xxx | C41: Amounts paid to employees of the school system who are considered to be in positions of a permanent nature or hired temporarily, including personnel substituting for those in permanent positions. This includes gross salary for personal services rendered while on the payroll of the school system.
A42: Employee Benefits | B42: 2xxx | C42: Amounts paid by the school system on behalf of employees; these amounts are not included in the gross salary, but are over and above this. Such payments are not paid directly to employees, nevertheless are part of the cost of salaries and benefits. Examples are: (a) various types of employee insurance, (b) special leave payments in the nature of sabbatical leave payments and terminal leave payments, (c) special allowance for tuition, (d) the various mandatory coverages including retirement reimbursed from federal funds as well as non-federal contributions, and (e) special professional services.
A43: Purchased Services | B43: 3xxx- 4xxx, 82xx | C43: Amounts paid for services rendered by persons who are not on the payroll of the school system. While a product may or may not result from the transaction, the primary reason for the purchase is the service provided in order to obtain the desired results.
A44: Supplies and Materials | B44: 5xxx | C44: Expenditures of items that are consumed, worn out, or deteriorated in use, or items that lose their identity through fabrication or incorporation into different or more complex units of substances. Examples: Books, paper, software, etc.
A45: Capital Outlay | B45: 6xxx | C45: Expenditures for the acquisition of fixed assets of additions to fixed assets. They are: expenditures for land or existing buildings, improvements of grounds, construction of buildings, additions to buildings, remodeling of buildings, initial equipment, additional equipment and replacement of equipment.
A46: Other Expenditures | B46: 7xxxx | C46: Amounts paid for goods and services not otherwise classified above. This includes expenditures for the retirement of debt, the payment of interest on debt, payments to a housing authority and the payment of dues and fees.
A47: Expenditure Function Categories
A48: Instruction | B48: 1xx | C48: The cost of activities dealing directly with the teaching of students in the classroom or in a classroom situation. For these tables, instruction is the sum of basic instruction, added needs and adult education.
A49: Basic Programs | B49: 111 - 119 | C49: Instructional activities including enrichment designed primarily to prepare pupils for activities as citizens, family members and workers; as contrasted with programs designed to improve or overcome physical, mental, social and/or emotional handicaps. Includes Pre-school, Elementary, Middle-Junior High, and High School.
A50: Added Needs | B50: 122 - 127 | C50: The classroom costs of added-needs instructional programs offered by the school. This includes special education, compensatory education and vocational education.
A51: Adult Education | B51: 13x | C51: The classroom costs of adult/continuing education programs operated within the school's general fund. These expenditures do not include capital outlay. The denominator for this category includes adult education participants only.
A52: Instructional Support | C52: Sum of student services, instructional staff support and school administration.
A53: Student Services | B53: 21x | C53: Activities that are designed to assess and improve the well-being of pupils and to supplement the teaching process. Examples are: (a) Guidance Services, (b) Health Services, (c) Psychological Services, (d) Social Work Services.
A54: Instructional Staff Support | B54: 22x | C54: Activities associated with assisting the instructional staff with the content and process of providing learning experiences for pupils.
A55: School Administration | B55: 24x | C55: Activities concerned with overall administrative responsibility for a single school.
A56: Non-Instructional Support | C56: Sum of general administration, business office, operations maintenance, transportation and other support.
A57: General Administration | B57: 23x | C57: Activities concerned with establishing policy, operating schools and the school system, and providing the essential facilities and services for the staff and pupils.
A58: Business Office | B58: 25x | C58: Activities concerned with purchasing, paying, transporting, exchanging and maintaining goods and services for the school district.
A59: Operations Maintenance | B59: 26x | C59: The cost of those activities concerned with keeping the physical plant open, comfortable and safe for use.
A60: Transportation | B60: 27x | C60: Activities concerned with the conveyance of pupils to and from school, as provided by state law. It includes trips between home and school or trips to school activities. Includes all other direct costs related to pupil transportation, i.e., physical exams, uniforms, school bus driver licenses, awards, bus monitors, etc.
A61: Other Support | B61: 28x - 29x
A62: Community Services | B62: 3xx | C62: Community services consist of those activities that are not directly related to providing education for pupils in a school system. These include services provided by the school system for the community as a whole or some segment of the community, such as community recreation programs, civic activities, public libraries, programs of custody and care of children, and community welfare activities.
A63: Facilities Acquisition | B63: 45x | C63: Activities concerned with acquiring land and buildings; remodeling buildings; constructing buildings and additions to buildings; initially installing or extending service systems and other built-in equipment; and improving sites.
A64: Transfers
A65: Revenue Major Class Codes
A66: Extra-Ordinary Revenue Items | B66: 54x | C66: Those items that would materially alter the revenue reported in the financial statements.
A67: Other Financing Sources | B67: 59x | C67: Used for those transactions that cannot be identified in the previous classifications. Examples include: proceeds from the issuance of bonds/capital assets/long-term notes, capital lease transactions, proceeds from school bond loan fund, and proceeds from refinancing debt.
A68: Expenditure Function Codes
A69: Payments - Units in State | B69: 411 | C69: Payments or distributions to other public schools in Michigan.
A70: Other Transactions | B70: 43x-44x | C70: Payments to State Schools for the Deaf and Blind or to other governmental and not-for-profit entities.
A71: Debt Service | B71: 511 | C71: Activities related to servicing the long-term debt of the school district, including payments of both principal and interest.
A72: Payment to Escrow | B72: 512 | C72: Payment to escrow agent.
A73: Applicable to Both Revenues and Expenditures
A74: Prior Period Adjustment | B74: 55x Rev; 49x Exp | C74: Revenue or expenses applicable to a previous period. The beginning balance of retained earnings is adjusted for the prior period adjustment. The likely reason for a prior period adjustment is to correct an error made in a prior year.
A75: Fund Modifications | B75: 6xx | C75: Transactions conveying financial resources from one fund to another within the district.
A76: General Terminology
A77: Compensation | C77: The total amount of money spent on salaries and benefits. Compensation excludes objects not directly related to salaries or benefits, such as purchased services, supplies, and capital outlays.
A78: Fund Balance | C78: The excess of assets of a fund over its liabilities and reserves available for meeting future school district program operations.
A79: Governmental accounting method | C79: Revenue is recognized when it becomes available and measurable. Expenditures are typically recognized in the period in which the liability is incurred except for: (1) inventories of materials and supplies that may be considered expenditures either when bought or used; (2) interest on general and special assessment long-term debt that is recognized on the date due; and (3) use of encumbrances.
A80: Operating Expenditures | C80: The total of instructional and support services expenditures. A descriptive heading under which are grouped all expenditures of the current year used to educate elementary/secondary students. These expenditures do not include capital outlay or community services.
A81: Proprietary Funds | C81: In governmental accounting, a fund which has profit and loss aspects; therefore it uses the accrual (cash basis) rather than the governmental accounting method. The two types of proprietary funds are the Enterprise Fund and the Internal Service Fund.
A82: School Fiscal Year (FY) | C82: A fiscal year that commences July 1 and continues through June 30. In this report, the year indicates the school fiscal year, e.g., 2012 refers to the school fiscal year from July 1, 2011 through June 30, 2012.
A83: Legislative Information
A84: Note: Legislative district information in the following tables are provided by the Center for Geographical Information (CGI). The legislative identification of a district is based upon the physical address of the district's administrative building.
A85: Center for Geographic Information | C85: The Michigan Center for Geographic Information (CGI) provides leadership, technical expertise and policy for the acquisition, development, use, dissemination, promotion and sharing of geographic information in the state of Michigan.
C86: www.michigan.gov/cgi
A87: U.S. Congressional District | C87: The United States House of Representatives district number.
A88: Michigan House District | C88: The Michigan House of Representatives district number.
C89: house.michigan.gov/
A90: Michigan Senate District | C90: The Michigan Senate district number.
C91: www.senate.michigan.gov/
A92: Other Sources of Financial Data
A93: Annual ISD Web Site Posting | C93: Public Act 413 of 2004 (Enrolled House Bill 5475) amended the Revised School Code by adding section 620 (MCL 380.620), which requires each intermediate school district (ISD) to post certain information on its Web site by December 31 of each year, beginning in 2006.
C94: http://www.michigan.gov/mde/0,1607,7-140-6530_6605-159882--,00.html
A95: Bulletin 1011 - Analysis of Michigan Public Schools Revenue and Expenditures (Michigan Department of Education) | C95: Bulletin 1011 is a financial report that groups districts by size of pupil membership. It contains various pieces of financial information about groups of Michigan public schools including balance sheet, revenue and expenditure data. It also includes the fall pupil count and average teacher salary for those groups.
C96: http://www.michigan.gov/mde/0,1607,7-140-6530_6605-21539--,00.html
A97: Bulletin 1014 - Michigan Public Schools Ranked by Select Financial Information (Michigan Department of Education) | C97: Bulletin 1014 contains various pieces of financial information about Michigan public schools, including revenue and expenditures per pupil. It also includes the fall pupil count, average teacher salary, and taxable value information.
C98: http://www.michigan.gov/mde/0,1607,7-140-6530_6605-21514--,00.html
A99: Common Core of Data (CCD) | C99: The Common Core of Data (CCD) is a program of the U.S. Department of Education's National Center for Education Statistics that annually collects fiscal and non-fiscal data about all public schools, public school districts and state education agencies in the United States. The data are supplied by state education agency officials and include information that describes schools and school districts, including name, address, and phone number; descriptive information about students and staff, including demographics; and fiscal data, including revenues and current expenditures.
C100: http://nces.ed.gov/ccd/
A101: CCD - Revenues and Expenditures for Public Elementary and Secondary Education | C101: This brief publication contains basic revenue and expenditure data, by state, for public elementary and secondary education. It contains state-level data on revenues by source and expenditures by function, including expenditures per pupil.
A102: - School Year 2004-05 (Fiscal Year 2005) | C102: http://nces.ed.gov/pubs2007/expenditures/
A103: - School Year 2005-06 (Fiscal Year 2006) | C103: http://nces.ed.gov/pubs2008/expenditures/
A104: - School Year 2006-07 (Fiscal Year 2007) | C104: http://nces.ed.gov/pubs2009/expenditures/
A105: - School Year 2007-08 (Fiscal Year 2008) | C105: http://nces.ed.gov/pubs2010/expenditures/
A106: - School Year 2008-09 (Fiscal Year 2009) | C106: http://nces.ed.gov/pubs2011/expenditures/
A107: Education Finance Statistics Center (EDFIN) | C107: Information on all aspects of public school finance, including data, surveys, graphs, tools, and publications.
C108: http://nces.ed.gov/edfin/index.asp
A109: Michigan Department of Education - Office of State Aid and School Finance | C109: The Office of State Aid and School Finance is responsible for administering the State School Aid Act and distributing state funds to public school districts across the state. In addition, this office provides guidance on issues of school finance and tax policy, public school district financial accounting, various financing mechanisms available to school districts, and information on pupil accounting statutes and rules. Also, the office provides interpretation, analysis and coordination of departmental activities related to the annual development of the State School Aid K-12 budget.
C110: http://www.michigan.gov/mde/0,1607,7-140-6530_6605---,00.html
A111: Public School Finance Information (Michigan Department of Education) | C111: Various information elements related to K-12 public school finance policy in the state of Michigan. Includes a link for the most recent National Public Education Finance Survey.
C112: http://www.michigan.gov/mde/0,1607,7-140-5235_6093-21653--,00.html
A114: Technical Notes | C114: 5/7/2013--Preliminary data draft completed.

Sheet Expenditures (State)
A1: =BTS!B3 -> Financial Information Database (FID)
A2: =CONCATENATE(BTS!B4," ","Statewide Expenditure Summary") -> 2014-2015 Statewide Expenditure Summary
A4: Object by Fund
A5: Fund | B5: Salaries | C5: Employee Benefits | D5: Purchased Services | E5: Supplies & Materials | F5: Capital Outlay | G5: Other | H5: Total
A7: General Fund (11) | B7: 7113810255 | C7: 4345774670 | D7: 2821844099 | E7: 783081432 | F7: 163710842.9 | G7: 100895682.9 | H7: =SUM(B7:G7) -> 1.532911698e+10
A8: Athletic Fund (21) | B8: 1333694.53 | C8: 532946.83 | D8: 1141231.08 | E8: 276481.29 | F8: 101672.15 | G8: 202207.22 | H8: =SUM(B8:G8) -> 3588233.1
A9: Special Education Fund (22) | B9: 571908031.5 | C9: 373621680.6 | D9: 170495525.8 | E9: 25380160.48 | F9: 12767218.1 | G9: 6166737.62 | H9: 1160339354
A10: Community Service Fund (23) | B10: 52625681.31 | C10: 25694300.9 | D10: 25457646.42 | E10: 9547228.29 | F10: 2372160.59 | G10: 3131689.67 | H10: 118828707.2
A11: Bookstore Fund (24) | B11: 7648.06 | C11: 4978.92 | D11: 4606.24 | E11: 775606.12 | F11: 4057.58 | G11: 23593.37 | H11: 820490.29
A12: School Lunch Fund (25) | B12: 123534532.9 | C12: 69651161.38 | D12: 133575025.2 | E12: 287886028.4 | F12: 14490675.02 | G12: 7186536.38 | H12: 636323959.2
A13: Vocational Education Fund (26) | B13: 93171423.87 | C13: 59657683.6 | D13: 32515246.09 | E13: 19119958.59 | F13: 8385404.76 | G13: 1478128.67 | H13: 214327845.6
A14: Cooperative Education Fund (27) | B14: 29612975.05 | C14: 17172986.66 | D14: 22518869.97 | E14: 4313505.97 | F14: 4971400.42 | G14: 1463798.35 | H14: 80053536.42
A15: Private Purpose Trust Fund (28) | B15: 375821.42 | C15: 192989.39 | D15: 278302.66 | E15: 107798.49 | F15: 36737.86 | G15: 1049095.84 | H15: 2040745.66
A16: Debt Service Fund (3) | B16: 0 | C16: 0 | D16: 3374005.07 | E16: 51.3 | F16: 0 | G16: 10023362.77 | H16: 13397419.14
A17: Capital Projects Fund (4) | B17: 171923.14 | C17: 79533.93 | D17: 94394200.16 | E17: 1691490.45 | F17: 825959487.4 | G17: 8042071.65 | H17: 930338706.7
A18: Trust Funds (5) | B18: 19959.87 | C18: 2525.5 | D18: 750462 | E18: 459918.95 | F18: 131956 | G18: 4378593.58 | H18: =SUM(B18:G18) -> 5743415.9
A19: Total Expenditures | B19: =SUM(B7:B18) -> 7986571947 | C19: 4892385458 | D19: =SUM(D7:D18) -> 3306349220 | E19: 1132639660 | F19: 1032931613 | G19: 144041498.1 | H19: =SUM(B19:G19) -> 1.84949194e+10
A43: Statewide General Fund Summary
A44: GF Function | B44: Salaries | C44: Employee Benefits | D44: Purchased Services | E44: Supplies & Materials | F44: Capital Outlay | G44: Other | H44: Total
A46: Instruction (11x) | B46: 3864204635 | C46: 2391267926 | D46: 665739430.5 | E46: 169520596.6 | F46: 22026051.95 | G46: 6435167.21 | H46: 7119193806
A47: Added Needs (12x) | B47: 1013814376 | C47: 610340722.8 | D47: 252746350.1 | E47: 51934776.13 | F47: 6170116.62 | G47: 1599117.78 | H47: 1936605459
A48: Adult/Continuing Education (13x) | B48: 15677627.51 | C48: 8264399.92 | D48: 4172275.15 | E48: 1556581.97 | F48: 149368.23 | G48: 38095.65 | H48: 29858348.43
A49: Student Services (21x) | B49: 473987621.4 | C49: 274044115.9 | D49: 147810159.5 | E49: 5367045.47 | F49: 471874.66 | G49: 1279865.72 | H49: 902960682.6
A50: Instr. Staff Support (22x) | B50: 308638361.5 | C50: 176048138.1 | D50: 199520288.9 | E50: 50224517.07 | F50: 12701131.37 | G50: 3931786.05 | H50: 751064223
A51: General Admin. (23x) | B51: 115561738.5 | C51: 65596593.15 | D51: 165649277.2 | E51: 4747918.67 | F51: 626163.15 | G51: 12699124.16 | H51: 364880814.9
A52: School Administration (24x) | B52: 487570123.1 | C52: 295087183.5 | D52: 102077599.8 | E52: 10672546.53 | F52: 1586831 | G52: 3550517.58 | H52: 900544801.5
A53: Business Office (25x) | B53: 104378696.6 | C53: 69495663.09 | D53: 80812398.34 | E53: 4029881.72 | F53: 1162206.45 | G53: 45699183.79 | H53: 305578030
A54: Operation Maintenance (26x) | B54: 266974603.6 | C54: 186334792.2 | D54: 625859123.4 | E54: 361563526.2 | F54: 19779227.53 | G54: 6809390.66 | H54: 1467320664
A55: Transportation (27x) | B55: 179242106.2 | C55: 110864722.7 | D55: 264683710.8 | E55: 76036434.44 | F55: 33857393.6 | G55: 1663792.77 | H55: 666348160.6
A56: Other Support (28x, 29x) | B56: 226784713.8 | C56: 129130046.8 | D56: 270528457.1 | E56: 37968262.29 | F56: 31506442.92 | G56: 15560566.24 | H56: 711478489.1
A57: Community Services (3xx) | B57: 56871769.39 | C57: 29236894.27 | D57: 41229348.4 | E57: 9459344.82 | F57: 610554.77 | G57: 1439470.26 | H57: 138847381.9
A58: Facilities Acquisition (45x) | B58: 103883.09 | C58: 63472.34 | D58: 1015679.88 | E58: 0 | F58: 33063480.66 | G58: 189605.06 | H58: 34436121.03
A59: Total | B59: =SUM(B46:B58) -> 7113810255 | C59: 4345774670 | D59: 2821844099 | E59: 783081432 | F59: 163710842.9 | G59: 100895682.9 | H59: =SUM(B59:G59) -> 1.532911698e+10
A84: Click here to return to menu.

Sheet Expenditures (Fund by Func)
A1: =CONCATENATE("FY ",BTS!B5," ","District Expenditures by Function") -> FY 2015 District Expenditures by Function | B1: Click on arrow button to apply filter to column. District count and amounts will change as filters are applied. | D1: Note: Percentages follow totals. | I1: Column Total: | K1: =SUBTOTAL(9,$K$4:$K$3225) -> 7153911112 | L1: =SUBTOTAL(9,L4:L3225) -> 1349726723 | M1: 869510163.4 | N1: 374559618.1 | O1: 934498778.7 | P1: 350696284 | Q1: 1575901475 | R1: 821789689.9 | S1: 1456457610 | T1: 245412270.1 | U1: 867360783.8 | V1: 1.84949194e+10 | X1: =SUBTOTAL(9,X4:X3225) -> 119022674.3 | Y1: 8278840.2 | Z1: 4541927802 | AA1: 304901540.5 | AB1: 4974130857 | AC1: 2.346905025e+10
A2: ="Total Number of Districts: 902" -> Total Number of Districts: 902
A3: District Name | B3: Dist. Code | C3: ISD Name | D3: ISD Code | E3: Dist. Type | F3: US Cong. | G3: MI Senate | H3: MI House | I3: Fund Name | J3: Fund | K3: Instruction (1xx) | L3: Student Services (21x) | M3: Instr. Staff Support (22x) | N3: General Admin. (23x) | O3: School Administration (24x) | P3: Business Office (25x) | Q3: Operation Maintenance (26x) | R3: Transportation (27x) | S3: Other Support (28x, 29x) | T3: Community Services (3xx) | U3: Facilities Acquisition (45x) | V3: Total | X3: Payments & Other Transactions (41x-44x) | Y3: Prior Year Adjustments (49x) | Z3: Debt Service (51x) | AA3: Transfers to Other Funds (6xx) | AB3: Total Before Transfers | AC3: Total
A4: Allegan Area Educational Service Agency | B4: 03000 | C4: Allegan Area Educational Service Agency | D4: 03 | E4: ISD | F4: 06 | G4: 26 | H4: 080 | I4: General Fund | J4: 11 | K4: 1459856.54 | L4: 20350.62 | M4: 922101.42 | N4: 560858.93 | O4: 59103.66 | P4: 653290.23 | Q4: 191785.43 | R4: 4855.98 | S4: 1362389.58 | T4: 0 | U4: 0 | V4: 5234592.39 | X4: 0 | Y4: 0 | Z4: 0 | AA4: 0 | AB4: =SUM(X4:AA4) -> 0 | AC4: =SUM(V4,AB4) -> 5234592.39
A5: Allegan Area Educational Service Agency | B5: 03000 | C5: Allegan Area Educational Service Agency | D5: 03 | E5: ISD | F5: 06 | G5: 26 | H5: 080 | I5: Special Education Fund | J5: 22 | K5: 0 | L5: 3035545.86 | M5: 981023.49 | N5: 25477.72 | O5: 71119.94 | P5: 124237.91 | Q5: 360733.8 | R5: 1874473.9 | S5: 172149.37 | T5: 15456 | U5: 0 | V5: 10488213.34 | X5: 0 | Y5: 0 | Z5: 0 | AA5: 780572 | AB5: =SUM(X5:AA5) -> 780572 | AC5: =SUM(V5,AB5) -> 11268785.34
A6: Allegan Area Educational Service Agency | B6: 03000 | C6: Allegan Area Educational Service Agency | D6: 03 | E6: ISD | F6: 06 | G6: 26 | H6: 080 | I6: Vocational Education Fund | J6: 26 | K6: 0 | L6: 354728.55 | M6: 185809.66 | N6: 14674.15 | O6: 533426.83 | P6: 25685.52 | Q6: 461506.52 | R6: 0 | S6: 0 | T6: 0 | U6: 207356.39 | V6: 4076238.1 | X6: 0 | Y6: 0 | Z6: 0 | AA6: 981257 | AB6: 981257 | AC6: 5057495.1
A7: Allegan Area Educational Service Agency | B7: 03000 | C7: Allegan Area Educational Service Agency | D7: 03 | E7: ISD | F7: 06 | G7: 26 | H7: 080 | I7: Cooperative Activities Fund | J7: 27 | K7: 0 | L7: 0 | M7: 0 | N7: 0 | O7: 0 | P7: 0 | Q7: 0 | R7: 0 | S7: 0 | T7: 484099.53 | U7: 0 | V7: 484099.53 | X7: 0 | Y7: 0 | Z7: 0 | AA7: 0 | AB7: 0 | AC7: 484099.53
A8: Allegan Area Educational Service Agency | B8: 03000 | C8: Allegan Area Educational Service Agency | D8: 03 | E8: ISD | F8: 06 | G8: 26 | H8: 080 | I8: Debt Service Funds | J8: 30 | K8: 0 | L8: 0 | M8: 0 | N8: 0 | O8: 0 | P8: 0 | Q8: 0 | R8: 0 | S8: 0 | T8: 0 | U8: 0 | V8: 0 | X8: 0 | Y8: 0 | Z8: 344126.26 | AA8: 0 | AB8: 344126.26 | AC8: 344126.26
A9: Plainwell Community Schools | B9: 03010 | C9: Allegan Area Educational Service Agency | D9: 03 | E9: LEA | F9: 06 | G9: 26 | H9: 080 | I9: General Fund | J9: 11 | K9: 13043295.88 | L9: 823968.29 | M9: 471828.47 | N9: 436204.32 | O9: 1419303.45 | P9: 335573.14 | Q9: 2691928.21 | R9: 805412.31 | S9: 905520.47 | T9: 628574.48 | U9: 153203 | V9: 24180233.17 | X9: 0 | Y9: 0 | Z9: 30810.96 | AA9: 0 | AB9: 30810.96 | AC9: 24211044.13
A10: Plainwell Community Schools | B10: 03010 | C10: Allegan Area Educational Service Agency | D10: 03 | E10: LEA | F10: 06 | G10: 26 | H10: 080 | I10: School Lunch Fund | J10: 25 | K10: 0 | L10: 0 | M10: 0 | N10: 0 | O10: 0 | P10: 0 | Q10: 0 | R10: 0 | S10: 721804.86 | T10: 0 | U10: 0 | V10: 721804.86 | X10: 0 | Y10: 0 | Z10: 0 | AA10: 0 | AB10: 0 | AC10: 721804.86
A11: Plainwell Community Schools | B11: 03010 | C11: Allegan Area Educational Service Agency | D11: 03 | E11: LEA | F11: 06 | G11: 26 | H11: 080 | I11: Debt Service Funds | J11: 30 | K11: 0 | L11: 0 | M11: 0 | N11: 0 | O11: 0 | P11: 6430.33 | Q11: 0 | R11: 0 | S11: 0 | T11: 0 | U11: 0 | V11: 6430.33 | X11: 0 | Y11: 0 | Z11: 4277405.02 | AA11: 2000 | AB11: 4279405.02 | AC11: 4285835.35
A12: Plainwell Community Schools | B12: 03010 | C12: Allegan Area Educational Service Agency | D12: 03 | E12: LEA | F12: 06 | G12: 26 | H12: 080 | I12: Capital Projects Fund | J12: 40 | K12: 0 | L12: 0 | M12: 0 | N12: 0 | O12: 0 | P12: 0 | Q12: 0 | R12: 0 | S12: 0 | T12: 0 | U12: 268191.64 | V12: 268191.64 | X12: 0 | Y12: 0 | Z12: 0 | AA12: 0 | AB12: 0 | AC12: 268191.64
A13: Otsego Public Schools | B13: 03020 | C13: Allegan Area Educational Service Agency | D13: 03 | E13: LEA | F13: 06 | G13: 26 | H13: 080 | I13: General Fund | J13: 11 | K13: 10061385.55 | L13: 842092.08 | M13: 232470.62 | N13: 664350.68 | O13: 1313799.62 | P13: 338998.51 | Q13: 2059181.43 | R13: 2007599.29 | S13: 1138710.9 | T13: 406192.25 | U13: 0 | V13: 20690967.35 | X13: 0 | Y13: 0 | Z13: 127013.2 | AA13: 28000 | AB13: 155013.2 | AC13: 20845980.55
A14: Otsego Public Schools | B14: 03020 | C14: Allegan Area Educational Service Agency | D14: 03 | E14: LEA | F14: 06 | G14: 26 | H14: 080 | I14: School Lunch Fund | J14: 25 | K14: 0 | L14: 0 | M14: 0 | N14: 0 | O14: 0 | P14: 0 | Q14: 0 | R14: 0 | S14: 851845.94 | T14: 0 | U14: 0 | V14: 851845.94 | X14: 0 | Y14: 0 | Z14: 0 | AA14: 0 | AB14: 0 | AC14: 851845.94
A15: Otsego Public Schools | B15: 03020 | C15: Allegan Area Educational Service Agency | D15: 03 | E15: LEA | F15: 06 | G15: 26 | H15: 080 | I15: Debt Service Funds | J15: 30 | K15: 0 | L15: 0 | M15: 0 | N15: 0 | O15: 0 | P15: 0 | Q15: 0 | R15: 0 | S15: 0 | T15: 0 | U15: 0 | V15: 0 | X15: 0 | Y15: 0 | Z15: 4255010 | AA15: 90196.36 | AB15: 4345206.36 | AC15: 4345206.36
A16: Allegan Public Schools | B16: 03030 | C16: Allegan Area Educational Service Agency | D16: 03 | E16: LEA | F16: 06 | G16: 26 | H16: 080 | I16: General Fund | J16: 11 | K16: 11546353.41 | L16: 1462809.49 | M16: 956042.63 | N16: 478112.23 | O16: 1515789.77 | P16: 523155.43 | Q16: 2324581.06 | R16: 1036790.45 | S16: 547485.66 | T16: 263183.47 | U16: 0 | V16: 23194709.82 | X16: 0 | Y16: 0 | Z16: 74035 | AA16: 0 | AB16: 74035 | AC16: 23268744.82
A17: Allegan Public Schools | B17: 03030 | C17: Allegan Area Educational Service Agency | D17: 03 | E17: LEA | F17: 06 | G17: 26 | H17: 080 | I17: School Lunch Fund | J17: 25 | K17: 0 | L17: 0 | M17: 0 | N17: 0 | O17: 0 | P17: 0 | Q17: 0 | R17: 0 | S17: 1070716.16 | T17: 0 | U17: 0 | V17: 1070716.16 | X17: 0 | Y17: 0 | Z17: 0 | AA17: 0 | AB17: 0 | AC17: 1070716.16
A18: Allegan Public Schools | B18: 03030 | C18: Allegan Area Educational Service Agency | D18: 03 | E18: LEA | F18: 06 | G18: 26 | H18: 080 | I18: Debt Service Funds | J18: 30 | K18: 0 | L18: 0 | M18: 0 | N18: 0 | O18: 0 | P18: 0 | Q18: 0 | R18: 0 | S18: 0 | T18: 0 | U18: 0 | V18: 0 | X18: 0 | Y18: 0 | Z18: 15715204.69 | AA18: 0 | AB18: 15715204.69 | AC18: 15715204.69
A19: Allegan Public Schools | B19: 03030 | C19: Allegan Area Educational Service Agency | D19: 03 | E19: LEA | F19: 06 | G19: 26 | H19: 080 | I19: Capital Projects Fund | J19: 40 | K19: 0 | L19: 0 | M19: 0 | N19: 0 | O19: 0 | P19: 0 | Q19: 99.45 | R19: 0 | S19: 0 | T19: 0 | U19: 452530.7 | V19: 452630.15 | X19: 0 | Y19: 0 | Z19: 0 | AA19: 0 | AB19: 0 | AC19: 452630.15
A20: Wayland Union Schools | B20: 03040 | C20: Allegan Area Educational Service Agency | D20: 03 | E20: LEA | F20: 06 | G20: 26 | H20: 072 | I20: General Fund | J20: 11 | K20: 12880143.99 | L20: 1528314.84 | M20: 1091308.29 | N20: 407985.97 | O20: 1681244.98 | P20: 487614.43 | Q20: 2199486.48 | R20: 1054556.39 | S20: 1518270.04 | T20: 261065.3 | U20: 0 | V20: 25752954.6 | X20: 0 | Y20: 0 | Z20: 229599.97 | AA20: 636290.53 | AB20: 865890.5 | AC20: 26618845.1
A21: Wayland Union Schools | B21: 03040 | C21: Allegan Area Educational Service Agency | D21: 03 | E21: LEA | F21: 06 | G21: 26 | H21: 072 | I21: School Lunch Fund | J21: 25 | K21: 0 | L21: 0 | M21: 0 | N21: 0 | O21: 0 | P21: 0 | Q21: 0 | R21: 0 | S21: 1427720.19 | T21: 0 | U21: 0 | V21: 1427720.19 | X21: 0 | Y21: 0 | Z21: 0 | AA21: 0 | AB21: 0 | AC21: 1427720.19
A22: Wayland Union Schools | B22: 03040 | C22: Allegan Area Educational Service Agency | D22: 03 | E22: LEA | F22: 06 | G22: 26 | H22: 072 | I22: Debt Service Funds | J22: 30 | K22: 0 | L22: 0 | M22: 0 | N22: 0 | O22: 0 | P22: 0 | Q22: 0 | R22: 0 | S22: 0 | T22: 0 | U22: 0 | V22: 0 | X22: 0 | Y22: 0 | Z22: 4271379.27 | AA22: 0 | AB22: 4271379.27 | AC22: 4271379.27
A23: Wayland Union Schools | B23: 03040 | C23: Allegan Area Educational Service Agency | D23: 03 | E23: LEA | F23: 06 | G23: 26 | H23: 072 | I23: Capital Projects Fund | J23: 40 | K23: 0 | L23: 0 | M23: 0 | N23: 0 | O23: 0 | P23: 0 | Q23: 353093.19 | R23: 0 | S23: 0 | T23: 0 | U23: 1135494.06 | V23: 1488587.25 | X23: 0 | Y23: 0 | Z23: 0 | AA23: 0 | AB23: 0 | AC23: 1488587.25
A24: Fennville Public Schools | B24: 03050 | C24: Allegan Area Educational Service Agency | D24: 03 | E24: LEA | F24: 06 | G24: 26 | H24: 080 | I24: General Fund | J24: 11 | K24: 5856506.51 | L24: 363129.9 | M24: 200616.26 | N24: 370185.8 | O24: 773439.97 | P24: 292335.87 | Q24: 1675180.41 | R24: 806778.8 | S24: 724328.44 | T24: 79190.99 | U24: 0 | V24: 12580909.64 | X24: 0 | Y24: 0 | Z24: 141743.83 | AA24: 8590 | AB24: 150333.83 | AC24: 12731243.47
A25: Fennville Public Schools | B25: 03050 | C25: Allegan Area Educational Service Agency | D25: 03 | E25: LEA | F25: 06 | G25: 26 | H25: 080 | I25: School Lunch Fund | J25: 25 | K25: 0 | L25: 0 | M25: 0 | N25: 0 | O25: 0 | P25: 0 | Q25: 0 | R25: 0 | S25: 819445.23 | T25: 0 | U25: 0 | V25: 819445.23 | X25: 0 | Y25: 0 | Z25: 0 | AA25: 0 | AB25: 0 | AC25: 819445.23
A26: Fennville Public Schools | B26: 03050 | C26: Allegan Area Educational Service Agency | D26: 03 | E26: LEA | F26: 06 | G26: 26 | H26: 080 | I26: Debt Service Funds | J26: 30 | K26: 0 | L26: 0 | M26: 0 | N26: 0 | O26: 0 | P26: 4411.62 | Q26: 0 | R26: 0 | S26: 0 | T26: 0 | U26: 0 | V26: 4411.62 | X26: 0 | Y26: 0 | Z26: 1546679.6 | AA26: 0 | AB26: 1546679.6 | AC26: 1551091.22
A27: Fennville Public Schools | B27: 03050 | C27: Allegan Area Educational Service Agency | D27: 03 | E27: LEA | F27: 06 | G27: 26 | H27: 080 | I27: Capital Projects Fund | J27: 40 | K27: 0 | L27: 0 | M27: 0 | N27: 0 | O27: 0 | P27: 476.13 | Q27: 0 | R27: 0 | S27: 0 | T27: 0 | U27: 97221.28 | V27: 97697.41 | X27: 0 | Y27: 0 | Z27: 0 | AA27: 0 | AB27: 0 | AC27: 97697.41
A28: Martin Public Schools | B28: 03060 | C28: Allegan Area Educational Service Agency | D28: 03 | E28: LEA | F28: 06 | G28: 26 | H28: 080 | I28: General Fund | J28: 11 | K28: 2587470.11 | L28: 147201.97 | M28: 27077.65 | N28: 202221.73 | O28: 386341.69 | P28: 128871.46 | Q28: 439330.89 | R28: 213861.62 | S28: 299568.13 | T28: 5229.2 | U28: 0 | V28: 4963991.22 | X28: 0 | Y28: 0 | Z28: 5748 | AA28: 0 | AB28: 5748 | AC28: 4969739.22
A29: Martin Public Schools | B29: 03060 | C29: Allegan Area Educational Service Agency | D29: 03 | E29: LEA | F29: 06 | G29: 26 | H29: 080 | I29: School Lunch Fund | J29: 25 | K29: 0 | L29: 0 | M29: 0 | N29: 0 | O29: 0 | P29: 0 | Q29: 0 | R29: 0 | S29: 217882.29 | T29: 0 | U29: 0 | V29: 217882.29 | X29: 0 | Y29: 0 | Z29: 0 | AA29: 0 | AB29: 0 | AC29: 217882.29
A30: Martin Public Schools | B30: 03060 | C30: Allegan Area Educational Service Agency | D30: 03 | E30: LEA | F30: 06 | G30: 26 | H30: 080 | I30: Debt Service Funds | J30: 30 | K30: 0 | L30: 0 | M30: 0 | N30: 0 | O30: 0 | P30: 0 | Q30: 0 | R30: 0 | S30: 0 | T30: 0 | U30: 0 | V30: 0 | X30: 0 | Y30: 0 | Z30: 902070 | AA30: 0 | AB30: 902070 | AC30: 902070
A31: Hopkins Public Schools | B31: 03070 | C31: Allegan Area Educational Service Agency | D31: 03 | E31: LEA | F31: 06 | G31: 26 | H31: 080 | I31: General Fund | J31: 11 | K31: 6814706.76 | L31: 666932.95 | M31: 187725.76 | N31: 315852.74 | O31: 759294.63 | P31: 193882.22 | Q31: 1477249.5 | R31: 1081011.37 | S31: 866967.99 | T31: 24204.32 | U31: 0 | V31: 13812619.84 | X31: 0 | Y31: 0 | Z31: 178661.43 | AA31: 0 | AB31: 178661.43 | AC31: 13991281.27
A32: Hopkins Public Schools | B32: 03070 | C32: Allegan Area Educational Service Agency | D32: 03 | E32: LEA | F32: 06 | G32: 26 | H32: 080 | I32: School Lunch Fund | J32: 25 | K32: 0 | L32: 0 | M32: 0 | N32: 0 | O32: 0 | P32: 0 | Q32: 0 | R32: 0 | S32: 635467.19 | T32: 0 | U32: 0 | V32: 635467.19 | X32: 0 | Y32: 0 | Z32: 0 | AA32: 0 | AB32: 0 | AC32: 635467.19
A33: Hopkins Public Schools | B33: 03070 | C33: Allegan Area Educational Service Agency | D33: 03 | E33: LEA | F33: 06 | G33: 26 | H33: 080 | I33: Debt Service Funds | J33: 30 | K33: 0 | L33: 0 | M33: 0 | N33: 0 | O33: 0 | P33: 0 | Q33: 0 | R33: 0 | S33: 0 | T33: 0 | U33: 0 | V33: 0 | X33: 0 | Y33: 0 | Z33: 2583428 | AA33: 0 | AB33: 2583428 | AC33: 2583428
A34: Glenn Public School District | B34: 03440 | C34: Allegan Area Educational Service Agency | D34: 03 | E34: LEA | F34: 06 | G34: 26 | H34: 080 | I34: General Fund | J34: 11 | K34: 387163.71 | L34: 0 | M34: 5408 | N34: 69970.61 | O34: 0 | P34: 5856.65 | Q34: 56121.07 | R34: 0 | S34: 943.5 | T34: 0 | U34: 0 | V34: 553114.17 | X34: 0 | Y34: 0 | Z34: 31540 | AA34: 0 | AB34: 31540 | AC34: 584654.17
A35: Innocademy Allegan Campus | B35: 03900 | C35: Allegan Area Educational Service Agency | D35: 03 | E35: PSA | F35: 06 | G35: 26 | H35: 080 | I35: General Fund | J35: 11 | K35: 215749.75 | L35: 14153.47 | M35: 46889.34 | N35: 34637 | O35: 7008.27 | P35: 28506.54 | Q35: 86221.9 | R35: 53594.3 | S35: 6536 | T35: 0 | U35: 19204.51 | V35: 544324.22 | X35: 0 | Y35: 0 | Z35: 0 | AA35: 0 | AB35: 0 | AC35: 544324.22
A36: Outlook Academy | B36: 03902 | C36: Allegan Area Educational Service Agency | D36: 03 | E36: PSA | F36: 06 | G36: 26 | H36: 080 | I36: General Fund | J36: 11 | K36: 440292.63 | L36: 77445.57 | M36: 17144.02 | N36: 13026.74 | O36: 56579.96 | P36: 19301.59 | Q36: 32717.53 | R36: 27952.78 | S36: 0 | T36: 200 | U36: 0 | V36: 839406.13 | X36: 0 | Y36: 0 | Z36: 0 | AA36: 0 | AB36: 0 | AC36: 839406.13
A37: Alcona Community Schools | B37: 01010 | C37: Alpena-Montmorency-Alcona ESD | D37: 04 | E37: LEA | F37: 01 | G37: 36 | H37: 106 | I37: General Fund | J37: 11 | K37: 3682401.53 | L37: 340498.85 | M37: 67883.06 | N37: 253355.39 | O37: 437757.04 | P37: 169282.31 | Q37: 638353.1 | R37: 507865.14 | S37: 542536.53 | T37: 0 | U37: 511.68 | V37: 7526522.98 | X37: 0 | Y37: 0 | Z37: 25063 | AA37: 0 | AB37: 25063 | AC37: 7551585.98
A38: Alcona Community Schools | B38: 01010 | C38: Alpena-Montmorency-Alcona ESD | D38: 04 | E38: LEA | F38: 01 | G38: 36 | H38: 106 | I38: Debt Service Funds | J38: 30 | K38: 0 | L38: 0 | M38: 0 | N38: 0 | O38: 0 | P38: 0 | Q38: 0 | R38: 0 | S38: 0 | T38: 0 | U38: 0 | V38: 0 | X38: 0 | Y38: 0 | Z38: 733343.76 | AA38: 0 | AB38: 733343.76 | AC38: 733343.76
A39: Alpena-Montmorency-Alcona ESD | B39: 04000 | C39: Alpena-Montmorency-Alcona ESD | D39: 04 | E39: ISD | F39: 01 | G39: 36 | H39: 106 | I39: General Fund | J39: 11 | K39: 653185.58 | L39: 12704.62 | M39: 501701.77 | N39: 376208.46 | O39: 2781.09 | P39: 381700.18 | Q39: 70773.84 | R39: 42600 | S39: 114662 | T39: 31774.23 | U39: 2968 | V39: 2191059.77 | X39: 223194.56 | Y39: 0 | Z39: 0 | AA39: 0 | AB39: 223194.56 | AC39: 2414254.33
A40: Alpena-Montmorency-Alcona ESD | B40: 04000 | C40: Alpena-Montmorency-Alcona ESD | D40: 04 | E40: ISD | F40: 01 | G40: 36 | H40: 106 | I40: Special Education Fund | J40: 22 | K40: 0 | L40: 2373523.06 | M40: 1124855.73 | N40: 2981.61 | O40: 0 | P40: 12368.23 | Q40: 134851.4 | R40: 297152.82 | S40: 131709.44 | T40: 6058.09 | U40: 0 | V40: 5173698.35 | X40: 0 | Y40: 0 | Z40: 0 | AA40: 350101.05 | AB40: 350101.05 | AC40: 5523799.4
A41: Alpena Public Schools | B41: 04010 | C41: Alpena-Montmorency-Alcona ESD | D41: 04 | E41: LEA | F41: 01 | G41: 36 | H41: 106 | I41: General Fund | J41: 11 | K41: 15558455.78 | L41: 1429632.23 | M41: 980454.9 | N41: 349764.27 | O41: 2311275.9 | P41: 603438.9 | Q41: 3582404.47 | R41: 1944931.58 | S41: 1661649.09 | T41: 388266.42 | U41: 46340.35 | V41: 33769435.28 | X41: 0 | Y41: 0 | Z41: 2089.71 | AA41: 455500 | AB41: 457589.71 | AC41: 34227024.99
A42: Alpena Public Schools | B42: 04010 | C42: Alpena-Montmorency-Alcona ESD | D42: 04 | E42: LEA | F42: 01 | G42: 36 | H42: 106 | I42: School Lunch Fund | J42: 25 | K42: 0 | L42: 0 | M42: 0 | N42: 0 | O42: 0 | P42: 0 | Q42: 0 | R42: 1569.31 | S42: 2351244.75 | T42: 0 | U42: 0 | V42: 2352814.06 | X42: 0 | Y42: 0 | Z42: 0 | AA42: 0 | AB42: 0 | AC42: 2352814.06
A43: Alpena Public Schools | B43: 04010 | C43: Alpena-Montmorency-Alcona ESD | D43: 04 | E43: LEA | F43: 01 | G43: 36 | H43: 106 | I43: Debt Service Funds | J43: 30 | K43: 0 | L43: 0 | M43: 0 | N43: 0 | O43: 0 | P43: 5697.26 | Q43: 0 | R43: 0 | S43: 0 | T43: 0 | U43: 0 | V43: 5697.26 | X43: 0 | Y43: 0 | Z43: 1875950.02 | AA43: 0 | AB43: 1875950.02 | AC43: 1881647.28
A44: Alpena Public Schools | B44: 04010 | C44: Alpena-Montmorency-Alcona ESD | D44: 04 | E44: LEA | F44: 01 | G44: 36 | H44: 106 | I44: Capital Projects Fund | J44: 40 | K44: 0 | L44: 0 | M44: 0 | N44: 0 | O44: 0 | P44: 0 | Q44: 106469.01 | R44: 331173.86 | S44: 62729.83 | T44: 0 | U44: 34971 | V44: 535343.7 | X44: 0 | Y44: 0 | Z44: 0 | AA44: 0 | AB44: 0 | AC44: 535343.7
A45: Alpena Public Schools | B45: 04010 | C45: Alpena-Montmorency-Alcona ESD | D45: 04 | E45: LEA | F45: 01 | G45: 36 | H45: 106 | I45: Trust Funds | J45: 50 | K45: 0 | L45: 0 | M45: 0 | N45: 0 | O45: 0 | P45: 0 | Q45: 0 | R45: 0 | S45: 5500 | T45: 0 | U45: 0 | V45: 5500 | X45: 0 | Y45: 0 | Z45: 0 | AA45: 0 | AB45: 0 | AC45: 5500
A46: Bingham Arts Academy | B46: 04901 | C46: Alpena-Montmorency-Alcona ESD | D46: 04 | E46: PSA | F46: 01 | G46: 36 | H46: 106 | I46: General Fund | J46: 11 | K46: 374057.53 | L46: 17546.52 | M46: 42064.86 | N46: 130744.67 | O46: 153862.51 | P46: 9109.96 | Q46: 253374.54 | R46: 0 | S46: 4166.67 | T46: 18979.59 | U46: 0 | V46: 1106919.53 | X46: 0 | Y46: 0 | Z46: 5225.78 | AA46: 0 | AB46: 5225.78 | AC46: 1112145.31
A47: Bingham Arts Academy | B47: 04901 | C47: Alpena-Montmorency-Alcona ESD | D47: 04 | E47: PSA | F47: 01 | G47: 36 | H47: 106 | I47: Community Service Fund | J47: 23 | K47: 0 | L47: 0 | M47: 0 | N47: 0 | O47: 0 | P47: 0 | Q47: 0 | R47: 0 | S47: 0 | T47: 4857.28 | U47: 0 | V47: 4857.28 | X47: 0 | Y47: 0 | Z47: 0 | AA47: 0 | AB47: 0 | AC47: 4857.28
A48: Bingham Arts Academy | B48: 04901 | C48: Alpena-Montmorency-Alcona ESD | D48: 04 | E48: PSA | F48: 01 | G48: 36 | H48: 106 | I48: School Lunch Fund | J48: 25 | K48: 0 | L48: 0 | M48: 0 | N48: 0 | O48: 0 | P48: 0 | Q48: 2505.61 | R48: 0 | S48: 58114.46 | T48: 0 | U48: 0 | V48: 60620.07 | X48: 0 | Y48: 0 | Z48: 0 | AA48: 0 | AB48: 0 | AC48: 60620.07
A49: Atlanta Community Schools | B49: 60010 | C49: Alpena-Montmorency-Alcona ESD | D49: 04 | E49: LEA | F49: 01 | G49: 36 | H49: 105 | I49: General Fund | J49: 11 | K49: 1143547.32 | L49: 17100 | M49: 6286.84 | N49: 165465.04 | O49: 75550.52 | P49: 195082.91 | Q49: 309782.99 | R49: 139426.95 | S49: 108101.99 | T49: 7105.87 | U49: 0 | V49: 2659782.11 | X49: 0 | Y49: 0 | Z49: 0 | AA49: 4024.43 | AB49: 4024.43 | AC49: 2663806.54
A50: Atlanta Community Schools | B50: 60010 | C50: Alpena-Montmorency-Alcona ESD | D50: 04 | E50: LEA | F50: 01 | G50: 36 | H50: 105 | I50: School Lunch Fund | J50: 25 | K50: 0 | L50: 0 | M50: 0 | N50: 0 | O50: 0 | P50: 0 | Q50: 0 | R50: 0 | S50: 162028.73 | T50: 0 | U50: 0 | V50: 162028.73 | X50: 0 | Y50: 0 | Z50: 0 | AA50: 0 | AB50: 0 | AC50: 162028.73
A51: Atlanta Community Schools | B51: 60010 | C51: Alpena-Montmorency-Alcona ESD | D51: 04 | E51: LEA | F51: 01 | G51: 36 | H51: 105 | I51: Debt Service Funds | J51: 30 | K51: 0 | L51: 0 | M51: 0 | N51: 0 | O51: 0 | P51: 0 | Q51: 0 | R51: 0 | S51: 0 | T51: 0 | U51: 0 | V51: 0 | X51: 0 | Y51: 0 | Z51: 653804.1 | AA51: 0 | AB51: 653804.1 | AC51: 653804.1
A52: Hillman Community Schools | B52: 60020 | C52: Alpena-Montmorency-Alcona ESD | D52: 04 | E52: LEA | F52: 01 | G52: 36 | H52: 105 | I52: General Fund | J52: 11 | K52: 2398573.14 | L52: 55595.99 | M52: 2863.23 | N52: 121765.02 | O52: 347207.26 | P52: 140668.84 | Q52: 562773.29 | R52: 379175.61 | S52: 229446.99 | T52: 0 | U52: 0 | V52: 4777945.22 | X52: 0 | Y52: 0 | Z52: 16721.58 | AA52: 48271.63 | AB52: 64993.21 | AC52: 4842938.43
A53: Hillman Community Schools | B53: 60020 | C53: Alpena-Montmorency-Alcona ESD | D53: 04 | E53: LEA | F53: 01 | G53: 36 | H53: 105 | I53: School Lunch Fund | J53: 25 | K53: 0 | L53: 0 | M53: 0 | N53: 0 | O53: 0 | P53: 0 | Q53: 0 | R53: 0 | S53: 305475.67 | T53: 0 | U53: 0 | V53: 305475.67 | X53: 0 | Y53: 0 | Z53: 0 | AA53: 0 | AB53: 0 | AC53: 305475.67
A54: Hillman Community Schools | B54: 60020 | C54: Alpena-Montmorency-Alcona ESD | D54: 04 | E54: LEA | F54: 01 | G54: 36 | H54: 105 | I54: Debt Service Funds | J54: 30 | K54: 0 | L54: 0 | M54: 0 | N54: 0 | O54: 0 | P54: 383.22 | Q54: 0 | R54: 0 | S54: 0 | T54: 0 | U54: 0 | V54: 383.22 | X54: 0 | Y54: 0 | Z54: 622091.64 | AA54: 0 | AB54: 622091.64 | AC54: 622474.86
A55: Barry ISD | B55: 08000 | C55: Barry ISD | D55: 08 | E55: ISD | F55: 03 | G55: 19 | H55: 087 | I55: General Fund | J55: 11 | K55: 388940.27 | L55: 71567.74 | M55: 233390.94 | N55: 206663.32 | O55: 0 | P55: 63811.14 | Q55: 18993.93 | R55: 4337 | S55: 29717.94 | T55: 478189.69 | U55: 7125 | V55: 1512634.96 | X55: 94588.62 | Y55: 0 | Z55: 0 | AA55: 0 | AB55: 94588.62 | AC55: 1607223.58
A56: Barry ISD | B56: 08000 | C56: Barry ISD | D56: 08 | E56: ISD | F56: 03 | G56: 19 | H56: 087 | I56: Special Education Fund | J56: 22 | K56: 0 | L56: 1881212.18 | M56: 267006.8 | N56: 9140 | O56: 0 | P56: 206384.35 | Q56: 81599.64 | R56: 273671.22 | S56: 135732.08 | T56: 118687.11 | U56: 25875.37 | V56: 3970943.77 | X56: 53000 | Y56: 0 | Z56: 0 | AA56: 43399 | AB56: 96399 | AC56: 4067342.77
A57: Barry ISD | B57: 08000 | C57: Barry ISD | D57: 08 | E57: ISD | F57: 03 | G57: 19 | H57: 087 | I57: Trust Funds | J57: 50 | K57: 0 | L57: 0 | M57: 0 | N57: 0 | O57: 0 | P57: 0 | Q57: 0 | R57: 0 | S57: 0 | T57: 5644.96 | U57: 0 | V57: 5644.96 | X57: 0 | Y57: 0 | Z57: 0 | AA57: 0 | AB57: 0 | AC57: 5644.96
A58: Delton Kellogg Schools | B58: 08010 | C58: Barry ISD | D58: 08 | E58: LEA | F58: 03 | G58: 19 | H58: 087 | I58: General Fund | J58: 11 | K58: 5711218.31 | L58: 275261.44 | M58: 131491.25 | N58: 387785.97 | O58: 666413.96 | P58: 314863.88 | Q58: 1143810.53 | R58: 595740.3 | S58: 603408.22 | T58: 58918.88 | U58: 0 | V58: 11469236.34 | X58: 0 | Y58: 0 | Z58: 0 | AA58: 0 | AB58: 0 | AC58: 11469236.34
A59: Delton Kellogg Schools | B59: 08010 | C59: Barry ISD | D59: 08 | E59: LEA | F59: 03 | G59: 19 | H59: 087 | I59: School Lunch Fund | J59: 25 | K59: 0 | L59: 0 | M59: 0 | N59: 0 | O59: 0 | P59: 0 | Q59: 0 | R59: 0 | S59: 630575.04 | T59: 0 | U59: 0 | V59: 630575.04 | X59: 0 | Y59: 0 | Z59: 0 | AA59: 0 | AB59: 0 | AC59: 630575.04
A60: Delton Kellogg Schools | B60: 08010 | C60: Barry ISD | D60: 08 | E60: LEA | F60: 03 | G60: 19 | H60: 087 | I60: Debt Service Funds | J60: 30 | K60: 0 | L60: 0 | M60: 0 | N60: 0 | O60: 0 | P60: 24.1 | Q60: 0 | R60: 0 | S60: 0 | T60: 0 | U60: 0 | V60: 24.1 | X60: 0 | Y60: 0 | Z60: 2244599.56 | AA60: 0 | AB60: 2244599.56 | AC60: 2244623.66
A61: Delton Kellogg Schools | B61: 08010 | C61: Barry ISD | D61: 08 | E61: LEA | F61: 03 | G61: 19 | H61: 087 | I61: Capital Projects Fund | J61: 40 | K61: 0 | L61: 0 | M61: 0 | N61: 0 | O61: 0 | P61: 0 | Q61: 0 | R61: 0 | S61: 69697.26 | T61: 0 | U61: 7016825.17 | V61: 7086522.43 | X61: 0 | Y61: 0 | Z61: 0 | AA61: 0 | AB61: 0 | AC61: 7086522.43
A62: Hastings Area School District | B62: 08030 | C62: Barry ISD | D62: 08 | E62: LEA | F62: 03 | G62: 19 | H62: 087 | I62: General Fund | J62: 11 | K62: 11460888.22 | L62: 308128.45 | M62: 578101.47 | N62: 297177.85 | O62: 1569878.39 | P62: 519982.78 | Q62: 2357878.08 | R62: 1262116.19 | S62: 1061893.47 | T62: 4864.8 | U62: 0 | V62: 22942816.8 | X62: 0 | Y62: 0 | Z62: 399708.03 | AA62: 165500 | AB62: 565208.03 | AC62: 23508024.83
A63: Hastings Area School District | B63: 08030 | C63: Barry ISD | D63: 08 | E63: LEA | F63: 03 | G63: 19 | H63: 087 | I63: Community Service Fund | J63: 23 | K63: 0 | L63: 0 | M63: 0 | N63: 0 | O63: 0 | P63: 0 | Q63: 0 | R63: 0 | S63: 0 | T63: 645053.7 | U63: 0 | V63: 645053.7 | X63: 0 | Y63: 0 | Z63: 0 | AA63: 0 | AB63: 0 | AC63: 645053.7
A64: Hastings Area School District | B64: 08030 | C64: Barry ISD | D64: 08 | E64: LEA | F64: 03 | G64: 19 | H64: 087 | I64: School Lunch Fund | J64: 25 | K64: 0 | L64: 0 | M64: 0 | N64: 0 | O64: 0 | P64: 0 | Q64: 4402.66 | R64: 0 | S64: 1010631.92 | T64: 0 | U64: 0 | V64: 1015034.58 | X64: 0 | Y64: 0 | Z64: 0 | AA64: 0 | AB64: 0 | AC64: 1015034.58
A65: Hastings Area School District | B65: 08030 | C65: Barry ISD | D65: 08 | E65: LEA | F65: 03 | G65: 19 | H65: 087 | I65: Debt Service Funds | J65: 30 | K65: 0 | L65: 0 | M65: 0 | N65: 0 | O65: 0 | P65: 0 | Q65: 0 | R65: 0 | S65: 0 | T65: 0 | U65: 0 | V65: 0 | X65: 0 | Y65: 0 | Z65: 7421887.05 | AA65: 0 | AB65: 7421887.05 | AC65: 7421887.05
A66: Arenac Eastern School District | B66: 06010 | C66: Bay-Arenac ISD | D66: 09 | E66: LEA | F66: 05 | G66: 36 | H66: 097 | I66: General Fund | J66: 11 | K66: 963342.36 | L66: 18639.71 | M66: 40663.8 | N66: 93643.59 | O66: 120212.98 | P66: 59580.57 | Q66: 255068.36 | R66: 180176.57 | S66: 9154.3 | T66: 0 | U66: 0 | V66: 2072439.23 | X66: 0 | Y66: 0 | Z66: 0 | AA66: 0 | AB66: 0 | AC66: 2072439.23
A67: Arenac Eastern School District | B67: 06010 | C67: Bay-Arenac ISD | D67: 09 | E67: LEA | F67: 05 | G67: 36 | H67: 097 | I67: School Lunch Fund | J67: 25 | K67: 0 | L67: 0 | M67: 0 | N67: 0 | O67: 0 | P67: 0 | Q67: 0 | R67: 0 | S67: 126746.39 | T67: 0 | U67: 0 | V67: 126746.39 | X67: 0 | Y67: 0 | Z67: 0 | AA67: 0 | AB67: 0 | AC67: 126746.39
A68: Arenac Eastern School District | B68: 06010 | C68: Bay-Arenac ISD | D68: 09 | E68: LEA | F68: 05 | G68: 36 | H68: 097 | I68: Debt Service Funds | J68: 30 | K68: 0 | L68: 0 | M68: 0 | N68: 0 | O68: 0 | P68: 50 | Q68: 0 | R68: 0 | S68: 0 | T68: 0 | U68: 0 | V68: 50 | X68: 0 | Y68: 0 | Z68: 212850 | AA68: 0 | AB68: 212850 | AC68: 212900
A69: Au Gres-Sims School District | B69: 06020 | C69: Bay-Arenac ISD | D69: 09 | E69: LEA | F69: 05 | G69: 36 | H69: 097 | I69: General Fund | J69: 11 | K69: 1787722.33 | L69: 909.77 | M69: 47521.28 | N69: 205784.74 | O69: 161530.04 | P69: 159380.21 | Q69: 450180.77 | R69: 271142.12 | S69: 106689.92 | T69: 954.8 | U69: 0 | V69: 3651870.84 | X69: 0 | Y69: 0 | Z69: 0 | AA69: 0 | AB69: =SUM(X69:AA69) -> 0 | AC69: =SUM(V69,AB69) -> 3651870.84
A70: Au Gres-Sims School District | B70: 06020 | C70: Bay-Arenac ISD | D70: 09 | E70: LEA | F70: 05 | G70: 36 | H70: 097 | I70: School Lunch Fund | J70: 25 | K70: 0 | L70: 0 | M70: 0 | N70: 0 | O70: 0 | P70: 0 | Q70: 0 | R70: 0 | S70: 239897.13 | T70: 0 | U70: 0 | V70: 239897.13 | X70: 0 | Y70: 0 | Z70: 0 | AA70: 0 | AB70: 0 | AC70: 239897.13
A71: Au Gres-Sims School District | B71: 06020 | C71: Bay-Arenac ISD | D71: 09 | E71: LEA | F71: 05 | G71: 36 | H71: 097 | I71: Debt Service Funds | J71: 30 | K71: 0 | L71: 0 | M71: 0 | N71: 0 | O71: 0 | P71: 5073.77 | Q71: 0 | R71: 0 | S71: 0 | T71: 0 | U71: 0 | V71: 5073.77 | X71: 0 | Y71: 0 | Z71: 2529600 | AA71: 0 | AB71: 2529600 | AC71: 2534673.77
A72: Standish-Sterling Community Schools | B72: 06050 | C72: Bay-Arenac ISD | D72: 09 | E72: LEA | F72: 05 | G72: 36 | H72: 097 | I72: General Fund | J72: 11 | K72: 7111646.54 | L72: 376255.95 | M72: 250291.71 | N72: 345978.71 | O72: 1132812.18 | P72: 402488.83 | Q72: 1829568.28 | R72: 976064.36 | S72: 550797.78 | T72: 72598.9 | U72: 0 | V72: 14745222.65 | X72: 0 | Y72: 0 | Z72: 0 | AA72: 0 | AB72: 0 | AC72: 14745222.65
A73: Standish-Sterling Community Schools | B73: 06050 | C73: Bay-Arenac ISD | D73: 09 | E73: LEA | F73: 05 | G73: 36 | H73: 097 | I73: School Lunch Fund | J73: 25 | K73: 0 | L73: 0 | M73: 0 | N73: 0 | O73: 0 | P73: 0 | Q73: 0 | R73: 611.38 | S73: 928838.81 | T73: 0 | U73: 0 | V73: 929450.19 | X73: 0 | Y73: 0 | Z73: 0 | AA73: 0 | AB73: 0 | AC73: 929450.19
A74: Standish-Sterling Community Schools | B74: 06050 | C74: Bay-Arenac ISD | D74: 09 | E74: LEA | F74: 05 | G74: 36 | H74: 097 | I74: Debt Service Funds | J74: 30 | K74: 0 | L74: 0 | M74: 0 | N74: 0 | O74: 0 | P74: 9110.46 | Q74: 0 | R74: 0 | S74: 0 | T74: 0 | U74: 0 | V74: 9110.46 | X74: 0 | Y74: 0 | Z74: 3348306.46 | AA74: 0 | AB74: 3348306.46 | AC74: 3357416.92
A75: Bay-Arenac ISD | B75: 09000 | C75: Bay-Arenac ISD | D75: 09 | E75: ISD | F75: 05 | G75: 31 | H75: 096 | I75: General Fund | J75: 11 | K75: 6041.25 | L75: 263093.86 | M75: 1984469.31 | N75: 200784.91 | O75: 0 | P75: 556761.86 | Q75: 242959.18 | R75: 3516.25 | S75: 895660.51 | T75: 189361.59 | U75: 7535 | V75: 4354536.22 | X75: 822585.39 | Y75: 3167.91 | Z75: 0 | AA75: 0 | AB75: 825753.3 | AC75: 5180289.52
A76: Bay-Arenac ISD | B76: 09000 | C76: Bay-Arenac ISD | D76: 09 | E76: ISD | F76: 05 | G76: 31 | H76: 096 | I76: Special Education Fund | J76: 22 | K76: 0 | L76: 10928917.37 | M76: 1952385.45 | N76: 134003.33 | O76: 316.94 | P76: 438460.73 | Q76: 459187.56 | R76: 1158618.32 | S76: 642341.62 | T76: 0 | U76: 12817.68 | V76: 23027586.66 | X76: 32500 | Y76: 0 | Z76: 0 | AA76: 70504.9 | AB76: 103004.9 | AC76: 23130591.56
A77: Bay-Arenac ISD | B77: 09000 | C77: Bay-Arenac ISD | D77: 09 | E77: ISD | F77: 05 | G77: 31 | H77: 096 | I77: Vocational Education Fund | J77: 26 | K77: 0 | L77: 800814.48 | M77: 102492.22 | N77: 121205.86 | O77: 979000.56 | P77: 227192.87 | Q77: 982479.43 | R77: 69445.69 | S77: 209818.79 | T77: 0 | U77: 8576 | V77: 8813770.32 | X77: 0 | Y77: 0 | Z77: 0 | AA77: 484948.2 | AB77: 484948.2 | AC77: 9298718.52
A78: Bay-Arenac ISD | B78: 09000 | C78: Bay-Arenac ISD | D78: 09 | E78: ISD | F78: 05 | G78: 31 | H78: 096 | I78: Debt Service Funds | J78: 30 | K78: 0 | L78: 0 | M78: 0 | N78: 0 | O78: 0 | P78: 0 | Q78: 0 | R78: 0 | S78: 0 | T78: 0 | U78: 0 | V78: 0 | X78: 0 | Y78: 0 | Z78: 340115 | AA78: 0 | AB78: 340115 | AC78: 340115
A79: Bay-Arenac ISD | B79: 09000 | C79: Bay-Arenac ISD | D79: 09 | E79: ISD | F79: 05 | G79: 31 | H79: 096 | I79: Capital Projects Fund | J79: 40 | K79: 0 | L79: 0 | M79: 0 | N79: 0 | O79: 0 | P79: 0 | Q79: 0 | R79: 0 | S79: 0 | T79: 0 | U79: 222874 | V79: 222874 | X79: 0 | Y79: 0 | Z79: 0 | AA79: 0 | AB79: 0 | AC79: 222874
A80: Bay-Arenac ISD | B80: 09000 | C80: Bay-Arenac ISD | D80: 09 | E80: ISD | F80: 05 | G80: 31 | H80: 096 | I80: Trust Funds | J80: 50 | K80: 0 | L80: 0 | M80: 0 | N80: 0 | O80: 0 | P80: 0 | Q80: 0 | R80: 0 | S80: 7164.39 | T80: 0 | U80: 0 | V80: 7164.39 | X80: 0 | Y80: 0 | Z80: 0 | AA80: 0 | AB80: 0 | AC80: 7164.39
A81: Bay City School District | B81: 09010 | C81: Bay-Arenac ISD | D81: 09 | E81: LEA | F81: 05 | G81: 31 | H81: 096 | I81: General Fund | J81: 11 | K81: 37139819.89 | L81: 2353006.08 | M81: 2587124.96 | N81: 564292.95 | O81: 4507185.17 | P81: 919503.24 | Q81: 7162977.54 | R81: 3768705.35 | S81: 2799390.73 | T81: 244433.28 | U81: 1016085.89 | V81: 70973294.68 | X81: 0 | Y81: 0 | Z81: 0 | AA81: 1134411.83 | AB81: 1134411.83 | AC81: 72107706.51
A82: Bay City School District | B82: 09010 | C82: Bay-Arenac ISD | D82: 09 | E82: LEA | F82: 05 | G82: 31 | H82: 096 | I82: Community Service Fund | J82: 23 | K82: 0 | L82: 0 | M82: 0 | N82: 0 | O82: 0 | P82: 0 | Q82: 49115 | R82: 0 | S82: 71033.35 | T82: 961058.87 | U82: 0 | V82: 1081207.22 | X82: 0 | Y82: 0 | Z82: 0 | AA82: 0 | AB82: 0 | AC82: 1081207.22
A83: Bay City School District | B83: 09010 | C83: Bay-Arenac ISD | D83: 09 | E83: LEA | F83: 05 | G83: 31 | H83: 096 | I83: School Lunch Fund | J83: 25 | K83: 0 | L83: 0 | M83: 0 | N83: 0 | O83: 0 | P83: 0 | Q83: 0 | R83: 12012.15 | S83: 3551875.29 | T83: 0 | U83: 0 | V83: 3563887.44 | X83: 0 | Y83: 0 | Z83: 0 | AA83: 0 | AB83: 0 | AC83: 3563887.44
A84: Bay City School District | B84: 09010 | C84: Bay-Arenac ISD | D84: 09 | E84: LEA | F84: 05 | G84: 31 | H84: 096 | I84: Debt Service Funds | J84: 30 | K84: 0 | L84: 0 | M84: 0 | N84: 0 | O84: 0 | P84: 6953.63 | Q84: 0 | R84: 0 | S84: 0 | T84: 0 | U84: 0 | V84: 6953.63 | X84: 0 | Y84: 0 | Z84: 57721245.62 | AA84: 0 | AB84: 57721245.62 | AC84: 57728199.25
A85: Bay City School District | B85: 09010 | C85: Bay-Arenac ISD | D85: 09 | E85: LEA | F85: 05 | G85: 31 | H85: 096 | I85: Capital Projects Fund | J85: 40 | K85: 0 | L85: 0 | M85: 0 | N85: 0 | O85: 0 | P85: 0 | Q85: 0 | R85: 0 | S85: 0 | T85: 0 | U85: 1303010.61 | V85: 1303010.61 | X85: 0 | Y85: 0 | Z85: 5025 | AA85: 0 | AB85: 5025 | AC85: 1308035.61
A86: Bay City School District | B86: 09010 | C86: Bay-Arenac ISD | D86: 09 | E86: LEA | F86: 05 | G86: 31 | H86: 096 | I86: Trust Funds | J86: 50 | K86: 0 | L86: 0 | M86: 0 | N86: 0 | O86: 0 | P86: 0 | Q86: 0 | R86: 0 | S86: 70456.47 | T86: 0 | U86: 0 | V86: 70456.47 | X86: 0 | Y86: 0 | Z86: 0 | AA86: 0 | AB86: 0 | AC86: 70456.47
A87: Bangor Township Schools | B87: 09030 | C87: Bay-Arenac ISD | D87: 09 | E87: LEA | F87: 05 | G87: 31 | H87: 096 | I87: General Fund | J87: 11 | K87: 10032474.54 | L87: 745569.16 | M87: 668528.66 | N87: 483506.43 | O87: 1254473.98 | P87: 399219.08 | Q87: 2171491.52 | R87: 1259561.73 | S87: 1134786.17 | T87: 4670.8 | U87: 0 | V87: 20638185.62 | X87: 0 | Y87: 0 | Z87: 87115.62 | AA87: 308333.33 | AB87: 395448.95 | AC87: 21033634.57
A88: Bangor Township Schools | B88: 09030 | C88: Bay-Arenac ISD | D88: 09 | E88: LEA | F88: 05 | G88: 31 | H88: 096 | I88: Community Service Fund | J88: 23 | K88: 0 | L88: 0 | M88: 0 | N88: 0 | O88: 0 | P88: 0 | Q88: 0 | R88: 0 | S88: 0 | T88: 166820.52 | U88: 0 | V88: 166820.52 | X88: 0 | Y88: 0 | Z88: 0 | AA88: 0 | AB88: 0 | AC88: 166820.52
A89: Bangor Township Schools | B89: 09030 | C89: Bay-Arenac ISD | D89: 09 | E89: LEA | F89: 05 | G89: 31 | H89: 096 | I89: School Lunch Fund | J89: 25 | K89: 0 | L89: 0 | M89: 0 | N89: 0 | O89: 0 | P89: 0 | Q89: 0 | R89: 0 | S89: 1088678.6 | T89: 0 | U89: 0 | V89: 1088678.6 | X89: 0 | Y89: 0 | Z89: 0 | AA89: 0 | AB89: 0 | AC89: 1088678.6
A90: Bangor Township Schools | B90: 09030 | C90: Bay-Arenac ISD | D90: 09 | E90: LEA | F90: 05 | G90: 31 | H90: 096 | I90: Debt Service Funds | J90: 30 | K90: 0 | L90: 0 | M90: 0 | N90: 0 | O90: 0 | P90: 0 | Q90: 0 | R90: 0 | S90: 0 | T90: 0 | U90: 0 | V90: 0 | X90: 0 | Y90: 0 | Z90: 981897.23 | AA90: 0 | AB90: 981897.23 | AC90: 981897.23
A91: Essexville-Hampton Public Schools | B91: 09050 | C91: Bay-Arenac ISD | D91: 09 | E91: LEA | F91: 05 | G91: 31 | H91: 096 | I91: General Fund | J91: 11 | K91: 7962924.71 | L91: 406296.29 | M91: 467262.43 | N91: 344825.75 | O91: 1055924.64 | P91: 215699.39 | Q91: 1385944.11 | R91: 323058.03 | S91: 694702.29 | T91: 3099.17 | U91: 0 | V91: 14453429.19 | X91: 0 | Y91: 28491.25 | Z91: 118162.49 | AA91: 0 | AB91: 146653.74 | AC91: 14600082.93
A92: Essexville-Hampton Public Schools | B92: 09050 | C92: Bay-Arenac ISD | D92: 09 | E92: LEA | F92: 05 | G92: 31 | H92: 096 | I92: Community Service Fund | J92: 23 | K92: 0 | L92: 0 | M92: 0 | N92: 0 | O92: 0 | P92: 0 | Q92: 0 | R92: 0 | S92: 0 | T92: 213221.59 | U92: 0 | V92: 213221.59 | X92: 0 | Y92: 0 | Z92: 0 | AA92: 13004.88 | AB92: 13004.88 | AC92: 226226.47
A93: Essexville-Hampton Public Schools | B93: 09050 | C93: Bay-Arenac ISD | D93: 09 | E93: LEA | F93: 05 | G93: 31 | H93: 096 | I93: School Lunch Fund | J93: 25 | K93: 0 | L93: 0 | M93: 0 | N93: 0 | O93: 0 | P93: 0 | Q93: 0 | R93: 0 | S93: 645799.26 | T93: 0 | U93: 0 | V93: 645799.26 | X93: 0 | Y93: 0 | Z93: 0 | AA93: 0 | AB93: 0 | AC93: 645799.26
A94: Essexville-Hampton Public Schools | B94: 09050 | C94: Bay-Arenac ISD | D94: 09 | E94: LEA | F94: 05 | G94: 31 | H94: 096 | I94: Debt Service Funds | J94: 30 | K94: 0 | L94: 0 | M94: 0 | N94: 0 | O94: 0 | P94: 0 | Q94: 0 | R94: 0 | S94: 0 | T94: 0 | U94: 0 | V94: 0 | X94: 0 | Y94: 0 | Z94: 1298521.18 | AA94: 0 | AB94: 1298521.18 | AC94: 1298521.18
A95: Essexville-Hampton Public Schools | B95: 09050 | C95: Bay-Arenac ISD | D95: 09 | E95: LEA | F95: 05 | G95: 31 | H95: 096 | I95: Capital Projects Fund | J95: 40 | K95: 0 | L95: 0 | M95: 0 | N95: 0 | O95: 0 | P95: 104868.73 | Q95: 0 | R95: 0 | S95: 0 | T95: 0 | U95: 34610.18 | V95: 139478.91 | X95: 0 | Y95: 0 | Z95: 0 | AA95: 0 | AB95: 0 | AC95: 139478.91
A96: Pinconning Area Schools | B96: 09090 | C96: Bay-Arenac ISD | D96: 09 | E96: LEA | F96: 05 | G96: 31 | H96: 098 | I96: General Fund | J96: 11 | K96: 5983678.15 | L96: 221358.47 | M96: 492923.68 | N96: 323576.63 | O96: 741346.58 | P96: 177741.11 | Q96: 1229254.54 | R96: 734145.53 | S96: 479940.11 | T96: 56282.48 | U96: 0 | V96: 11655797.42 | X96: 0 | Y96: 0 | Z96: 0 | AA96: 0 | AB96: 0 | AC96: 11655797.42
A97: Pinconning Area Schools | B97: 09090 | C97: Bay-Arenac ISD | D97: 09 | E97: LEA | F97: 05 | G97: 31 | H97: 098 | I97: School Lunch Fund | J97: 25 | K97: 0 | L97: 0 | M97: 0 | N97: 0 | O97: 0 | P97: 0 | Q97: 20413.81 | R97: 0 | S97: 608402.31 | T97: 0 | U97: 0 | V97: 628816.12 | X97: 0 | Y97: 0 | Z97: 0 | AA97: 0 | AB97: 0 | AC97: 628816.12
A98: Pinconning Area Schools | B98: 09090 | C98: Bay-Arenac ISD | D98: 09 | E98: LEA | F98: 05 | G98: 31 | H98: 098 | I98: Debt Service Funds | J98: 30 | K98: 0 | L98: 0 | M98: 0 | N98: 0 | O98: 0 | P98: 7066.95 | Q98: 0 | R98: 0 | S98: 0 | T98: 0 | U98: 0 | V98: 7066.95 | X98: 0 | Y98: 0 | Z98: 980393.76 | AA98: 0 | AB98: 980393.76 | AC98: 987460.71
A99: Pinconning Area Schools | B99: 09090 | C99: Bay-Arenac ISD | D99: 09 | E99: LEA | F99: 05 | G99: 31 | H99: 098 | I99: Capital Projects Fund | J99: 40 | K99: 0 | L99: 0 | M99: 0 | N99: 0 | O99: 0 | P99: 0 | Q99: 18337.85 | R99: 0 | S99: 0 | T99: 0 | U99: 164608.43 | V99: 182946.28 | X99: 0 | Y99: 0 | Z99: 0 | AA99: 0 | AB99: 0 | AC99: 182946.28
A100: Bay-Arenac Community High School | B100: 09901 | C100: Bay-Arenac ISD | D100: 09 | E100: PSA | F100: 05 | G100: 31 | H100: 096 | I100: General Fund | J100: 11 | K100: 443909.17 | L100: 315812.37 | M100: 137379.73 | N100: 109204.63 | O100: 182939.47 | P100: 8404.73 | Q100: 179666.69 | R100: 15446.22 | S100: 0 | T100: 1138 | U100: 0 | V100: 1471404.25 | X100: 0 | Y100: 0 | Z100: 0 | AA100: 0 | AB100: 0 | AC100: 1471404.25
A101: Bay-Arenac Community High School | B101: 09901 | C101: Bay-Arenac ISD | D101: 09 | E101: PSA | F101: 05 | G101: 31 | H101: 096 | I101: School Lunch Fund | J101: 25 | K101: 0 | L101: 0 | M101: 0 | N101: 0 | O101: 0 | P101: 0 | Q101: 0 | R101: 0 | S101: 39819.36 | T101: 0 | U101: 0 | V101: 39819.36 | X101: 0 | Y101: 0 | Z101: 0 | AA101: 361.35 | AB101: 361.35 | AC101: 40180.71
A102: Bay County PSA | B102: 09902 | C102: Bay-Arenac ISD | D102: 09 | E102: PSA | F102: 05 | G102: 31 | H102: 096 | I102: General Fund | J102: 11 | K102: 1147306.68 | L102: 22583.37 | M102: 141907.16 | N102: 300011.64 | O102: 153487.25 | P102: 9804.35 | Q102: 124774.23 | R102: 0 | S102: 5613.72 | T102: 82 | U102: 0 | V102: 2126540.01 | X102: 0 | Y102: 0 | Z102: 3162.5 | AA102: 358998.75 | AB102: 362161.25 | AC102: 2488701.26
A103: Bay County PSA | B103: 09902 | C103: Bay-Arenac ISD | D103: 09 | E103: PSA | F103: 05 | G103: 31 | H103: 096 | I103: Community Service Fund | J103: 23 | K103: 0 | L103: 0 | M103: 0 | N103: 0 | O103: 0 | P103: 0 | Q103: 0 | R103: 0 | S103: 0 | T103: 8327.65 | U103: 0 | V103: 8327.65 | X103: 0 | Y103: 0 | Z103: 0 | AA103: 0 | AB103: 0 | AC103: 8327.65
A104: Bay County PSA | B104: 09902 | C104: Bay-Arenac ISD | D104: 09 | E104: PSA | F104: 05 | G104: 31 | H104: 096 | I104: School Lunch Fund | J104: 25 | K104: 0 | L104: 0 | M104: 0 | N104: 0 | O104: 0 | P104: 0 | Q104: 0 | R104: 0 | S104: 125596.44 | T104: 0 | U104: 0 | V104: 125596.44 | X104: 0 | Y104: 0 | Z104: 0 | AA104: 0 | AB104: 0 | AC104: 125596.44
A105: Bay County PSA | B105: 09902 | C105: Bay-Arenac ISD | D105: 09 | E105: PSA | F105: 05 | G105: 31 | H105: 096 | I105: Debt Service Funds | J105: 30 | K105: 0 | L105: 0 | M105: 0 | N105: 0 | O105: 0 | P105: 0 | Q105: 0 | R105: 0 | S105: 0 | T105: 0 | U105: 0 | V105: 0 | X105: 0 | Y105: 0 | Z105: 356343.75 | AA105: 0 | AB105: 356343.75 | AC105: 356343.75
A106: Bay City Academy | B106: 09903 | C106: Bay-Arenac ISD | D106: 09 | E106: PSA | F106: 05 | G106: 31 | H106: 096 | I106: General Fund | J106: 11 | K106: 2468247 | L106: 214330 | M106: 4341 | N106: 340603 | O106: 339750 | P106: 141689 | Q106: 1137769 | R106: 148496 | S106: 40147 | T106: 0 | U106: 0 | V106: 5115295 | X106: 0 | Y106: 0 | Z106: 0 | AA106: 0 | AB106: 0 | AC106: 5115295
A107: Bay City Academy | B107: 09903 | C107: Bay-Arenac ISD | D107: 09 | E107: PSA | F107: 05 | G107: 31 | H107: 096 | I107: School Lunch Fund | J107: 25 | K107: 0 | L107: 0 | M107: 0 | N107: 0 | O107: 0 | P107: 274 | Q107: 0 | R107: 0 | S107: 230019 | T107: 0 | U107: 0 | V107: 230293 | X107: 0 | Y107: 0 | Z107: 0 | AA107: 0 | AB107: 0 | AC107: 230293
A108: Berrien RESA | B108: 11000 | C108: Berrien RESA | D108: 11 | E108: ISD | F108: 06 | G108: 21 | H108: 078 | I108: General Fund | J108: 11 | K108: 1043191.61 | L108: 260282.2 | M108: 1730479.15 | N108: 293242.95 | O108: 133897.62 | P108: 363883.84 | Q108: 94547.94 | R108: 0 | S108: 1677408.09 | T108: 87779.3 | U108: 0 | V108: 6438305.13 | X108: 0 | Y108: 0 | Z108: 0 | AA108: 0 | AB108: 0 | AC108: 6438305.13
A109: Berrien RESA | B109: 11000 | C109: Berrien RESA | D109: 11 | E109: ISD | F109: 06 | G109: 21 | H109: 078 | I109: Special Education Fund | J109: 22 | K109: 0 | L109: 8363866.81 | M109: 1288694.84 | N109: 451569.31 | O109: 1235266.17 | P109: 1240017.86 | Q109: 1320941.75 | R109: 4135740.1 | S109: 424735.21 | T109: 0 | U109: 0 | V109: 27961934.49 | X109: 0 | Y109: 0 | Z109: 0 | AA109: 355040 | AB109: 355040 | AC109: 28316974.49
A110: Berrien RESA | B110: 11000 | C110: Berrien RESA | D110: 11 | E110: ISD | F110: 06 | G110: 21 | H110: 078 | I110: School Lunch Fund | J110: 25 | K110: 0 | L110: 0 | M110: 0 | N110: 0 | O110: 0 | P110: 0 | Q110: 0 | R110: 0 | S110: 203366.91 | T110: 0 | U110: 0 | V110: 203366.91 | X110: 0 | Y110: 1269.83 | Z110: 0 | AA110: 0 | AB110: 1269.83 | AC110: 204636.74
A111: Benton Harbor Area Schools | B111: 11010 | C111: Berrien RESA | D111: 11 | E111: LEA | F111: 06 | G111: 21 | H111: 079 | I111: General Fund | J111: 11 | K111: 10877501.46 | L111: 911569.73 | M111: 2849742.08 | N111: 866859.36 | O111: 766466.47 | P111: 1105750.46 | Q111: 2440696.88 | R111: 1940718.82 | S111: 1475436.73 | T111: 705510.03 | U111: 0 | V111: 29682015.34 | X111: 0 | Y111: 0 | Z111: 1282429.25 | AA111: 0 | AB111: 1282429.25 | AC111: 30964444.59
A112: Benton Harbor Area Schools | B112: 11010 | C112: Berrien RESA | D112: 11 | E112: LEA | F112: 06 | G112: 21 | H112: 079 | I112: School Lunch Fund | J112: 25 | K112: 0 | L112: 0 | M112: 0 | N112: 0 | O112: 0 | P112: 0 | Q112: 0 | R112: 0 | S112: 1704666.09 | T112: 0 | U112: 0 | V112: 1704666.09 | X112: 0 | Y112: 0 | Z112: 0 | AA112: 0 | AB112: 0 | AC112: 1704666.09
A113: Benton Harbor Area Schools | B113: 11010 | C113: Berrien RESA | D113: 11 | E113: LEA | F113: 06 | G113: 21 | H113: 079 | I113: Capital Projects Fund | J113: 40 | K113: 0 | L113: 0 | M113: 0 | N113: 0 | O113: 0 | P113: 0 | Q113: 0 | R113: 0 | S113: 0 | T113: 0 | U113: 1013552.99 | V113: 1013552.99 | X113: 0 | Y113: 0 | Z113: 0 | AA113: 0 | AB113: 0 | AC113: 1013552.99
A114: St. Joseph Public Schools | B114: 11020 | C114: Berrien RESA | D114: 11 | E114: LEA | F114: 06 | G114: 21 | H114: 079 | I114: General Fund | J114: 11 | K114: 13932116.82 | L114: 1203632.7 | M114: 1126202.31 | N114: 363784.31 | O114: 1342302.49 | P114: 525088.27 | Q114: 2911136.1 | R114: 931055.03 | S114: 1463079.95 | T114: 69516.57 | U114: 0 | V114: 25529801.87 | X114: 0 | Y114: 0 | Z114: 0 | AA114: 0 | AB114: 0 | AC114: 25529801.87
A115: St. Joseph Public Schools | B115: 11020 | C115: Berrien RESA | D115: 11 | E115: LEA | F115: 06 | G115: 21 | H115: 079 | I115: School Lunch Fund | J115: 25 | K115: 0 | L115: 0 | M115: 0 | N115: 0 | O115: 0 | P115: 0 | Q115: 0 | R115: 0 | S115: 1118327.99 | T115: 0 | U115: 0 | V115: 1118327.99 | X115: 0 | Y115: 0 | Z115: 0 | AA115: 0 | AB115: 0 | AC115: 1118327.99
A116: St. Joseph Public Schools | B116: 11020 | C116: Berrien RESA | D116: 11 | E116: LEA | F116: 06 | G116: 21 | H116: 079 | I116: Debt Service Funds | J116: 30 | K116: 0 | L116: 0 | M116: 0 | N116: 0 | O116: 0 | P116: 17460.73 | Q116: 0 | R116: 0 | S116: 0 | T116: 0 | U116: 0 | V116: 17460.73 | X116: 0 | Y116: 0 | Z116: 37787159.85 | AA116: 0 | AB116: 37787159.85 | AC116: 37804620.58
A117: St. Joseph Public Schools | B117: 11020 | C117: Berrien RESA | D117: 11 | E117: LEA | F117: 06 | G117: 21 | H117: 079 | I117: Capital Projects Fund | J117: 40 | K117: 0 | L117: 0 | M117: 0 | N117: 0 | O117: 0 | P117: 4453.95 | Q117: 150 | R117: 0 | S117: 0 | T117: 0 | U117: 2398598.67 | V117: 2403202.62 | X117: 0 | Y117: 0 | Z117: 0 | AA117: 0 | AB117: 0 | AC117: 2403202.62
A118: Lakeshore School District (Berrien) | B118: 11030 | C118: Berrien RESA | D118: 11 | E118: LEA | F118: 06 | G118: 21 | H118: 079 | I118: General Fund | J118: 11 | K118: 13357861.76 | L118: 1233603.7 | M118: 870206.32 | N118: 488383.25 | O118: 1422399.03 | P118: 400134.55 | Q118: 2029455.5 | R118: 1105352.25 | S118: 944340.76 | T118: 54610.78 | U118: 0 | V118: 24961056.27 | X118: 0 | Y118: 0 | Z118: 53537.69 | AA118: 17714.58 | AB118: 71252.27 | AC118: 25032308.54
A119: Lakeshore School District (Berrien) | B119: 11030 | C119: Berrien RESA | D119: 11 | E119: LEA | F119: 06 | G119: 21 | H119: 079 | I119: Bookstore Fund | J119: 24 | K119: 0 | L119: 0 | M119: 0 | N119: 0 | O119: 0 | P119: 0 | Q119: 0 | R119: 0 | S119: 81980.85 | T119: 0 | U119: 0 | V119: 81980.85 | X119: 0 | Y119: 0 | Z119: 0 | AA119: 0 | AB119: 0 | AC119: 81980.85
A120: Lakeshore School District (Berrien) | B120: 11030 | C120: Berrien RESA | D120: 11 | E120: LEA | F120: 06 | G120: 21 | H120: 079 | I120: School Lunch Fund | J120: 25 | K120: 0 | L120: 0 | M120: 0 | N120: 0 | O120: 0 | P120: 0 | Q120: 0 | R120: 0 | S120: 1130886.46 | T120: 0 | U120: 0 | V120: 1130886.46 | X120: 0 | Y120: 0 | Z120: 0 | AA120: 0 | AB120: 0 | AC120: 1130886.46
A121: Lakeshore School District (Berrien) | B121: 11030 | C121: Berrien RESA | D121: 11 | E121: LEA | F121: 06 | G121: 21 | H121: 079 | I121: Debt Service Funds | J121: 30 | K121: 0 | L121: 0 | M121: 0 | N121: 0 | O121: 0 | P121: 265 | Q121: 0 | R121: 0 | S121: 0 | T121: 0 | U121: 0 | V121: 265 | X121: 0 | Y121: 0 | Z121: 3585693.76 | AA121: 0 | AB121: 3585693.76 | AC121: 3585958.76
A122: Lakeshore School District (Berrien) | B122: 11030 | C122: Berrien RESA | D122: 11 | E122: LEA | F122: 06 | G122: 21 | H122: 079 | I122: Capital Projects Fund | J122: 40 | K122: 0 | L122: 0 | M122: 0 | N122: 0 | O122: 0 | P122: 0 | Q122: 17601996.79 | R122: 0 | S122: 0 | T122: 0 | U122: 5055042.26 | V122: 22657039.05 | X122: 0 | Y122: 0 | Z122: 0 | AA122: 0 | AB122: 0 | AC122: 22657039.05
A123: River Valley School District | B123: 11033 | C123: Berrien RESA | D123: 11 | E123: LEA | F123: 06 | G123: 21 | H123: 078 | I123: General Fund | J123: 11 | K123: 3472463.14 | L123: 396590.03 | M123: 207686.77 | N123: 353333.34 | O123: 557853.47 | P123: 194459.04 | Q123: 805926.33 | R123: 606404.61 | S123: 703293.96 | T123: 0 | U123: 0 | V123: 8055237.32 | X123: 0 | Y123: 0 | Z123: 0 | AA123: 153193.7 | AB123: 153193.7 | AC123: 8208431.02
A124: River Valley School District | B124: 11033 | C124: Berrien RESA | D124: 11 | E124: LEA | F124: 06 | G124: 21 | H124: 078 | I124: School Lunch Fund | J124: 25 | K124: 0 | L124: 0 | M124: 0 | N124: 0 | O124: 0 | P124: 0 | Q124: 0 | R124: 0 | S124: 287383.92 | T124: 0 | U124: 0 | V124: 287383.92 | X124: 0 | Y124: 0 | Z124: 0 | AA124: 0 | AB124: 0 | AC124: 287383.92
A125: River Valley School District | B125: 11033 | C125: Berrien RESA | D125: 11 | E125: LEA | F125: 06 | G125: 21 | H125: 078 | I125: Debt Service Funds | J125: 30 | K125: 0 | L125: 0 | M125: 0 | N125: 0 | O125: 0 | P125: 0 | Q125: 0 | R125: 0 | S125: 0 | T125: 0 | U125: 0 | V125: 0 | X125: 0 | Y125: 0 | Z125: 204267.4 | AA125: 0 | AB125: 204267.4 | AC125: 204267.4
A126: River Valley School District | B126: 11033 | C126: Berrien RESA | D126: 11 | E126: LEA | F126: 06 | G126: 21 | H126: 078 | I126: Capital Projects Fund | J126: 40 | K126: 0 | L126: 0 | M126: 0 | N126: 0 | O126: 0 | P126: 0 | Q126: 0 | R126: 0 | S126: 0 | T126: 0 | U126: 73315.01 | V126: 73315.01 | X126: 0 | Y126: 0 | Z126: 0 | AA126: 0 | AB126: 0 | AC126: 73315.01
A127: River Valley School District | B127: 11033 | C127: Berrien RESA | D127: 11 | E127: LEA | F127: 06 | G127: 21 | H127: 078 | I127: Trust Funds | J127: 50 | K127: 0 | L127: 0 | M127: 0 | N127: 0 | O127: 0 | P127: 0 | Q127: 0 | R127: 0 | S127: 1046817.25 | T127: 0 | U127: 0 | V127: 1046817.25 | X127: 0 | Y127: 0 | Z127: 0 | AA127: 0 | AB127: 0 | AC127: 1046817.25
A128: Galien Township School District | B128: 11160 | C128: Berrien RESA | D128: 11 | E128: LEA | F128: 06 | G128: 21 | H128: 078 | I128: General Fund | J128: 11 | K128: 0 | L128: 0 | M128: 0 | N128: 37589.93 | O128: 0 | P128: 41014.16 | Q128: 38663.97 | R128: 0 | S128: 0 | T128: 0 | U128: 0 | V128: 117268.06 | X128: 0 | Y128: 6189.65 | Z128: 0 | AA128: 0 | AB128: 6189.65 | AC128: 123457.71
A129: Galien Township School District | B129: 11160 | C129: Berrien RESA | D129: 11 | E129: LEA | F129: 06 | G129: 21 | H129: 078 | I129: Debt Service Funds | J129: 30 | K129: 0 | L129: 0 | M129: 0 | N129: 0 | O129: 0 | P129: 0 | Q129: 0 | R129: 0 | S129: 0 | T129: 0 | U129: 0 | V129: 0 | X129: 0 | Y129: 0 | Z129: 254872.15 | AA129: 0 | AB129: 254872.15 | AC129: 254872.15
A130: New Buffalo Area Schools | B130: 11200 | C130: Berrien RESA | D130: 11 | E130: LEA | F130: 06 | G130: 21 | H130: 078 | I130: General Fund | J130: 11 | K130: 5703111.14 | L130: 580807.87 | M130: 197360.28 | N130: 416339.01 | O130: 561685.78 | P130: 368477.9 | Q130: 1180771.05 | R130: 549719.99 | S130: 796030.53 | T130: 256918.24 | U130: 43177.51 | V130: 11704897.32 | X130: 0 | Y130: 0 | Z130: 0 | AA130: 2340024.52 | AB130: 2340024.52 | AC130: 14044921.84
A131: New Buffalo Area Schools | B131: 11200 | C131: Berrien RESA | D131: 11 | E131: LEA | F131: 06 | G131: 21 | H131: 078 | I131: School Lunch Fund | J131: 25 | K131: 0 | L131: 0 | M131: 0 | N131: 0 | O131: 0 | P131: 0 | Q131: 3300 | R131: 0 | S131: 572993.27 | T131: 0 | U131: 0 | V131: 576293.27 | X131: 0 | Y131: 0 | Z131: 0 | AA131: 0 | AB131: 0 | AC131: 576293.27
A132: New Buffalo Area Schools | B132: 11200 | C132: Berrien RESA | D132: 11 | E132: LEA | F132: 06 | G132: 21 | H132: 078 | I132: Private Purpose Trust Fund | J132: 28 | K132: 0 | L132: 0 | M132: 0 | N132: 0 | O132: 0 | P132: 0 | Q132: 0 | R132: 0 | S132: 844133.26 | T132: 0 | U132: 0 | V132: 844133.26 | X132: 0 | Y132: 0 | Z132: 0 | AA132: 0 | AB132: 0 | AC132: 844133.26
A133: New Buffalo Area Schools | B133: 11200 | C133: Berrien RESA | D133: 11 | E133: LEA | F133: 06 | G133: 21 | H133: 078 | I133: Debt Service Funds | J133: 30 | K133: 0 | L133: 0 | M133: 0 | N133: 0 | O133: 0 | P133: 0 | Q133: 0 | R133: 0 | S133: 0 | T133: 0 | U133: 0 | V133: 0 | X133: 0 | Y133: 0 | Z133: 6410149.18 | AA133: 24564.04 | AB133: =SUM(X133:AA133) -> 6434713.22 | AC133: =SUM(V133,AB133) -> 6434713.22
A134: New Buffalo Area Schools | B134: 11200 | C134: Berrien RESA | D134: 11 | E134: LEA | F134: 06 | G134: 21 | H134: 078 | I134: Capital Projects Fund | J134: 40 | K134: 0 | L134: 0 | M134: 0 | N134: 0 | O134: 0 | P134: 0 | Q134: 0 | R134: 0 | S134: 0 | T134: 0 | U134: 1361229.4 | V134: 1361229.4 | X134: 0 | Y134: 0 | Z134: 0 | AA134: 0 | AB134: 0 | AC134: 1361229.4
A135: Brandywine Community Schools | B135: 11210 | C135: Berrien RESA | D135: 11 | E135: LEA | F135: 06 | G135: 21 | H135: 078 | I135: General Fund | J135: 11 | K135: 5892785.07 | L135: 498401.06 | M135: 685127.88 | N135: 315188.74 | O135: 749595.38 | P135: 272193.11 | Q135: 931593.51 | R135: 642877.01 | S135: 415264.96 | T135: 5621.59 | U135: 0 | V135: 12078404.16 | X135: 0 | Y135: 0 | Z135: 0 | AA135: 127311.24 | AB135: 127311.24 | AC135: 12205715.4
A136: Brandywine Community Schools | B136: 11210 | C136: Berrien RESA | D136: 11 | E136: LEA | F136: 06 | G136: 21 | H136: 078 | I136: School Lunch Fund | J136: 25 | K136: 0 | L136: 0 | M136: 0 | N136: 0 | O136: 0 | P136: 0 | Q136: 0 | R136: 0 | S136: 585921.73 | T136: 0 | U136: 0 | V136: 585921.73 | X136: 0 | Y136: 0 | Z136: 0 | AA136: 0 | AB136: 0 | AC136: 585921.73
A137: Brandywine Community Schools | B137: 11210 | C137: Berrien RESA | D137: 11 | E137: LEA | F137: 06 | G137: 21 | H137: 078 | I137: Debt Service Funds | J137: 30 | K137: 0 | L137: 0 | M137: 0 | N137: 0 | O137: 0 | P137: 0 | Q137: 0 | R137: 0 | S137: 0 | T137: 0 | U137: 0 | V137: 0 | X137: 0 | Y137: 0 | Z137: 1415407.56 | AA137: 0 | AB137: 1415407.56 | AC137: 1415407.56
A138: Berrien Springs Public Schools | B138: 11240 | C138: Berrien RESA | D138: 11 | E138: LEA | F138: 06 | G138: 21 | H138: 078 | I138: General Fund | J138: 11 | K138: 11075870.44 | L138: 1335953.96 | M138: 821958.08 | N138: 443997.26 | O138: 1593854.31 | P138: 433171.89 | Q138: 2689592.06 | R138: 1628935.17 | S138: 1371980.92 | T138: 1825180.22 | U138: 1626729.4 | V138: 28142292.55 | X138: 0 | Y138: 0 | Z138: 0 | AA138: 411784.49 | AB138: 411784.49 | AC138: 28554077.04
A139: Berrien Springs Public Schools | B139: 11240 | C139: Berrien RESA | D139: 11 | E139: LEA | F139: 06 | G139: 21 | H139: 078 | I139: School Lunch Fund | J139: 25 | K139: 0 | L139: 0 | M139: 0 | N139: 0 | O139: 0 | P139: 0 | Q139: 0 | R139: 0 | S139: 808322.89 | T139: 0 | U139: 0 | V139: 808322.89 | X139: 0 | Y139: 0 | Z139: 0 | AA139: 0 | AB139: 0 | AC139: 808322.89
A140: Berrien Springs Public Schools | B140: 11240 | C140: Berrien RESA | D140: 11 | E140: LEA | F140: 06 | G140: 21 | H140: 078 | I140: Debt Service Funds | J140: 30 | K140: 0 | L140: 0 | M140: 0 | N140: 0 | O140: 0 | P140: 0 | Q140: 0 | R140: 0 | S140: 0 | T140: 0 | U140: 0 | V140: 0 | X140: 0 | Y140: 0 | Z140: 955937.8 | AA140: 0 | AB140: 955937.8 | AC140: 955937.8
A141: Berrien Springs Public Schools | B141: 11240 | C141: Berrien RESA | D141: 11 | E141: LEA | F141: 06 | G141: 21 | H141: 078 | I141: Capital Projects Fund | J141: 40 | K141: 0 | L141: 0 | M141: 0 | N141: 0 | O141: 0 | P141: 0 | Q141: 0 | R141: 0 | S141: 0 | T141: 0 | U141: 94542.17 | V141: 94542.17 | X141: 0 | Y141: 0 | Z141: 0 | AA141: 212936.53 | AB141: 212936.53 | AC141: 307478.7
A142: Eau Claire Public Schools | B142: 11250 | C142: Berrien RESA | D142: 11 | E142: LEA | F142: 06 | G142: 21 | H142: 078 | I142: General Fund | J142: 11 | K142: 4036254.65 | L142: 271899.76 | M142: 331430.62 | N142: 419060.16 | O142: 468895.1 | P142: 196614.86 | Q142: 696164.91 | R142: 713572.28 | S142: 595629.17 | T142: 17724.22 | U142: 0 | V142: 9276890.16 | X142: 18108 | Y142: 0 | Z142: 0 | AA142: 129497.67 | AB142: 147605.67 | AC142: 9424495.83
A143: Eau Claire Public Schools | B143: 11250 | C143: Berrien RESA | D143: 11 | E143: LEA | F143: 06 | G143: 21 | H143: 078 | I143: School Lunch Fund | J143: 25 | K143: 0 | L143: 0 | M143: 0 | N143: 0 | O143: 0 | P143: 2653.94 | Q143: 27684.67 | R143: 0 | S143: 546830.36 | T143: 0 | U143: 0 | V143: 577168.97 | X143: 0 | Y143: 0 | Z143: 0 | AA143: 0 | AB143: 0 | AC143: 577168.97
A144: Eau Claire Public Schools | B144: 11250 | C144: Berrien RESA | D144: 11 | E144: LEA | F144: 06 | G144: 21 | H144: 078 | I144: Debt Service Funds | J144: 30 | K144: 0 | L144: 0 | M144: 0 | N144: 0 | O144: 0 | P144: 0 | Q144: 0 | R144: 0 | S144: 0 | T144: 0 | U144: 0 | V144: 0 | X144: 0 | Y144: 0 | Z144: 350052.5 | AA144: 0 | AB144: 350052.5 | AC144: 350052.5
A145: Eau Claire Public Schools | B145: 11250 | C145: Berrien RESA | D145: 11 | E145: LEA | F145: 06 | G145: 21 | H145: 078 | I145: Capital Projects Fund | J145: 40 | K145: 0 | L145: 0 | M145: 0 | N145: 0 | O145: 0 | P145: 0 | Q145: 0 | R145: 0 | S145: 278992.9 | T145: 0 | U145: 214068.77 | V145: 493061.67 | X145: 0 | Y145: 0 | Z145: 0 | AA145: 0 | AB145: 0 | AC145: 493061.67
A146: Niles Community Schools | B146: 11300 | C146: Berrien RESA | D146: 11 | E146: LEA | F146: 06 | G146: 21 | H146: 078 | I146: General Fund | J146: 11 | K146: 16123675.51 | L146: 2267079.58 | M146: 2198456.26 | N146: 488624.92 | O146: 2400643.31 | P146: 371626.23 | Q146: 3597223.82 | R146: 2297377.49 | S146: 936116.99 | T146: 18319.15 | U146: 0 | V146: 36050459.14 | X146: 0 | Y146: 81745.3 | Z146: 16531.03 | AA146: 0 | AB146: 98276.33 | AC146: 36148735.47
A147: Niles Community Schools | B147: 11300 | C147: Berrien RESA | D147: 11 | E147: LEA | F147: 06 | G147: 21 | H147: 078 | I147: School Lunch Fund | J147: 25 | K147: 0 | L147: 0 | M147: 0 | N147: 0 | O147: 0 | P147: 0 | Q147: 0 | R147: 0 | S147: 1560579 | T147: 0 | U147: 0 | V147: 1560579 | X147: 0 | Y147: 0 | Z147: 0 | AA147: 0 | AB147: 0 | AC147: 1560579
A148: Niles Community Schools | B148: 11300 | C148: Berrien RESA | D148: 11 | E148: LEA | F148: 06 | G148: 21 | H148: 078 | I148: Capital Projects Fund | J148: 40 | K148: 0 | L148: 0 | M148: 0 | N148: 0 | O148: 0 | P148: 0 | Q148: 0 | R148: 0 | S148: 482755.07 | T148: 0 | U148: 0 | V148: 482755.07 | X148: 0 | Y148: 0 | Z148: 193176 | AA148: 0 | AB148: 193176 | AC148: 675931.07
A149: Buchanan Community Schools | B149: 11310 | C149: Berrien RESA | D149: 11 | E149: LEA | F149: 06 | G149: 21 | H149: 078 | I149: General Fund | J149: 11 | K149: 6884449.01 | L149: 1048766.23 | M149: 350775.18 | N149: 387639.31 | O149: 989517.98 | P149: 321041 | Q149: 1240857.55 | R149: 738290.61 | S149: 904187.78 | T149: 90912.26 | U149: 0 | V149: 14562359.62 | X149: 0 | Y149: 0 | Z149: 0 | AA149: 0 | AB149: 0 | AC149: 14562359.62
A150: Buchanan Community Schools | B150: 11310 | C150: Berrien RESA | D150: 11 | E150: LEA | F150: 06 | G150: 21 | H150: 078 | I150: School Lunch Fund | J150: 25 | K150: 0 | L150: 0 | M150: 0 | N150: 0 | O150: 0 | P150: 0 | Q150: 0 | R150: 0 | S150: 767889.46 | T150: 0 | U150: 0 | V150: 767889.46 | X150: 0 | Y150: 0 | Z150: 0 | AA150: 0 | AB150: 0 | AC150: 767889.46
A151: Buchanan Community Schools | B151: 11310 | C151: Berrien RESA | D151: 11 | E151: LEA | F151: 06 | G151: 21 | H151: 078 | I151: Debt Service Funds | J151: 30 | K151: 0 | L151: 0 | M151: 0 | N151: 0 | O151: 0 | P151: 2603.78 | Q151: 0 | R151: 0 | S151: 0 | T151: 0 | U151: 0 | V151: 2603.78 | X151: 0 | Y151: 0 | Z151: 1315112.59 | AA151: 0 | AB151: 1315112.59 | AC151: 1317716.37
A152: Buchanan Community Schools | B152: 11310 | C152: Berrien RESA | D152: 11 | E152: LEA | F152: 06 | G152: 21 | H152: 078 | I152: Capital Projects Fund | J152: 40 | K152: 0 | L152: 0 | M152: 0 | N152: 0 | O152: 0 | P152: 750 | Q152: 0 | R152: 0 | S152: 0 | T152: 0 | U152: 10104393.16 | V152: 10105143.16 | X152: 0 | Y152: 0 | Z152: 0 | AA152: 32269.33 | AB152: 32269.33 | AC152: 10137412.49
A153: Watervliet School District | B153: 11320 | C153: Berrien RESA | D153: 11 | E153: LEA | F153: 06 | G153: 21 | H153: 079 | I153: General Fund | J153: 11 | K153: 6262443.2 | L153: 480208.93 | M153: 292886.72 | N153: 304058.06 | O153: 847487.96 | P153: 165492.33 | Q153: 956601.15 | R153: 442320 | S153: 737242.88 | T153: 3363.83 | U153: 0 | V153: 12139447.12 | X153: 0 | Y153: 0 | Z153: 26569.17 | AA153: 6072.5 | AB153: 32641.67 | AC153: 12172088.79
A154: Watervliet School District | B154: 11320 | C154: Berrien RESA | D154: 11 | E154: LEA | F154: 06 | G154: 21 | H154: 079 | I154: School Lunch Fund | J154: 25 | K154: 0 | L154: 0 | M154: 0 | N154: 0 | O154: 0 | P154: 0 | Q154: 0 | R154: 0 | S154: 585592.26 | T154: 0 | U154: 0 | V154: 585592.26 | X154: 0 | Y154: 0 | Z154: 0 | AA154: 0 | AB154: 0 | AC154: 585592.26
A155: Watervliet School District | B155: 11320 | C155: Berrien RESA | D155: 11 | E155: LEA | F155: 06 | G155: 21 | H155: 079 | I155: Debt Service Funds | J155: 30 | K155: 0 | L155: 0 | M155: 0 | N155: 0 | O155: 0 | P155: 0 | Q155: 0 | R155: 0 | S155: 0 | T155: 0 | U155: 0 | V155: 0 | X155: 0 | Y155: 0 | Z155: 1233091.28 | AA155: 0 | AB155: 1233091.28 | AC155: 1233091.28
A156: Watervliet School District | B156: 11320 | C156: Berrien RESA | D156: 11 | E156: LEA | F156: 06 | G156: 21 | H156: 079 | I156: Capital Projects Fund | J156: 40 | K156: 0 | L156: 0 | M156: 0 | N156: 0 | O156: 0 | P156: 279193.69 | Q156: 336.02 | R156: 0 | S156: 176540.35 | T156: 0 | U156: 3771210.66 | V156: 4227280.72 | X156: 0 | Y156: 0 | Z156: 0 | AA156: 0 | AB156: 0 | AC156: 4227280.72
A157: Coloma Community Schools | B157: 11330 | C157: Berrien RESA | D157: 11 | E157: LEA | F157: 06 | G157: 21 | H157: 079 | I157: General Fund | J157: 11 | K157: 7321110.54 | L157: 578352.9 | M157: 865275.12 | N157: 372734.24 | O157: 1042310.73 | P157: 396233.11 | Q157: 1300409 | R157: 709949.24 | S157: 498571.25 | T157: 19900.96 | U157: 0 | V157: 15625006.2 | X157: 0 | Y157: 0 | Z157: 436884.33 | AA157: 9040 | AB157: 445924.33 | AC157: 16070930.53
A158: Coloma Community Schools | B158: 11330 | C158: Berrien RESA | D158: 11 | E158: LEA | F158: 06 | G158: 21 | H158: 079 | I158: School Lunch Fund | J158: 25 | K158: 0 | L158: 0 | M158: 0 | N158: 0 | O158: 0 | P158: 8465.6 | Q158: 0 | R158: 0 | S158: 845364.06 | T158: 0 | U158: 0 | V158: 853829.66 | X158: 0 | Y158: 0 | Z158: 0 | AA158: 0 | AB158: 0 | AC158: 853829.66
A159: Coloma Community Schools | B159: 11330 | C159: Berrien RESA | D159: 11 | E159: LEA | F159: 06 | G159: 21 | H159: 079 | I159: Debt Service Funds | J159: 30 | K159: 0 | L159: 0 | M159: 0 | N159: 0 | O159: 0 | P159: 0 | Q159: 0 | R159: 0 | S159: 0 | T159: 0 | U159: 0 | V159: 0 | X159: 0 | Y159: 0 | Z159: 1429397.5 | AA159: 0 | AB159: 1429397.5 | AC159: 1429397.5
A160: Coloma Community Schools | B160: 11330 | C160: Berrien RESA | D160: 11 | E160: LEA | F160: 06 | G160: 21 | H160: 079 | I160: Capital Projects Fund | J160: 40 | K160: 0 | L160: 0 | M160: 0 | N160: 0 | O160: 0 | P160: 0 | Q160: 0 | R160: 0 | S160: 0 | T160: 0 | U160: 3469799.48 | V160: 3469799.48 | X160: 0 | Y160: 0 | Z160: 0 | AA160: 0 | AB160: 0 | AC160: 3469799.48
A161: Bridgman Public Schools | B161: 11340 | C161: Berrien RESA | D161: 11 | E161: LEA | F161: 06 | G161: 21 | H161: 079 | I161: General Fund | J161: 11 | K161: 5364842.9 | L161: 153265.59 | M161: 309215.05 | N161: 232501.49 | O161: 643521.98 | P161: 358752.96 | Q161: 752082.63 | R161: 312679.45 | S161: 348788.14 | T161: 1265.02 | U161: 0 | V161: 9731754.91 | X161: 0 | Y161: 0 | Z161: 195882.44 | AA161: 0 | AB161: 195882.44 | AC161: 9927637.35
A162: Bridgman Public Schools | B162: 11340 | C162: Berrien RESA | D162: 11 | E162: LEA | F162: 06 | G162: 21 | H162: 079 | I162: Community Service Fund | J162: 23 | K162: 0 | L162: 0 | M162: 0 | N162: 0 | O162: 0 | P162: 0 | Q162: 0 | R162: 0 | S162: 0 | T162: 436330.51 | U162: 0 | V162: 436330.51 | X162: 0 | Y162: 0 | Z162: 0 | AA162: 140000 | AB162: 140000 | AC162: 576330.51
A163: Bridgman Public Schools | B163: 11340 | C163: Berrien RESA | D163: 11 | E163: LEA | F163: 06 | G163: 21 | H163: 079 | I163: School Lunch Fund | J163: 25 | K163: 0 | L163: 0 | M163: 0 | N163: 0 | O163: 0 | P163: 0 | Q163: 0 | R163: 0 | S163: 443422.74 | T163: 0 | U163: 0 | V163: 443422.74 | X163: 0 | Y163: 0 | Z163: 0 | AA163: 0 | AB163: 0 | AC163: 443422.74
A164: Bridgman Public Schools | B164: 11340 | C164: Berrien RESA | D164: 11 | E164: LEA | F164: 06 | G164: 21 | H164: 079 | I164: Debt Service Funds | J164: 30 | K164: 0 | L164: 0 | M164: 0 | N164: 0 | O164: 0 | P164: 0 | Q164: 0 | R164: 0 | S164: 0 | T164: 0 | U164: 0 | V164: 0 | X164: 0 | Y164: 0 | Z164: 2354088.53 | AA164: 0 | AB164: 2354088.53 | AC164: 2354088.53
A165: Bridgman Public Schools | B165: 11340 | C165: Berrien RESA | D165: 11 | E165: LEA | F165: 06 | G165: 21 | H165: 079 | I165: Capital Projects Fund | J165: 40 | K165: 0 | L165: 0 | M165: 0 | N165: 0 | O165: 0 | P165: 0 | Q165: 0 | R165: 0 | S165: 0 | T165: 0 | U165: 349777.06 | V165: 349777.06 | X165: 0 | Y165: 0 | Z165: 0 | AA165: 35000 | AB165: 35000 | AC165: 384777.06
A166: Hagar Township S/D #6 | B166: 11670 | C166: Berrien RESA | D166: 11 | E166: LEA | F166: 06 | G166: 21 | H166: 079 | I166: General Fund | J166: 11 | K166: 379580.01 | L166: 0 | M166: 0 | N166: 21289.53 | O166: 61371 | P166: 0 | Q166: 28938.51 | R166: 1815.45 | S166: 0 | T166: 0 | U166: 0 | V166: 528463.32 | X166: 0 | Y166: 0 | Z166: 1494.6 | AA166: 0 | AB166: 1494.6 | AC166: 529957.92
A167: Hagar Township S/D #6 | B167: 11670 | C167: Berrien RESA | D167: 11 | E167: LEA | F167: 06 | G167: 21 | H167: 079 | I167: School Lunch Fund | J167: 25 | K167: 0 | L167: 0 | M167: 0 | N167: 0 | O167: 0 | P167: 0 | Q167: 0 | R167: 0 | S167: 25151.42 | T167: 0 | U167: 0 | V167: 25151.42 | X167: 0 | Y167: 0 | Z167: 0 | AA167: 0 | AB167: 0 | AC167: 25151.42
A168: Sodus Township S/D #5 | B168: 11830 | C168: Berrien RESA | D168: 11 | E168: LEA | F168: 06 | G168: 21 | H168: 078 | I168: General Fund | J168: 11 | K168: 309541.87 | L168: 0 | M168: 0 | N168: 19405.67 | O168: 166694.2 | P168: 0 | Q168: 47797.88 | R168: 0 | S168: 12279.65 | T168: 0 | U168: 51525.25 | V168: 704166.09 | X168: 0 | Y168: 0 | Z168: 0 | AA168: 0 | AB168: 0 | AC168: 704166.09
A169: Sodus Township S/D #5 | B169: 11830 | C169: Berrien RESA | D169: 11 | E169: LEA | F169: 06 | G169: 21 | H169: 078 | I169: School Lunch Fund | J169: 25 | K169: 0 | L169: 0 | M169: 0 | N169: 0 | O169: 0 | P169: 0 | Q169: 0 | R169: 0 | S169: 27414.77 | T169: 0 | U169: 0 | V169: 27414.77 | X169: 0 | Y169: 0 | Z169: 0 | AA169: 0 | AB169: 0 | AC169: 27414.77
A170: Sodus Township S/D #5 | B170: 11830 | C170: Berrien RESA | D170: 11 | E170: LEA | F170: 06 | G170: 21 | H170: 078 | I170: Capital Projects Fund | J170: 40 | K170: 0 | L170: 0 | M170: 0 | N170: 0 | O170: 0 | P170: 0 | Q170: 0 | R170: 0 | S170: 0 | T170: 0 | U170: 0 | V170: 0 | X170: 0 | Y170: 0 | Z170: 0 | AA170: 14021.47 | AB170: 14021.47 | AC170: 14021.47
A171: Countryside Academy | B171: 11901 | C171: Berrien RESA | D171: 11 | E171: PSA | F171: 06 | G171: 21 | H171: 079 | I171: General Fund | J171: 11 | K171: 2256218.19 | L171: 151780.48 | M171: 161841.01 | N171: 441468.22 | O171: 374850.39 | P171: 122338.47 | Q171: 291602.83 | R171: 329286.24 | S171: 52271.72 | T171: 0 | U171: 0 | V171: 4689170.51 | X171: 0 | Y171: 0 | Z171: 3494926.07 | AA171: 397334 | AB171: 3892260.07 | AC171: 8581430.58
A172: Countryside Academy | B172: 11901 | C172: Berrien RESA | D172: 11 | E172: PSA | F172: 06 | G172: 21 | H172: 079 | I172: School Lunch Fund | J172: 25 | K172: 0 | L172: 0 | M172: 0 | N172: 0 | O172: 0 | P172: 0 | Q172: 0 | R172: 0 | S172: 311132.17 | T172: 0 | U172: 0 | V172: 311132.17 | X172: 0 | Y172: 0 | Z172: 0 | AA172: 0 | AB172: 0 | AC172: 311132.17
A173: Countryside Academy | B173: 11901 | C173: Berrien RESA | D173: 11 | E173: PSA | F173: 06 | G173: 21 | H173: 079 | I173: Capital Projects Fund | J173: 40 | K173: 0 | L173: 0 | M173: 0 | N173: 0 | O173: 0 | P173: 0 | Q173: 0 | R173: 0 | S173: 0 | T173: 0 | U173: 400578.84 | V173: 400578.84 | X173: 0 | Y173: 0 | Z173: 0 | AA173: 0 | AB173: 0 | AC173: 400578.84
A174: Benton Harbor Charter School Academy | B174: 11903 | C174: Berrien RESA | D174: 11 | E174: PSA | F174: 06 | G174: 21 | H174: 079 | I174: General Fund | J174: 11 | K174: 1241658.14 | L174: 99085.36 | M174: 156656.13 | N174: 507106.54 | O174: 162564.51 | P174: 18883.37 | Q174: 279475.04 | R174: 287800.76 | S174: 54658.94 | T174: 40999.93 | U174: 0 | V174: 3216041.6 | X174: 0 | Y174: 0 | Z174: 62068.92 | AA174: 586260.42 | AB174: 648329.34 | AC174: 3864370.94
A175: Benton Harbor Charter School Academy | B175: 11903 | C175: Berrien RESA | D175: 11 | E175: PSA | F175: 06 | G175: 21 | H175: 079 | I175: School Lunch Fund | J175: 25 | K175: 0 | L175: 0 | M175: 0 | N175: 0 | O175: 0 | P175: 0 | Q175: 0 | R175: 0 | S175: 346587.56 | T175: 0 | U175: 0 | V175: 346587.56 | X175: 0 | Y175: 0 | Z175: 0 | AA175: 0 | AB175: 0 | AC175: 346587.56
A176: Benton Harbor Charter School Academy | B176: 11903 | C176: Berrien RESA | D176: 11 | E176: PSA | F176: 06 | G176: 21 | H176: 079 | I176: Debt Service Funds | J176: 30 | K176: 0 | L176: 0 | M176: 0 | N176: 0 | O176: 0 | P176: 0 | Q176: 0 | R176: 0 | S176: 0 | T176: 0 | U176: 0 | V176: 0 | X176: 0 | Y176: 0 | Z176: 587962.5 | AA176: 0 | AB176: 587962.5 | AC176: 587962.5
A177: Mildred C. Wells Preparatory Academy | B177: 11904 | C177: Berrien RESA | D177: 11 | E177: PSA | F177: 06 | G177: 21 | H177: 079 | I177: General Fund | J177: 11 | K177: 372076.7 | L177: 50828.09 | M177: 109252.94 | N177: 136322.7 | O177: 140350.77 | P177: 47704.66 | Q177: 287697.53 | R177: 92665.54 | S177: 38909.84 | T177: 260.08 | U177: 0 | V177: 1456682.94 | X177: 0 | Y177: 0 | Z177: 0 | AA177: 2024.93 | AB177: 2024.93 | AC177: 1458707.87
A178: Mildred C. Wells Preparatory Academy | B178: 11904 | C178: Berrien RESA | D178: 11 | E178: PSA | F178: 06 | G178: 21 | H178: 079 | I178: School Lunch Fund | J178: 25 | K178: 0 | L178: 0 | M178: 0 | N178: 0 | O178: 0 | P178: 0 | Q178: 39000 | R178: 0 | S178: 109491.62 | T178: 0 | U178: 0 | V178: 148491.62 | X178: 0 | Y178: 0 | Z178: 0 | AA178: 0 | AB178: 0 | AC178: 148491.62
A179: Dream Academy | B179: 11905 | C179: Berrien RESA | D179: 11 | E179: PSA | F179: 06 | G179: 21 | H179: 079 | I179: General Fund | J179: 11 | K179: 632408.03 | L179: 66990.1 | M179: 140416.5 | N179: 197941.09 | O179: 195561.8 | P179: 80592.22 | Q179: 442394.96 | R179: 121604.32 | S179: 68565.82 | T179: 46437.01 | U179: 0 | V179: 2208435.19 | X179: 0 | Y179: 925 | Z179: 0 | AA179: 42879.8 | AB179: 43804.8 | AC179: 2252239.99
A180: Dream Academy | B180: 11905 | C180: Berrien RESA | D180: 11 | E180: PSA | F180: 06 | G180: 21 | H180: 079 | I180: School Lunch Fund | J180: 25 | K180: 0 | L180: 0 | M180: 0 | N180: 0 | O180: 0 | P180: 0 | Q180: 0 | R180: 0 | S180: 191978.53 | T180: 0 | U180: 0 | V180: 191978.53 | X180: 0 | Y180: 0 | Z180: 0 | AA180: 0 | AB180: 0 | AC180: 191978.53
A181: Branch ISD | B181: 12000 | C181: Branch ISD | D181: 12 | E181: ISD | F181: 07 | G181: 16 | H181: 058 | I181: General Fund | J181: 11 | K181: 706722.38 | L181: 83383.8 | M181: 233371.33 | N181: 326673.22 | O181: 14767.65 | P181: 235204.18 | Q181: 65142.25 | R181: 78091.52 | S181: 251063.87 | T181: 2591159.69 | U181: 0 | V181: 4585579.89 | X181: 136907.75 | Y181: 0 | Z181: 0 | AA181: 0 | AB181: 136907.75 | AC181: 4722487.64
A182: Branch ISD | B182: 12000 | C182: Branch ISD | D182: 12 | E182: ISD | F182: 07 | G182: 16 | H182: 058 | I182: Special Education Fund | J182: 22 | K182: 0 | L182: 1837102.65 | M182: 780849.73 | N182: 16120.79 | O182: 0 | P182: 291868.68 | Q182: 317488.53 | R182: 24386.65 | S182: 139824.55 | T182: 335.56 | U182: 0 | V182: 9992883.68 | X182: 11031.22 | Y182: 0 | Z182: 0 | AA182: 113864.04 | AB182: 124895.26 | AC182: 10117778.94
A183: Branch ISD | B183: 12000 | C183: Branch ISD | D183: 12 | E183: ISD | F183: 07 | G183: 16 | H183: 058 | I183: School Lunch Fund | J183: 25 | K183: 0 | L183: 0 | M183: 0 | N183: 0 | O183: 0 | P183: 0 | Q183: 0 | R183: 0 | S183: 20119.9 | T183: 0 | U183: 0 | V183: 20119.9 | X183: 0 | Y183: 0 | Z183: 0 | AA183: 0 | AB183: 0 | AC183: 20119.9
A184: Branch ISD | B184: 12000 | C184: Branch ISD | D184: 12 | E184: ISD | F184: 07 | G184: 16 | H184: 058 | I184: Vocational Education Fund | J184: 26 | K184: 0 | L184: 607273.72 | M184: 674894.74 | N184: 5898.47 | O184: 0 | P184: 264121.53 | Q184: 714446.72 | R184: 109356.95 | S184: 210571.33 | T184: 31560.14 | U184: 0 | V184: 5967139.13 | X184: 0 | Y184: 0 | Z184: 0 | AA184: 259528.64 | AB184: 259528.64 | AC184: 6226667.77
A185: Branch ISD | B185: 12000 | C185: Branch ISD | D185: 12 | E185: ISD | F185: 07 | G185: 16 | H185: 058 | I185: Capital Projects Fund | J185: 40 | K185: 0 | L185: 0 | M185: 0 | N185: 0 | O185: 0 | P185: 0 | Q185: 0 | R185: 0 | S185: 0 | T185: 0 | U185: 6186.77 | V185: 6186.77 | X185: 0 | Y185: 0 | Z185: 0 | AA185: 0 | AB185: 0 | AC185: 6186.77
A186: Coldwater Community Schools | B186: 12010 | C186: Branch ISD | D186: 12 | E186: LEA | F186: 07 | G186: 16 | H186: 058 | I186: General Fund | J186: 11 | K186: 14301101.39 | L186: 1195894.46 | M186: 611868.03 | N186: 570301.53 | O186: 1557497.93 | P186: 473409.19 | Q186: 2091492.33 | R186: 1655799.02 | S186: 1041669.9 | T186: 91787.9 | U186: 0 | V186: 25188652.42 | X186: 0 | Y186: 0 | Z186: 101566.49 | AA186: 52500 | AB186: 154066.49 | AC186: 25342718.91
A187: Coldwater Community Schools | B187: 12010 | C187: Branch ISD | D187: 12 | E187: LEA | F187: 07 | G187: 16 | H187: 058 | I187: Community Service Fund | J187: 23 | K187: 68271.7 | L187: 0 | M187: 0 | N187: 0 | O187: 0 | P187: 0 | Q187: 0 | R187: 0 | S187: 0 | T187: 168896.95 | U187: 0 | V187: 237168.65 | X187: 0 | Y187: 0 | Z187: 0 | AA187: 0 | AB187: 0 | AC187: 237168.65
A188: Coldwater Community Schools | B188: 12010 | C188: Branch ISD | D188: 12 | E188: LEA | F188: 07 | G188: 16 | H188: 058 | I188: School Lunch Fund | J188: 25 | K188: 0 | L188: 0 | M188: 0 | N188: 4000.02 | O188: 0 | P188: 0 | Q188: 95.09 | R188: 0 | S188: 1233246.37 | T188: 0 | U188: 0 | V188: 1237341.48 | X188: 0 | Y188: 0 | Z188: 0 | AA188: 0 | AB188: 0 | AC188: 1237341.48
A189: Coldwater Community Schools | B189: 12010 | C189: Branch ISD | D189: 12 | E189: LEA | F189: 07 | G189: 16 | H189: 058 | I189: Debt Service Funds | J189: 30 | K189: 0 | L189: 0 | M189: 0 | N189: 0 | O189: 0 | P189: 18259.85 | Q189: 0 | R189: 0 | S189: 0 | T189: 0 | U189: 0 | V189: 18259.85 | X189: 0 | Y189: 0 | Z189: 7489650 | AA189: 0 | AB189: 7489650 | AC189: 7507909.85
A190: Coldwater Community Schools | B190: 12010 | C190: Branch ISD | D190: 12 | E190: LEA | F190: 07 | G190: 16 | H190: 058 | I190: Capital Projects Fund | J190: 40 | K190: 0 | L190: 0 | M190: 0 | N190: 0 | O190: 0 | P190: 5764.78 | Q190: 0 | R190: 0 | S190: 0 | T190: 0 | U190: 403276.12 | V190: 409040.9 | X190: 0 | Y190: 0 | Z190: 593286.11 | AA190: 0 | AB190: 593286.11 | AC190: 1002327.01
A191: Bronson Community School District | B191: 12020 | C191: Branch ISD | D191: 12 | E191: LEA | F191: 07 | G191: 16 | H191: 058 | I191: General Fund | J191: 11 | K191: 4715581.7 | L191: 174115.35 | M191: 62889.78 | N191: 263552.32 | O191: 666929.25 | P191: 162398.84 | Q191: 923437.58 | R191: 580194.04 | S191: 536164.43 | T191: 5407.39 | U191: 0 | V191: 8840124.51 | X191: 0 | Y191: 0 | Z191: 0 | AA191: 0 | AB191: 0 | AC191: 8840124.51
A192: Bronson Community School District | B192: 12020 | C192: Branch ISD | D192: 12 | E192: LEA | F192: 07 | G192: 16 | H192: 058 | I192: School Lunch Fund | J192: 25 | K192: 0 | L192: 0 | M192: 0 | N192: 0 | O192: 0 | P192: 0 | Q192: 5439.43 | R192: 0 | S192: 596299.15 | T192: 0 | U192: 0 | V192: 601738.58 | X192: 0 | Y192: 0 | Z192: 0 | AA192: 0 | AB192: 0 | AC192: 601738.58
A193: Bronson Community School District | B193: 12020 | C193: Branch ISD | D193: 12 | E193: LEA | F193: 07 | G193: 16 | H193: 058 | I193: Capital Projects Fund | J193: 40 | K193: 0 | L193: 0 | M193: 0 | N193: 0 | O193: 0 | P193: 2424.67 | Q193: 0 | R193: 0 | S193: 0 | T193: 0 | U193: 127540.97 | V193: 129965.64 | X193: 0 | Y193: 0 | Z193: 0 | AA193: 0 | AB193: 0 | AC193: 129965.64
A194: Bronson Community School District | B194: 12020 | C194: Branch ISD | D194: 12 | E194: LEA | F194: 07 | G194: 16 | H194: 058 | I194: Trust Funds | J194: 50 | K194: 0 | L194: 0 | M194: 0 | N194: 0 | O194: 0 | P194: 0 | Q194: 0 | R194: 0 | S194: 24106.5 | T194: 0 | U194: 0 | V194: 24106.5 | X194: 0 | Y194: 0 | Z194: 0 | AA194: 0 | AB194: 0 | AC194: 24106.5
A195: Quincy Community Schools | B195: 12040 | C195: Branch ISD | D195: 12 | E195: LEA | F195: 07 | G195: 16 | H195: 058 | I195: General Fund | J195: 11 | K195: 5999533.14 | L195: 295549.73 | M195: 280678.29 | N195: 298841.87 | O195: 645311.73 | P195: 179712.71 | Q195: 812704.38 | R195: 507667.03 | S195: 552317.2 | T195: 8935.9 | U195: 0 | V195: 9961482.93 | X195: 0 | Y195: 0 | Z195: 0 | AA195: 4820 | AB195: 4820 | AC195: 9966302.93
A196: Quincy Community Schools | B196: 12040 | C196: Branch ISD | D196: 12 | E196: LEA | F196: 07 | G196: 16 | H196: 058 | I196: School Lunch Fund | J196: 25 | K196: 0 | L196: 0 | M196: 0 | N196: 0 | O196: 0 | P196: 0 | Q196: 0 | R196: 0 | S196: 514842.73 | T196: 0 | U196: 0 | V196: 514842.73 | X196: 0 | Y196: 0 | Z196: 0 | AA196: 0 | AB196: 0 | AC196: 514842.73
A197: Quincy Community Schools | B197: 12040 | C197: Branch ISD | D197: 12 | E197: LEA | F197: 07 | G197: 16 | H197: 058 | I197: Debt Service Funds | J197: 30 | K197: 0 | L197: 0 | M197: 0 | N197: 0 | O197: 0 | P197: 51.3 | Q197: 0 | R197: 0 | S197: 0 | T197: 0 | U197: 0 | V197: 51.3 | X197: 0 | Y197: 0 | Z197: 2795604.48 | AA197: 135689.92 | AB197: =SUM(X197:AA197) -> 2931294.4 | AC197: =SUM(V197,AB197) -> 2931345.7
A198: Quincy Community Schools | B198: 12040 | C198: Branch ISD | D198: 12 | E198: LEA | F198: 07 | G198: 16 | H198: 058 | I198: Capital Projects Fund | J198: 40 | K198: 0 | L198: 0 | M198: 0 | N198: 0 | O198: 0 | P198: 16092.5 | Q198: 0 | R198: 159082 | S198: 126867.16 | T198: 0 | U198: 2591749.41 | V198: 2893791.07 | X198: 0 | Y198: 0 | Z198: 0 | AA198: 0 | AB198: 0 | AC198: 2893791.07
A199: Pansophia Academy | B199: 12901 | C199: Branch ISD | D199: 12 | E199: PSA | F199: 07 | G199: 16 | H199: 058 | I199: General Fund | J199: 11 | K199: 1150648 | L199: 96568 | M199: 42807 | N199: 437331 | O199: 276681 | P199: 23993 | Q199: 247734 | R199: 146834 | S199: 125000 | T199: 21568 | U199: 21484 | V199: 2945373 | X199: 0 | Y199: 0 | Z199: 7949 | AA199: 293942 | AB199: 301891 | AC199: 3247264
A200: Pansophia Academy | B200: 12901 | C200: Branch ISD | D200: 12 | E200: PSA | F200: 07 | G200: 16 | H200: 058 | I200: School Lunch Fund | J200: 25 | K200: 0 | L200: 0 | M200: 0 | N200: 0 | O200: 0 | P200: 0 | Q200: 0 | R200: 0 | S200: 290892 | T200: 0 | U200: 0 | V200: 290892 | X200: 0 | Y200: 0 | Z200: 0 | AA200: 0 | AB200: 0 | AC200: 290892
... 3028 more rows

Sheet Operational Expenditures (Fund)
A1: =CONCATENATE("FY ",BTS!B5," ","Operating Expenditures by Fund") -> FY 2015 Operating Expenditures by Fund | B1: Click on arrow button to apply filter to column. District count and amounts will change as filters are applied. | D1: Note: Percentages follow totals. | I1: Column Total: | K1: =SUBTOTAL(9,K4:K3119) -> 7986571947 | L1: 4892385458 | M1: 3306349220 | N1: 1132639660 | O1: 144041498.1 | P1: 1.746198778e+10 | Q1: =K1/$P1 -> 0.4573690032 | R1: =L1/$P1 -> 0.2801734556 | S1: =M1/$P1 -> 0.1893455236 | T1: =N1/$P1 -> 0.0648631573 | U1: =O1/$P1 -> 0.008248860315 | V1: =SUM(Q1:U2) -> 1
A2: ="Total Number of Districts: 902" -> Total Number of Districts: 902
A3: District Name | B3: Dist. Code | C3: ISD Name | D3: ISD Code | E3: Dist. Type | F3: US Cong. | G3: MI Senate | H3: MI House | I3: Fund Name | J3: Fund Code | K3: Salaries (1xxx) | L3: Employee Benefits (2xxx) | M3: Purchased Services (3xxx-4xxx, 82xx) | N3: Supplies & Materials (5xxx) | O3: Other (7xxx) | P3: Total | Q3: Salaries | R3: Benefits | S3: Purchased Services | T3: Supplies & Materials | U3: Other | V3: Total
A4: Alcona Community Schools | B4: 01010 | C4: Alpena-Montmorency-Alcona ESD | D4: 04 | E4: LEA | F4: 01 | G4: 36 | H4: 106 | I4: General Fund | J4: 11 | K4: 3502322.71 | L4: 2257003.88 | M4: 1065560.11 | N4: 517018.53 | O4: 32486.75 | P4: 7374391.98 | Q4: 47.49303698 | R4: 30.6059657 | S4: 14.44946394 | T4: 7.010998756 | U4: 0.4405346243 | V4: 100
A5: Alcona Community Schools | B5: 01010 | C5: Alpena-Montmorency-Alcona ESD | D5: 04 | E5: LEA | F5: 01 | G5: 36 | H5: 106 | I5: Debt Service Funds | J5: 30 | K5: 0 | L5: 0 | M5: 0 | N5: 0 | O5: 0 | P5: 0 | Q5: 0 | R5: 0 | S5: 0 | T5: 0 | U5: 0 | V5: 0
A6: AuTrain-Onota Public Schools | B6: 02010 | C6: Marquette-Alger RESA | D6: 52 | E6: LEA | F6: 01 | G6: 38 | H6: 109 | I6: General Fund | J6: 11 | K6: 421121.61 | L6: 234771.32 | M6: 87687.19 | N6: 56885.57 | O6: 9770.86 | P6: 810236.55 | Q6: 51.97514356 | R6: 28.97565162 | S6: 10.82241847 | T6: 7.020859525 | U6: 1.205926837 | V6: 100
A7: AuTrain-Onota Public Schools | B7: 02010 | C7: Marquette-Alger RESA | D7: 52 | E7: LEA | F7: 01 | G7: 38 | H7: 109 | I7: School Lunch Fund | J7: 25 | K7: 20052.32 | L7: 17967.31 | M7: 1320.97 | N7: 13241.29 | O7: 224.25 | P7: 52806.14 | Q7: 37.97346293 | R7: 34.02503951 | S7: 2.501546222 | T7: 25.07528481 | U7: 0.4246665255 | V7: 100
A8: Burt Township School District | B8: 02020 | C8: Marquette-Alger RESA | D8: 52 | E8: LEA | F8: 01 | G8: 38 | H8: 109 | I8: Trust Funds | J8: 50 | K8: 0 | L8: 0 | M8: 0 | N8: 0 | O8: 86.15 | P8: 86.15 | Q8: 0 | R8: 0 | S8: 0 | T8: 0 | U8: 100 | V8: 100
A9: Burt Township School District | B9: 02020 | C9: Marquette-Alger RESA | D9: 52 | E9: LEA | F9: 01 | G9: 38 | H9: 109 | I9: General Fund | J9: 11 | K9: 424282.31 | L9: 259213.14 | M9: 105364.66 | N9: 92060.6 | O9: 10138.93 | P9: 891059.64 | Q9: 47.61547835 | R9: 29.09043664 | S9: 11.82464734 | T9: 10.33158678 | U9: 1.137850885 | V9: 100
A10: Burt Township School District | B10: 02020 | C10: Marquette-Alger RESA | D10: 52 | E10: LEA | F10: 01 | G10: 38 | H10: 109 | I10: School Lunch Fund | J10: 25 | K10: 15682.38 | L10: 14858.78 | M10: 853.62 | N10: 20149.14 | O10: 377.65 | P10: 51921.57 | Q10: 30.20397881 | R10: 28.61774018 | S10: 1.644056603 | T10: 38.80687737 | U10: 0.7273470352 | V10: 100
A11: Munising Public Schools | B11: 02070 | C11: Marquette-Alger RESA | D11: 52 | E11: LEA | F11: 01 | G11: 38 | H11: 109 | I11: School Lunch Fund | J11: 25 | K11: 110610.19 | L11: 58286.29 | M11: 2582.79 | N11: 146767.77 | O11: 1325.21 | P11: 319572.25 | Q11: 34.61195082 | R11: 18.23884583 | S11: 0.8082022141 | T11: 45.9263187 | U11: 0.4146824388 | V11: 100
A12: Munising Public Schools | B12: 02070 | C12: Marquette-Alger RESA | D12: 52 | E12: LEA | F12: 01 | G12: 38 | H12: 109 | I12: Debt Service Funds | J12: 30 | K12: 0 | L12: 0 | M12: 0 | N12: 0 | O12: 1490.54 | P12: 1490.54 | Q12: 0 | R12: 0 | S12: 0 | T12: 0 | U12: 100 | V12: 100
A13: Munising Public Schools | B13: 02070 | C13: Marquette-Alger RESA | D13: 52 | E13: LEA | F13: 01 | G13: 38 | H13: 109 | I13: General Fund | J13: 11 | K13: 3333190.33 | L13: 2048379.45 | M13: 559214.81 | N13: 477883.09 | O13: 30125.54 | P13: 6448793.22 | Q13: 51.68703998 | R13: 31.76376386 | S13: 8.671619494 | T13: 7.410426629 | U13: 0.4671500383 | V13: 100
A14: Munising Public Schools | B14: 02070 | C14: Marquette-Alger RESA | D14: 52 | E14: LEA | F14: 01 | G14: 38 | H14: 109 | I14: Community Service Fund | J14: 23 | K14: 46580.73 | L14: 26203.77 | M14: 24414.68 | N14: 20932.1 | O14: 533.48 | P14: 118664.76 | Q14: 39.25405487 | R14: 22.08218345 | S14: 20.57449912 | T14: 17.63969354 | U14: 0.4495690212 | V14: 100
A15: Superior Central School District | B15: 02080 | C15: Marquette-Alger RESA | D15: 52 | E15: LEA | F15: 01 | G15: 38 | H15: 109 | I15: School Lunch Fund | J15: 25 | K15: 46365.34 | L15: 31922.9 | M15: 3170.33 | N15: 91562.39 | O15: 1960.52 | P15: 174981.48 | Q15: 26.49728417 | R15: 18.24358784 | S15: 1.811808884 | T15: 52.3269034 | U15: 1.120415715 | V15: 100
A16: Superior Central School District | B16: 02080 | C16: Marquette-Alger RESA | D16: 52 | E16: LEA | F16: 01 | G16: 38 | H16: 109 | I16: General Fund | J16: 11 | K16: 1455535.1 | L16: 1091044.25 | M16: 394565.49 | N16: 177141.46 | O16: 20209.02 | P16: 3138495.32 | Q16: 46.37684469 | R16: 34.76329065 | S16: 12.57180431 | T16: 5.644152434 | U16: 0.6439079221 | V16: 100
A17: Superior Central School District | B17: 02080 | C17: Marquette-Alger RESA | D17: 52 | E17: LEA | F17: 01 | G17: 38 | H17: 109 | I17: Capital Projects Fund | J17: 40 | K17: 0 | L17: 0 | M17: 146686 | N17: 0 | O17: 11909.52 | P17: 158595.52 | Q17: 0 | R17: 0 | S17: 92.49063277 | T17: 0 | U17: 7.509367226 | V17: 100
A18: Superior Central School District | B18: 02080 | C18: Marquette-Alger RESA | D18: 52 | E18: LEA | F18: 01 | G18: 38 | H18: 109 | I18: Debt Service Funds | J18: 30 | K18: 0 | L18: 0 | M18: 0 | N18: 0 | O18: 0 | P18: 0 | Q18: 0 | R18: 0 | S18: 0 | T18: 0 | U18: 0 | V18: 0
A19: Allegan Area Educational Service Agency | B19: 03000 | C19: Allegan Area Educational Service Agency | D19: 03 | E19: ISD | F19: 06 | G19: 26 | H19: 080 | I19: Special Education Fund | J19: 22 | K19: 4971748.22 | L19: 3315256.1 | M19: 1497339.57 | N19: 346936.22 | O19: 36044.11 | P19: 10167324.22 | Q19: 48.89927883 | R19: 32.60696746 | S19: 14.72697769 | T19: 3.412266713 | U19: 0.3545093008 | V19: 100
A20: Allegan Area Educational Service Agency | B20: 03000 | C20: Allegan Area Educational Service Agency | D20: 03 | E20: ISD | F20: 06 | G20: 26 | H20: 080 | I20: General Fund | J20: 11 | K20: 2166095.3 | L20: 1437414.12 | M20: 1110088.33 | N20: 271420.64 | O20: 85086.2 | P20: 5070104.59 | Q20: 42.72289184 | R20: 28.35077846 | S20: 21.89478166 | T20: 5.353353864 | U20: 1.678194177 | V20: 100
A21: Allegan Area Educational Service Agency | B21: 03000 | C21: Allegan Area Educational Service Agency | D21: 03 | E21: ISD | F21: 06 | G21: 26 | H21: 080 | I21: Vocational Education Fund | J21: 26 | K21: 1688460.96 | L21: 1106721.65 | M21: 473946.09 | N21: 450696.56 | O21: 28116.11 | P21: 3747941.37 | Q21: 45.0503568 | R21: 29.52878769 | S21: 12.64550438 | T21: 12.02517637 | U21: 0.7501747553 | V21: 100
A22: Allegan Area Educational Service Agency | B22: 03000 | C22: Allegan Area Educational Service Agency | D22: 03 | E22: ISD | F22: 06 | G22: 26 | H22: 080 | I22: Cooperative Activities Fund | J22: 27 | K22: 201367.59 | L22: 123249.09 | M22: 131450.25 | N22: 27552.6 | O22: 480 | P22: 484099.53 | Q22: 41.59632008 | R22: 25.45945252 | S22: 27.15355869 | T22: 5.691515544 | U22: 0.0991531638 | V22: 100
A23: Allegan Area Educational Service Agency | B23: 03000 | C23: Allegan Area Educational Service Agency | D23: 03 | E23: ISD | F23: 06 | G23: 26 | H23: 080 | I23: Debt Service Funds | J23: 30 | K23: 0 | L23: 0 | M23: 0 | N23: 0 | O23: 0 | P23: 0 | Q23: 0 | R23: 0 | S23: 0 | T23: 0 | U23: 0 | V23: 0
A24: Plainwell Community Schools | B24: 03010 | C24: Allegan Area Educational Service Agency | D24: 03 | E24: LEA | F24: 06 | G24: 26 | H24: 080 | I24: Debt Service Funds | J24: 30 | K24: 0 | L24: 0 | M24: 0 | N24: 0 | O24: 6430.33 | P24: 6430.33 | Q24: 0 | R24: 0 | S24: 0 | T24: 0 | U24: 100 | V24: 100
A25: Plainwell Community Schools | B25: 03010 | C25: Allegan Area Educational Service Agency | D25: 03 | E25: LEA | F25: 06 | G25: 26 | H25: 080 | I25: School Lunch Fund | J25: 25 | K25: 178477.77 | L25: 69072.95 | M25: 127239.9 | N25: 333402.1 | O25: 8151.87 | P25: 716344.59 | Q25: 24.91507195 | R25: 9.642419439 | S25: 17.76238723 | T25: 46.54213973 | U25: 1.137981652 | V25: 100
A26: Plainwell Community Schools | B26: 03010 | C26: Allegan Area Educational Service Agency | D26: 03 | E26: LEA | F26: 06 | G26: 26 | H26: 080 | I26: General Fund | J26: 11 | K26: 11886881.32 | L26: 7306545.96 | M26: 2558489.26 | N26: 1492931.76 | O26: 73557.04 | P26: 23318405.34 | Q26: 50.97639031 | R26: 31.33381487 | S26: 10.97197352 | T26: 6.402375026 | U26: 0.3154462706 | V26: 100
A27: Otsego Public Schools | B27: 03020 | C27: Allegan Area Educational Service Agency | D27: 03 | E27: LEA | F27: 06 | G27: 26 | H27: 080 | I27: General Fund | J27: 11 | K27: 10258026.58 | L27: 6421123.41 | M27: 1433523.53 | N27: 902674.58 | O27: 77875.02 | P27: 19093223.12 | Q27: 53.726008 | R27: 33.63037958 | S27: 7.508022721 | T27: 4.727722367 | U27: 0.4078673334 | V27: 100
A28: Otsego Public Schools | B28: 03020 | C28: Allegan Area Educational Service Agency | D28: 03 | E28: LEA | F28: 06 | G28: 26 | H28: 080 | I28: Debt Service Funds | J28: 30 | K28: 0 | L28: 0 | M28: 0 | N28: 0 | O28: 0 | P28: 0 | Q28: 0 | R28: 0 | S28: 0 | T28: 0 | U28: 0 | V28: 0
A29: Otsego Public Schools | B29: 03020 | C29: Allegan Area Educational Service Agency | D29: 03 | E29: LEA | F29: 06 | G29: 26 | H29: 080 | I29: School Lunch Fund | J29: 25 | K29: 255257.83 | L29: 104881.9 | M29: 113325.33 | N29: 364507.96 | O29: 3320 | P29: 841293.02 | Q29: 30.34113251 | R29: 12.46675029 | S29: 13.47037564 | T29: 43.32711093 | U29: 0.3946306365 | V29: 100
A30: Allegan Public Schools | B30: 03030 | C30: Allegan Area Educational Service Agency | D30: 03 | E30: LEA | F30: 06 | G30: 26 | H30: 080 | I30: General Fund | J30: 11 | K30: 12128321.74 | L30: 7293635.79 | M30: 2274412.06 | N30: 1238062.07 | O30: 210428.75 | P30: 23144860.41 | Q30: 52.40179256 | R30: 31.51298241 | S30: 9.82685581 | T30: 5.349187889 | U30: 0.9091813313 | V30: 100
A31: Allegan Public Schools | B31: 03030 | C31: Allegan Area Educational Service Agency | D31: 03 | E31: LEA | F31: 06 | G31: 26 | H31: 080 | I31: School Lunch Fund | J31: 25 | K31: 307808.62 | L31: 195164.54 | M31: 19322.93 | N31: 548420.07 | O31: 0 | P31: 1070716.16 | Q31: 28.74791952 | R31: 18.22747683 | S31: 1.804673425 | T31: 51.21993022 | U31: 0 | V31: 100
A32: Allegan Public Schools | B32: 03030 | C32: Allegan Area Educational Service Agency | D32: 03 | E32: LEA | F32: 06 | G32: 26 | H32: 080 | I32: Debt Service Funds | J32: 30 | K32: 0 | L32: 0 | M32: 0 | N32: 0 | O32: 0 | P32: 0 | Q32: 0 | R32: 0 | S32: 0 | T32: 0 | U32: 0 | V32: 0
A33: Allegan Public Schools | B33: 03030 | C33: Allegan Area Educational Service Agency | D33: 03 | E33: LEA | F33: 06 | G33: 26 | H33: 080 | I33: Capital Projects Fund | J33: 40 | K33: 0 | L33: 0 | M33: 64473 | N33: 99.45 | O33: 196.2 | P33: 64768.65 | Q33: 0 | R33: 0 | S33: 99.54352916 | T33: 0.1535465075 | U33: 0.3029243314 | V33: 100
A34: Wayland Union Schools | B34: 03040 | C34: Allegan Area Educational Service Agency | D34: 03 | E34: LEA | F34: 06 | G34: 26 | H34: 072 | I34: Debt Service Funds | J34: 30 | K34: 0 | L34: 0 | M34: 0 | N34: 0 | O34: 0 | P34: 0 | Q34: 0 | R34: 0 | S34: 0 | T34: 0 | U34: 0 | V34: 0
A35: Wayland Union Schools | B35: 03040 | C35: Allegan Area Educational Service Agency | D35: 03 | E35: LEA | F35: 06 | G35: 26 | H35: 072 | I35: General Fund | J35: 11 | K35: 13109390.99 | L35: 8262043.48 | M35: 2587827.17 | N35: 1424442.88 | O35: 168161.92 | P35: 25551866.44 | Q35: 51.30502314 | R35: 32.33440304 | S35: 10.12774224 | T35: 5.574711669 | U35: 0.6581199084 | V35: 100
A36: Wayland Union Schools | B36: 03040 | C36: Allegan Area Educational Service Agency | D36: 03 | E36: LEA | F36: 06 | G36: 26 | H36: 072 | I36: School Lunch Fund | J36: 25 | K36: 435285.19 | L36: 154076.18 | M36: 216299.56 | N36: 581180.64 | O36: 40878.62 | P36: 1427720.19 | Q36: 30.48813017 | R36: 10.79176306 | S36: 15.14999658 | T36: 40.7069007 | U36: 2.863209492 | V36: 100
A37: Wayland Union Schools | B37: 03040 | C37: Allegan Area Educational Service Agency | D37: 03 | E37: LEA | F37: 06 | G37: 26 | H37: 072 | I37: Capital Projects Fund | J37: 40 | K37: 0 | L37: 0 | M37: 353093.19 | N37: 0 | O37: 122482 | P37: 475575.19 | Q37: 0 | R37: 0 | S37: 74.24550259 | T37: 0 | U37: 25.75449741 | V37: 100
A38: Fennville Public Schools | B38: 03050 | C38: Allegan Area Educational Service Agency | D38: 03 | E38: LEA | F38: 06 | G38: 26 | H38: 080 | I38: Debt Service Funds | J38: 30 | K38: 0 | L38: 0 | M38: 0 | N38: 0 | O38: 4411.62 | P38: 4411.62 | Q38: 0 | R38: 0 | S38: 0 | T38: 0 | U38: 100 | V38: 100
A39: Fennville Public Schools | B39: 03050 | C39: Allegan Area Educational Service Agency | D39: 03 | E39: LEA | F39: 06 | G39: 26 | H39: 080 | I39: Capital Projects Fund | J39: 40 | K39: 0 | L39: 0 | M39: 0 | N39: 0 | O39: 476.13 | P39: 476.13 | Q39: 0 | R39: 0 | S39: 0 | T39: 0 | U39: 100 | V39: 100
A40: Fennville Public Schools | B40: 03050 | C40: Allegan Area Educational Service Agency | D40: 03 | E40: LEA | F40: 06 | G40: 26 | H40: 080 | I40: School Lunch Fund | J40: 25 | K40: 250936.8 | L40: 152859.96 | M40: 9994.43 | N40: 399342.32 | O40: 4566.18 | P40: 817699.69 | Q40: 30.68813686 | R40: 18.69389971 | S40: 1.222261684 | T40: 48.83728402 | U40: 0.5584177242 | V40: 100
A41: Fennville Public Schools | B41: 03050 | C41: Allegan Area Educational Service Agency | D41: 03 | E41: LEA | F41: 06 | G41: 26 | H41: 080 | I41: General Fund | J41: 11 | K41: 5753568.13 | L41: 3690247.63 | M41: 1772839.31 | N41: 827172.78 | O41: 133271.76 | P41: 12177099.61 | Q41: 47.24908488 | R41: 30.30481599 | S41: 14.5587978 | T41: 6.792855495 | U41: 1.094445839 | V41: 100
A42: Martin Public Schools | B42: 03060 | C42: Allegan Area Educational Service Agency | D42: 03 | E42: LEA | F42: 06 | G42: 26 | H42: 080 | I42: Debt Service Funds | J42: 30 | K42: 0 | L42: 0 | M42: 0 | N42: 0 | O42: 0 | P42: 0 | Q42: 0 | R42: 0 | S42: 0 | T42: 0 | U42: 0 | V42: 0
A43: Martin Public Schools | B43: 03060 | C43: Allegan Area Educational Service Agency | D43: 03 | E43: LEA | F43: 06 | G43: 26 | H43: 080 | I43: General Fund | J43: 11 | K43: 2446751.58 | L43: 1603000.49 | M43: 555515.16 | N43: 243101.89 | O43: 71977.1 | P43: 4920346.22 | Q43: 49.72722387 | R43: 32.57901819 | S43: 11.29016405 | T43: 4.940747645 | U43: 1.462846247 | V43: 100
A44: Martin Public Schools | B44: 03060 | C44: Allegan Area Educational Service Agency | D44: 03 | E44: LEA | F44: 06 | G44: 26 | H44: 080 | I44: School Lunch Fund | J44: 25 | K44: 62725.35 | L44: 21544.73 | M44: 32889.57 | N44: 96362.54 | O44: 4151.94 | P44: 217674.13 | Q44: 28.81617122 | R44: 9.897698913 | S44: 15.10954471 | T44: 44.26917429 | U44: 1.907410862 | V44: 100
A45: Hopkins Public Schools | B45: 03070 | C45: Allegan Area Educational Service Agency | D45: 03 | E45: LEA | F45: 06 | G45: 26 | H45: 080 | I45: Debt Service Funds | J45: 30 | K45: 0 | L45: 0 | M45: 0 | N45: 0 | O45: 0 | P45: 0 | Q45: 0 | R45: 0 | S45: 0 | T45: 0 | U45: 0 | V45: 0
A46: Hopkins Public Schools | B46: 03070 | C46: Allegan Area Educational Service Agency | D46: 03 | E46: LEA | F46: 06 | G46: 26 | H46: 080 | I46: School Lunch Fund | J46: 25 | K46: 162861.5 | L46: 77856.31 | M46: 42769.54 | N46: 282073.75 | O46: 69906.09 | P46: 635467.19 | Q46: 25.62862451 | R46: 12.25182216 | S46: 6.730408851 | T46: 44.38840501 | U46: 11.00073947 | V46: 100
A47: Hopkins Public Schools | B47: 03070 | C47: Allegan Area Educational Service Agency | D47: 03 | E47: LEA | F47: 06 | G47: 26 | H47: 080 | I47: General Fund | J47: 11 | K47: 6751373.91 | L47: 4583292 | M47: 1225862.15 | N47: 771266.53 | O47: 69447.17 | P47: 13401241.76 | Q47: 50.37871886 | R47: 34.20050233 | S47: 9.147377325 | T47: 5.755187048 | U47: 0.5182144405 | V47: 100
A48: Saugatuck Public Schools | B48: 03080 | C48: Ottawa Area ISD | D48: 70 | E48: LEA | F48: 06 | G48: 26 | H48: 080 | I48: School Lunch Fund | J48: 25 | K48: 63869.85 | L48: 39271.73 | M48: 32398.86 | N48: 115849.83 | O48: 6418.46 | P48: 257808.73 | Q48: 24.77412227 | R48: 15.23289378 | S48: 12.56701431 | T48: 44.93634874 | U48: 2.489620891 | V48: 100
A49: Saugatuck Public Schools | B49: 03080 | C49: Ottawa Area ISD | D49: 70 | E49: LEA | F49: 06 | G49: 26 | H49: 080 | I49: Capital Projects Fund | J49: 40 | K49: 0 | L49: 0 | M49: 25927.64 | N49: 0 | O49: 43.51 | P49: 25971.15 | Q49: 0 | R49: 0 | S49: 99.83246795 | T49: 0 | U49: 0.16753205 | V49: 100
A50: Saugatuck Public Schools | B50: 03080 | C50: Ottawa Area ISD | D50: 70 | E50: LEA | F50: 06 | G50: 26 | H50: 080 | I50: Debt Service Funds | J50: 30 | K50: 0 | L50: 0 | M50: 0 | N50: 0 | O50: 0 | P50: 0 | Q50: 0 | R50: 0 | S50: 0 | T50: 0 | U50: 0 | V50: 0
A51: Saugatuck Public Schools | B51: 03080 | C51: Ottawa Area ISD | D51: 70 | E51: LEA | F51: 06 | G51: 26 | H51: 080 | I51: General Fund | J51: 11 | K51: 4522790.52 | L51: 2813673.73 | M51: 965884.17 | N51: 401176.01 | O51: 66589.33 | P51: 8770113.76 | Q51: 51.57048864 | R51: 32.08252261 | S51: 11.01335965 | T51: 4.574353549 | U51: 0.7592755559 | V51: 100
A52: Saugatuck Public Schools | B52: 03080 | C52: Ottawa Area ISD | D52: 70 | E52: LEA | F52: 06 | G52: 26 | H52: 080 | I52: Community Service Fund | J52: 23 | K52: 62701.87 | L52: 40496.75 | M52: 31356.73 | N52: 23112.99 | O52: 0 | P52: 157668.34 | Q52: 39.76820584 | R52: 25.68476969 | S52: 19.88777836 | T52: 14.65924611 | U52: 0 | V52: 100
A53: Hamilton Community Schools | B53: 03100 | C53: Ottawa Area ISD | D53: 70 | E53: LEA | F53: 06 | G53: 26 | H53: 080 | I53: Trust Funds | J53: 50 | K53: 0 | L53: 0 | M53: 0 | N53: 0 | O53: 1000 | P53: 1000 | Q53: 0 | R53: 0 | S53: 0 | T53: 0 | U53: 100 | V53: 100
A54: Hamilton Community Schools | B54: 03100 | C54: Ottawa Area ISD | D54: 70 | E54: LEA | F54: 06 | G54: 26 | H54: 080 | I54: Capital Projects Fund | J54: 40 | K54: 0 | L54: 0 | M54: 0 | N54: 0 | O54: 0 | P54: 0 | Q54: 0 | R54: 0 | S54: 0 | T54: 0 | U54: 0 | V54: 0
A55: Hamilton Community Schools | B55: 03100 | C55: Ottawa Area ISD | D55: 70 | E55: LEA | F55: 06 | G55: 26 | H55: 080 | I55: School Lunch Fund | J55: 25 | K55: 276179.19 | L55: 129926.86 | M55: 5578.87 | N55: 433583.52 | O55: 18807.88 | P55: 864076.32 | Q55: 31.96236069 | R55: 15.03650279 | S55: 0.6456455143 | T55: 50.17884531 | U55: 2.176645693 | V55: 100
A56: Hamilton Community Schools | B56: 03100 | C56: Ottawa Area ISD | D56: 70 | E56: LEA | F56: 06 | G56: 26 | H56: 080 | I56: Debt Service Funds | J56: 30 | K56: 0 | L56: 0 | M56: 0 | N56: 0 | O56: 0 | P56: 0 | Q56: 0 | R56: 0 | S56: 0 | T56: 0 | U56: 0 | V56: 0
A57: Hamilton Community Schools | B57: 03100 | C57: Ottawa Area ISD | D57: 70 | E57: LEA | F57: 06 | G57: 26 | H57: 080 | I57: General Fund | J57: 11 | K57: 13081093.73 | L57: 8146020.85 | M57: 2481649.16 | N57: 1246555.51 | O57: 167418.04 | P57: 25122737.29 | Q57: 52.06874386 | R57: 32.42489366 | S57: 9.87810019 | T57: 4.961861821 | U57: 0.6664004725 | V57: 100
A58: Glenn Public School District | B58: 03440 | C58: Allegan Area Educational Service Agency | D58: 03 | E58: LEA | F58: 06 | G58: 26 | H58: 080 | I58: General Fund | J58: 11 | K58: 308394.58 | L58: 146598.13 | M58: 59596.98 | N58: 36686.72 | O58: 1837.76 | P58: 553114.17 | Q58: 55.756044 | R58: 26.50413566 | S58: 10.77480622 | T58: 6.632757212 | U58: 0.332256901 | V58: 100
A59: Innocademy Allegan Campus | B59: 03900 | C59: Allegan Area Educational Service Agency | D59: 03 | E59: PSA | F59: 06 | G59: 26 | H59: 080 | I59: General Fund | J59: 11 | K59: 0 | L59: 0 | M59: 369063 | N59: 63242.81 | O59: 2509.85 | P59: 434815.66 | Q59: 0 | R59: 0 | S59: 84.87803774 | T59: 14.54474064 | U59: 0.5772216208 | V59: 100
A60: Outlook Academy | B60: 03902 | C60: Allegan Area Educational Service Agency | D60: 03 | E60: PSA | F60: 06 | G60: 26 | H60: 080 | I60: General Fund | J60: 11 | K60: 452504.25 | L60: 244398.4 | M60: 114198.67 | N60: 27384.5 | O60: 920.31 | P60: 839406.13 | Q60: 53.90766565 | R60: 29.11563202 | S60: 13.60469812 | T60: 3.262365978 | U60: 0.1096382272 | V60: 100
A61: Alpena-Montmorency-Alcona ESD | B61: 04000 | C61: Alpena-Montmorency-Alcona ESD | D61: 04 | E61: ISD | F61: 01 | G61: 36 | H61: 106 | I61: Special Education Fund | J61: 22 | K61: 2656517.57 | L61: 1700814.32 | M61: 665945.42 | N61: 141484.87 | O61: 5883.05 | P61: 5170645.23 | Q61: 51.37690659 | R61: 32.89365726 | S61: 12.87934852 | T61: 2.736309758 | U61: 0.1137778698 | V61: 100
A62: Alpena-Montmorency-Alcona ESD | B62: 04000 | C62: Alpena-Montmorency-Alcona ESD | D62: 04 | E62: ISD | F62: 01 | G62: 36 | H62: 106 | I62: General Fund | J62: 11 | K62: 705120.09 | L62: 410438.51 | M62: 957716.47 | N62: 83699.71 | O62: 30023.59 | P62: 2186998.37 | Q62: 32.24145476 | R62: 18.76720695 | S62: 43.79136643 | T62: 3.827150086 | U62: 1.372821782 | V62: 100
A63: Alpena Public Schools | B63: 04010 | C63: Alpena-Montmorency-Alcona ESD | D63: 04 | E63: LEA | F63: 01 | G63: 36 | H63: 106 | I63: Trust Funds | J63: 50 | K63: 0 | L63: 0 | M63: 0 | N63: 0 | O63: 5500 | P63: 5500 | Q63: 0 | R63: 0 | S63: 0 | T63: 0 | U63: 100 | V63: 100
A64: Alpena Public Schools | B64: 04010 | C64: Alpena-Montmorency-Alcona ESD | D64: 04 | E64: LEA | F64: 01 | G64: 36 | H64: 106 | I64: School Lunch Fund | J64: 25 | K64: 507848.97 | L64: 409347.69 | M64: 240944.05 | N64: 1152573.3 | O64: 0 | P64: 2310714.01 | Q64: 21.9780106 | R64: 17.71520354 | S64: 10.42725534 | T64: 49.87953053 | U64: 0 | V64: 100
A65: Alpena Public Schools | B65: 04010 | C65: Alpena-Montmorency-Alcona ESD | D65: 04 | E65: LEA | F65: 01 | G65: 36 | H65: 106 | I65: Debt Service Funds | J65: 30 | K65: 0 | L65: 0 | M65: 0 | N65: 0 | O65: 5697.26 | P65: 5697.26 | Q65: 0 | R65: 0 | S65: 0 | T65: 0 | U65: 100 | V65: 100
A66: Alpena Public Schools | B66: 04010 | C66: Alpena-Montmorency-Alcona ESD | D66: 04 | E66: LEA | F66: 01 | G66: 36 | H66: 106 | I66: General Fund | J66: 11 | K66: 17616183.73 | L66: 11152220.35 | M66: 2754656.54 | N66: 1766308.56 | O66: 183913.82 | P66: 33473283 | Q66: 52.62759476 | R66: 33.31678088 | S66: 8.229418489 | T66: 5.276771209 | U66: 0.5494346641 | V66: 100
A67: Alpena Public Schools | B67: 04010 | C67: Alpena-Montmorency-Alcona ESD | D67: 04 | E67: LEA | F67: 01 | G67: 36 | H67: 106 | I67: Capital Projects Fund | J67: 40 | K67: 10487.8 | L67: 4478.05 | M67: 56095.8 | N67: 31547.44 | O67: 0 | P67: 102609.09 | Q67: 10.22112174 | R67: 4.364184499 | S67: 54.66942549 | T67: 30.74526828 | U67: 0 | V67: 100
A68: Bingham Arts Academy | B68: 04901 | C68: Alpena-Montmorency-Alcona ESD | D68: 04 | E68: PSA | F68: 01 | G68: 36 | H68: 106 | I68: General Fund | J68: 11 | K68: 0 | L68: 0 | M68: 1033471.54 | N68: 64199.11 | O68: 439.88 | P68: 1098110.53 | Q68: 0 | R68: 0 | S68: 94.11361714 | T68: 5.84632496 | U68: 0.0400578984 | V68: 100
A69: Bingham Arts Academy | B69: 04901 | C69: Alpena-Montmorency-Alcona ESD | D69: 04 | E69: PSA | F69: 01 | G69: 36 | H69: 106 | I69: School Lunch Fund | J69: 25 | K69: 0 | L69: 0 | M69: 2505.61 | N69: 57872.46 | O69: 242 | P69: 60620.07 | Q69: 0 | R69: 0 | S69: 4.133301067 | T69: 95.46749121 | U69: 0.3992077211 | V69: 100
A70: Bingham Arts Academy | B70: 04901 | C70: Alpena-Montmorency-Alcona ESD | D70: 04 | E70: PSA | F70: 01 | G70: 36 | H70: 106 | I70: Community Service Fund | J70: 23 | K70: 0 | L70: 0 | M70: 4857.28 | N70: 0 | O70: 0 | P70: 4857.28 | Q70: 0 | R70: 0 | S70: 100 | T70: 0 | U70: 0 | V70: 100
A71: Alba Public Schools | B71: 05010 | C71: Traverse Bay Area ISD | D71: 28 | E71: LEA | F71: 01 | G71: 37 | H71: 105 | I71: Capital Projects Fund | J71: 40 | K71: 0 | L71: 0 | M71: 0 | N71: 0 | O71: 10.78 | P71: 10.78 | Q71: 0 | R71: 0 | S71: 0 | T71: 0 | U71: 100 | V71: 100
A72: Alba Public Schools | B72: 05010 | C72: Traverse Bay Area ISD | D72: 28 | E72: LEA | F72: 01 | G72: 37 | H72: 105 | I72: School Lunch Fund | J72: 25 | K72: 19823.82 | L72: 8299.77 | M72: 1169.75 | N72: 48841.74 | O72: 0 | P72: 78135.08 | Q72: 25.3712161 | R72: 10.62233506 | S72: 1.49708684 | T72: 62.50936199 | U72: 0 | V72: 100
A73: Alba Public Schools | B73: 05010 | C73: Traverse Bay Area ISD | D73: 28 | E73: LEA | F73: 01 | G73: 37 | H73: 105 | I73: Debt Service Funds | J73: 30 | K73: 0 | L73: 0 | M73: 0 | N73: 0 | O73: 560.84 | P73: 560.84 | Q73: 0 | R73: 0 | S73: 0 | T73: 0 | U73: 100 | V73: 100
A74: Alba Public Schools | B74: 05010 | C74: Traverse Bay Area ISD | D74: 28 | E74: LEA | F74: 01 | G74: 37 | H74: 105 | I74: General Fund | J74: 11 | K74: 717676.49 | L74: 478449.96 | M74: 175199.97 | N74: 118241.18 | O74: 10326.7 | P74: 1499894.3 | Q74: 47.84847106 | R74: 31.89891181 | S74: 11.68082111 | T74: 7.883300843 | U74: 0.6884951826 | V74: 100
A75: Central Lake Public Schools | B75: 05035 | C75: Charlevoix-Emmet ISD | D75: 15 | E75: LEA | F75: 01 | G75: 37 | H75: 105 | I75: Capital Projects Fund | J75: 40 | K75: 0 | L75: 0 | M75: 1000 | N75: 0 | O75: 159.12 | P75: 1159.12 | Q75: 0 | R75: 0 | S75: 86.27234454 | T75: 0 | U75: 13.72765546 | V75: 100
A76: Central Lake Public Schools | B76: 05035 | C76: Charlevoix-Emmet ISD | D76: 15 | E76: LEA | F76: 01 | G76: 37 | H76: 105 | I76: School Lunch Fund | J76: 25 | K76: 43401.21 | L76: 28504.98 | M76: 7328.58 | N76: 100291.73 | O76: 2451.7 | P76: 181978.2 | Q76: 23.8496754 | R76: 15.66395315 | S76: 4.027174684 | T76: 55.11194748 | U76: 1.347249286 | V76: 100
A77: Central Lake Public Schools | B77: 05035 | C77: Charlevoix-Emmet ISD | D77: 15 | E77: LEA | F77: 01 | G77: 37 | H77: 105 | I77: General Fund | J77: 11 | K77: 1903448.87 | L77: 1259212.91 | M77: 288302.23 | N77: 213946.7 | O77: 54945.34 | P77: 3719856.05 | Q77: 51.16996046 | R77: 33.85111932 | S77: 7.750359856 | T77: 5.751477937 | U77: 1.477082426 | V77: 100
A78: Bellaire Public Schools | B78: 05040 | C78: Traverse Bay Area ISD | D78: 28 | E78: LEA | F78: 01 | G78: 37 | H78: 105 | I78: Debt Service Funds | J78: 30 | K78: 0 | L78: 0 | M78: 0 | N78: 0 | O78: 2122.11 | P78: 2122.11 | Q78: 0 | R78: 0 | S78: 0 | T78: 0 | U78: 100 | V78: 100
A79: Bellaire Public Schools | B79: 05040 | C79: Traverse Bay Area ISD | D79: 28 | E79: LEA | F79: 01 | G79: 37 | H79: 105 | I79: School Lunch Fund | J79: 25 | K79: 0 | L79: 0 | M79: 155133.46 | N79: 11676.48 | O79: 3128.45 | P79: 169938.39 | Q79: 0 | R79: 0 | S79: 91.28806034 | T79: 6.871007781 | U79: 1.840931881 | V79: 100
A80: Bellaire Public Schools | B80: 05040 | C80: Traverse Bay Area ISD | D80: 28 | E80: LEA | F80: 01 | G80: 37 | H80: 105 | I80: General Fund | J80: 11 | K80: 1704905.24 | L80: 1084587.61 | M80: 728370.96 | N80: 303002.96 | O80: 28125.27 | P80: 3848992.04 | Q80: 44.29484972 | R80: 28.1784841 | S80: 18.9236806 | T80: 7.872267774 | U80: 0.7307178011 | V80: 100
A81: Elk Rapids Schools | B81: 05060 | C81: Traverse Bay Area ISD | D81: 28 | E81: LEA | F81: 01 | G81: 37 | H81: 105 | I81: Capital Projects Fund | J81: 40 | K81: 0 | L81: 0 | M81: 41.33 | N81: 0 | O81: 133.02 | P81: 174.35 | Q81: 0 | R81: 0 | S81: 23.70519071 | T81: 0 | U81: 76.29480929 | V81: 100
A82: Elk Rapids Schools | B82: 05060 | C82: Traverse Bay Area ISD | D82: 28 | E82: LEA | F82: 01 | G82: 37 | H82: 105 | I82: Community Service Fund | J82: 23 | K82: 149595.92 | L82: 62362.57 | M82: 125.82 | N82: 13584.53 | O82: 4045.51 | P82: 229714.35 | Q82: 65.12258377 | R82: 27.14787735 | S82: 0.0547723727 | T82: 5.913661902 | U82: 1.761104607 | V82: 100
A83: Elk Rapids Schools | B83: 05060 | C83: Traverse Bay Area ISD | D83: 28 | E83: LEA | F83: 01 | G83: 37 | H83: 105 | I83: Athletic Fund | J83: 21 | K83: 127176.25 | L83: 51897.76 | M83: 26725.6 | N83: 3027.29 | O83: 57571.66 | P83: 266398.56 | Q83: 47.73909063 | R83: 19.48124645 | S83: 10.03218636 | T83: 1.136376263 | U83: 21.6111003 | V83: 100
A84: Elk Rapids Schools | B84: 05060 | C84: Traverse Bay Area ISD | D84: 28 | E84: LEA | F84: 01 | G84: 37 | H84: 105 | I84: Debt Service Funds | J84: 30 | K84: 0 | L84: 0 | M84: 0 | N84: 0 | O84: 115.48 | P84: 115.48 | Q84: 0 | R84: 0 | S84: 0 | T84: 0 | U84: 100 | V84: 100
A85: Elk Rapids Schools | B85: 05060 | C85: Traverse Bay Area ISD | D85: 28 | E85: LEA | F85: 01 | G85: 37 | H85: 105 | I85: General Fund | J85: 11 | K85: 5979772.75 | L85: 3754615.97 | M85: 837278.39 | N85: 669200.67 | O85: 249698.63 | P85: 11490566.41 | Q85: 52.04071354 | R85: 32.67563875 | S85: 7.286658987 | T85: 5.823913688 | U85: 2.173075035 | V85: 100
A86: Elk Rapids Schools | B86: 05060 | C86: Traverse Bay Area ISD | D86: 28 | E86: LEA | F86: 01 | G86: 37 | H86: 105 | I86: School Lunch Fund | J86: 25 | K86: 150821.41 | L86: 96088.77 | M86: 2654.23 | N86: 220966.11 | O86: 7381.69 | P86: 477912.21 | Q86: 31.55839228 | R86: 20.10594582 | S86: 0.5553802444 | T86: 46.23571137 | U86: 1.544570288 | V86: 100
A87: Ellsworth Community School | B87: 05065 | C87: Charlevoix-Emmet ISD | D87: 15 | E87: LEA | F87: 01 | G87: 37 | H87: 105 | I87: General Fund | J87: 11 | K87: 1069888.24 | L87: 674756.44 | M87: 302461.39 | N87: 226772.81 | O87: 17538.48 | P87: 2291417.36 | Q87: 46.69111174 | R87: 29.44712089 | S87: 13.19975118 | T87: 9.896617437 | U87: 0.7653987574 | V87: 100
A88: Ellsworth Community School | B88: 05065 | C88: Charlevoix-Emmet ISD | D88: 15 | E88: LEA | F88: 01 | G88: 37 | H88: 105 | I88: Capital Projects Fund | J88: 40 | K88: 0 | L88: 0 | M88: 3044.59 | N88: 0 | O88: 14040 | P88: 17084.59 | Q88: 0 | R88: 0 | S88: 17.82067934 | T88: 0 | U88: 82.17932066 | V88: 100
A89: Ellsworth Community School | B89: 05065 | C89: Charlevoix-Emmet ISD | D89: 15 | E89: LEA | F89: 01 | G89: 37 | H89: 105 | I89: School Lunch Fund | J89: 25 | K89: 2595.47 | L89: 1485.99 | M89: 42183.65 | N89: 66088.08 | O89: 3645.42 | P89: 115998.61 | Q89: 2.237500949 | R89: 1.281041212 | S89: 36.36565128 | T89: 56.97316545 | U89: 3.142641106 | V89: 100
A90: Mancelona Public Schools | B90: 05070 | C90: Traverse Bay Area ISD | D90: 28 | E90: LEA | F90: 01 | G90: 37 | H90: 105 | I90: Debt Service Funds | J90: 30 | K90: 0 | L90: 0 | M90: 0 | N90: 0 | O90: 1279.3 | P90: 1279.3 | Q90: 0 | R90: 0 | S90: 0 | T90: 0 | U90: 100 | V90: 100
A91: Mancelona Public Schools | B91: 05070 | C91: Traverse Bay Area ISD | D91: 28 | E91: LEA | F91: 01 | G91: 37 | H91: 105 | I91: General Fund | J91: 11 | K91: 4145403.11 | L91: 2907335.14 | M91: 1062099.34 | N91: 736584.38 | O91: 48646.32 | P91: 8900068.29 | Q91: 46.57720564 | R91: 32.66643632 | S91: 11.93360888 | T91: 8.276165485 | U91: 0.5465836712 | V91: 100
A92: Mancelona Public Schools | B92: 05070 | C92: Traverse Bay Area ISD | D92: 28 | E92: LEA | F92: 01 | G92: 37 | H92: 105 | I92: Community Service Fund | J92: 23 | K92: 23041.47 | L92: 16016.14 | M92: 197380.04 | N92: 4767.06 | O92: 8773.78 | P92: 249978.49 | Q92: 9.217381063 | R92: 6.407007259 | S92: 78.95880962 | T92: 1.906988077 | U92: 3.509813984 | V92: 100
A93: Mancelona Public Schools | B93: 05070 | C93: Traverse Bay Area ISD | D93: 28 | E93: LEA | F93: 01 | G93: 37 | H93: 105 | I93: School Lunch Fund | J93: 25 | K93: 0 | L93: 0 | M93: 385746.7 | N93: 362722.89 | O93: 5729.88 | P93: 754199.47 | Q93: 0 | R93: 0 | S93: 51.14650903 | T93: 48.09376092 | U93: 0.7597300486 | V93: 100
A94: Mancelona Public Schools | B94: 05070 | C94: Traverse Bay Area ISD | D94: 28 | E94: LEA | F94: 01 | G94: 37 | H94: 105 | I94: Capital Projects Fund | J94: 40 | K94: 0 | L94: 0 | M94: 127276.45 | N94: 0 | O94: 236.98 | P94: 127513.43 | Q94: 0 | R94: 0 | S94: 99.81415291 | T94: 0 | U94: 0.1858470908 | V94: 100
A95: Arenac Eastern School District | B95: 06010 | C95: Bay-Arenac ISD | D95: 09 | E95: LEA | F95: 05 | G95: 36 | H95: 097 | I95: School Lunch Fund | J95: 25 | K95: 0 | L95: 0 | M95: 72877.07 | N95: 53869.32 | O95: 0 | P95: 126746.39 | Q95: 0 | R95: 0 | S95: 57.49833979 | T95: 42.50166021 | U95: 0 | V95: 100
A96: Arenac Eastern School District | B96: 06010 | C96: Bay-Arenac ISD | D96: 09 | E96: LEA | F96: 05 | G96: 36 | H96: 097 | I96: General Fund | J96: 11 | K96: 889393.72 | L96: 567701.82 | M96: 323143.15 | N96: 187847.44 | O96: 17932.86 | P96: 1986018.99 | Q96: 44.78273997 | R96: 28.58491398 | S96: 16.2708993 | T96: 9.458491633 | U96: 0.9029551122 | V96: 100
A97: Arenac Eastern School District | B97: 06010 | C97: Bay-Arenac ISD | D97: 09 | E97: LEA | F97: 05 | G97: 36 | H97: 097 | I97: Debt Service Funds | J97: 30 | K97: 0 | L97: 0 | M97: 50 | N97: 0 | O97: 0 | P97: 50 | Q97: 0 | R97: 0 | S97: 100 | T97: 0 | U97: 0 | V97: 100
A98: Au Gres-Sims School District | B98: 06020 | C98: Bay-Arenac ISD | D98: 09 | E98: LEA | F98: 05 | G98: 36 | H98: 097 | I98: School Lunch Fund | J98: 25 | K98: 53494.35 | L98: 37528.96 | M98: 26948.52 | N98: 120186.3 | O98: 1739 | P98: 239897.13 | Q98: 22.29887035 | R98: 15.64377198 | S98: 11.2333649 | T98: 50.09909873 | U98: 0.724894041 | V98: 100
A99: Au Gres-Sims School District | B99: 06020 | C99: Bay-Arenac ISD | D99: 09 | E99: LEA | F99: 05 | G99: 36 | H99: 097 | I99: Debt Service Funds | J99: 30 | K99: 0 | L99: 0 | M99: 0 | N99: 0 | O99: 5073.77 | P99: 5073.77 | Q99: 0 | R99: 0 | S99: 0 | T99: 0 | U99: 100 | V99: 100
A100: Au Gres-Sims School District | B100: 06020 | C100: Bay-Arenac ISD | D100: 09 | E100: LEA | F100: 05 | G100: 36 | H100: 097 | I100: General Fund | J100: 11 | K100: 1619219.2 | L100: 1110378.19 | M100: 539961.03 | N100: 207635.72 | O100: 20908.76 | P100: 3498102.9 | Q100: 46.2884954 | R100: 31.74229637 | S100: 15.43582466 | T100: 5.935666444 | U100: 0.5977171226 | V100: 100
A101: Standish-Sterling Community Schools | B101: 06050 | C101: Bay-Arenac ISD | D101: 09 | E101: LEA | F101: 05 | G101: 36 | H101: 097 | I101: Debt Service Funds | J101: 30 | K101: 0 | L101: 0 | M101: 0 | N101: 0 | O101: 9110.46 | P101: 9110.46 | Q101: 0 | R101: 0 | S101: 0 | T101: 0 | U101: 100 | V101: 100
A102: Standish-Sterling Community Schools | B102: 06050 | C102: Bay-Arenac ISD | D102: 09 | E102: LEA | F102: 05 | G102: 36 | H102: 097 | I102: General Fund | J102: 11 | K102: 7429861.79 | L102: 5005530.89 | M102: 964096.1 | N102: 1045618.48 | O102: 64118.51 | P102: 14509225.77 | Q102: 51.20784464 | R102: 34.49895239 | S102: 6.644710857 | T102: 7.206576675 | U102: 0.4419154476 | V102: 100
A103: Standish-Sterling Community Schools | B103: 06050 | C103: Bay-Arenac ISD | D103: 09 | E103: LEA | F103: 05 | G103: 36 | H103: 097 | I103: School Lunch Fund | J103: 25 | K103: 239032.02 | L103: 108975.04 | M103: 479155.4 | N103: 92579.72 | O103: 0 | P103: 919742.18 | Q103: 25.98902445 | R103: 11.84843344 | S103: 52.09670823 | T103: 10.06583388 | U103: 0 | V103: 100
A104: Arvon Township School District | B104: 07010 | C104: Copper Country ISD | D104: 31 | E104: LEA | F104: 01 | G104: 38 | H104: 110 | I104: School Lunch Fund | J104: 25 | K104: 0 | L104: 0 | M104: 4600 | N104: 841 | O104: 0 | P104: 5441 | Q104: 0 | R104: 0 | S104: 84.54328249 | T104: 15.45671751 | U104: 0 | V104: 100
A105: Arvon Township School District | B105: 07010 | C105: Copper Country ISD | D105: 31 | E105: LEA | F105: 01 | G105: 38 | H105: 110 | I105: General Fund | J105: 11 | K105: 113804 | L105: 66725 | M105: 105322 | N105: 31224 | O105: 3492 | P105: 320567 | Q105: 35.50084694 | R105: 20.81468149 | S105: 32.85491021 | T105: 9.74024151 | U105: 1.089319861 | V105: 100
A106: Baraga Area Schools | B106: 07020 | C106: Copper Country ISD | D106: 31 | E106: LEA | F106: 01 | G106: 38 | H106: 110 | I106: School Lunch Fund | J106: 25 | K106: 61102.14 | L106: 69782.67 | M106: 2141.6 | N106: 118063.11 | O106: 628.02 | P106: 251717.54 | Q106: 24.27408912 | R106: 27.72260924 | S106: 0.8507949029 | T106: 46.9030128 | U106: 0.2494939367 | V106: 100
A107: Baraga Area Schools | B107: 07020 | C107: Copper Country ISD | D107: 31 | E107: LEA | F107: 01 | G107: 38 | H107: 110 | I107: General Fund | J107: 11 | K107: 2449476.66 | L107: 1714581.44 | M107: 398151.13 | N107: 301950.26 | O107: 25716.96 | P107: 4889876.45 | Q107: 50.09281288 | R107: 35.06390105 | S107: 8.142355621 | T107: 6.17500796 | U107: 0.5259224903 | V107: 100
A108: Baraga Area Schools | B108: 07020 | C108: Copper Country ISD | D108: 31 | E108: LEA | F108: 01 | G108: 38 | H108: 110 | I108: Debt Service Funds | J108: 30 | K108: 0 | L108: 0 | M108: 0 | N108: 0 | O108: 7162.98 | P108: 7162.98 | Q108: 0 | R108: 0 | S108: 0 | T108: 0 | U108: 100 | V108: 100
A109: L'Anse Area Schools | B109: 07040 | C109: Copper Country ISD | D109: 31 | E109: LEA | F109: 01 | G109: 38 | H109: 110 | I109: Capital Projects Fund | J109: 40 | K109: 0 | L109: 0 | M109: 0 | N109: 0 | O109: 0 | P109: 0 | Q109: 0 | R109: 0 | S109: 0 | T109: 0 | U109: 0 | V109: 0
A110: L'Anse Area Schools | B110: 07040 | C110: Copper Country ISD | D110: 31 | E110: LEA | F110: 01 | G110: 38 | H110: 110 | I110: School Lunch Fund | J110: 25 | K110: 87305.95 | L110: 50255.28 | M110: 3718.41 | N110: 163412.64 | O110: 5191.23 | P110: 309883.51 | Q110: 28.17379666 | R110: 16.21747475 | S110: 1.199938002 | T110: 52.73357075 | U110: 1.675219827 | V110: 100
A111: L'Anse Area Schools | B111: 07040 | C111: Copper Country ISD | D111: 31 | E111: LEA | F111: 01 | G111: 38 | H111: 110 | I111: Debt Service Funds | J111: 30 | K111: 0 | L111: 0 | M111: 0 | N111: 0 | O111: 0 | P111: 0 | Q111: 0 | R111: 0 | S111: 0 | T111: 0 | U111: 0 | V111: 0
A112: L'Anse Area Schools | B112: 07040 | C112: Copper Country ISD | D112: 31 | E112: LEA | F112: 01 | G112: 38 | H112: 110 | I112: General Fund | J112: 11 | K112: 3053430.47 | L112: 1922455.64 | M112: 812265.06 | N112: 433078.11 | O112: 42952.2 | P112: 6264181.48 | Q112: 48.74428494 | R112: 30.68965428 | S112: 12.96681877 | T112: 6.913562632 | U112: 0.6856793683 | V112: 100
A113: Barry ISD | B113: 08000 | C113: Barry ISD | D113: 08 | E113: ISD | F113: 03 | G113: 19 | H113: 087 | I113: General Fund | J113: 11 | K113: 675708.97 | L113: 358954.19 | M113: 388414.27 | N113: 40696.78 | O113: 34529.42 | P113: 1498303.63 | Q113: 45.0982669 | R113: 23.95737305 | S113: 25.92360201 | T113: 2.716190443 | U113: 2.3045676 | V113: 100
A114: Barry ISD | B114: 08000 | C114: Barry ISD | D114: 08 | E114: ISD | F114: 03 | G114: 19 | H114: 087 | I114: Trust Funds | J114: 50 | K114: 0 | L114: 0 | M114: 0 | N114: 0 | O114: 5644.96 | P114: 5644.96 | Q114: 0 | R114: 0 | S114: 0 | T114: 0 | U114: 100 | V114: 100
A115: Barry ISD | B115: 08000 | C115: Barry ISD | D115: 08 | E115: ISD | F115: 03 | G115: 19 | H115: 087 | I115: Special Education Fund | J115: 22 | K115: 2047048.52 | L115: 1360949.76 | M115: 324726.21 | N115: 104807.16 | O115: 6191.28 | P115: 3843722.93 | Q115: 53.25692193 | R115: 35.40707238 | S115: 8.448221058 | T115: 2.726709545 | U115: 0.1610750856 | V115: 100
A116: Delton Kellogg Schools | B116: 08010 | C116: Barry ISD | D116: 08 | E116: LEA | F116: 03 | G116: 19 | H116: 087 | I116: School Lunch Fund | J116: 25 | K116: 221499.54 | L116: 92780.59 | M116: 28030.08 | N116: 259495.23 | O116: 5926.6 | P116: 607732.04 | Q116: 36.44690841 | R116: 15.26669385 | S116: 4.612243251 | T116: 42.69895495 | U116: 0.9751995304 | V116: 100
A117: Delton Kellogg Schools | B117: 08010 | C117: Barry ISD | D117: 08 | E117: LEA | F117: 03 | G117: 19 | H117: 087 | I117: Capital Projects Fund | J117: 40 | K117: 0 | L117: 0 | M117: 504219.14 | N117: 0 | O117: 0 | P117: 504219.14 | Q117: 0 | R117: 0 | S117: 100 | T117: 0 | U117: 0 | V117: 100
A118: Delton Kellogg Schools | B118: 08010 | C118: Barry ISD | D118: 08 | E118: LEA | F118: 03 | G118: 19 | H118: 087 | I118: General Fund | J118: 11 | K118: 5655321.58 | L118: 3737433.09 | M118: 1296040.53 | N118: 683983.2 | O118: 84053.35 | P118: 11456831.75 | Q118: 49.36200255 | R118: 32.62187288 | S118: 11.31238163 | T118: 5.970090291 | U118: 0.7336526523 | V118: 100
A119: Delton Kellogg Schools | B119: 08010 | C119: Barry ISD | D119: 08 | E119: LEA | F119: 03 | G119: 19 | H119: 087 | I119: Debt Service Funds | J119: 30 | K119: 0 | L119: 0 | M119: 0 | N119: 0 | O119: 24.1 | P119: 24.1 | Q119: 0 | R119: 0 | S119: 0 | T119: 0 | U119: 100 | V119: 100
A120: Hastings Area School District | B120: 08030 | C120: Barry ISD | D120: 08 | E120: LEA | F120: 03 | G120: 19 | H120: 087 | I120: Debt Service Funds | J120: 30 | K120: 0 | L120: 0 | M120: 0 | N120: 0 | O120: 0 | P120: 0 | Q120: 0 | R120: 0 | S120: 0 | T120: 0 | U120: 0 | V120: 0
A121: Hastings Area School District | B121: 08030 | C121: Barry ISD | D121: 08 | E121: LEA | F121: 03 | G121: 19 | H121: 087 | I121: Community Service Fund | J121: 23 | K121: 63844.36 | L121: 30845.36 | M121: 525252.54 | N121: 20550.61 | O121: 1101 | P121: 641593.87 | Q121: 9.950899313 | R121: 4.807614512 | S121: 81.86682644 | T121: 3.203055852 | U121: 0.1716038839 | V121: 100
A122: Hastings Area School District | B122: 08030 | C122: Barry ISD | D122: 08 | E122: LEA | F122: 03 | G122: 19 | H122: 087 | I122: General Fund | J122: 11 | K122: 11268040.12 | L122: 6993084 | M122: 2649738.42 | N122: 1380642.47 | O122: 158157.55 | P122: 22449662.56 | Q122: 50.19246989 | R122: 31.15006286 | S122: 11.80302115 | T122: 6.149947539 | U122: 0.7044985624 | V122: 100
A123: Hastings Area School District | B123: 08030 | C123: Barry ISD | D123: 08 | E123: LEA | F123: 03 | G123: 19 | H123: 087 | I123: School Lunch Fund | J123: 25 | K123: 364812.16 | L123: 193633.34 | M123: 21123.5 | N123: 403362.13 | O123: 10799.45 | P123: 993730.58 | Q123: 36.71137503 | R123: 19.48549676 | S123: 2.12567676 | T123: 40.5906931 | U123: 1.086758344 | V123: 100
A124: Thornapple Kellogg School District | B124: 08050 | C124: Kent ISD | D124: 41 | E124: LEA | F124: 03 | G124: 19 | H124: 087 | I124: School Lunch Fund | J124: 25 | K124: 298890.3 | L124: 166897.5 | M124: 63072.41 | N124: 362359.3 | O124: 4056.36 | P124: 895275.87 | Q124: 33.38527375 | R124: 18.64201925 | S124: 7.045025127 | T124: 40.47459695 | U124: 0.4530849245 | V124: 100
A125: Thornapple Kellogg School District | B125: 08050 | C125: Kent ISD | D125: 41 | E125: LEA | F125: 03 | G125: 19 | H125: 087 | I125: General Fund | J125: 11 | K125: 13963300.97 | L125: 9205139.95 | M125: 2635449.96 | N125: 1296381.36 | O125: 101508.27 | P125: 27201780.51 | Q125: 51.33230512 | R125: 33.84021111 | S125: 9.688520055 | T125: 4.765795973 | U125: 0.3731677416 | V125: 100
A126: Thornapple Kellogg School District | B126: 08050 | C126: Kent ISD | D126: 41 | E126: LEA | F126: 03 | G126: 19 | H126: 087 | I126: Debt Service Funds | J126: 30 | K126: 0 | L126: 0 | M126: 0 | N126: 0 | O126: 0 | P126: 0 | Q126: 0 | R126: 0 | S126: 0 | T126: 0 | U126: 0 | V126: 0
A127: Thornapple Kellogg School District | B127: 08050 | C127: Kent ISD | D127: 41 | E127: LEA | F127: 03 | G127: 19 | H127: 087 | I127: Community Service Fund | J127: 23 | K127: 13746.9 | L127: 4542.06 | M127: 16143.04 | N127: 2567.53 | O127: 0 | P127: 36999.53 | Q127: 37.15425574 | R127: 12.27599378 | S127: 43.63039206 | T127: 6.939358419 | U127: 0 | V127: 100
A128: Thornapple Kellogg School District | B128: 08050 | C128: Kent ISD | D128: 41 | E128: LEA | F128: 03 | G128: 19 | H128: 087 | I128: Capital Projects Fund | J128: 40 | K128: 0 | L128: 0 | M128: 19020.05 | N128: 0 | O128: 1213.48 | P128: 20233.53 | Q128: 0 | R128: 0 | S128: 94.00262831 | T128: 0 | U128: 5.99737169 | V128: 100
A129: Bay-Arenac ISD | B129: 09000 | C129: Bay-Arenac ISD | D129: 09 | E129: ISD | F129: 05 | G129: 31 | H129: 096 | I129: Debt Service Funds | J129: 30 | K129: 0 | L129: 0 | M129: 0 | N129: 0 | O129: 0 | P129: 0 | Q129: 0 | R129: 0 | S129: 0 | T129: 0 | U129: 0 | V129: 0
A130: Bay-Arenac ISD | B130: 09000 | C130: Bay-Arenac ISD | D130: 09 | E130: ISD | F130: 05 | G130: 31 | H130: 096 | I130: Vocational Education Fund | J130: 26 | K130: 3896706.53 | L130: 2624468.33 | M130: 723669.3 | N130: 1249024.01 | O130: 160300.29 | P130: 8654168.46 | Q130: 45.0269318 | R130: 30.32606012 | S130: 8.36208936 | T130: 14.43262881 | U130: 1.852289919 | V130: 100
A131: Bay-Arenac ISD | B131: 09000 | C131: Bay-Arenac ISD | D131: 09 | E131: ISD | F131: 05 | G131: 31 | H131: 096 | I131: General Fund | J131: 11 | K131: 1339025.05 | L131: 833974.08 | M131: 1557036.57 | N131: 442159.61 | O131: 32282.61 | P131: 4204477.92 | Q131: 31.84759381 | R131: 19.8353778 | S131: 37.03281595 | T131: 10.51639748 | U131: 0.7678149491 | V131: 100
A132: Bay-Arenac ISD | B132: 09000 | C132: Bay-Arenac ISD | D132: 09 | E132: ISD | F132: 05 | G132: 31 | H132: 096 | I132: Special Education Fund | J132: 22 | K132: 12428977.01 | L132: 8237053.4 | M132: 1962449.81 | N132: 246814.82 | O132: 48729.35 | P132: 22924024.39 | Q132: 54.21812854 | R132: 35.93196927 | S132: 8.560668828 | T132: 1.076664445 | U132: 0.2125689153 | V132: 100
A133: Bay-Arenac ISD | B133: 09000 | C133: Bay-Arenac ISD | D133: 09 | E133: ISD | F133: 05 | G133: 31 | H133: 096 | I133: Trust Funds | J133: 50 | K133: 0 | L133: 0 | M133: 7164.39 | N133: 0 | O133: 0 | P133: 7164.39 | Q133: 0 | R133: 0 | S133: 100 | T133: 0 | U133: 0 | V133: 100
A134: Bay City School District | B134: 09010 | C134: Bay-Arenac ISD | D134: 09 | E134: LEA | F134: 05 | G134: 31 | H134: 096 | I134: Community Service Fund | J134: 23 | K134: 691877.25 | L134: 269926.78 | M134: 52164 | N134: 65544.19 | O134: 0 | P134: 1079512.22 | Q134: 64.09165521 | R134: 25.00451361 | S134: 4.832182446 | T134: 6.07164873 | U134: 0 | V134: 100
A135: Bay City School District | B135: 09010 | C135: Bay-Arenac ISD | D135: 09 | E135: LEA | F135: 05 | G135: 31 | H135: 096 | I135: Debt Service Funds | J135: 30 | K135: 0 | L135: 0 | M135: 0 | N135: 0 | O135: 6953.63 | P135: 6953.63 | Q135: 0 | R135: 0 | S135: 0 | T135: 0 | U135: 100 | V135: 100
A136: Bay City School District | B136: 09010 | C136: Bay-Arenac ISD | D136: 09 | E136: LEA | F136: 05 | G136: 31 | H136: 096 | I136: School Lunch Fund | J136: 25 | K136: 794204.36 | L136: 587878.06 | M136: 36391.45 | N136: 1861722.91 | O136: 12003.73 | P136: 3292200.51 | Q136: 24.12381499 | R136: 17.85669063 | S136: 1.105383767 | T136: 56.54949947 | U136: 0.3646111458 | V136: 100
A137: Bay City School District | B137: 09010 | C137: Bay-Arenac ISD | D137: 09 | E137: LEA | F137: 05 | G137: 31 | H137: 096 | I137: General Fund | J137: 11 | K137: 38343036.78 | L137: 22417545.99 | M137: 3384096.02 | N137: 4021706.31 | O137: 118593.71 | P137: 68284978.81 | Q137: 56.15149547 | R137: 32.82939584 | S137: 4.955842528 | T137: 5.889591503 | U137: 0.1736746676 | V137: 100
A138: Bay City School District | B138: 09010 | C138: Bay-Arenac ISD | D138: 09 | E138: LEA | F138: 05 | G138: 31 | H138: 096 | I138: Capital Projects Fund | J138: 40 | K138: 0 | L138: 0 | M138: 74774.64 | N138: 0 | O138: 894.65 | P138: 75669.29 | Q138: 0 | R138: 0 | S138: 98.81768416 | T138: 0 | U138: 1.182315838 | V138: 100
A139: Bay City School District | B139: 09010 | C139: Bay-Arenac ISD | D139: 09 | E139: LEA | F139: 05 | G139: 31 | H139: 096 | I139: Trust Funds | J139: 50 | K139: 0 | L139: 0 | M139: 0 | N139: 0 | O139: 70456.47 | P139: 70456.47 | Q139: 0 | R139: 0 | S139: 0 | T139: 0 | U139: 100 | V139: 100
A140: Bangor Township Schools | B140: 09030 | C140: Bay-Arenac ISD | D140: 09 | E140: LEA | F140: 05 | G140: 31 | H140: 096 | I140: Community Service Fund | J140: 23 | K140: 92348.31 | L140: 41925.08 | M140: 6841.16 | N140: 7346.13 | O140: 13977.07 | P140: 162437.75 | Q140: 56.85150773 | R140: 25.80993642 | S140: 4.211557966 | T140: 4.522427822 | U140: 8.604570058 | V140: 100
A141: Bangor Township Schools | B141: 09030 | C141: Bay-Arenac ISD | D141: 09 | E141: LEA | F141: 05 | G141: 31 | H141: 096 | I141: School Lunch Fund | J141: 25 | K141: 305091.66 | L141: 167105.62 | M141: 40330.1 | N141: 543457.9 | O141: 16132.39 | P141: 1072117.67 | Q141: 28.45691929 | R141: 15.58649994 | S141: 3.761723282 | T141: 50.69013553 | U141: 1.504721958 | V141: 100
A142: Bangor Township Schools | B142: 09030 | C142: Bay-Arenac ISD | D142: 09 | E142: LEA | F142: 05 | G142: 31 | H142: 096 | I142: General Fund | J142: 11 | K142: 10972594.18 | L142: 6566027.08 | M142: 1677565.05 | N142: 1153954.63 | O142: 91590.71 | P142: 20461731.65 | Q142: 53.62495398 | R142: 32.08930306 | S142: 8.198548777 | T142: 5.639574645 | U142: 0.4476195445 | V142: 100
A143: Bangor Township Schools | B143: 09030 | C143: Bay-Arenac ISD | D143: 09 | E143: LEA | F143: 05 | G143: 31 | H143: 096 | I143: Debt Service Funds | J143: 30 | K143: 0 | L143: 0 | M143: 0 | N143: 0 | O143: 0 | P143: 0 | Q143: 0 | R143: 0 | S143: 0 | T143: 0 | U143: 0 | V143: 0
A144: Essexville-Hampton Public Schools | B144: 09050 | C144: Bay-Arenac ISD | D144: 09 | E144: LEA | F144: 05 | G144: 31 | H144: 096 | I144: School Lunch Fund | J144: 25 | K144: 38363.25 | L144: 15487.66 | M144: 279856.69 | N144: 310976.49 | O144: 1115.17 | P144: 645799.26 | Q144: 5.940429538 | R144: 2.398215817 | S144: 43.33493507 | T144: 48.15373898 | U144: 0.1726805943 | V144: 100
A145: Essexville-Hampton Public Schools | B145: 09050 | C145: Bay-Arenac ISD | D145: 09 | E145: LEA | F145: 05 | G145: 31 | H145: 096 | I145: Capital Projects Fund | J145: 40 | K145: 0 | L145: 0 | M145: 106111.67 | N145: 0 | O145: 0 | P145: 106111.67 | Q145: 0 | R145: 0 | S145: 100 | T145: 0 | U145: 0 | V145: 100
A146: Essexville-Hampton Public Schools | B146: 09050 | C146: Bay-Arenac ISD | D146: 09 | E146: LEA | F146: 05 | G146: 31 | H146: 096 | I146: Debt Service Funds | J146: 30 | K146: 0 | L146: 0 | M146: 0 | N146: 0 | O146: 0 | P146: 0 | Q146: 0 | R146: 0 | S146: 0 | T146: 0 | U146: 0 | V146: 0
A147: Essexville-Hampton Public Schools | B147: 09050 | C147: Bay-Arenac ISD | D147: 09 | E147: LEA | F147: 05 | G147: 31 | H147: 096 | I147: General Fund | J147: 11 | K147: 7640512.96 | L147: 4940370.25 | M147: 1190417.97 | N147: 633918.22 | O147: 47279.82 | P147: 14452499.22 | Q147: 52.86637864 | R147: 34.18350124 | S147: 8.236762043 | T147: 4.386218676 | U147: 0.3271394053 | V147: 100
A148: Essexville-Hampton Public Schools | B148: 09050 | C148: Bay-Arenac ISD | D148: 09 | E148: LEA | F148: 05 | G148: 31 | H148: 096 | I148: Community Service Fund | J148: 23 | K148: 103803.47 | L148: 47543.18 | M148: 54669.68 | N148: 5154.22 | O148: 2051.04 | P148: 213221.59 | Q148: 48.68337676 | R148: 22.29754501 | S148: 25.63984257 | T148: 2.417306803 | U148: 0.9619288553 | V148: 100
A149: Pinconning Area Schools | B149: 09090 | C149: Bay-Arenac ISD | D149: 09 | E149: LEA | F149: 05 | G149: 31 | H149: 098 | I149: General Fund | J149: 11 | K149: 5930044.74 | L149: 3749798.36 | M149: 983228.97 | N149: 685251.3 | O149: 87266.66 | P149: 11435590.03 | Q149: 51.85604524 | R149: 32.79059804 | S149: 8.597973235 | T149: 5.992268857 | U149: 0.7631146252 | V149: 100
A150: Pinconning Area Schools | B150: 09090 | C150: Bay-Arenac ISD | D150: 09 | E150: LEA | F150: 05 | G150: 31 | H150: 098 | I150: Debt Service Funds | J150: 30 | K150: 0 | L150: 0 | M150: 0 | N150: 0 | O150: 7066.95 | P150: 7066.95 | Q150: 0 | R150: 0 | S150: 0 | T150: 0 | U150: 100 | V150: 100
A151: Pinconning Area Schools | B151: 09090 | C151: Bay-Arenac ISD | D151: 09 | E151: LEA | F151: 05 | G151: 31 | H151: 098 | I151: School Lunch Fund | J151: 25 | K151: 123146.61 | L151: 77182.76 | M151: 133229.23 | N151: 291802.52 | O151: 5 | P151: 625366.12 | Q151: 19.69192223 | R151: 12.34201175 | S151: 21.30419697 | T151: 46.66106952 | U151: 0.0007995316 | V151: 100
A152: Bay-Arenac Community High School | B152: 09901 | C152: Bay-Arenac ISD | D152: 09 | E152: PSA | F152: 05 | G152: 31 | H152: 096 | I152: General Fund | J152: 11 | K152: 678578.78 | L152: 431131.98 | M152: 176491.95 | N152: 178954.75 | O152: 6246.79 | P152: 1471404.25 | Q152: 46.11776675 | R152: 29.30071597 | S152: 11.99479681 | T152: 12.16217433 | U152: 0.4245461436 | V152: 100
A153: Bay-Arenac Community High School | B153: 09901 | C153: Bay-Arenac ISD | D153: 09 | E153: PSA | F153: 05 | G153: 31 | H153: 096 | I153: School Lunch Fund | J153: 25 | K153: 0 | L153: 0 | M153: 39804.3 | N153: 0 | O153: 15.06 | P153: 39819.36 | Q153: 0 | R153: 0 | S153: 99.9621792 | T153: 0 | U153: 0.0378207987 | V153: 100
A154: Bay County PSA | B154: 09902 | C154: Bay-Arenac ISD | D154: 09 | E154: PSA | F154: 05 | G154: 31 | H154: 096 | I154: Debt Service Funds | J154: 30 | K154: 0 | L154: 0 | M154: 0 | N154: 0 | O154: 0 | P154: 0 | Q154: 0 | R154: 0 | S154: 0 | T154: 0 | U154: 0 | V154: 0
A155: Bay County PSA | B155: 09902 | C155: Bay-Arenac ISD | D155: 09 | E155: PSA | F155: 05 | G155: 31 | H155: 096 | I155: Community Service Fund | J155: 23 | K155: 0 | L155: 0 | M155: 8099.89 | N155: 227.76 | O155: 0 | P155: 8327.65 | Q155: 0 | R155: 0 | S155: 97.26501474 | T155: 2.73498526 | U155: 0 | V155: 100
A156: Bay County PSA | B156: 09902 | C156: Bay-Arenac ISD | D156: 09 | E156: PSA | F156: 05 | G156: 31 | H156: 096 | I156: General Fund | J156: 11 | K156: 0 | L156: 0 | M156: 2048503.27 | N156: 65046.06 | O156: 12990.68 | P156: 2126540.01 | Q156: 0 | R156: 0 | S156: 96.33034226 | T156: 3.058774333 | U156: 0.610883404 | V156: 100
A157: Bay County PSA | B157: 09902 | C157: Bay-Arenac ISD | D157: 09 | E157: PSA | F157: 05 | G157: 31 | H157: 096 | I157: School Lunch Fund | J157: 25 | K157: 0 | L157: 0 | M157: 41292.01 | N157: 83960.15 | O157: 344.28 | P157: 125596.44 | Q157: 0 | R157: 0 | S157: 32.876736 | T157: 66.84914795 | U157: 0.2741160498 | V157: 100
A158: Bay City Academy | B158: 09903 | C158: Bay-Arenac ISD | D158: 09 | E158: PSA | F158: 05 | G158: 31 | H158: 096 | I158: School Lunch Fund | J158: 25 | K158: 0 | L158: 0 | M158: 274 | N158: 230019 | O158: 0 | P158: 230293 | Q158: 0 | R158: 0 | S158: 0.1189788661 | T158: 99.88102113 | U158: 0 | V158: 100
A159: Bay City Academy | B159: 09903 | C159: Bay-Arenac ISD | D159: 09 | E159: PSA | F159: 05 | G159: 31 | H159: 096 | I159: General Fund | J159: 11 | K159: 0 | L159: 0 | M159: 4662150 | N159: 367657 | O159: 83484 | P159: 5113291 | Q159: 0 | R159: 0 | S159: 91.17709123 | T159: 7.190222501 | U159: 1.632686268 | V159: 100
A160: Benzie County Central Schools | B160: 10015 | C160: Traverse Bay Area ISD | D160: 28 | E160: LEA | F160: 01 | G160: 35 | H160: 101 | I160: School Lunch Fund | J160: 25 | K160: 0 | L160: 0 | M160: 325949.02 | N160: 320810 | O160: 1614.65 | P160: 648373.67 | Q160: 0 | R160: 0 | S160: 50.2717854 | T160: 49.47918382 | U160: 0.2490307788 | V160: 100
A161: Benzie County Central Schools | B161: 10015 | C161: Traverse Bay Area ISD | D161: 28 | E161: LEA | F161: 01 | G161: 35 | H161: 101 | I161: General Fund | J161: 11 | K161: 7208925.57 | L161: 4461028.71 | M161: 1511156.73 | N161: 913736.75 | O161: 48371.01 | P161: 14143218.77 | Q161: 50.97089769 | R161: 31.54182073 | S161: 10.68467337 | T161: 6.460599704 | U161: 0.3420084974 | V161: 100
A162: Benzie County Central Schools | B162: 10015 | C162: Traverse Bay Area ISD | D162: 28 | E162: LEA | F162: 01 | G162: 35 | H162: 101 | I162: Debt Service Funds | J162: 30 | K162: 0 | L162: 0 | M162: 0 | N162: 0 | O162: 0 | P162: 0 | Q162: 0 | R162: 0 | S162: 0 | T162: 0 | U162: 0 | V162: 0
A163: Benzie County Central Schools | B163: 10015 | C163: Traverse Bay Area ISD | D163: 28 | E163: LEA | F163: 01 | G163: 35 | H163: 101 | I163: Capital Projects Fund | J163: 40 | K163: 0 | L163: 0 | M163: 26257.48 | N163: 0 | O163: 0 | P163: 26257.48 | Q163: 0 | R163: 0 | S163: 100 | T163: 0 | U163: 0 | V163: 100
A164: Frankfort-Elberta Area Schools | B164: 10025 | C164: Traverse Bay Area ISD | D164: 28 | E164: LEA | F164: 01 | G164: 35 | H164: 101 | I164: Debt Service Funds | J164: 30 | K164: 0 | L164: 0 | M164: 0 | N164: 0 | O164: 825 | P164: 825 | Q164: 0 | R164: 0 | S164: 0 | T164: 0 | U164: 100 | V164: 100
A165: Frankfort-Elberta Area Schools | B165: 10025 | C165: Traverse Bay Area ISD | D165: 28 | E165: LEA | F165: 01 | G165: 35 | H165: 101 | I165: School Lunch Fund | J165: 25 | K165: 74259.45 | L165: 55944.28 | M165: 5847.3 | N165: 124075.78 | O165: 2288.75 | P165: 262415.56 | Q165: 28.29841721 | R165: 21.31896447 | S165: 2.228259635 | T165: 47.28217336 | U165: 0.8721853232 | V165: 100
A166: Frankfort-Elberta Area Schools | B166: 10025 | C166: Traverse Bay Area ISD | D166: 28 | E166: LEA | F166: 01 | G166: 35 | H166: 101 | I166: Capital Projects Fund | J166: 40 | K166: 0 | L166: 0 | M166: 0 | N166: 0 | O166: 0 | P166: 0 | Q166: 0 | R166: 0 | S166: 0 | T166: 0 | U166: 0 | V166: 0
A167: Frankfort-Elberta Area Schools | B167: 10025 | C167: Traverse Bay Area ISD | D167: 28 | E167: LEA | F167: 01 | G167: 35 | H167: 101 | I167: General Fund | J167: 11 | K167: 2929406.9 | L167: 1847649.35 | M167: 570241.53 | N167: 345563.8 | O167: 44743.68 | P167: 5737605.26 | Q167: 51.05626419 | R167: 32.20244799 | S167: 9.938667862 | T167: 6.022787981 | U167: 0.7798319677 | V167: 100
A168: Berrien RESA | B168: 11000 | C168: Berrien RESA | D168: 11 | E168: ISD | F168: 06 | G168: 21 | H168: 078 | I168: General Fund | J168: 11 | K168: 2027239.08 | L168: 1252612.79 | M168: 2338286.23 | N168: 498300.6 | O168: 227899.85 | P168: 6344338.55 | Q168: 31.95351358 | R168: 19.74378858 | S168: 36.85626502 | T168: 7.854256138 | U168: 3.592176682 | V168: 100
A169: Berrien RESA | B169: 11000 | C169: Berrien RESA | D169: 11 | E169: ISD | F169: 06 | G169: 21 | H169: 078 | I169: School Lunch Fund | J169: 25 | K169: 14408 | L169: 5181 | M169: 66909.71 | N169: 116868.2 | O169: 0 | P169: 203366.91 | Q169: 7.084731729 | R169: 2.547612097 | S169: 32.90098178 | T169: 57.4666744 | U169: 0 | V169: 100
A170: Berrien RESA | B170: 11000 | C170: Berrien RESA | D170: 11 | E170: ISD | F170: 06 | G170: 21 | H170: 078 | I170: Special Education Fund | J170: 22 | K170: 12042711.31 | L170: 8239979.13 | M170: 6892074.81 | N170: 490808 | O170: 101651.5 | P170: 27767224.75 | Q170: 43.37023746 | R170: 29.67519874 | S170: 24.820899 | T170: 1.76758032 | U170: 0.3660844788 | V170: 100
A171: Benton Harbor Area Schools | B171: 11010 | C171: Berrien RESA | D171: 11 | E171: LEA | F171: 06 | G171: 21 | H171: 079 | I171: School Lunch Fund | J171: 25 | K171: 0 | L171: 0 | M171: 1620852.23 | N171: 83813.86 | O171: 0 | P171: 1704666.09 | Q171: 0 | R171: 0 | S171: 95.08326818 | T171: 4.916731816 | U171: 0 | V171: 100
A172: Benton Harbor Area Schools | B172: 11010 | C172: Berrien RESA | D172: 11 | E172: LEA | F172: 06 | G172: 21 | H172: 079 | I172: General Fund | J172: 11 | K172: 11369673.6 | L172: 7082869.58 | M172: 7578953.98 | N172: 3153666.29 | O172: 368514.77 | P172: 29553678.22 | Q172: 38.4712641 | R172: 23.96611862 | S172: 25.6447063 | T172: 10.67097729 | U172: 1.246933689 | V172: 100
A173: St. Joseph Public Schools | B173: 11020 | C173: Berrien RESA | D173: 11 | E173: LEA | F173: 06 | G173: 21 | H173: 079 | I173: Debt Service Funds | J173: 30 | K173: 0 | L173: 0 | M173: 0 | N173: 0 | O173: 17460.73 | P173: 17460.73 | Q173: 0 | R173: 0 | S173: 0 | T173: 0 | U173: 100 | V173: 100
A174: St. Joseph Public Schools | B174: 11020 | C174: Berrien RESA | D174: 11 | E174: LEA | F174: 06 | G174: 21 | H174: 079 | I174: General Fund | J174: 11 | K174: 13055725.43 | L174: 8073618.65 | M174: 2181435.15 | N174: 2037637.15 | O174: 152550.49 | P174: 25500966.87 | Q174: 51.19698205 | R174: 31.66004917 | S174: 8.554323297 | T174: 7.990430953 | U174: 0.5982145335 | V174: 100
A175: St. Joseph Public Schools | B175: 11020 | C175: Berrien RESA | D175: 11 | E175: LEA | F175: 06 | G175: 21 | H175: 079 | I175: Capital Projects Fund | J175: 40 | K175: 0 | L175: 0 | M175: 87927.41 | N175: 0 | O175: 7041.45 | P175: 94968.86 | Q175: 0 | R175: 0 | S175: 92.58551698 | T175: 0 | U175: 7.414483021 | V175: 100
A176: St. Joseph Public Schools | B176: 11020 | C176: Berrien RESA | D176: 11 | E176: LEA | F176: 06 | G176: 21 | H176: 079 | I176: School Lunch Fund | J176: 25 | K176: 345489.66 | L176: 158041.13 | M176: 7681.28 | N176: 586399.3 | O176: 20716.62 | P176: 1118327.99 | Q176: 30.8934108 | R176: 14.13191223 | S176: 0.6868539524 | T176: 52.43535933 | U176: 1.852463694 | V176: 100
A177: Lakeshore School District (Berrien) | B177: 11030 | C177: Berrien RESA | D177: 11 | E177: LEA | F177: 06 | G177: 21 | H177: 079 | I177: Capital Projects Fund | J177: 40 | K177: 0 | L177: 0 | M177: 17917279.04 | N177: 0 | O177: 0 | P177: 17917279.04 | Q177: 0 | R177: 0 | S177: 100 | T177: 0 | U177: 0 | V177: 100
A178: Lakeshore School District (Berrien) | B178: 11030 | C178: Berrien RESA | D178: 11 | E178: LEA | F178: 06 | G178: 21 | H178: 079 | I178: General Fund | J178: 11 | K178: 13308064.12 | L178: 7888599.7 | M178: 1882689.93 | N178: 1467931.13 | O178: 84232.13 | P178: 24631517.01 | Q178: 54.0286013 | R178: 32.02644684 | S178: 7.643418508 | T178: 5.959564445 | U178: 0.341968909 | V178: 100
A179: Lakeshore School District (Berrien) | B179: 11030 | C179: Berrien RESA | D179: 11 | E179: LEA | F179: 06 | G179: 21 | H179: 079 | I179: Debt Service Funds | J179: 30 | K179: 0 | L179: 0 | M179: 0 | N179: 0 | O179: 265 | P179: 265 | Q179: 0 | R179: 0 | S179: 0 | T179: 0 | U179: 100 | V179: 100
A180: Lakeshore School District (Berrien) | B180: 11030 | C180: Berrien RESA | D180: 11 | E180: LEA | F180: 06 | G180: 21 | H180: 079 | I180: Bookstore Fund | J180: 24 | K180: 0 | L180: 0 | M180: 0 | N180: 81980.85 | O180: 0 | P180: 81980.85 | Q180: 0 | R180: 0 | S180: 0 | T180: 100 | U180: 0 | V180: 100
A181: Lakeshore School District (Berrien) | B181: 11030 | C181: Berrien RESA | D181: 11 | E181: LEA | F181: 06 | G181: 21 | H181: 079 | I181: School Lunch Fund | J181: 25 | K181: 368277.5 | L181: 175980.99 | M181: 12901.65 | N181: 569526.38 | O181: 4199.94 | P181: 1130886.46 | Q181: 32.56538238 | R181: 15.56133142 | S181: 1.140843971 | T181: 50.36105747 | U181: 0.3713847631 | V181: 100
A182: River Valley School District | B182: 11033 | C182: Berrien RESA | D182: 11 | E182: LEA | F182: 06 | G182: 21 | H182: 078 | I182: General Fund | J182: 11 | K182: 3792593.53 | L182: 2421656.7 | M182: 1042828.19 | N182: 543789.11 | O182: 26567.21 | P182: 7827434.74 | Q182: 48.45257298 | R182: 30.93806311 | S182: 13.32273247 | T182: 6.947219978 | U182: 0.3394114532 | V182: 100
A183: River Valley School District | B183: 11033 | C183: Berrien RESA | D183: 11 | E183: LEA | F183: 06 | G183: 21 | H183: 078 | I183: Capital Projects Fund | J183: 40 | K183: 0 | L183: 0 | M183: 52569.01 | N183: 0 | O183: 0 | P183: 52569.01 | Q183: 0 | R183: 0 | S183: 100 | T183: 0 | U183: 0 | V183: 100
A184: River Valley School District | B184: 11033 | C184: Berrien RESA | D184: 11 | E184: LEA | F184: 06 | G184: 21 | H184: 078 | I184: Debt Service Funds | J184: 30 | K184: 0 | L184: 0 | M184: 0 | N184: 0 | O184: 0 | P184: 0 | Q184: 0 | R184: 0 | S184: 0 | T184: 0 | U184: 0 | V184: 0
A185: River Valley School District | B185: 11033 | C185: Berrien RESA | D185: 11 | E185: LEA | F185: 06 | G185: 21 | H185: 078 | I185: Trust Funds | J185: 50 | K185: 0 | L185: 0 | M185: 0 | N185: 0 | O185: 1046817.25 | P185: 1046817.25 | Q185: 0 | R185: 0 | S185: 0 | T185: 0 | U185: 100 | V185: 100
A186: River Valley School District | B186: 11033 | C186: Berrien RESA | D186: 11 | E186: LEA | F186: 06 | G186: 21 | H186: 078 | I186: School Lunch Fund | J186: 25 | K186: 95876.08 | L186: 54870.82 | M186: 7026.03 | N186: 125203.16 | O186: 4407.83 | P186: 287383.92 | Q186: 33.36167173 | R186: 19.09321162 | S186: 2.444823635 | T186: 43.56651548 | U186: 1.533777534 | V186: 100
A187: Galien Township School District | B187: 11160 | C187: Berrien RESA | D187: 11 | E187: LEA | F187: 06 | G187: 21 | H187: 078 | I187: General Fund | J187: 11 | K187: 37440 | L187: 2912.16 | M187: 65124.91 | N187: 11594.01 | O187: 196.98 | P187: 117268.06 | Q187: 31.92685203 | R187: 2.483336042 | S187: 55.5350792 | T187: 9.886758594 | U187: 0.167974127 | V187: 100
A188: Galien Township School District | B188: 11160 | C188: Berrien RESA | D188: 11 | E188: LEA | F188: 06 | G188: 21 | H188: 078 | I188: Debt Service Funds | J188: 30 | K188: 0 | L188: 0 | M188: 0 | N188: 0 | O188: 0 | P188: 0 | Q188: 0 | R188: 0 | S188: 0 | T188: 0 | U188: 0 | V188: 0
A189: New Buffalo Area Schools | B189: 11200 | C189: Berrien RESA | D189: 11 | E189: LEA | F189: 06 | G189: 21 | H189: 078 | I189: Private Purpose Trust Fund | J189: 28 | K189: 0 | L189: 0 | M189: 0 | N189: 0 | O189: 844133.26 | P189: 844133.26 | Q189: 0 | R189: 0 | S189: 0 | T189: 0 | U189: 100 | V189: 100
A190: New Buffalo Area Schools | B190: 11200 | C190: Berrien RESA | D190: 11 | E190: LEA | F190: 06 | G190: 21 | H190: 078 | I190: General Fund | J190: 11 | K190: 5888151.08 | L190: 4031149.1 | M190: 858364.1 | N190: 614582.89 | O190: 135361.11 | P190: 11527608.28 | Q190: 51.07868811 | R190: 34.96951841 | S190: 7.446159508 | T190: 5.331399845 | U190: 1.174234123 | V190: 100
A191: New Buffalo Area Schools | B191: 11200 | C191: Berrien RESA | D191: 11 | E191: LEA | F191: 06 | G191: 21 | H191: 078 | I191: Debt Service Funds | J191: 30 | K191: 0 | L191: 0 | M191: 0 | N191: 0 | O191: 0 | P191: 0 | Q191: 0 | R191: 0 | S191: 0 | T191: 0 | U191: 0 | V191: 0
A192: New Buffalo Area Schools | B192: 11200 | C192: Berrien RESA | D192: 11 | E192: LEA | F192: 06 | G192: 21 | H192: 078 | I192: School Lunch Fund | J192: 25 | K192: 187696.85 | L192: 176139.44 | M192: 3664.9 | N192: 194456.87 | O192: 1451.08 | P192: 563409.14 | Q192: 33.31448439 | R192: 31.26314919 | S192: 0.6504864298 | T192: 34.51432648 | U192: 0.2575535072 | V192: 100
A193: Brandywine Community Schools | B193: 11210 | C193: Berrien RESA | D193: 11 | E193: LEA | F193: 06 | G193: 21 | H193: 078 | I193: General Fund | J193: 11 | K193: 5958321.18 | L193: 3683124.81 | M193: 1201865.72 | N193: 833376.22 | O193: 104237.33 | P193: 11780925.26 | Q193: 50.57600357 | R193: 31.26345961 | S193: 10.20179395 | T193: 7.073945396 | U193: 0.8847974815 | V193: 100
A194: Brandywine Community Schools | B194: 11210 | C194: Berrien RESA | D194: 11 | E194: LEA | F194: 06 | G194: 21 | H194: 078 | I194: School Lunch Fund | J194: 25 | K194: 135034.92 | L194: 95001.64 | M194: 24386.82 | N194: 314280.6 | O194: 0 | P194: 568703.98 | Q194: 23.74432477 | R194: 16.70493672 | S194: 4.288139499 | T194: 55.26259901 | U194: 0 | V194: 100
A195: Brandywine Community Schools | B195: 11210 | C195: Berrien RESA | D195: 11 | E195: LEA | F195: 06 | G195: 21 | H195: 078 | I195: Debt Service Funds | J195: 30 | K195: 0 | L195: 0 | M195: 0 | N195: 0 | O195: 0 | P195: 0 | Q195: 0 | R195: 0 | S195: 0 | T195: 0 | U195: 0 | V195: 0
A196: Berrien Springs Public Schools | B196: 11240 | C196: Berrien RESA | D196: 11 | E196: LEA | F196: 06 | G196: 21 | H196: 078 | I196: General Fund | J196: 11 | K196: 10808071.76 | L196: 6639900.37 | M196: 5451158.75 | N196: 1961828.72 | O196: 230414.79 | P196: 25091374.39 | Q196: 43.07484952 | R196: 26.4628803 | S196: 21.72522981 | T196: 7.818737585 | U196: 0.9183027857 | V196: 100
A197: Berrien Springs Public Schools | B197: 11240 | C197: Berrien RESA | D197: 11 | E197: LEA | F197: 06 | G197: 21 | H197: 078 | I197: Debt Service Funds | J197: 30 | K197: 0 | L197: 0 | M197: 0 | N197: 0 | O197: 0 | P197: 0 | Q197: 0 | R197: 0 | S197: 0 | T197: 0 | U197: 0 | V197: 0
A198: Berrien Springs Public Schools | B198: 11240 | C198: Berrien RESA | D198: 11 | E198: LEA | F198: 06 | G198: 21 | H198: 078 | I198: Capital Projects Fund | J198: 40 | K198: 0 | L198: 0 | M198: 0 | N198: 0 | O198: 0 | P198: 0 | Q198: 0 | R198: 0 | S198: 0 | T198: 0 | U198: 0 | V198: 0
A199: Berrien Springs Public Schools | B199: 11240 | C199: Berrien RESA | D199: 11 | E199: LEA | F199: 06 | G199: 21 | H199: 078 | I199: School Lunch Fund | J199: 25 | K199: 241946.63 | L199: 153560.37 | M199: 11990.74 | N199: 379694.59 | O199: 3767.29 | P199: 790959.62 | Q199: 30.58899897 | R199: 19.41443863 | S199: 1.515973723 | T199: 48.00429509 | U199: 0.4762935938 | V199: 100
A200: Eau Claire Public Schools | B200: 11250 | C200: Berrien RESA | D200: 11 | E200: LEA | F200: 06 | G200: 21 | H200: 078 | I200: School Lunch Fund | J200: 25 | K200: 150585.65 | L200: 70172.38 | M200: 8562.84 | N200: 343388.21 | O200: 2418.17 | P200: 575127.25 | Q200: 26.18301428 | R200: 12.201192 | S200: 1.488860074 | T200: 59.70647539 | U200: 0.4204582551 | V200: 100
... 2923 more rows

Sheet GF Expenditures (District)
A1: =CONCATENATE("FY ",BTS!B5," ","General Fund Expenditures by Function") -> FY 2015 General Fund Expenditures by Function | B1: Click on arrow button to apply filter to column. District count and amounts will change as filters are applied. | D1: Note: Percentages follow totals. | I1: Column Total: | K1: =SUBTOTAL(9,K4:K8495) -> 7113810255 | L1: 4345774670 | M1: 2821844099 | N1: 783081432 | O1: 100895682.9 | P1: 1.516540614e+10 | Q1: =K1/$P1 -> 0.4690814205 | R1: 0.28655841 | S1: 0.1860711196 | T1: 0.05163603433 | U1: 0.006653015554 | V1: 1
A2: ="Total Number of Districts: 902" -> Total Number of Districts: 902
A3: District Name | B3: Dist. Code | C3: ISD Name | D3: ISD Code | E3: Dist.Type | F3: US Cong. | G3: MI Senate | H3: MI House | I3: Function Category | J3: Fnct. Code | K3: Salaries (1xxx) | L3: Employee Benefits (2xxx) | M3: Purchased Services (3xxx-4xxx, 82xx) | N3: Supplies & Materials (5xxx) | O3: Other (7xxx) | P3: Total Function Category | Q3: Salaries | R3: Benefits | S3: Purchased Services | T3: Supplies & Materials | U3: Other | V3: Total
A4: Allegan Area Educational Service Agency | B4: 03000 | C4: Allegan Area Educational Service Agency | D4: 03 | E4: ISD | F4: 06 | G4: 26 | H4: 080 | I4: Instruction | J4: 100 | K4: 765152.41 | L4: 510966.1 | M4: 86643.2 | N4: 92572.69 | O4: 685.62 | P4: 1456020.02 | Q4: 52.55095394 | R4: 35.09334302 | S4: 5.950687409 | T4: 6.357927002 | U4: 0.0470886382 | V4: 100
A5: Allegan Area Educational Service Agency | B5: 03000 | C5: Allegan Area Educational Service Agency | D5: 03 | E5: ISD | F5: 06 | G5: 26 | H5: 080 | I5: Student Services | J5: 210 | K5: 1060 | L5: 783.56 | M5: 18507.06 | N5: 0 | O5: 0 | P5: 20350.62 | Q5: 5.208686517 | R5: 3.850300384 | S5: 90.9410131 | T5: 0 | U5: 0 | V5: 100
A6: Allegan Area Educational Service Agency | B6: 03000 | C6: Allegan Area Educational Service Agency | D6: 03 | E6: ISD | F6: 06 | G6: 26 | H6: 080 | I6: Instructional Staff Support | J6: 220 | K6: 413135.34 | L6: 289756.57 | M6: 109616.45 | N6: 43968.07 | O6: 58039.28 | P6: 914515.71 | Q6: 45.17531361 | R6: 31.68415445 | S6: 11.98628397 | T6: 4.807798217 | U6: 6.346449751 | V6: 100
A7: Allegan Area Educational Service Agency | B7: 03000 | C7: Allegan Area Educational Service Agency | D7: 03 | E7: ISD | F7: 06 | G7: 26 | H7: 080 | I7: General Administration | J7: 230 | K7: 277868.09 | L7: 148915.3 | M7: 94275.99 | N7: 16466.34 | O7: 21408.21 | P7: 558933.93 | Q7: 49.71394204 | R7: 26.64273754 | S7: 16.86710807 | T7: 2.946026197 | U7: 3.830186155 | V7: 100
A8: Allegan Area Educational Service Agency | B8: 03000 | C8: Allegan Area Educational Service Agency | D8: 03 | E8: ISD | F8: 06 | G8: 26 | H8: 080 | I8: School Administration | J8: 240 | K8: 37775.47 | L8: 21328.19 | M8: 0 | N8: 0 | O8: 0 | P8: 59103.66 | Q8: 63.91392682 | R8: 36.08607318 | S8: 0 | T8: 0 | U8: 0 | V8: 100
A9: Allegan Area Educational Service Agency | B9: 03000 | C9: Allegan Area Educational Service Agency | D9: 03 | E9: ISD | F9: 06 | G9: 26 | H9: 080 | I9: Business Office | J9: 250 | K9: 381643.82 | L9: 242308.5 | M9: 20947.11 | N9: 3027.33 | O9: 3926.09 | P9: 651852.85 | Q9: 58.54754183 | R9: 37.17226978 | S9: 3.213472182 | T9: 0.464419232 | U9: 0.6022969755 | V9: 100
A10: Allegan Area Educational Service Agency | B10: 03000 | C10: Allegan Area Educational Service Agency | D10: 03 | E10: ISD | F10: 06 | G10: 26 | H10: 080 | I10: Operational Maintenance | J10: 260 | K10: 35030.16 | L10: 33016.84 | M10: 69799.63 | N10: 53938.8 | O10: 0 | P10: 191785.43 | Q10: 18.26528741 | R10: 17.21551006 | S10: 36.39464687 | T10: 28.12455566 | U10: 0 | V10: 100
A11: Allegan Area Educational Service Agency | B11: 03000 | C11: Allegan Area Educational Service Agency | D11: 03 | E11: ISD | F11: 06 | G11: 26 | H11: 080 | I11: Transportation | J11: 270 | K11: 0 | L11: 0 | M11: 930.65 | N11: 3925.33 | O11: 0 | P11: 4855.98 | Q11: 0 | R11: 0 | S11: 19.16502951 | T11: 80.83497049 | U11: 0 | V11: 100
A12: Allegan Area Educational Service Agency | B12: 03000 | C12: Allegan Area Educational Service Agency | D12: 03 | E12: ISD | F12: 06 | G12: 26 | H12: 080 | I12: Other Support | J12: 280 | K12: 254430.01 | L12: 190339.06 | M12: 709368.24 | N12: 57522.08 | O12: 1027 | P12: 1212686.39 | Q12: 20.98069312 | R12: 15.69565401 | S12: 58.49560495 | T12: 4.743359905 | U12: 0.0846880124 | V12: 100
A13: Plainwell Community Schools | B13: 03010 | C13: Allegan Area Educational Service Agency | D13: 03 | E13: LEA | F13: 06 | G13: 26 | H13: 080 | I13: Instruction | J13: 100 | K13: 8668140.38 | L13: 5384584.51 | M13: 525304.02 | N13: 528738.38 | O13: 14062.77 | P13: 15120830.06 | Q13: 57.32582369 | R13: 35.61037647 | S13: 3.474042218 | T13: 3.496754992 | U13: 0.0930026324 | V13: 100
A14: Plainwell Community Schools | B14: 03010 | C14: Allegan Area Educational Service Agency | D14: 03 | E14: LEA | F14: 06 | G14: 26 | H14: 080 | I14: Student Services | J14: 210 | K14: 384000.48 | L14: 249372.92 | M14: 187509.7 | N14: 3085.19 | O14: 0 | P14: 823968.29 | Q14: 46.60379345 | R14: 30.26486857 | S14: 22.75690731 | T14: 0.3744306714 | U14: 0 | V14: 100
A15: Plainwell Community Schools | B15: 03010 | C15: Allegan Area Educational Service Agency | D15: 03 | E15: LEA | F15: 06 | G15: 26 | H15: 080 | I15: Instructional Staff Support | J15: 220 | K15: 268011.62 | L15: 131235.34 | M15: 54612.1 | N15: 16246.03 | O15: 1723.38 | P15: 471828.47 | Q15: 56.80276563 | R15: 27.81420545 | S15: 11.57456649 | T15: 3.443206808 | U15: 0.3652556193 | V15: 100
A16: Plainwell Community Schools | B16: 03010 | C16: Allegan Area Educational Service Agency | D16: 03 | E16: LEA | F16: 06 | G16: 26 | H16: 080 | I16: General Administration | J16: 230 | K16: 208263.36 | L16: 144787.95 | M16: 70765.4 | N16: 1169.2 | O16: 8750.65 | P16: 433736.56 | Q16: 48.0160953 | R16: 33.38154155 | S16: 16.31529516 | T16: 0.2695645486 | U16: 2.017503436 | V16: 100
A17: Plainwell Community Schools | B17: 03010 | C17: Allegan Area Educational Service Agency | D17: 03 | E17: LEA | F17: 06 | G17: 26 | H17: 080 | I17: School Administration | J17: 240 | K17: 885332.2 | L17: 473345.34 | M17: 46865.18 | N17: 11076.73 | O17: 2684 | P17: 1419303.45 | Q17: 62.37793616 | R17: 33.35053825 | S17: 3.301984505 | T17: 0.7804342334 | U17: 0.1891068467 | V17: 100
A18: Plainwell Community Schools | B18: 03010 | C18: Allegan Area Educational Service Agency | D18: 03 | E18: LEA | F18: 06 | G18: 26 | H18: 080 | I18: Business Office | J18: 250 | K18: 166565.17 | L18: 119012.37 | M18: 27084.37 | N18: 2186.1 | O18: 20725.13 | P18: 335573.14 | Q18: 49.6360257 | R18: 35.46540406 | S18: 8.071078037 | T18: 0.6514526163 | U18: 6.176039596 | V18: 100
A19: Plainwell Community Schools | B19: 03010 | C19: Allegan Area Educational Service Agency | D19: 03 | E19: LEA | F19: 06 | G19: 26 | H19: 080 | I19: Operational Maintenance | J19: 260 | K19: 580754.56 | L19: 430460.88 | M19: 860083.03 | N19: 725432.64 | O19: 328.74 | P19: 2597059.85 | Q19: 22.3620014 | R19: 16.57493107 | S19: 33.11756678 | T19: 27.9328426 | U19: 0.0126581603 | V19: 100
A20: Plainwell Community Schools | B20: 03010 | C20: Allegan Area Educational Service Agency | D20: 03 | E20: LEA | F20: 06 | G20: 26 | H20: 080 | I20: Transportation | J20: 270 | K20: 307776.66 | L20: 148142.2 | M20: 44709.33 | N20: 105421.12 | O20: 4201.63 | P20: 610250.94 | Q20: 50.43444259 | R20: 24.27562012 | S20: 7.326384454 | T20: 17.27504426 | U20: 0.6885085667 | V20: 100
A21: Plainwell Community Schools | B21: 03010 | C21: Allegan Area Educational Service Agency | D21: 03 | E21: LEA | F21: 06 | G21: 26 | H21: 080 | I21: Other Support | J21: 280 | K21: 152157.54 | L21: 71331.6 | M21: 584303.59 | N21: 54872.53 | O21: 15321.53 | P21: 877986.79 | Q21: 17.33027669 | R21: 8.124450255 | S21: 66.55038511 | T21: 6.249812711 | U21: 1.745075231 | V21: 100
A22: Plainwell Community Schools | B22: 03010 | C22: Allegan Area Educational Service Agency | D22: 03 | E22: LEA | F22: 06 | G22: 26 | H22: 080 | I22: Community Services | J22: 300 | K22: 265879.35 | L22: 154272.85 | M22: 157252.54 | N22: 44703.84 | O22: 5759.21 | P22: 627867.79 | Q22: 42.34639111 | R22: 24.57091325 | S22: 25.04548609 | T22: 7.11994479 | U22: 0.9172647637 | V22: 100
A23: Otsego Public Schools | B23: 03020 | C23: Allegan Area Educational Service Agency | D23: 03 | E23: LEA | F23: 06 | G23: 26 | H23: 080 | I23: Instruction | J23: 100 | K23: 6791764.99 | L23: 4313233.4 | M23: 311969.44 | N23: 176578.91 | O23: 6309.42 | P23: 11599856.16 | Q23: 58.55042421 | R23: 37.18350763 | S23: 2.689425073 | T23: 1.522250859 | U23: 0.0543922262 | V23: 100
A24: Otsego Public Schools | B24: 03020 | C24: Allegan Area Educational Service Agency | D24: 03 | E24: LEA | F24: 06 | G24: 26 | H24: 080 | I24: Student Services | J24: 210 | K24: 471456.88 | L24: 293176.73 | M24: 75886.45 | N24: 1572.02 | O24: 0 | P24: 842092.08 | Q24: 55.98638097 | R24: 34.81528172 | S24: 9.011657015 | T24: 0.1866802975 | U24: 0 | V24: 100
A25: Otsego Public Schools | B25: 03020 | C25: Allegan Area Educational Service Agency | D25: 03 | E25: LEA | F25: 06 | G25: 26 | H25: 080 | I25: Instructional Staff Support | J25: 220 | K25: 106433.95 | L25: 45068.49 | M25: 58136.27 | N25: 22831.91 | O25: 0 | P25: 232470.62 | Q25: 45.78382851 | R25: 19.38674659 | S25: 25.00800746 | T25: 9.821417433 | U25: 0 | V25: 100
A26: Otsego Public Schools | B26: 03020 | C26: Allegan Area Educational Service Agency | D26: 03 | E26: LEA | F26: 06 | G26: 26 | H26: 080 | I26: General Administration | J26: 230 | K26: 314611.53 | L26: 240882.28 | M26: 74691.05 | N26: 11648.2 | O26: 9405.92 | P26: 651238.98 | Q26: 48.30968963 | R26: 36.98830804 | S26: 11.46906931 | T26: 1.788621437 | U26: 1.44431158 | V26: 100
A27: Otsego Public Schools | B27: 03020 | C27: Allegan Area Educational Service Agency | D27: 03 | E27: LEA | F27: 06 | G27: 26 | H27: 080 | I27: School Administration | J27: 240 | K27: 794959.1 | L27: 493713.33 | M27: 13004.89 | N27: 8400.3 | O27: 3722 | P27: 1313799.62 | Q27: 60.50839777 | R27: 37.57904345 | S27: 0.9898686072 | T27: 0.6393897419 | U27: 0.2833004321 | V27: 100
A28: Otsego Public Schools | B28: 03020 | C28: Allegan Area Educational Service Agency | D28: 03 | E28: LEA | F28: 06 | G28: 26 | H28: 080 | I28: Business Office | J28: 250 | K28: 182959.14 | L28: 103936.46 | M28: 4313.47 | N28: 165.82 | O28: 47623.62 | P28: 338998.51 | Q28: 53.970485 | R28: 30.65985747 | S28: 1.272415622 | T28: 0.0489146693 | U28: 14.04832723 | V28: 100
A29: Otsego Public Schools | B29: 03020 | C29: Allegan Area Educational Service Agency | D29: 03 | E29: LEA | F29: 06 | G29: 26 | H29: 080 | I29: Operational Maintenance | J29: 260 | K29: 613785.66 | L29: 390781.06 | M29: 453485.13 | N29: 518296.31 | O29: 0 | P29: 1976348.16 | Q29: 31.05655534 | R29: 19.77288556 | S29: 22.94560944 | T29: 26.22494966 | U29: 0 | V29: 100
A30: Otsego Public Schools | B30: 03020 | C30: Allegan Area Educational Service Agency | D30: 03 | E30: LEA | F30: 06 | G30: 26 | H30: 080 | I30: Transportation | J30: 270 | K30: 363882.59 | L30: 217447.49 | M30: 24503.95 | N30: 101251.26 | O30: 0 | P30: 707085.29 | Q30: 51.46233349 | R30: 30.75265362 | S30: 3.465487169 | T30: 14.31952573 | U30: 0 | V30: 100
A31: Otsego Public Schools | B31: 03020 | C31: Allegan Area Educational Service Agency | D31: 03 | E31: LEA | F31: 06 | G31: 26 | H31: 080 | I31: Other Support | J31: 280 | K31: 363205.62 | L31: 212503.42 | M31: 406168.26 | N31: 32450.09 | O31: 10814.06 | P31: 1025141.45 | Q31: 35.42980532 | R31: 20.72918035 | S31: 39.62070405 | T31: 3.16542561 | U31: 1.05488467 | V31: 100
A32: Otsego Public Schools | B32: 03020 | C32: Allegan Area Educational Service Agency | D32: 03 | E32: LEA | F32: 06 | G32: 26 | H32: 080 | I32: Community Services | J32: 300 | K32: 254967.12 | L32: 110380.75 | M32: 11364.62 | N32: 29479.76 | O32: 0 | P32: 406192.25 | Q32: 62.77006024 | R32: 27.17450911 | S32: 2.797842647 | T32: 7.257588002 | U32: 0 | V32: 100
A33: Allegan Public Schools | B33: 03030 | C33: Allegan Area Educational Service Agency | D33: 03 | E33: LEA | F33: 06 | G33: 26 | H33: 080 | I33: Instruction | J33: 100 | K33: 8118176.51 | L33: 5142076.32 | M33: 528549.55 | N33: 291197.01 | O33: 0 | P33: 14079999.39 | Q33: 57.65750612 | R33: 36.52042999 | S33: 3.753903217 | T33: 2.068160672 | U33: 0 | V33: 100
A34: Allegan Public Schools | B34: 03030 | C34: Allegan Area Educational Service Agency | D34: 03 | E34: LEA | F34: 06 | G34: 26 | H34: 080 | I34: Student Services | J34: 210 | K34: 955271.45 | L34: 483376.28 | M34: 17909.91 | N34: 6251.85 | O34: 0 | P34: 1462809.49 | Q34: 65.30388656 | R34: 33.04437682 | S34: 1.224350137 | T34: 0.4273864808 | U34: 0 | V34: 100
A35: Allegan Public Schools | B35: 03030 | C35: Allegan Area Educational Service Agency | D35: 03 | E35: LEA | F35: 06 | G35: 26 | H35: 080 | I35: Instructional Staff Support | J35: 220 | K35: 472422.55 | L35: 229394.19 | M35: 199286.11 | N35: 51756.44 | O35: 3183.34 | P35: 956042.63 | Q35: 49.41438124 | R35: 23.99413821 | S35: 20.84489789 | T35: 5.413612152 | U35: 0.3329705078 | V35: 100
A36: Allegan Public Schools | B36: 03030 | C36: Allegan Area Educational Service Agency | D36: 03 | E36: LEA | F36: 06 | G36: 26 | H36: 080 | I36: General Administration | J36: 230 | K36: 173256.08 | L36: 95760.74 | M36: 187577.49 | N36: 3006.14 | O36: 18511.78 | P36: 478112.23 | Q36: 36.2375336 | R36: 20.02892501 | S36: 39.23294119 | T36: 0.6287519564 | U36: 3.871848248 | V36: 100
A37: Allegan Public Schools | B37: 03030 | C37: Allegan Area Educational Service Agency | D37: 03 | E37: LEA | F37: 06 | G37: 26 | H37: 080 | I37: School Administration | J37: 240 | K37: 782811.9 | L37: 449492.26 | M37: 246247.89 | N37: 22440.97 | O37: 14796.75 | P37: 1515789.77 | Q37: 51.64383053 | R37: 29.65399747 | S37: 16.24551734 | T37: 1.48048037 | U37: 0.9761742883 | V37: 100
A38: Allegan Public Schools | B38: 03030 | C38: Allegan Area Educational Service Agency | D38: 03 | E38: LEA | F38: 06 | G38: 26 | H38: 080 | I38: Business Office | J38: 250 | K38: 198284.46 | L38: 122587.32 | M38: 72667.3 | N38: 2801.77 | O38: 126814.58 | P38: 523155.43 | Q38: 37.9016347 | R38: 23.4322943 | S38: 13.89019321 | T38: 0.5355521207 | U38: 24.24032567 | V38: 100
A39: Allegan Public Schools | B39: 03030 | C39: Allegan Area Educational Service Agency | D39: 03 | E39: LEA | F39: 06 | G39: 26 | H39: 080 | I39: Operational Maintenance | J39: 260 | K39: 547250.39 | L39: 321903.64 | M39: 783454.39 | N39: 671840.64 | O39: 132 | P39: 2324581.06 | Q39: 23.54189318 | R39: 13.84781308 | S39: 33.70303594 | T39: 28.90157937 | U39: 0.0056784425 | V39: 100
A40: Allegan Public Schools | B40: 03030 | C40: Allegan Area Educational Service Agency | D40: 03 | E40: LEA | F40: 06 | G40: 26 | H40: 080 | I40: Transportation | J40: 270 | K40: 467537.86 | L40: 317819.59 | M40: 53941.11 | N40: 156987.67 | O40: 3124.22 | P40: 999410.45 | Q40: 46.78136595 | R40: 31.80070711 | S40: 5.397292974 | T40: 15.70802767 | U40: 0.312606297 | V40: 100
A41: Allegan Public Schools | B41: 03030 | C41: Allegan Area Educational Service Agency | D41: 03 | E41: LEA | F41: 06 | G41: 26 | H41: 080 | I41: Other Support | J41: 280 | K41: 228273.94 | L41: 74107.61 | M41: 175026.99 | N41: 26911.04 | O41: 43166.08 | P41: 547485.66 | Q41: 41.69496238 | R41: 13.53599106 | S41: 31.96923733 | T41: 4.91538719 | U41: 7.884422032 | V41: 100
A42: Allegan Public Schools | B42: 03030 | C42: Allegan Area Educational Service Agency | D42: 03 | E42: LEA | F42: 06 | G42: 26 | H42: 080 | I42: Community Services | J42: 300 | K42: 185036.6 | L42: 57117.84 | M42: 9751.32 | N42: 4868.54 | O42: 700 | P42: 257474.3 | Q42: 71.86604644 | R42: 22.18389952 | S42: 3.787298383 | T42: 1.890883867 | U42: 0.2718717946 | V42: 100
A43: Wayland Union Schools | B43: 03040 | C43: Allegan Area Educational Service Agency | D43: 03 | E43: LEA | F43: 06 | G43: 26 | H43: 072 | I43: Instruction | J43: 100 | K43: 8937111.14 | L43: 5809474.93 | M43: 372688.68 | N43: 302836.54 | O43: 100996.59 | P43: 15523107.88 | Q43: 57.57295001 | R43: 37.42468953 | S43: 2.400863815 | T43: 1.950875703 | U43: 0.6506209374 | V43: 100
A44: Wayland Union Schools | B44: 03040 | C44: Allegan Area Educational Service Agency | D44: 03 | E44: LEA | F44: 06 | G44: 26 | H44: 072 | I44: Student Services | J44: 210 | K44: 690871.88 | L44: 447259.08 | M44: 380943.34 | N44: 9240.54 | O44: 0 | P44: 1528314.84 | Q44: 45.20481395 | R44: 29.26485226 | S44: 24.92571099 | T44: 0.6046228014 | U44: 0 | V44: 100
A45: Wayland Union Schools | B45: 03040 | C45: Allegan Area Educational Service Agency | D45: 03 | E45: LEA | F45: 06 | G45: 26 | H45: 072 | I45: Instructional Staff Support | J45: 220 | K45: 532776.96 | L45: 332136.98 | M45: 131575.36 | N45: 93447.94 | O45: 532.34 | P45: 1090469.58 | Q45: 48.85757198 | R45: 30.45816097 | S45: 12.06593585 | T45: 8.569513695 | U45: 0.0488175012 | V45: 100
A46: Wayland Union Schools | B46: 03040 | C46: Allegan Area Educational Service Agency | D46: 03 | E46: LEA | F46: 06 | G46: 26 | H46: 072 | I46: General Administration | J46: 230 | K46: 189722.53 | L46: 71355.35 | M46: 132672.81 | N46: 1529.35 | O46: 12705.93 | P46: 407985.97 | Q46: 46.50221918 | R46: 17.48965779 | S46: 32.51896383 | T46: 0.3748535765 | U46: 3.114305622 | V46: 100
A47: Wayland Union Schools | B47: 03040 | C47: Allegan Area Educational Service Agency | D47: 03 | E47: LEA | F47: 06 | G47: 26 | H47: 072 | I47: School Administration | J47: 240 | K47: 1053504.34 | L47: 601255.25 | M47: 2804.53 | N47: 19925.7 | O47: 3755.16 | P47: 1681244.98 | Q47: 62.66215528 | R47: 35.76250083 | S47: 0.1668126914 | T47: 1.185175286 | U47: 0.2233559085 | V47: 100
A48: Wayland Union Schools | B48: 03040 | C48: Allegan Area Educational Service Agency | D48: 03 | E48: LEA | F48: 06 | G48: 26 | H48: 072 | I48: Business Office | J48: 250 | K48: 248408.67 | L48: 151083.82 | M48: 66764.41 | N48: 1766.21 | O48: 19591.32 | P48: 487614.43 | Q48: 50.9436667 | R48: 30.98427994 | S48: 13.69204968 | T48: 0.3622144652 | U48: 4.017789219 | V48: 100
A49: Wayland Union Schools | B49: 03040 | C49: Allegan Area Educational Service Agency | D49: 03 | E49: LEA | F49: 06 | G49: 26 | H49: 072 | I49: Operational Maintenance | J49: 260 | K49: 195300.97 | L49: 206318.92 | M49: 1035464.4 | N49: 760898.19 | O49: 314 | P49: 2198296.48 | Q49: 8.884196093 | R49: 9.385400098 | S49: 47.1030368 | T49: 34.61308322 | U49: 0.0142837876 | V49: 100
A50: Wayland Union Schools | B50: 03040 | C50: Allegan Area Educational Service Agency | D50: 03 | E50: LEA | F50: 06 | G50: 26 | H50: 072 | I50: Transportation | J50: 270 | K50: 501075.8 | L50: 220604.65 | M50: 122436.19 | N50: 197896.77 | O50: 2278.7 | P50: 1044292.11 | Q50: 47.98234088 | R50: 21.12480291 | S50: 11.72432395 | T50: 18.95032703 | U50: 0.21820523 | V50: 100
A51: Wayland Union Schools | B51: 03040 | C51: Allegan Area Educational Service Agency | D51: 03 | E51: LEA | F51: 06 | G51: 26 | H51: 072 | I51: Other Support | J51: 280 | K51: 677578.72 | L51: 372255.4 | M51: 231949.68 | N51: 26144.64 | O51: 21546.43 | P51: 1329474.87 | Q51: 50.96589152 | R51: 28.00018326 | S51: 17.44671413 | T51: 1.966538864 | U51: 1.620672228 | V51: 100
A52: Wayland Union Schools | B52: 03040 | C52: Allegan Area Educational Service Agency | D52: 03 | E52: LEA | F52: 06 | G52: 26 | H52: 072 | I52: Community Services | J52: 300 | K52: 83039.98 | L52: 50299.1 | M52: 110527.77 | N52: 10757 | O52: 6441.45 | P52: 261065.3 | Q52: 31.80812617 | R52: 19.26686542 | S52: 42.33721218 | T52: 4.120425043 | U52: 2.46737119 | V52: 100
A53: Fennville Public Schools | B53: 03050 | C53: Allegan Area Educational Service Agency | D53: 03 | E53: LEA | F53: 06 | G53: 26 | H53: 080 | I53: Instruction | J53: 100 | K53: 4084238.03 | L53: 2703509.3 | M53: 311730.67 | N53: 166693.38 | O53: 17425.95 | P53: 7283597.33 | Q53: 56.07446218 | R53: 37.11777543 | S53: 4.279899834 | T53: 2.288613338 | U53: 0.2392492227 | V53: 100
A54: Fennville Public Schools | B54: 03050 | C54: Allegan Area Educational Service Agency | D54: 03 | E54: LEA | F54: 06 | G54: 26 | H54: 080 | I54: Student Services | J54: 210 | K54: 181918.15 | L54: 113827.9 | M54: 64856.59 | N54: 2349.76 | O54: 177.5 | P54: 363129.9 | Q54: 50.09726547 | R54: 31.34633089 | S54: 17.86043782 | T54: 0.6470852442 | U54: 0.0488805796 | V54: 100
A55: Fennville Public Schools | B55: 03050 | C55: Allegan Area Educational Service Agency | D55: 03 | E55: LEA | F55: 06 | G55: 26 | H55: 080 | I55: Instructional Staff Support | J55: 220 | K55: 107863.29 | L55: 56107.1 | M55: 32374.36 | N55: 2654.01 | O55: 778.6 | P55: 199777.36 | Q55: 53.99174861 | R55: 28.08481401 | S55: 16.20521965 | T55: 1.328483868 | U55: 0.3897338517 | V55: 100
A56: Fennville Public Schools | B56: 03050 | C56: Allegan Area Educational Service Agency | D56: 03 | E56: LEA | F56: 06 | G56: 26 | H56: 080 | I56: General Administration | J56: 230 | K56: 169100.9 | L56: 103849.01 | M56: 78076.58 | N56: 2494.03 | O56: 14675.68 | P56: 368196.2 | Q56: 45.92684552 | R56: 28.20480222 | S56: 21.20515638 | T56: 0.6773644052 | U56: 3.985831467 | V56: 100
A57: Fennville Public Schools | B57: 03050 | C57: Allegan Area Educational Service Agency | D57: 03 | E57: LEA | F57: 06 | G57: 26 | H57: 080 | I57: School Administration | J57: 240 | K57: 453408.09 | L57: 313403.17 | M57: 534.63 | N57: 4231.38 | O57: 1862.7 | P57: 773439.97 | Q57: 58.62227291 | R57: 40.52068449 | S57: 0.069123658 | T57: 0.547085768 | U57: 0.2408331703 | V57: 100
A58: Fennville Public Schools | B58: 03050 | C58: Allegan Area Educational Service Agency | D58: 03 | E58: LEA | F58: 06 | G58: 26 | H58: 080 | I58: Business Office | J58: 250 | K58: 61861 | L58: 42862.36 | M58: 98938.01 | N58: 2082.55 | O58: 86464.76 | P58: 292208.68 | Q58: 21.17014457 | R58: 14.66840752 | S58: 33.85868277 | T58: 0.7126927236 | U58: 29.59007241 | V58: 100
A59: Fennville Public Schools | B59: 03050 | C59: Allegan Area Educational Service Agency | D59: 03 | E59: LEA | F59: 06 | G59: 26 | H59: 080 | I59: Operational Maintenance | J59: 260 | K59: 126415.55 | L59: 69141.43 | M59: 876271.82 | N59: 496718.74 | O59: 4413.88 | P59: 1572961.42 | Q59: 8.036786433 | R59: 4.395621477 | S59: 55.70841146 | T59: 31.57857107 | U59: 0.2806095524 | V59: 100
A60: Fennville Public Schools | B60: 03050 | C60: Allegan Area Educational Service Agency | D60: 03 | E60: LEA | F60: 06 | G60: 26 | H60: 080 | I60: Transportation | J60: 270 | K60: 345098.84 | L60: 175567.67 | M60: 59690.57 | N60: 140291.63 | O60: 1525.7 | P60: 722174.41 | Q60: 47.78607982 | R60: 24.31097912 | S60: 8.265395336 | T60: 19.42628097 | U60: 0.2112647553 | V60: 100
A61: Fennville Public Schools | B61: 03050 | C61: Allegan Area Educational Service Agency | D61: 03 | E61: LEA | F61: 06 | G61: 26 | H61: 080 | I61: Other Support | J61: 280 | K61: 172527.76 | L61: 86769.77 | M61: 247521.53 | N61: 9657.3 | O61: 5946.99 | P61: 522423.35 | Q61: 33.02451163 | R61: 16.60909107 | S61: 47.37949213 | T61: 1.848558262 | U61: 1.138346898 | V61: 100
A62: Fennville Public Schools | B62: 03050 | C62: Allegan Area Educational Service Agency | D62: 03 | E62: LEA | F62: 06 | G62: 26 | H62: 080 | I62: Community Services | J62: 300 | K62: 51136.52 | L62: 25209.92 | M62: 2844.55 | N62: 0 | O62: 0 | P62: 79190.99 | Q62: 64.5736592 | R62: 31.83432863 | S62: 3.592012172 | T62: 0 | U62: 0 | V62: 100
A63: Martin Public Schools | B63: 03060 | C63: Allegan Area Educational Service Agency | D63: 03 | E63: LEA | F63: 06 | G63: 26 | H63: 080 | I63: Instruction | J63: 100 | K63: 1736620.57 | L63: 1161682.4 | M63: 166199 | N63: 44956.05 | O63: 4828.86 | P63: 3114286.88 | Q63: 55.76302495 | R63: 37.30171448 | S63: 5.33666314 | T63: 1.44354235 | U63: 0.1550550796 | V63: 100
A64: Martin Public Schools | B64: 03060 | C64: Allegan Area Educational Service Agency | D64: 03 | E64: LEA | F64: 06 | G64: 26 | H64: 080 | I64: Student Services | J64: 210 | K64: 61523.11 | L64: 40701.56 | M64: 42165.45 | N64: 2811.85 | O64: 0 | P64: 147201.97 | Q64: 41.79503168 | R64: 27.65014626 | S64: 28.64462344 | T64: 1.91019862 | U64: 0 | V64: 100
A65: Martin Public Schools | B65: 03060 | C65: Allegan Area Educational Service Agency | D65: 03 | E65: LEA | F65: 06 | G65: 26 | H65: 080 | I65: Instructional Staff Support | J65: 220 | K65: 12446.87 | L65: 4919.33 | M65: 7196.73 | N65: 2514.72 | O65: 0 | P65: 27077.65 | Q65: 45.96731991 | R65: 18.16749238 | S65: 26.57811885 | T65: 9.287068856 | U65: 0 | V65: 100
A66: Martin Public Schools | B66: 03060 | C66: Allegan Area Educational Service Agency | D66: 03 | E66: LEA | F66: 06 | G66: 26 | H66: 080 | I66: General Administration | J66: 230 | K66: 69722.44 | L66: 56024.44 | M66: 36992.41 | N66: 6116.84 | O66: 33365.6 | P66: 202221.73 | Q66: 34.47821359 | R66: 27.70446084 | S66: 18.29299453 | T66: 3.024818352 | U66: 16.49951269 | V66: 100
A67: Martin Public Schools | B67: 03060 | C67: Allegan Area Educational Service Agency | D67: 03 | E67: LEA | F67: 06 | G67: 26 | H67: 080 | I67: School Administration | J67: 240 | K67: 230298.76 | L67: 142989.18 | M67: 10735.05 | N67: 1099.36 | O67: 1219.34 | P67: 386341.69 | Q67: 59.61012388 | R67: 37.01106655 | S67: 2.778641363 | T67: 0.2845563988 | U67: 0.3156118098 | V67: 100
A68: Martin Public Schools | B68: 03060 | C68: Allegan Area Educational Service Agency | D68: 03 | E68: LEA | F68: 06 | G68: 26 | H68: 080 | I68: Business Office | J68: 250 | K68: 40000 | L68: 23611.38 | M68: 46521.82 | N68: 0 | O68: 18738.26 | P68: 128871.46 | Q68: 31.03867994 | R68: 18.32165167 | S68: 36.09939703 | T68: 0 | U68: 14.54027137 | V68: 100
A69: Martin Public Schools | B69: 03060 | C69: Allegan Area Educational Service Agency | D69: 03 | E69: LEA | F69: 06 | G69: 26 | H69: 080 | I69: Operational Maintenance | J69: 260 | K69: 115745.31 | L69: 83794.82 | M69: 91295.16 | N69: 135375.2 | O69: 9691.64 | P69: 435902.13 | Q69: 26.55304988 | R69: 19.22331052 | S69: 20.94395822 | T69: 31.05632909 | U69: 2.223352292 | V69: 100
A70: Martin Public Schools | B70: 03060 | C70: Allegan Area Educational Service Agency | D70: 03 | E70: LEA | F70: 06 | G70: 26 | H70: 080 | I70: Transportation | J70: 270 | K70: 92773.24 | L70: 40831.85 | M70: 45862.57 | N70: 33937.55 | O70: 456.41 | P70: 213861.62 | Q70: 43.38003238 | R70: 19.09264972 | S70: 21.44497456 | T70: 15.86892964 | U70: 0.2134137018 | V70: 100
A71: Martin Public Schools | B71: 03060 | C71: Allegan Area Educational Service Agency | D71: 03 | E71: LEA | F71: 06 | G71: 26 | H71: 080 | I71: Other Support | J71: 280 | K71: 87621.28 | L71: 48445.53 | M71: 103317.77 | N71: 16290.32 | O71: 3676.99 | P71: 259351.89 | Q71: 33.78470849 | R71: 18.67945902 | S71: 39.83690653 | T71: 6.281164945 | U71: 1.41776102 | V71: 100
A72: Martin Public Schools | B72: 03060 | C72: Allegan Area Educational Service Agency | D72: 03 | E72: LEA | F72: 06 | G72: 26 | H72: 080 | I72: Community Services | J72: 300 | K72: 0 | L72: 0 | M72: 5229.2 | N72: 0 | O72: 0 | P72: 5229.2 | Q72: 0 | R72: 0 | S72: 100 | T72: 0 | U72: 0 | V72: 100
A73: Hopkins Public Schools | B73: 03070 | C73: Allegan Area Educational Service Agency | D73: 03 | E73: LEA | F73: 06 | G73: 26 | H73: 080 | I73: Instruction | J73: 100 | K73: 4555997.34 | L73: 3224682.89 | M73: 257557.23 | N73: 193711.72 | O73: 7511.98 | P73: 8239461.16 | Q73: 55.29484576 | R73: 39.13706039 | S73: 3.125898951 | T73: 2.351024129 | U73: 0.0911707678 | V73: 100
A74: Hopkins Public Schools | B74: 03070 | C74: Allegan Area Educational Service Agency | D74: 03 | E74: LEA | F74: 06 | G74: 26 | H74: 080 | I74: Student Services | J74: 210 | K74: 249591.71 | L74: 165304.27 | M74: 245226.33 | N74: 5931.12 | O74: 879.52 | P74: 666932.95 | Q74: 37.4238085 | R74: 24.78574046 | S74: 36.76926294 | T74: 0.8893127862 | U74: 0.1318753257 | V74: 100
A75: Hopkins Public Schools | B75: 03070 | C75: Allegan Area Educational Service Agency | D75: 03 | E75: LEA | F75: 06 | G75: 26 | H75: 080 | I75: Instructional Staff Support | J75: 220 | K75: 73817.2 | L75: 34384.76 | M75: 61011.52 | N75: 10985.58 | O75: 7526.7 | P75: 187725.76 | Q75: 39.32182776 | R75: 18.31648464 | S75: 32.50034518 | T75: 5.851929964 | U75: 4.009412454 | V75: 100
A76: Hopkins Public Schools | B76: 03070 | C76: Allegan Area Educational Service Agency | D76: 03 | E76: LEA | F76: 06 | G76: 26 | H76: 080 | I76: General Administration | J76: 230 | K76: 139530.33 | L76: 74777.16 | M76: 84744.66 | N76: 2104.01 | O76: 14696.58 | P76: 315852.74 | Q76: 44.17575418 | R76: 23.67469093 | S76: 26.8304337 | T76: 0.6661363774 | U76: 4.652984806 | V76: 100
A77: Hopkins Public Schools | B77: 03070 | C77: Allegan Area Educational Service Agency | D77: 03 | E77: LEA | F77: 06 | G77: 26 | H77: 080 | I77: School Administration | J77: 240 | K77: 453958.9 | L77: 285398.88 | M77: 8630.12 | N77: 8835.18 | O77: 2471.55 | P77: 759294.63 | Q77: 59.78692356 | R77: 37.58736974 | S77: 1.136597002 | T77: 1.163603646 | U77: 0.3255060555 | V77: 100
A78: Hopkins Public Schools | B78: 03070 | C78: Allegan Area Educational Service Agency | D78: 03 | E78: LEA | F78: 06 | G78: 26 | H78: 080 | I78: Business Office | J78: 250 | K78: 92527.67 | L78: 49076.22 | M78: 41617.07 | N78: 2351.76 | O78: 8309.5 | P78: 193882.22 | Q78: 47.72364892 | R78: 25.31238811 | S78: 21.46512971 | T78: 1.212983841 | U78: 4.285849419 | V78: 100
A79: Hopkins Public Schools | B79: 03070 | C79: Allegan Area Educational Service Agency | D79: 03 | E79: LEA | F79: 06 | G79: 26 | H79: 080 | I79: Operational Maintenance | J79: 260 | K79: 457789.51 | L79: 337073.4 | M79: 289065.7 | N79: 383495.89 | O79: 4025 | P79: 1471449.5 | Q79: 31.11146594 | R79: 22.90757515 | S79: 19.64496233 | T79: 26.06245678 | U79: 0.2735397987 | V79: 100
A80: Hopkins Public Schools | B80: 03070 | C80: Allegan Area Educational Service Agency | D80: 03 | E80: LEA | F80: 06 | G80: 26 | H80: 080 | I80: Transportation | J80: 270 | K80: 401609.16 | L80: 248795.25 | M80: 36763.48 | N80: 133804.59 | O80: 6755.89 | P80: 827728.37 | Q80: 48.51943881 | R80: 30.05759607 | S80: 4.441490872 | T80: 16.16527775 | U80: 0.8161965018 | V80: 100
A81: Hopkins Public Schools | B81: 03070 | C81: Allegan Area Educational Service Agency | D81: 03 | E81: LEA | F81: 06 | G81: 26 | H81: 080 | I81: Other Support | J81: 280 | K81: 314239.2 | L81: 159037.57 | M81: 195769.61 | N81: 29741.36 | O81: 15922.37 | P81: 714710.11 | Q81: 43.96736461 | R81: 22.25203866 | S81: 27.39147065 | T81: 4.161317936 | U81: 2.227808139 | V81: 100
A82: Hopkins Public Schools | B82: 03070 | C82: Allegan Area Educational Service Agency | D82: 03 | E82: LEA | F82: 06 | G82: 26 | H82: 080 | I82: Community Services | J82: 300 | K82: 12312.89 | L82: 4761.6 | M82: 5476.43 | N82: 305.32 | O82: 1348.08 | P82: 24204.32 | Q82: 50.87062971 | R82: 19.67252127 | S82: 22.62583704 | T82: 1.261427712 | U82: 5.569584273 | V82: 100
A83: Glenn Public School District | B83: 03440 | C83: Allegan Area Educational Service Agency | D83: 03 | E83: LEA | F83: 06 | G83: 26 | H83: 080 | I83: Instruction | J83: 100 | K83: 236378.53 | L83: 130557.46 | M83: 27751.19 | N83: 20127.16 | O83: 0 | P83: 414814.34 | Q83: 56.98417514 | R83: 31.47370942 | S83: 6.690026676 | T83: 4.852088768 | U83: 0 | V83: 100
A84: Glenn Public School District | B84: 03440 | C84: Allegan Area Educational Service Agency | D84: 03 | E84: LEA | F84: 06 | G84: 26 | H84: 080 | I84: Instructional Staff Support | J84: 220 | K84: 1600 | L84: 279 | M84: 0 | N84: 3529 | O84: 0 | P84: 5408 | Q84: 29.58579882 | R84: 5.159023669 | S84: 0 | T84: 65.25517751 | U84: 0 | V84: 100
A85: Glenn Public School District | B85: 03440 | C85: Allegan Area Educational Service Agency | D85: 03 | E85: LEA | F85: 06 | G85: 26 | H85: 080 | I85: General Administration | J85: 230 | K85: 48841.34 | L85: 8865.41 | M85: 9623.14 | N85: 803.96 | O85: 1836.76 | P85: 69970.61 | Q85: 69.80265 | R85: 12.6701911 | S85: 13.7531172 | T85: 1.1489967 | U85: 2.625045001 | V85: 100
A86: Glenn Public School District | B86: 03440 | C86: Allegan Area Educational Service Agency | D86: 03 | E86: LEA | F86: 06 | G86: 26 | H86: 080 | I86: Business Office | J86: 250 | K86: 4354.93 | L86: 1315.72 | M86: 185 | N86: 0 | O86: 1 | P86: 5856.65 | Q86: 74.35872043 | R86: 22.46540258 | S86: 3.158802387 | T86: 0 | U86: 0.0170746075 | V86: 100
A87: Glenn Public School District | B87: 03440 | C87: Allegan Area Educational Service Agency | D87: 03 | E87: LEA | F87: 06 | G87: 26 | H87: 080 | I87: Operational Maintenance | J87: 260 | K87: 17219.78 | L87: 5580.54 | M87: 21094.15 | N87: 12226.6 | O87: 0 | P87: 56121.07 | Q87: 30.68327101 | R87: 9.943751963 | S87: 37.58686354 | T87: 21.78611349 | U87: 0 | V87: 100
A88: Glenn Public School District | B88: 03440 | C88: Allegan Area Educational Service Agency | D88: 03 | E88: LEA | F88: 06 | G88: 26 | H88: 080 | I88: Other Support | J88: 280 | K88: 0 | L88: 0 | M88: 943.5 | N88: 0 | O88: 0 | P88: 943.5 | Q88: 0 | R88: 0 | S88: 100 | T88: 0 | U88: 0 | V88: 100
A89: Innocademy Allegan Campus | B89: 03900 | C89: Allegan Area Educational Service Agency | D89: 03 | E89: PSA | F89: 06 | G89: 26 | H89: 080 | I89: Instruction | J89: 100 | K89: 0 | L89: 0 | M89: 199086.47 | N89: 38746.94 | O89: 372.97 | P89: 238206.38 | Q89: 0 | R89: 0 | S89: 83.57730385 | T89: 16.26612184 | U89: 0.1565743117 | V89: 100
A90: Innocademy Allegan Campus | B90: 03900 | C90: Allegan Area Educational Service Agency | D90: 03 | E90: PSA | F90: 06 | G90: 26 | H90: 080 | I90: Student Services | J90: 210 | K90: 0 | L90: 0 | M90: 14153.47 | N90: 0 | O90: 0 | P90: 14153.47 | Q90: 0 | R90: 0 | S90: 100 | T90: 0 | U90: 0 | V90: 100
A91: Innocademy Allegan Campus | B91: 03900 | C91: Allegan Area Educational Service Agency | D91: 03 | E91: PSA | F91: 06 | G91: 26 | H91: 080 | I91: Instructional Staff Support | J91: 220 | K91: 0 | L91: 0 | M91: 6935.27 | N91: 1466.53 | O91: 0 | P91: 8401.8 | Q91: 0 | R91: 0 | S91: 82.54504987 | T91: 17.45495013 | U91: 0 | V91: 100
A92: Innocademy Allegan Campus | B92: 03900 | C92: Allegan Area Educational Service Agency | D92: 03 | E92: PSA | F92: 06 | G92: 26 | H92: 080 | I92: General Administration | J92: 230 | K92: 0 | L92: 0 | M92: 33877 | N92: 0 | O92: 760 | P92: 34637 | Q92: 0 | R92: 0 | S92: 97.80581459 | T92: 0 | U92: 2.194185409 | V92: 100
A93: Innocademy Allegan Campus | B93: 03900 | C93: Allegan Area Educational Service Agency | D93: 03 | E93: PSA | F93: 06 | G93: 26 | H93: 080 | I93: School Administration | J93: 240 | K93: 0 | L93: 0 | M93: 6544.39 | N93: 0 | O93: 463.88 | P93: 7008.27 | Q93: 0 | R93: 0 | S93: 93.38096278 | T93: 0 | U93: 6.619037223 | V93: 100
A94: Innocademy Allegan Campus | B94: 03900 | C94: Allegan Area Educational Service Agency | D94: 03 | E94: PSA | F94: 06 | G94: 26 | H94: 080 | I94: Business Office | J94: 250 | K94: 0 | L94: 0 | M94: 28325.44 | N94: 181.1 | O94: 0 | P94: 28506.54 | Q94: 0 | R94: 0 | S94: 99.36470719 | T94: 0.6352928135 | U94: 0 | V94: 100
A95: Innocademy Allegan Campus | B95: 03900 | C95: Allegan Area Educational Service Agency | D95: 03 | E95: PSA | F95: 06 | G95: 26 | H95: 080 | I95: Operational Maintenance | J95: 260 | K95: 0 | L95: 0 | M95: 64448.91 | N95: 20409.99 | O95: 913 | P95: 85771.9 | Q95: 0 | R95: 0 | S95: 75.13988847 | T95: 23.79566035 | U95: 1.064451178 | V95: 100
A96: Innocademy Allegan Campus | B96: 03900 | C96: Allegan Area Educational Service Agency | D96: 03 | E96: PSA | F96: 06 | G96: 26 | H96: 080 | I96: Transportation | J96: 270 | K96: 0 | L96: 0 | M96: 9156.05 | N96: 2438.25 | O96: 0 | P96: 11594.3 | Q96: 0 | R96: 0 | S96: 78.97026987 | T96: 21.02973013 | U96: 0 | V96: 100
A97: Innocademy Allegan Campus | B97: 03900 | C97: Allegan Area Educational Service Agency | D97: 03 | E97: PSA | F97: 06 | G97: 26 | H97: 080 | I97: Other Support | J97: 280 | K97: 0 | L97: 0 | M97: 6536 | N97: 0 | O97: 0 | P97: 6536 | Q97: 0 | R97: 0 | S97: 100 | T97: 0 | U97: 0 | V97: 100
A98: Outlook Academy | B98: 03902 | C98: Allegan Area Educational Service Agency | D98: 03 | E98: PSA | F98: 06 | G98: 26 | H98: 080 | I98: Instruction | J98: 100 | K98: 347185.62 | L98: 194252.16 | M98: 37027.14 | N98: 16573.02 | O98: 0 | P98: 595037.94 | Q98: 58.3468039 | R98: 32.64534023 | S98: 6.222651954 | T98: 2.785203915 | U98: 0 | V98: 100
A99: Outlook Academy | B99: 03902 | C99: Allegan Area Educational Service Agency | D99: 03 | E99: PSA | F99: 06 | G99: 26 | H99: 080 | I99: Student Services | J99: 210 | K99: 45275 | L99: 25202.34 | M99: 6868.25 | N99: 99.98 | O99: 0 | P99: 77445.57 | Q99: 58.46041291 | R99: 32.54200337 | S99: 8.868486603 | T99: 0.1290971194 | U99: 0 | V99: 100
A100: Outlook Academy | B100: 03902 | C100: Allegan Area Educational Service Agency | D100: 03 | E100: PSA | F100: 06 | G100: 26 | H100: 080 | I100: Instructional Staff Support | J100: 220 | K100: 8083.78 | L100: 3220.61 | M100: 5702.81 | N100: 136.82 | O100: 0 | P100: 17144.02 | Q100: 47.15218484 | R100: 18.78561738 | S100: 33.26413525 | T100: 0.7980625314 | U100: 0 | V100: 100
A101: Outlook Academy | B101: 03902 | C101: Allegan Area Educational Service Agency | D101: 03 | E101: PSA | F101: 06 | G101: 26 | H101: 080 | I101: General Administration | J101: 230 | K101: 0 | L101: 0 | M101: 12800 | N101: 0 | O101: 226.74 | P101: 13026.74 | Q101: 0 | R101: 0 | S101: 98.25942638 | T101: 0 | U101: 1.74057362 | V101: 100
A102: Outlook Academy | B102: 03902 | C102: Allegan Area Educational Service Agency | D102: 03 | E102: PSA | F102: 06 | G102: 26 | H102: 080 | I102: School Administration | J102: 240 | K102: 38399.85 | L102: 15986.7 | M102: 1606.34 | N102: 587.07 | O102: 0 | P102: 56579.96 | Q102: 67.86828764 | R102: 28.25505709 | S102: 2.839061746 | T102: 1.037593522 | U102: 0 | V102: 100
A103: Outlook Academy | B103: 03902 | C103: Allegan Area Educational Service Agency | D103: 03 | E103: PSA | F103: 06 | G103: 26 | H103: 080 | I103: Business Office | J103: 250 | K103: 13560 | L103: 5736.59 | M103: 0 | N103: 0 | O103: 5 | P103: 19301.59 | Q103: 70.25327965 | R103: 29.72081575 | S103: 0 | T103: 0 | U103: 0.0259046016 | V103: 100
A104: Outlook Academy | B104: 03902 | C104: Allegan Area Educational Service Agency | D104: 03 | E104: PSA | F104: 06 | G104: 26 | H104: 080 | I104: Operational Maintenance | J104: 260 | K104: 0 | L104: 0 | M104: 22241.35 | N104: 9787.61 | O104: 688.57 | P104: 32717.53 | Q104: 0 | R104: 0 | S104: 67.9799178 | T104: 29.91549179 | U104: 2.104590414 | V104: 100
A105: Outlook Academy | B105: 03902 | C105: Allegan Area Educational Service Agency | D105: 03 | E105: PSA | F105: 06 | G105: 26 | H105: 080 | I105: Transportation | J105: 270 | K105: 0 | L105: 0 | M105: 27952.78 | N105: 0 | O105: 0 | P105: 27952.78 | Q105: 0 | R105: 0 | S105: 100 | T105: 0 | U105: 0 | V105: 100
A106: Outlook Academy | B106: 03902 | C106: Allegan Area Educational Service Agency | D106: 03 | E106: PSA | F106: 06 | G106: 26 | H106: 080 | I106: Community Services | J106: 300 | K106: 0 | L106: 0 | M106: 0 | N106: 200 | O106: 0 | P106: 200 | Q106: 0 | R106: 0 | S106: 0 | T106: 100 | U106: 0 | V106: 100
A107: Alcona Community Schools | B107: 01010 | C107: Alpena-Montmorency-Alcona ESD | D107: 04 | E107: LEA | F107: 01 | G107: 36 | H107: 106 | I107: Instruction | J107: 100 | K107: 2526959.75 | L107: 1652702.98 | M107: 211454.41 | N107: 170897.91 | O107: 6464.83 | P107: 4568479.88 | Q107: 55.31292282 | R107: 36.17621229 | S107: 4.628550756 | T107: 3.740804698 | U107: 0.1415094335 | V107: 100
A108: Alcona Community Schools | B108: 01010 | C108: Alpena-Montmorency-Alcona ESD | D108: 04 | E108: LEA | F108: 01 | G108: 36 | H108: 106 | I108: Student Services | J108: 210 | K108: 6496.22 | L108: 2560.63 | M108: 331442 | N108: 0 | O108: 0 | P108: 340498.85 | Q108: 1.907853727 | R108: 0.7520230979 | S108: 97.34012318 | T108: 0 | U108: 0 | V108: 100
A109: Alcona Community Schools | B109: 01010 | C109: Alpena-Montmorency-Alcona ESD | D109: 04 | E109: LEA | F109: 01 | G109: 36 | H109: 106 | I109: Instructional Staff Support | J109: 220 | K109: 40889.18 | L109: 17237 | M109: 9756.88 | N109: 0 | O109: 0 | P109: 67883.06 | Q109: 60.23473308 | R109: 25.39219652 | S109: 14.37307039 | T109: 0 | U109: 0 | V109: 100
A110: Alcona Community Schools | B110: 01010 | C110: Alpena-Montmorency-Alcona ESD | D110: 04 | E110: LEA | F110: 01 | G110: 36 | H110: 106 | I110: General Administration | J110: 230 | K110: 122934.86 | L110: 64762.62 | M110: 48795.41 | N110: 0 | O110: 16862.5 | P110: 253355.39 | Q110: 48.52269375 | R110: 25.56196653 | S110: 19.25966919 | T110: 0 | U110: 6.655670519 | V110: 100
A111: Alcona Community Schools | B111: 01010 | C111: Alpena-Montmorency-Alcona ESD | D111: 04 | E111: LEA | F111: 01 | G111: 36 | H111: 106 | I111: School Administration | J111: 240 | K111: 248177.21 | L111: 173860.49 | M111: 628.86 | N111: 15042.48 | O111: 48 | P111: 437757.04 | Q111: 56.69291121 | R111: 39.71620651 | S111: 0.1436550284 | T111: 3.43626227 | U111: 0.0109649864 | V111: 100
A112: Alcona Community Schools | B112: 01010 | C112: Alpena-Montmorency-Alcona ESD | D112: 04 | E112: LEA | F112: 01 | G112: 36 | H112: 106 | I112: Business Office | J112: 250 | K112: 55226 | L112: 38779.56 | M112: 67944.87 | N112: 2899.11 | O112: 4432.77 | P112: 169282.31 | Q112: 32.62360964 | R112: 22.90821764 | S112: 40.13701727 | T112: 1.71258887 | U112: 2.618566583 | V112: 100
A113: Alcona Community Schools | B113: 01010 | C113: Alpena-Montmorency-Alcona ESD | D113: 04 | E113: LEA | F113: 01 | G113: 36 | H113: 106 | I113: Operational Maintenance | J113: 260 | K113: 120057.06 | L113: 61654.08 | M113: 152623.38 | N113: 206477.6 | O113: 2856.33 | P113: 543668.45 | Q113: 22.08277122 | R113: 11.34038218 | S113: 28.07287787 | T113: 37.97858787 | U113: 0.525380864 | V113: 100
A114: Alcona Community Schools | B114: 01010 | C114: Alpena-Montmorency-Alcona ESD | D114: 04 | E114: LEA | F114: 01 | G114: 36 | H114: 106 | I114: Transportation | J114: 270 | K114: 224249.73 | L114: 185052.26 | M114: 15395.78 | N114: 81345.05 | O114: 1822.32 | P114: 507865.14 | Q114: 44.15536967 | R114: 36.43728333 | S114: 3.031470126 | T114: 16.01705721 | U114: 0.3588196662 | V114: 100
A115: Alcona Community Schools | B115: 01010 | C115: Alpena-Montmorency-Alcona ESD | D115: 04 | E115: LEA | F115: 01 | G115: 36 | H115: 106 | I115: Other Support | J115: 280 | K115: 157332.7 | L115: 60394.26 | M115: 227518.52 | N115: 40356.38 | O115: 0 | P115: 485601.86 | Q115: 32.39952582 | R115: 12.43699108 | S115: 46.85289303 | T115: 8.310590079 | U115: 0 | V115: 100
A116: Alpena-Montmorency-Alcona ESD | B116: 04000 | C116: Alpena-Montmorency-Alcona ESD | D116: 04 | E116: ISD | F116: 01 | G116: 36 | H116: 106 | I116: Instruction | J116: 100 | K116: 75.34 | L116: 31.07 | M116: 611993.85 | N116: 35320.97 | O116: 5764.35 | P116: 653185.58 | Q116: 0.0115342412 | R116: 0.004756688 | S116: 93.69371718 | T116: 5.40749384 | U116: 0.882498049 | V116: 100
A117: Alpena-Montmorency-Alcona ESD | B117: 04000 | C117: Alpena-Montmorency-Alcona ESD | D117: 04 | E117: ISD | F117: 01 | G117: 36 | H117: 106 | I117: Student Services | J117: 210 | K117: 4527.68 | L117: 2128.87 | M117: 2354.44 | N117: 3693.63 | O117: 0 | P117: 12704.62 | Q117: 35.63805923 | R117: 16.75666018 | S117: 18.53215602 | T117: 29.07312458 | U117: 0 | V117: 100
A118: Alpena-Montmorency-Alcona ESD | B118: 04000 | C118: Alpena-Montmorency-Alcona ESD | D118: 04 | E118: ISD | F118: 01 | G118: 36 | H118: 106 | I118: Instructional Staff Support | J118: 220 | K118: 270499.81 | L118: 163901.87 | M118: 56892.96 | N118: 9372.13 | O118: 1035 | P118: 501701.77 | Q118: 53.91645519 | R118: 32.66918313 | S118: 11.33999587 | T118: 1.868067956 | U118: 0.206297857 | V118: 100
A119: Alpena-Montmorency-Alcona ESD | B119: 04000 | C119: Alpena-Montmorency-Alcona ESD | D119: 04 | E119: ISD | F119: 01 | G119: 36 | H119: 106 | I119: General Administration | J119: 230 | K119: 199094.61 | L119: 115369.54 | M119: 40389.59 | N119: 2667.8 | O119: 17593.52 | P119: 375115.06 | Q119: 53.07561099 | R119: 30.75577398 | S119: 10.76725365 | T119: 0.7111951197 | U119: 4.690166265 | V119: 100
A120: Alpena-Montmorency-Alcona ESD | B120: 04000 | C120: Alpena-Montmorency-Alcona ESD | D120: 04 | E120: ISD | F120: 01 | G120: 36 | H120: 106 | I120: School Administration | J120: 240 | K120: 1898.51 | L120: 882.58 | M120: 0 | N120: 0 | O120: 0 | P120: 2781.09 | Q120: 68.26496086 | R120: 31.73503914 | S120: 0 | T120: 0 | U120: 0 | V120: 100
A121: Alpena-Montmorency-Alcona ESD | B121: 04000 | C121: Alpena-Montmorency-Alcona ESD | D121: 04 | E121: ISD | F121: 01 | G121: 36 | H121: 106 | I121: Business Office | J121: 250 | K121: 227556.5 | L121: 127573.7 | M121: 22735.96 | N121: 1449.4 | O121: 2384.62 | P121: 381700.18 | Q121: 59.61655559 | R121: 33.42248882 | S121: 5.95649706 | T121: 0.3797221159 | U121: 0.6247364096 | V121: 100
A122: Alpena-Montmorency-Alcona ESD | B122: 04000 | C122: Alpena-Montmorency-Alcona ESD | D122: 04 | E122: ISD | F122: 01 | G122: 36 | H122: 106 | I122: Operational Maintenance | J122: 260 | K122: 1467.64 | L122: 550.88 | M122: 49388.74 | N122: 19366.58 | O122: 0 | P122: 70773.84 | Q122: 2.073704069 | R122: 0.7783666959 | S122: 69.7838919 | T122: 27.36403733 | U122: 0 | V122: 100
A123: Alpena-Montmorency-Alcona ESD | B123: 04000 | C123: Alpena-Montmorency-Alcona ESD | D123: 04 | E123: ISD | F123: 01 | G123: 36 | H123: 106 | I123: Transportation | J123: 270 | K123: 0 | L123: 0 | M123: 42600 | N123: 0 | O123: 0 | P123: 42600 | Q123: 0 | R123: 0 | S123: 100 | T123: 0 | U123: 0 | V123: 100
A124: Alpena-Montmorency-Alcona ESD | B124: 04000 | C124: Alpena-Montmorency-Alcona ESD | D124: 04 | E124: ISD | F124: 01 | G124: 36 | H124: 106 | I124: Other Support | J124: 280 | K124: 0 | L124: 0 | M124: 109176.56 | N124: 5485.44 | O124: 0 | P124: 114662 | Q124: 0 | R124: 0 | S124: 95.21599135 | T124: 4.784008651 | U124: 0 | V124: 100
A125: Alpena-Montmorency-Alcona ESD | B125: 04000 | C125: Alpena-Montmorency-Alcona ESD | D125: 04 | E125: ISD | F125: 01 | G125: 36 | H125: 106 | I125: Community Services | J125: 300 | K125: 0 | L125: 0 | M125: 22184.37 | N125: 6343.76 | O125: 3246.1 | P125: 31774.23 | Q125: 0 | R125: 0 | S125: 69.81874935 | T125: 19.96511009 | U125: 10.21614056 | V125: 100
A126: Alpena Public Schools | B126: 04010 | C126: Alpena-Montmorency-Alcona ESD | D126: 04 | E126: LEA | F126: 01 | G126: 36 | H126: 106 | I126: Instruction | J126: 100 | K126: 12044836.49 | L126: 7476400.68 | M126: 527453.34 | N126: 385208.46 | O126: 14545 | P126: 20448443.97 | Q126: 58.90343787 | R126: 36.56219853 | S126: 2.579430204 | T126: 1.883803289 | U126: 0.0711301066 | V126: 100
A127: Alpena Public Schools | B127: 04010 | C127: Alpena-Montmorency-Alcona ESD | D127: 04 | E127: LEA | F127: 01 | G127: 36 | H127: 106 | I127: Student Services | J127: 210 | K127: 785713.21 | L127: 491229.92 | M127: 129756.34 | N127: 22932.76 | O127: 0 | P127: 1429632.23 | Q127: 54.9591142 | R127: 34.36057957 | S127: 9.076204165 | T127: 1.604102056 | U127: 0 | V127: 100
A128: Alpena Public Schools | B128: 04010 | C128: Alpena-Montmorency-Alcona ESD | D128: 04 | E128: LEA | F128: 01 | G128: 36 | H128: 106 | I128: Instructional Staff Support | J128: 220 | K128: 562415.42 | L128: 312253 | M128: 82265.12 | N128: 23521.36 | O128: 0 | P128: 980454.9 | Q128: 57.36270174 | R128: 31.84776781 | S128: 8.390505264 | T128: 2.399025187 | U128: 0 | V128: 100
A129: Alpena Public Schools | B129: 04010 | C129: Alpena-Montmorency-Alcona ESD | D129: 04 | E129: LEA | F129: 01 | G129: 36 | H129: 106 | I129: General Administration | J129: 230 | K129: 174952.8 | L129: 102413.96 | M129: 65849.97 | N129: 6547.54 | O129: 0 | P129: 349764.27 | Q129: 50.02020361 | R129: 29.2808525 | S129: 18.82695737 | T129: 1.871986524 | U129: 0 | V129: 100
A130: Alpena Public Schools | B130: 04010 | C130: Alpena-Montmorency-Alcona ESD | D130: 04 | E130: LEA | F130: 01 | G130: 36 | H130: 106 | I130: School Administration | J130: 240 | K130: 1337840.79 | L130: 935562.74 | M130: 16825.55 | N130: 11609.38 | O130: 9437.44 | P130: 2311275.9 | Q130: 57.88321464 | R130: 40.47819388 | S130: 0.7279766989 | T130: 0.5022931274 | U130: 0.4083216547 | V130: 100
A131: Alpena Public Schools | B131: 04010 | C131: Alpena-Montmorency-Alcona ESD | D131: 04 | E131: LEA | F131: 01 | G131: 36 | H131: 106 | I131: Business Office | J131: 250 | K131: 308568.73 | L131: 205843.82 | M131: 15726.42 | N131: 4146.26 | O131: 69153.67 | P131: 603438.9 | Q131: 51.13504118 | R131: 34.1117916 | S131: 2.606132949 | T131: 0.6871051899 | U131: 11.45992908 | V131: 100
A132: Alpena Public Schools | B132: 04010 | C132: Alpena-Montmorency-Alcona ESD | D132: 04 | E132: LEA | F132: 01 | G132: 36 | H132: 106 | I132: Operational Maintenance | J132: 260 | K132: 1008908.43 | L132: 776854.87 | M132: 603788.22 | N132: 992387.44 | O132: 50376.45 | P132: 3432315.41 | Q132: 29.39439735 | R132: 22.63355133 | S132: 17.59128017 | T132: 28.91306076 | U132: 1.467710393 | V132: 100
A133: Alpena Public Schools | B133: 04010 | C133: Alpena-Montmorency-Alcona ESD | D133: 04 | E133: LEA | F133: 01 | G133: 36 | H133: 106 | I133: Transportation | J133: 270 | K133: 702247.25 | L133: 483027.35 | M133: 483458.92 | N133: 276198.06 | O133: 0 | P133: 1944931.58 | Q133: 36.1065272 | R133: 24.83518469 | S133: 24.85737416 | T133: 14.20091395 | U133: 0 | V133: 100
A134: Alpena Public Schools | B134: 04010 | C134: Alpena-Montmorency-Alcona ESD | D134: 04 | E134: LEA | F134: 01 | G134: 36 | H134: 106 | I134: Other Support | J134: 280 | K134: 636208.3 | L134: 352315.68 | M134: 517208.43 | N134: 38625.75 | O134: 40401.26 | P134: 1584759.42 | Q134: 40.14541841 | R134: 22.23149303 | S134: 32.63640042 | T134: 2.437325787 | U134: 2.549362351 | V134: 100
A135: Alpena Public Schools | B135: 04010 | C135: Alpena-Montmorency-Alcona ESD | D135: 04 | E135: LEA | F135: 01 | G135: 36 | H135: 106 | I135: Community Services | J135: 300 | K135: 54492.31 | L135: 16318.33 | M135: 312324.23 | N135: 5131.55 | O135: 0 | P135: 388266.42 | Q135: 14.03477282 | R135: 4.202869257 | S135: 80.440701 | T135: 1.321656918 | U135: 0 | V135: 100
A136: Bingham Arts Academy | B136: 04901 | C136: Alpena-Montmorency-Alcona ESD | D136: 04 | E136: PSA | F136: 01 | G136: 36 | H136: 106 | I136: Instruction | J136: 100 | K136: 0 | L136: 0 | M136: 449626.09 | N136: 27444.12 | O136: 0 | P136: 477070.21 | Q136: 0 | R136: 0 | S136: 94.24736246 | T136: 5.752637542 | U136: 0 | V136: 100
A137: Bingham Arts Academy | B137: 04901 | C137: Alpena-Montmorency-Alcona ESD | D137: 04 | E137: PSA | F137: 01 | G137: 36 | H137: 106 | I137: Student Services | J137: 210 | K137: 0 | L137: 0 | M137: 17546.52 | N137: 0 | O137: 0 | P137: 17546.52 | Q137: 0 | R137: 0 | S137: 100 | T137: 0 | U137: 0 | V137: 100
A138: Bingham Arts Academy | B138: 04901 | C138: Alpena-Montmorency-Alcona ESD | D138: 04 | E138: PSA | F138: 01 | G138: 36 | H138: 106 | I138: Instructional Staff Support | J138: 220 | K138: 0 | L138: 0 | M138: 42064.86 | N138: 0 | O138: 0 | P138: 42064.86 | Q138: 0 | R138: 0 | S138: 100 | T138: 0 | U138: 0 | V138: 100
A139: Bingham Arts Academy | B139: 04901 | C139: Alpena-Montmorency-Alcona ESD | D139: 04 | E139: PSA | F139: 01 | G139: 36 | H139: 106 | I139: General Administration | J139: 230 | K139: 0 | L139: 0 | M139: 129121.15 | N139: 1398.52 | O139: 225 | P139: 130744.67 | Q139: 0 | R139: 0 | S139: 98.75825148 | T139: 1.069657371 | U139: 0.1720911453 | V139: 100
A140: Bingham Arts Academy | B140: 04901 | C140: Alpena-Montmorency-Alcona ESD | D140: 04 | E140: PSA | F140: 01 | G140: 36 | H140: 106 | I140: School Administration | J140: 240 | K140: 0 | L140: 0 | M140: 141899.79 | N140: 3153.72 | O140: 0 | P140: 145053.51 | Q140: 0 | R140: 0 | S140: 97.82582304 | T140: 2.174176964 | U140: 0 | V140: 100
A141: Bingham Arts Academy | B141: 04901 | C141: Alpena-Montmorency-Alcona ESD | D141: 04 | E141: PSA | F141: 01 | G141: 36 | H141: 106 | I141: Business Office | J141: 250 | K141: 0 | L141: 0 | M141: 8903 | N141: 0 | O141: 206.96 | P141: 9109.96 | Q141: 0 | R141: 0 | S141: 97.72820078 | T141: 0 | U141: 2.271799218 | V141: 100
A142: Bingham Arts Academy | B142: 04901 | C142: Alpena-Montmorency-Alcona ESD | D142: 04 | E142: PSA | F142: 01 | G142: 36 | H142: 106 | I142: Operational Maintenance | J142: 260 | K142: 0 | L142: 0 | M142: 221204.27 | N142: 32170.27 | O142: 0 | P142: 253374.54 | Q142: 0 | R142: 0 | S142: 87.30327443 | T142: 12.69672557 | U142: 0 | V142: 100
A143: Bingham Arts Academy | B143: 04901 | C143: Alpena-Montmorency-Alcona ESD | D143: 04 | E143: PSA | F143: 01 | G143: 36 | H143: 106 | I143: Other Support | J143: 280 | K143: 0 | L143: 0 | M143: 4158.75 | N143: 0 | O143: 7.92 | P143: 4166.67 | Q143: 0 | R143: 0 | S143: 99.80992015 | T143: 0 | U143: 0.1900798479 | V143: 100
A144: Bingham Arts Academy | B144: 04901 | C144: Alpena-Montmorency-Alcona ESD | D144: 04 | E144: PSA | F144: 01 | G144: 36 | H144: 106 | I144: Community Services | J144: 300 | K144: 0 | L144: 0 | M144: 18947.11 | N144: 32.48 | O144: 0 | P144: 18979.59 | Q144: 0 | R144: 0 | S144: 99.8288688 | T144: 0.1711311994 | U144: 0 | V144: 100
A145: Atlanta Community Schools | B145: 60010 | C145: Alpena-Montmorency-Alcona ESD | D145: 04 | E145: LEA | F145: 01 | G145: 36 | H145: 105 | I145: Instruction | J145: 100 | K145: 878636.66 | L145: 620661.71 | M145: 89102.6 | N145: 46364.28 | O145: 1113.75 | P145: 1635879 | Q145: 53.71036978 | R145: 37.94056345 | S145: 5.446772041 | T145: 2.834212066 | U145: 0.0680826638 | V145: 100
A146: Atlanta Community Schools | B146: 60010 | C146: Alpena-Montmorency-Alcona ESD | D146: 04 | E146: LEA | F146: 01 | G146: 36 | H146: 105 | I146: Student Services | J146: 210 | K146: 0 | L146: 0 | M146: 17100 | N146: 0 | O146: 0 | P146: 17100 | Q146: 0 | R146: 0 | S146: 100 | T146: 0 | U146: 0 | V146: 100
A147: Atlanta Community Schools | B147: 60010 | C147: Alpena-Montmorency-Alcona ESD | D147: 04 | E147: LEA | F147: 01 | G147: 36 | H147: 105 | I147: Instructional Staff Support | J147: 220 | K147: 3875 | L147: 665.61 | M147: 1119.14 | N147: 627.09 | O147: 0 | P147: 6286.84 | Q147: 61.6366887 | R147: 10.5873539 | S147: 17.80131195 | T147: 9.97464545 | U147: 0 | V147: 100
A148: Atlanta Community Schools | B148: 60010 | C148: Alpena-Montmorency-Alcona ESD | D148: 04 | E148: LEA | F148: 01 | G148: 36 | H148: 105 | I148: General Administration | J148: 230 | K148: 86682 | L148: 53832.27 | M148: 20803.05 | N148: 1928.22 | O148: 2219.5 | P148: 165465.04 | Q148: 52.38689695 | R148: 32.53392378 | S148: 12.57247452 | T148: 1.165333777 | U148: 1.341370963 | V148: 100
A149: Atlanta Community Schools | B149: 60010 | C149: Alpena-Montmorency-Alcona ESD | D149: 04 | E149: LEA | F149: 01 | G149: 36 | H149: 105 | I149: School Administration | J149: 240 | K149: 33379.04 | L149: 34754.61 | M149: 5009.74 | N149: 2407.13 | O149: 0 | P149: 75550.52 | Q149: 44.18108572 | R149: 46.00181441 | S149: 6.630980171 | T149: 3.186119698 | U149: 0 | V149: 100
A150: Atlanta Community Schools | B150: 60010 | C150: Alpena-Montmorency-Alcona ESD | D150: 04 | E150: LEA | F150: 01 | G150: 36 | H150: 105 | I150: Business Office | J150: 250 | K150: 67590 | L150: 56164.18 | M150: 59061.45 | N150: 2028.24 | O150: 10239.04 | P150: 195082.91 | Q150: 34.64680735 | R150: 28.78990271 | S150: 30.27505075 | T150: 1.039681026 | U150: 5.248558164 | V150: 100
A151: Atlanta Community Schools | B151: 60010 | C151: Alpena-Montmorency-Alcona ESD | D151: 04 | E151: LEA | F151: 01 | G151: 36 | H151: 105 | I151: Operational Maintenance | J151: 260 | K151: 18846.2 | L151: 8318.87 | M151: 173616.53 | N151: 103753.39 | O151: 0 | P151: 304534.99 | Q151: 6.188517122 | R151: 2.731663117 | S151: 57.01037178 | T151: 34.06944798 | U151: 0 | V151: 100
A152: Atlanta Community Schools | B152: 60010 | C152: Alpena-Montmorency-Alcona ESD | D152: 04 | E152: LEA | F152: 01 | G152: 36 | H152: 105 | I152: Transportation | J152: 270 | K152: 61582.67 | L152: 30003.06 | M152: 21360.56 | N152: 26271.66 | O152: 209 | P152: 139426.95 | Q152: 44.1684122 | R152: 21.51883836 | S152: 15.32025193 | T152: 18.84259822 | U152: 0.1498992842 | V152: 100
A153: Atlanta Community Schools | B153: 60010 | C153: Alpena-Montmorency-Alcona ESD | D153: 04 | E153: LEA | F153: 01 | G153: 36 | H153: 105 | I153: Other Support | J153: 280 | K153: 10227.92 | L153: 2269.49 | M153: 84311.5 | N153: 7237.76 | O153: 0 | P153: 104046.67 | Q153: 9.830127192 | R153: 2.181223099 | S153: 81.03238672 | T153: 6.956262992 | U153: 0 | V153: 100
A154: Atlanta Community Schools | B154: 60010 | C154: Alpena-Montmorency-Alcona ESD | D154: 04 | E154: LEA | F154: 01 | G154: 36 | H154: 105 | I154: Community Services | J154: 300 | K154: 4997.25 | L154: 1692.35 | M154: 0 | N154: 416.27 | O154: 0 | P154: 7105.87 | Q154: 70.32566033 | R154: 23.81622518 | S154: 0 | T154: 5.858114488 | U154: 0 | V154: 100
A155: Hillman Community Schools | B155: 60020 | C155: Alpena-Montmorency-Alcona ESD | D155: 04 | E155: LEA | F155: 01 | G155: 36 | H155: 105 | I155: Instruction | J155: 100 | K155: 1592489.7 | L155: 1089880.42 | M155: 95320.26 | N155: 121777.85 | O155: 14757.36 | P155: 2914225.59 | Q155: 54.64538179 | R155: 37.39862912 | S155: 3.270860716 | T155: 4.178737927 | U155: 0.5063904473 | V155: 100
A156: Hillman Community Schools | B156: 60020 | C156: Alpena-Montmorency-Alcona ESD | D156: 04 | E156: LEA | F156: 01 | G156: 36 | H156: 105 | I156: Student Services | J156: 210 | K156: 0 | L156: 0 | M156: 54320 | N156: 1275.99 | O156: 0 | P156: 55595.99 | Q156: 0 | R156: 0 | S156: 97.70488843 | T156: 2.295111572 | U156: 0 | V156: 100
A157: Hillman Community Schools | B157: 60020 | C157: Alpena-Montmorency-Alcona ESD | D157: 04 | E157: LEA | F157: 01 | G157: 36 | H157: 105 | I157: Instructional Staff Support | J157: 220 | K157: 0 | L157: 0 | M157: 951.52 | N157: 1911.71 | O157: 0 | P157: 2863.23 | Q157: 0 | R157: 0 | S157: 33.23239838 | T157: 66.76760162 | U157: 0 | V157: 100
A158: Hillman Community Schools | B158: 60020 | C158: Alpena-Montmorency-Alcona ESD | D158: 04 | E158: LEA | F158: 01 | G158: 36 | H158: 105 | I158: General Administration | J158: 230 | K158: 32611.1 | L158: 25038.26 | M158: 54644.41 | N158: 0 | O158: 9471.25 | P158: 121765.02 | Q158: 26.78199371 | R158: 20.56276918 | S158: 44.87693592 | T158: 0 | U158: 7.77830119 | V158: 100
A159: Hillman Community Schools | B159: 60020 | C159: Alpena-Montmorency-Alcona ESD | D159: 04 | E159: LEA | F159: 01 | G159: 36 | H159: 105 | I159: School Administration | J159: 240 | K159: 204333.04 | L159: 138973.16 | M159: 2122.33 | N159: 1778.73 | O159: 0 | P159: 347207.26 | Q159: 58.85045146 | R159: 40.02599485 | S159: 0.6112573798 | T159: 0.5122963155 | U159: 0 | V159: 100
A160: Hillman Community Schools | B160: 60020 | C160: Alpena-Montmorency-Alcona ESD | D160: 04 | E160: LEA | F160: 01 | G160: 36 | H160: 105 | I160: Business Office | J160: 250 | K160: 61786.08 | L160: 44133.35 | M160: 25248.59 | N160: 1248.58 | O160: 8252.24 | P160: 140668.84 | Q160: 43.92307493 | R160: 31.3739347 | S160: 17.94895728 | T160: 0.8876024001 | U160: 5.866430689 | V160: 100
A161: Hillman Community Schools | B161: 60020 | C161: Alpena-Montmorency-Alcona ESD | D161: 04 | E161: LEA | F161: 01 | G161: 36 | H161: 105 | I161: Operational Maintenance | J161: 260 | K161: 161990.39 | L161: 116603.66 | M161: 101176.15 | N161: 165743.75 | O161: 318.63 | P161: 545832.58 | Q161: 29.67766966 | R161: 21.36253208 | S161: 18.53611413 | T161: 30.36530908 | U161: 0.0583750424 | V161: 100
A162: Hillman Community Schools | B162: 60020 | C162: Alpena-Montmorency-Alcona ESD | D162: 04 | E162: LEA | F162: 01 | G162: 36 | H162: 105 | I162: Transportation | J162: 270 | K162: 167744.53 | L162: 95213.43 | M162: 7639.05 | N162: 52482.14 | O162: 3883.13 | P162: 326962.28 | Q162: 51.3039394 | R162: 29.12061599 | S162: 2.336370422 | T162: 16.05143566 | U162: 1.187638525 | V162: 100
A163: Hillman Community Schools | B163: 60020 | C163: Alpena-Montmorency-Alcona ESD | D163: 04 | E163: LEA | F163: 01 | G163: 36 | H163: 105 | I163: Other Support | J163: 280 | K163: 29179.32 | L163: 18956.81 | M163: 117021.3 | N163: 60228.81 | O163: 2760 | P163: 228146.24 | Q163: 12.78974398 | R163: 8.30906089 | S163: 51.29223256 | T163: 26.39921219 | U163: 1.209750378 | V163: 100
A164: Barry ISD | B164: 08000 | C164: Barry ISD | D164: 08 | E164: ISD | F164: 03 | G164: 19 | H164: 087 | I164: Instruction | J164: 100 | K164: 254471.83 | L164: 103771.67 | M164: 17654.84 | N164: 16880.7 | O164: 967.09 | P164: 393746.13 | Q164: 64.62840155 | R164: 26.35496887 | S164: 4.483812958 | T164: 4.287204042 | U164: 0.2456125728 | V164: 100
A165: Barry ISD | B165: 08000 | C165: Barry ISD | D165: 08 | E165: ISD | F165: 03 | G165: 19 | H165: 087 | I165: Student Services | J165: 210 | K165: 10780.81 | L165: 3700.49 | M165: 48435.25 | N165: 318.68 | O165: 8332.51 | P165: 71567.74 | Q165: 15.06378433 | R165: 5.170611787 | S165: 67.67748989 | T165: 0.4452844256 | U165: 11.64282958 | V165: 100
A166: Barry ISD | B166: 08000 | C166: Barry ISD | D166: 08 | E166: ISD | F166: 03 | G166: 19 | H166: 087 | I166: Instructional Staff Support | J166: 220 | K166: 84087.25 | L166: 40416.63 | M166: 100806.96 | N166: 7449.68 | O166: 630.42 | P166: 233390.94 | Q166: 36.02849794 | R166: 17.3171375 | S166: 43.19231929 | T166: 3.191931958 | U166: 0.2701133129 | V166: 100
A167: Barry ISD | B167: 08000 | C167: Barry ISD | D167: 08 | E167: ISD | F167: 03 | G167: 19 | H167: 087 | I167: General Administration | J167: 230 | K167: 101793.5 | L167: 61224.51 | M167: 29119.86 | N167: 0 | O167: 14525.45 | P167: 206663.32 | Q167: 49.25571698 | R167: 29.62524264 | S167: 14.09048301 | T167: 0 | U167: 7.028557366 | V167: 100
A168: Barry ISD | B168: 08000 | C168: Barry ISD | D168: 08 | E168: ISD | F168: 03 | G168: 19 | H168: 087 | I168: Business Office | J168: 250 | K168: 35193.26 | L168: 24027.73 | M168: 3300.04 | N168: 646.17 | O168: 643.94 | P168: 63811.14 | Q168: 55.1522195 | R168: 37.65444404 | S168: 5.17157349 | T168: 1.012628829 | U168: 1.009134142 | V168: 100
A169: Barry ISD | B169: 08000 | C169: Barry ISD | D169: 08 | E169: ISD | F169: 03 | G169: 19 | H169: 087 | I169: Operational Maintenance | J169: 260 | K169: 0 | L169: 0 | M169: 12669.64 | N169: 3123.65 | O169: 3200.64 | P169: 18993.93 | Q169: 0 | R169: 0 | S169: 66.70362584 | T169: 16.44551707 | U169: 16.85085709 | V169: 100
A170: Barry ISD | B170: 08000 | C170: Barry ISD | D170: 08 | E170: ISD | F170: 03 | G170: 19 | H170: 087 | I170: Transportation | J170: 270 | K170: 0 | L170: 0 | M170: 4337 | N170: 0 | O170: 0 | P170: 4337 | Q170: 0 | R170: 0 | S170: 100 | T170: 0 | U170: 0 | V170: 100
A171: Barry ISD | B171: 08000 | C171: Barry ISD | D171: 08 | E171: ISD | F171: 03 | G171: 19 | H171: 087 | I171: Other Support | J171: 280 | K171: 0 | L171: 0 | M171: 26996.08 | N171: 607.66 | O171: 0 | P171: 27603.74 | Q171: 0 | R171: 0 | S171: 97.79863164 | T171: 2.201368365 | U171: 0 | V171: 100
A172: Barry ISD | B172: 08000 | C172: Barry ISD | D172: 08 | E172: ISD | F172: 03 | G172: 19 | H172: 087 | I172: Community Services | J172: 300 | K172: 189382.32 | L172: 125813.16 | M172: 145094.6 | N172: 11670.24 | O172: 6229.37 | P172: 478189.69 | Q172: 39.60401572 | R172: 26.31030376 | S172: 30.34247769 | T172: 2.440504311 | U172: 1.302698517 | V172: 100
A173: Delton Kellogg Schools | B173: 08010 | C173: Barry ISD | D173: 08 | E173: LEA | F173: 03 | G173: 19 | H173: 087 | I173: Instruction | J173: 100 | K173: 4080520.75 | L173: 2864820.76 | M173: 194082.34 | N173: 152118.06 | O173: 0 | P173: 7291541.91 | Q173: 55.96238492 | R173: 39.28964265 | S173: 2.661746204 | T173: 2.086226231 | U173: 0 | V173: 100
A174: Delton Kellogg Schools | B174: 08010 | C174: Barry ISD | D174: 08 | E174: LEA | F174: 03 | G174: 19 | H174: 087 | I174: Student Services | J174: 210 | K174: 150211.22 | L174: 122871.2 | M174: 1000 | N174: 1179.02 | O174: 0 | P174: 275261.44 | Q174: 54.57038225 | R174: 44.63799942 | S174: 0.3632909862 | T174: 0.4283273385 | U174: 0 | V174: 100
A175: Delton Kellogg Schools | B175: 08010 | C175: Barry ISD | D175: 08 | E175: LEA | F175: 03 | G175: 19 | H175: 087 | I175: Instructional Staff Support | J175: 220 | K175: 40132.29 | L175: 13190.91 | M175: 58327.3 | N175: 18681.85 | O175: 0 | P175: 130332.35 | Q175: 30.79227068 | R175: 10.12097917 | S175: 44.75274174 | T175: 14.3340084 | U175: 0 | V175: 100
A176: Delton Kellogg Schools | B176: 08010 | C176: Barry ISD | D176: 08 | E176: LEA | F176: 03 | G176: 19 | H176: 087 | I176: General Administration | J176: 230 | K176: 169140.36 | L176: 53843.98 | M176: 161008.16 | N176: 2908.47 | O176: 885 | P176: 387785.97 | Q176: 43.61693642 | R176: 13.88497371 | S176: 41.51985179 | T176: 0.7500193986 | U176: 0.2282186743 | V176: 100
A177: Delton Kellogg Schools | B177: 08010 | C177: Barry ISD | D177: 08 | E177: LEA | F177: 03 | G177: 19 | H177: 087 | I177: School Administration | J177: 240 | K177: 422050.63 | L177: 237576.64 | M177: 2169.81 | N177: 3915.13 | O177: 701.75 | P177: 666413.96 | Q177: 63.33160098 | R177: 35.65000949 | S177: 0.32559492 | T177: 0.5874921948 | U177: 0.1053024159 | V177: 100
A178: Delton Kellogg Schools | B178: 08010 | C178: Barry ISD | D178: 08 | E178: LEA | F178: 03 | G178: 19 | H178: 087 | I178: Business Office | J178: 250 | K178: 97155.11 | L178: 54599.85 | M178: 91021.54 | N178: 1163.98 | O178: 70923.4 | P178: 314863.88 | Q178: 30.85622587 | R178: 17.34077913 | S178: 28.90821901 | T178: 0.3696772078 | U178: 22.52509878 | V178: 100
A179: Delton Kellogg Schools | B179: 08010 | C179: Barry ISD | D179: 08 | E179: LEA | F179: 03 | G179: 19 | H179: 087 | I179: Operational Maintenance | J179: 260 | K179: 128748.93 | L179: 108250.86 | M179: 572823.54 | N179: 333987.2 | O179: 0 | P179: 1143810.53 | Q179: 11.25614135 | R179: 9.464055205 | S179: 50.08028209 | T179: 29.19952136 | U179: 0 | V179: 100
A180: Delton Kellogg Schools | B180: 08010 | C180: Barry ISD | D180: 08 | E180: LEA | F180: 03 | G180: 19 | H180: 087 | I180: Transportation | J180: 270 | K180: 266940.83 | L180: 137757.3 | M180: 43601.17 | N180: 146595.2 | O180: 845.8 | P180: 595740.3 | Q180: 44.80825454 | R180: 23.12371683 | S180: 7.318821641 | T180: 24.60723238 | U180: 0.1419746154 | V180: 100
A181: Delton Kellogg Schools | B181: 08010 | C181: Barry ISD | D181: 08 | E181: LEA | F181: 03 | G181: 19 | H181: 087 | I181: Other Support | J181: 280 | K181: 260486.57 | L181: 127598.39 | M181: 172006.67 | N181: 21373.5 | O181: 10697.4 | P181: 592162.53 | Q181: 43.98903288 | R181: 21.54786626 | S181: 29.04720601 | T181: 3.609397575 | U181: 1.80649728 | V181: 100
A182: Delton Kellogg Schools | B182: 08010 | C182: Barry ISD | D182: 08 | E182: LEA | F182: 03 | G182: 19 | H182: 087 | I182: Community Services | J182: 300 | K182: 39934.89 | L182: 16923.2 | M182: 0 | N182: 2060.79 | O182: 0 | P182: 58918.88 | Q182: 67.77944523 | R182: 28.72288136 | S182: 0 | T182: 3.497673411 | U182: 0 | V182: 100
A183: Hastings Area School District | B183: 08030 | C183: Barry ISD | D183: 08 | E183: LEA | F183: 03 | G183: 19 | H183: 087 | I183: Instruction | J183: 100 | K183: 8677684.22 | L183: 5453578.63 | M183: 435404.13 | N183: 405642.8 | O183: 8485.54 | P183: 14980795.32 | Q183: 57.92539071 | R183: 36.40379909 | S183: 2.906415318 | T183: 2.707752101 | U183: 0.0566427871 | V183: 100
A184: Hastings Area School District | B184: 08030 | C184: Barry ISD | D184: 08 | E184: LEA | F184: 03 | G184: 19 | H184: 087 | I184: Student Services | J184: 210 | K184: 193371.73 | L184: 113890.33 | M184: 500 | N184: 366.39 | O184: 0 | P184: 308128.45 | Q184: 62.75685676 | R184: 36.96196505 | S184: 0.1622699884 | T184: 0.1189082021 | U184: 0 | V184: 100
A185: Hastings Area School District | B185: 08030 | C185: Barry ISD | D185: 08 | E185: LEA | F185: 03 | G185: 19 | H185: 087 | I185: Instructional Staff Support | J185: 220 | K185: 278419.67 | L185: 159305.72 | M185: 140376.08 | N185: 0 | O185: 0 | P185: 578101.47 | Q185: 48.16103823 | R185: 27.55670557 | S185: 24.28225619 | T185: 0 | U185: 0 | V185: 100
A186: Hastings Area School District | B186: 08030 | C186: Barry ISD | D186: 08 | E186: LEA | F186: 03 | G186: 19 | H186: 087 | I186: General Administration | J186: 230 | K186: 125000 | L186: 76160.9 | M186: 76651.36 | N186: 39 | O186: 19326.59 | P186: 297177.85 | Q186: 42.06235424 | R186: 25.62805404 | S186: 25.79309326 | T186: 0.0131234545 | U186: 6.503374999 | V186: 100
A187: Hastings Area School District | B187: 08030 | C187: Barry ISD | D187: 08 | E187: LEA | F187: 03 | G187: 19 | H187: 087 | I187: School Administration | J187: 240 | K187: 863638.99 | L187: 538274.98 | M187: 128616.62 | N187: 38997.8 | O187: 350 | P187: 1569878.39 | Q187: 55.0131141 | R187: 34.28768645 | S187: 8.192776002 | T187: 2.484128723 | U187: 0.0222947205 | V187: 100
A188: Hastings Area School District | B188: 08030 | C188: Barry ISD | D188: 08 | E188: LEA | F188: 03 | G188: 19 | H188: 087 | I188: Business Office | J188: 250 | K188: 237871.39 | L188: 176274.3 | M188: 23528.94 | N188: 15780.98 | O188: 63456.83 | P188: 516912.44 | Q188: 46.01773368 | R188: 34.10138475 | S188: 4.551823129 | T188: 3.052930976 | U188: 12.27612746 | V188: 100
A189: Hastings Area School District | B189: 08030 | C189: Barry ISD | D189: 08 | E189: LEA | F189: 03 | G189: 19 | H189: 087 | I189: Operational Maintenance | J189: 260 | K189: 276461.79 | L189: 187240.27 | M189: 1189967.72 | N189: 692610.39 | O189: 0 | P189: 2346280.17 | Q189: 11.78298285 | R189: 7.980303137 | S189: 50.71720484 | T189: 29.51950917 | U189: 0 | V189: 100
A190: Hastings Area School District | B190: 08030 | C190: Barry ISD | D190: 08 | E190: LEA | F190: 03 | G190: 19 | H190: 087 | I190: Transportation | J190: 270 | K190: 433293.67 | L190: 214294.56 | M190: 62548.17 | N190: 215754.69 | O190: 1766.4 | P190: 927657.49 | Q190: 46.70836755 | R190: 23.10061227 | S190: 6.742593109 | T190: 23.25801196 | U190: 0.1904151068 | V190: 100
A191: Hastings Area School District | B191: 08030 | C191: Barry ISD | D191: 08 | E191: LEA | F191: 03 | G191: 19 | H191: 087 | I191: Other Support | J191: 280 | K191: 182298.66 | L191: 74064.31 | M191: 587820.4 | N191: 10910.62 | O191: 64772.19 | P191: 919866.18 | Q191: 19.81795439 | R191: 8.051639642 | S191: 63.90281682 | T191: 1.186109484 | U191: 7.041479664 | V191: 100
A192: Hastings Area School District | B192: 08030 | C192: Barry ISD | D192: 08 | E192: LEA | F192: 03 | G192: 19 | H192: 087 | I192: Community Services | J192: 300 | K192: 0 | L192: 0 | M192: 4325 | N192: 539.8 | O192: 0 | P192: 4864.8 | Q192: 0 | R192: 0 | S192: 88.90396316 | T192: 11.09603684 | U192: 0 | V192: 100
A193: Arenac Eastern School District | B193: 06010 | C193: Bay-Arenac ISD | D193: 09 | E193: LEA | F193: 05 | G193: 36 | H193: 097 | I193: Instruction | J193: 100 | K193: 709843.69 | L193: 449324.19 | M193: 87698.91 | N193: 46654.83 | O193: 1777.73 | P193: 1295299.35 | Q193: 54.80151673 | R193: 34.68883004 | S193: 6.770551533 | T193: 3.601856976 | U193: 0.1372447226 | V193: 100
A194: Arenac Eastern School District | B194: 06010 | C194: Bay-Arenac ISD | D194: 09 | E194: LEA | F194: 05 | G194: 36 | H194: 097 | I194: Student Services | J194: 210 | K194: 13186.07 | L194: 5408.64 | M194: 45 | N194: 0 | O194: 0 | P194: 18639.71 | Q194: 70.74181948 | R194: 29.01676045 | S194: 0.241420065 | T194: 0 | U194: 0 | V194: 100
A195: Arenac Eastern School District | B195: 06010 | C195: Bay-Arenac ISD | D195: 09 | E195: LEA | F195: 05 | G195: 36 | H195: 097 | I195: Instructional Staff Support | J195: 220 | K195: 13779 | L195: 5665.18 | M195: 18960.41 | N195: 2259.21 | O195: 0 | P195: 40663.8 | Q195: 33.88517551 | R195: 13.93175257 | S195: 46.62724585 | T195: 5.555826066 | U195: 0 | V195: 100
A196: Arenac Eastern School District | B196: 06010 | C196: Bay-Arenac ISD | D196: 09 | E196: LEA | F196: 05 | G196: 36 | H196: 097 | I196: General Administration | J196: 230 | K196: 28177.12 | L196: 18557.42 | M196: 44803.79 | N196: 1033.26 | O196: 1072 | P196: 93643.59 | Q196: 30.08974773 | R196: 19.81707451 | S196: 47.84501534 | T196: 1.103396399 | U196: 1.144766022 | V196: 100
A197: Arenac Eastern School District | B197: 06010 | C197: Bay-Arenac ISD | D197: 09 | E197: LEA | F197: 05 | G197: 36 | H197: 097 | I197: School Administration | J197: 240 | K197: 68666.97 | L197: 48085.11 | M197: 3460.9 | N197: 0 | O197: 0 | P197: 120212.98 | Q197: 57.12109458 | R197: 39.99993179 | S197: 2.878973635 | T197: 0 | U197: 0 | V197: 100
A198: Arenac Eastern School District | B198: 06010 | C198: Bay-Arenac ISD | D198: 09 | E198: LEA | F198: 05 | G198: 36 | H198: 097 | I198: Business Office | J198: 250 | K198: 0 | L198: 0 | M198: 37989 | N198: 0 | O198: 14847.33 | P198: 52836.33 | Q198: 0 | R198: 0 | S198: 71.89939195 | T198: 0 | U198: 28.10060805 | V198: 100
A199: Arenac Eastern School District | B199: 06010 | C199: Bay-Arenac ISD | D199: 09 | E199: LEA | F199: 05 | G199: 36 | H199: 097 | I199: Operational Maintenance | J199: 260 | K199: 31475.22 | L199: 27554.8 | M199: 74265.42 | N199: 121772.92 | O199: 0 | P199: 255068.36 | Q199: 12.33991546 | R199: 10.8029079 | S199: 29.11588878 | T199: 47.74128786 | U199: 0 | V199: 100
A200: Arenac Eastern School District | B200: 06010 | C200: Bay-Arenac ISD | D200: 09 | E200: LEA | F200: 05 | G200: 36 | H200: 097 | I200: Transportation | J200: 270 | K200: 24265.65 | L200: 13106.48 | M200: 46820.42 | N200: 16072.22 | O200: 235.8 | P200: 100500.57 | Q200: 24.14478843 | R200: 13.04119967 | S200: 46.58721836 | T200: 15.992168 | U200: 0.234625535 | V200: 100
... 4298 more rows

Sheet Compensation
A1: =BTS!B3 -> Financial Information Database (FID)
A2: =CONCATENATE(BTS!B4," ","Compensation") -> 2014-2015 Compensation
A4: Total Compensation by Function (In Million $)
A5: Function | B5: Professional Salaries (11xx - 14xx) | C5: Other Salaries (15xx - 19xx) | D5: Insurance (21xx) | E5: FICA, Retirement (28xx) | F5: Benefits (22xx - 24xx, 29xx) | G5: Total
A6: Instruction (1xx) | B6: 4728861798 | C6: 457313985.4 | D6: 967488525.2 | E6: 2173174748 | F6: 69780642.94 | G6: 8396619699 | I6: 100
A7: Student Services (21x) | B7: 661850168.9 | C7: 68635103.35 | D7: 123246748.8 | E7: 296637433.6 | F7: 9086863 | G7: 1159456318 | I7: 210
A8: Instr. Staff Support (22x) | B8: 263628227 | C8: 101361607.1 | D8: 59122734.31 | E8: 147057245.8 | F8: 5217361.76 | G8: 576387176 | I8: 220
A9: General Admin. (23x) | B9: 92562815.54 | C9: 26930367.59 | D9: 16116088.39 | E9: 47139428.86 | F9: 4575596.2 | G9: 187324296.6 | I9: 230
A10: School Administration (24x) | B10: 358370494.3 | C10: 148424146.7 | D10: 91761002.85 | E10: 207022375.6 | F10: 8301019.92 | G10: 813879039.3 | I10: 240
A11: Business Office (25x) | B11: 72432129.58 | C11: 40942118.09 | D11: 22022567.66 | E11: 49882574.13 | F11: 3396109.22 | G11: 188675498.7 | I11: 250
A12: Operation Maintenance (26x) | B12: 27134260.75 | C12: 254868046.8 | D12: 68339543.54 | E12: 124969479.2 | F12: 3340476.35 | G12: 478651806.7 | I12: 260
A13: Transportation (27x) | B13: 15048198.14 | C13: 187235518.3 | D13: 38096811.92 | E13: 86739462.52 | F13: 3303946.89 | G13: 330423937.8 | I13: 270
A14: Other Support (28x, 29x) | B14: 98805436.84 | C14: 276569884.5 | D14: 52750406.52 | E14: 154386730.2 | F14: 6440742.67 | G14: 588953200.7 | I14: 280
A15: Community Services (3xx) | B15: 47718580.9 | C15: 57613740.73 | D15: 11179670.56 | E15: 40678029.19 | F15: 992564.02 | G15: 158182585.4 | I15: 300
A16: Facilities Acquisition (45x) | B16: 12527.36 | C16: 252791.07 | D16: 38762.67 | E16: 94790.95 | F16: 4974.6 | G16: 403846.65 | I16: 450
A17: Total | B17: =SUM(B6:B16) -> 6366424637 | C17: 1620147310 | D17: 1450162862 | E17: 3327782298 | F17: 114440297.6 | G17: 1.28789574e+10 | H17: =G17='Compensation (District)'!P5749:P5749 -> TRUE
A42: Compensation by Entity Type (In Million $)
A43: Function | B43: ISD | C43: % | D43: LEA | E43: % | F43: PSA | G43: % | H43: Total
A44: Instruction (100) | B44: 402281494 | C44: 33.13942862 | D44: 7933582545 | E44: 68.5361109 | F44: 60755660.72 | G44: 68.04955963 | H44: 8396619699
A45: Student Services (21x) | B45: 373504423.3 | C45: 30.76881079 | D45: 781848114.4 | E45: 6.75417805 | F45: 4103779.88 | G45: 4.596450937 | H45: 1159456318
A46: Instr. Staff Support (22x) | B46: 148774054.4 | C46: 12.25581398 | D46: 424179649.3 | E46: 3.664375246 | F46: 3433472.25 | G46: 3.84567087 | H46: 576387176
A47: General Admin. (23x) | B47: 24923677.58 | C47: 2.053180289 | D47: 158319402.7 | E47: 1.367679239 | F47: 4081216.35 | G47: 4.571178588 | H47: 187324296.6
A48: School Administration (24x) | B48: 31279723.44 | C48: 2.576783117 | D48: 772810747.7 | E48: 6.676106641 | F48: 9788568.19 | G48: 10.9637151 | H48: 813879039.3
A49: Business Office (25x) | B49: 43823349.45 | C49: 3.610110787 | D49: 143241269.8 | E49: 1.237423257 | F49: 1610879.46 | G49: 1.80427036 | H49: 188675498.7
A50: Operation Maintenance (26x) | B50: 27245257.63 | C50: 2.244429047 | D50: 449324012.1 | E50: 3.881590713 | F50: 2082536.96 | G50: 2.332551755 | H50: 478651806.7
A51: Transportation (27x) | B51: 46447674.16 | C51: 3.826299259 | D51: 283284132.9 | E51: 2.447216329 | F51: 692130.77 | G51: 0.7752231405 | H51: 330423937.8
A52: Other Support (28x, 29x) | B52: 96413880.73 | C52: 7.942450661 | D52: 490259182.2 | E52: 4.235218767 | F52: 2280137.85 | G52: 2.553875223 | H52: 588953200.7
A53: Community Services (3xx) | B53: 19206758.27 | C53: 1.582227878 | D53: 138522719.6 | E53: 1.196660956 | F53: 453107.49 | G53: 0.5075044003 | H53: 158182585.4
A54: Facilities Acquisition (45x) | B54: 5651.64 | C54: 0.0004655748 | D54: 398195.01 | E54: 0.0034399009 | F54: 0 | G54: 0 | H54: 403846.65
A55: Total | B55: =SUM(B44:B54) -> 1213905945 | C55: =SUM(C44:C54) -> 100 | D55: =SUM(D44:D54) -> 1.157576997e+10 | E55: 100 | F55: 89281489.92 | G55: 100 | H55: =SUM(H44:H54) -> 1.28789574e+10
A83: Professional and Technical Services by Entity Type (In Million $)
A84: Function | B84: ISD | C84: % | D84: LEA | E84: % | F84: PSA | G84: % | H84: Total
A85: Instruction (1xx) | B85: 37244694.3 | C85: =B85/$B$96 -> 0.2212237573 | D85: 184454431.2 | E85: =D85/$D$96 -> 0.2376181856 | F85: 498537185.8 | G85: =F85/F96 -> 0.5208881716 | H85: =SUM(F85,D85,B85) -> 720236311.2
A86: Student Services (21x) | B86: 19764446.9 | C86: =B86/$B$96 -> 0.1173956529 | D86: 50611561.37 | E86: =D86/$D$96 -> 0.06519890744 | F86: 43406334.48 | G86: =F86/F96 -> 0.04535237661 | H86: =SUM(F86,D86,B86) -> 113782342.8
A87: Instr. Staff Support (22x) | B87: 39239307.23 | C87: =B87/$B$96 -> 0.2330712372 | D87: 56516095.13 | E87: =D87/$D$96 -> 0.07280525547 | F87: 54173182.1 | G87: =F87/F96 -> 0.05660193579 | H87: 149928584.5
A88: General Admin. (23x) | B88: 5331359.59 | C88: =B88/$B$96 -> 0.03166688363 | D88: 42132049.45 | E88: =D88/$D$96 -> 0.05427541688 | F88: 102787947.5 | G88: =F88/F96 -> 0.1073962537 | H88: 150251356.6
A89: School Administration (24x) | B89: 926634.76 | C89: =B89/$B$96 -> 0.005503968475 | D89: 13239263.16 | E89: =D89/$D$96 -> 0.017055105 | F89: 74400348.08 | G89: =F89/F96 -> 0.07773594907 | H89: 88566246
A90: Business Office (25x) | B90: 3971789.42 | C90: =B90/$B$96 -> 0.02359139188 | D90: 25889677.54 | E90: =D90/$D$96 -> 0.03335164227 | F90: 24950674.24 | G90: =F90/F96 -> 0.02606929123 | H90: =SUM(F90,D90,B90) -> 54812141.2
A91: Operation Maintenance (26x) | B91: 3130034.78 | C91: =B91/$B$96 -> 0.01859158915 | D91: 107523966.1 | E91: =D91/$D$96 -> 0.1385146975 | F91: 88495374.23 | G91: =F91/F96 -> 0.09246289945 | H91: 199149375.1
A92: Transportation (27x) | B92: 11266555.74 | C92: =B92/$B$96 -> 0.06692039873 | D92: 26260006.63 | E92: =D92/$D$96 -> 0.03382870821 | F92: 5105418.52 | G92: =F92/F96 -> 0.005334310447 | H92: 42631980.89
A93: Other Support (28x, 29x) | B93: 37307351 | C93: =B93/$B$96 -> 0.2215959218 | D93: 174996112.8 | E93: =D93/$D$96 -> 0.2254337754 | F93: 60998201.81 | G93: =F93/F96 -> 0.06373294254 | H93: 273301665.6
A94: Community Services (3xx) | B94: 8387784.81 | C94: =B94/$B$96 -> 0.04982125122 | D94: 35151384.81 | E94: =D94/$D$96 -> 0.04528277379 | F94: 3919640.83 | G94: =F94/F96 -> 0.004095370624 | H94: 47458810.45
A95: Facilities Acquisition (45x) | B95: 1787611.87 | C95: =B95/$B$96 -> 0.01061794766 | D95: 59489401.04 | E95: =D95/$D$96 -> 0.07663553241 | F95: 316317.42 | G95: =F95/F96 -> 0.0003304989222 | H95: 61593330.33
A96: Total | B96: =SUM(B85:B95) -> 168357570.4 | C96: =SUM(C85:C95) -> 1 | D96: 776263949.2 | E96: =SUM(E85:E95) -> 1 | F96: 957090625 | G96: 1 | H96: 1901712145
A122: Click here to return to menu.

Sheet Compensation (District)
A1: =CONCATENATE("FY ",BTS!B5," ","Total Compensation by Function (All Funds)") -> FY 2015 Total Compensation by Function (All Funds) | B1: Click on arrow button to apply filter to column. District count and amounts will change as filters are applied. | F1: Note: Percentages follow totals. | I1: Column Total: | K1: =SUBTOTAL(9,K4:K5747) -> 6366424637 | L1: 1620147310 | M1: 1450162862 | N1: 3327782298 | O1: 114440297.6 | P1: 1.28789574e+10 | Q1: =K1/$P1 -> 0.4943276413 | R1: 0.1257980176 | S1: 0.1125993989 | T1: 0.2583891066 | U1: 0.008885835551 | V1: 1
A2: ="Total Number of Districts: 670" -> Total Number of Districts: 670
A3: District Name | B3: Dist. Code | C3: ISD Name | D3: ISD Code | E3: Dist.Type | F3: US Cong. | G3: MI Senate | H3: MI House | I3: Function Category | J3: Fnct. Code | K3: Professional Salaries (11xx-14xx) | L3: Other Salaries (15xx-19xx) | M3: Insurance (21xx) | N3: FICA, Retirement (28xx) | O3: Other Benefits (22xx-24xx, 29xx) | P3: Total Compensation | Q3: Profess. Salaries | R3: Other Salaries | S3: Insurance | T3: FICA, Retirement | U3: Other Benefits | V3: Total
A4: Allegan Area Educational Service Agency | B4: 03000 | C4: Allegan Area Educational Service Agency | D4: 03 | E4: ISD | F4: 06 | G4: 26 | H4: 080 | I4: Instruction | J4: 100 | K4: 2454430.78 | L4: 934760.51 | M4: 848079.22 | N4: 1419640.29 | O4: 208116.06 | P4: 5865026.86 | Q4: 41.8485855 | R4: 15.93787262 | S4: 14.45993753 | T4: 24.20517968 | U4: 3.54842467 | V4: 100
A5: Allegan Area Educational Service Agency | B5: 03000 | C5: Allegan Area Educational Service Agency | D5: 03 | E5: ISD | F5: 06 | G5: 26 | H5: 080 | I5: Student Services | J5: 210 | K5: 1769520.08 | L5: 174029.88 | M5: 350027.83 | N5: 838473.58 | O5: 52080 | P5: 3184131.37 | Q5: 55.57308648 | R5: 5.465537058 | S5: 10.99288281 | T5: 26.33288274 | U5: 1.635610908 | V5: 100
A6: Allegan Area Educational Service Agency | B6: 03000 | C6: Allegan Area Educational Service Agency | D6: 03 | E6: ISD | F6: 06 | G6: 26 | H6: 080 | I6: Instructional Staff Support | J6: 220 | K6: 945718.86 | L6: 97383.79 | M6: 168902.03 | N6: 458960.27 | O6: 25302.55 | P6: 1696267.5 | Q6: 55.75293166 | R6: 5.741063246 | S6: 9.957275607 | T6: 27.05706912 | U6: 1.491660366 | V6: 100
A7: Allegan Area Educational Service Agency | B7: 03000 | C7: Allegan Area Educational Service Agency | D7: 03 | E7: ISD | F7: 06 | G7: 26 | H7: 080 | I7: General Administration | J7: 230 | K7: 177656.38 | L7: 100211.71 | M7: 37178.14 | N7: 108309.09 | O7: 11426.3 | P7: 434781.62 | Q7: 40.86106032 | R7: 23.04874571 | S7: 8.550991645 | T7: 24.91114735 | U7: 2.628054976 | V7: 100
A8: Allegan Area Educational Service Agency | B8: 03000 | C8: Allegan Area Educational Service Agency | D8: 03 | E8: ISD | F8: 06 | G8: 26 | H8: 080 | I8: School Administration | J8: 240 | K8: 199107.01 | L8: 180706.61 | M8: 55812.55 | N8: 154691.65 | O8: 14311.92 | P8: 604629.74 | Q8: 32.93040299 | R8: 29.88715209 | S8: 9.230864165 | T8: 25.5845255 | U8: 2.367055249 | V8: 100
A9: Allegan Area Educational Service Agency | B9: 03000 | C9: Allegan Area Educational Service Agency | D9: 03 | E9: ISD | F9: 06 | G9: 26 | H9: 080 | I9: Business Office | J9: 250 | K9: 336294.31 | L9: 45349.51 | M9: 70354.55 | N9: 159953.95 | O9: 12000 | P9: 623952.32 | Q9: 53.89743723 | R9: 7.268105037 | S9: 11.2756292 | T9: 25.63560466 | U9: 1.923223877 | V9: 100
A10: Allegan Area Educational Service Agency | B10: 03000 | C10: Allegan Area Educational Service Agency | D10: 03 | E10: ISD | F10: 06 | G10: 26 | H10: 080 | I10: Operational Maintenance | J10: 260 | K10: 51323 | L10: 169476.54 | M10: 72663.06 | N10: 102721.78 | O10: 10800 | P10: 406984.38 | Q10: 12.61055768 | R10: 41.64202567 | S10: 17.8540169 | T10: 25.23973524 | U10: 2.653664497 | V10: 100
A11: Allegan Area Educational Service Agency | B11: 03000 | C11: Allegan Area Educational Service Agency | D11: 03 | E11: ISD | F11: 06 | G11: 26 | H11: 080 | I11: Transportation | J11: 270 | K11: 50958 | L11: 776609.39 | M11: 28740.76 | N11: 374644.82 | O11: 11200.92 | P11: 1242153.89 | Q11: 4.102390244 | R11: 62.5211897 | S11: 2.313784164 | T11: 30.1609022 | U11: 0.9017336813 | V11: 100
A12: Allegan Area Educational Service Agency | B12: 03000 | C12: Allegan Area Educational Service Agency | D12: 03 | E12: ISD | F12: 06 | G12: 26 | H12: 080 | I12: Other Support | J12: 280 | K12: 242297.62 | L12: 111472.37 | M12: 100800.52 | N12: 151911.17 | O12: 7214.99 | P12: 613696.67 | Q12: 39.48165793 | R12: 18.16408259 | S12: 16.42513719 | T12: 24.75346167 | U12: 1.175660608 | V12: 100
A13: Allegan Area Educational Service Agency | B13: 03000 | C13: Allegan Area Educational Service Agency | D13: 03 | E13: ISD | F13: 06 | G13: 26 | H13: 080 | I13: Community Services | J13: 300 | K13: 20583.79 | L13: 189781.93 | M13: 40865.94 | N13: 83056.97 | O13: 4400.05 | P13: 338688.68 | Q13: 6.077495711 | R13: 56.03432923 | S13: 12.06593028 | T13: 24.52310187 | U13: 1.299142918 | V13: 100
A14: Plainwell Community Schools | B14: 03010 | C14: Allegan Area Educational Service Agency | D14: 03 | E14: LEA | F14: 06 | G14: 26 | H14: 080 | I14: Instruction | J14: 100 | K14: 7926607.91 | L14: 741532.47 | M14: 1700149.2 | N14: 3624673.31 | O14: 59762 | P14: 14052724.89 | Q14: 56.4061986 | R14: 5.276787782 | S14: 12.09835967 | T14: 25.79338412 | U14: 0.4252698353 | V14: 100
A15: Plainwell Community Schools | B15: 03010 | C15: Allegan Area Educational Service Agency | D15: 03 | E15: LEA | F15: 06 | G15: 26 | H15: 080 | I15: Student Services | J15: 210 | K15: 382780.48 | L15: 1220 | M15: 90513.83 | N15: 158859.09 | O15: 0 | P15: 633373.4 | Q15: 60.43519984 | R15: 0.1926193932 | S15: 14.29075329 | T15: 25.08142748 | U15: 0 | V15: 100
A16: Plainwell Community Schools | B16: 03010 | C16: Allegan Area Educational Service Agency | D16: 03 | E16: LEA | F16: 06 | G16: 26 | H16: 080 | I16: Instructional Staff Support | J16: 220 | K16: 196049.55 | L16: 71962.07 | M16: 27351.62 | N16: 99816.72 | O16: 4067 | P16: 399246.96 | Q16: 49.10483226 | R16: 18.02445033 | S16: 6.85080232 | T16: 25.00124735 | U16: 1.018667744 | V16: 100
A17: Plainwell Community Schools | B17: 03010 | C17: Allegan Area Educational Service Agency | D17: 03 | E17: LEA | F17: 06 | G17: 26 | H17: 080 | I17: General Administration | J17: 230 | K17: 124659 | L17: 83604.36 | M17: 40301.55 | N17: 86633.4 | O17: 17853 | P17: 353051.31 | Q17: 35.30903199 | R17: 23.68051261 | S17: 11.41521044 | T17: 24.53847289 | U17: 5.05677206 | V17: 100
A18: Plainwell Community Schools | B18: 03010 | C18: Allegan Area Educational Service Agency | D18: 03 | E18: LEA | F18: 06 | G18: 26 | H18: 080 | I18: School Administration | J18: 240 | K18: 605702.86 | L18: 279629.34 | M18: 79330.06 | N18: 374904.2 | O18: 19111.08 | P18: 1358677.54 | Q18: 44.58032478 | R18: 20.58099378 | S18: 5.83877025 | T18: 27.59331695 | U18: 1.406594239 | V18: 100
A19: Plainwell Community Schools | B19: 03010 | C19: Allegan Area Educational Service Agency | D19: 03 | E19: LEA | F19: 06 | G19: 26 | H19: 080 | I19: Business Office | J19: 250 | K19: 81403 | L19: 85162.17 | M19: 46681.87 | N19: 69830.16 | O19: 2500.34 | P19: 285577.54 | Q19: 28.50469263 | R19: 29.82103214 | S19: 16.34647809 | T19: 24.4522591 | U19: 0.8755380413 | V19: 100
A20: Plainwell Community Schools | B20: 03010 | C20: Allegan Area Educational Service Agency | D20: 03 | E20: LEA | F20: 06 | G20: 26 | H20: 080 | I20: Operational Maintenance | J20: 260 | K20: 64991.05 | L20: 515763.51 | M20: 146136.98 | N20: 254866.9 | O20: 29457 | P20: 1011215.44 | Q20: 6.427023108 | R20: 51.00431516 | S20: 14.45161676 | T20: 25.20401587 | U20: 2.913029097 | V20: 100
A21: Plainwell Community Schools | B21: 03010 | C21: Allegan Area Educational Service Agency | D21: 03 | E21: LEA | F21: 06 | G21: 26 | H21: 080 | I21: Transportation | J21: 270 | K21: 11477.95 | L21: 296298.71 | M21: 13304.9 | N21: 132812.8 | O21: 2024.5 | P21: 455918.86 | Q21: 2.517542266 | R21: 64.98935139 | S21: 2.918260499 | T21: 29.13079753 | U21: 0.4440483116 | V21: 100
A22: Plainwell Community Schools | B22: 03010 | C22: Allegan Area Educational Service Agency | D22: 03 | E22: LEA | F22: 06 | G22: 26 | H22: 080 | I22: Other Support | J22: 280 | K22: 23647.25 | L22: 306988.06 | M22: 10659.08 | N22: 120145.47 | O22: 9600 | P22: 471039.86 | Q22: 5.020222705 | R22: 65.17241662 | S22: 2.262882806 | T22: 25.50643379 | U22: 2.038044084 | V22: 100
A23: Plainwell Community Schools | B23: 03010 | C23: Allegan Area Educational Service Agency | D23: 03 | E23: LEA | F23: 06 | G23: 26 | H23: 080 | I23: Community Services | J23: 300 | K23: 100300.5 | L23: 165578.85 | M23: 48601.35 | N23: 103584.5 | O23: 2087 | P23: 420152.2 | Q23: 23.87242052 | R23: 39.40925455 | S23: 11.56755814 | T23: 24.65404203 | U23: 0.4967247583 | V23: 100
A24: Otsego Public Schools | B24: 03020 | C24: Allegan Area Educational Service Agency | D24: 03 | E24: LEA | F24: 06 | G24: 26 | H24: 080 | I24: Instruction | J24: 100 | K24: 6378081.06 | L24: 413683.93 | M24: 1371352.32 | N24: 2881186.23 | O24: 60694.85 | P24: 11104998.39 | Q24: 57.43432674 | R24: 3.725204772 | S24: 12.3489646 | T24: 25.94494955 | U24: 0.5465543341 | V24: 100
A25: Otsego Public Schools | B25: 03020 | C25: Allegan Area Educational Service Agency | D25: 03 | E25: LEA | F25: 06 | G25: 26 | H25: 080 | I25: Student Services | J25: 210 | K25: 471456.88 | L25: 0 | M25: 76950.47 | N25: 210555.5 | O25: 5670.76 | P25: 764633.61 | Q25: 61.65788082 | R25: 0 | S25: 10.06370489 | T25: 27.53678327 | U25: 0.7416310146 | V25: 100
A26: Otsego Public Schools | B26: 03020 | C26: Allegan Area Educational Service Agency | D26: 03 | E26: LEA | F26: 06 | G26: 26 | H26: 080 | I26: Instructional Staff Support | J26: 220 | K26: 0 | L26: 106433.95 | M26: 0 | N26: 45068.49 | O26: 0 | P26: 151502.44 | Q26: 0 | R26: 70.25230089 | S26: 0 | T26: 29.74769911 | U26: 0 | V26: 100
A27: Otsego Public Schools | B27: 03020 | C27: Allegan Area Educational Service Agency | D27: 03 | E27: LEA | F27: 06 | G27: 26 | H27: 080 | I27: General Administration | J27: 230 | K27: 266249.59 | L27: 48361.94 | M27: 81151.36 | N27: 144213.03 | O27: 15517.89 | P27: 555493.81 | Q27: 47.93025326 | R27: 8.706116815 | S27: 14.60886846 | T27: 25.96123078 | U27: 2.793530679 | V27: 100
A28: Otsego Public Schools | B28: 03020 | C28: Allegan Area Educational Service Agency | D28: 03 | E28: LEA | F28: 06 | G28: 26 | H28: 080 | I28: School Administration | J28: 240 | K28: 602933.77 | L28: 192025.33 | M28: 161809.14 | N28: 328573.43 | O28: 3330.76 | P28: 1288672.43 | Q28: 46.78720177 | R28: 14.90101949 | S28: 12.55626614 | T28: 25.49704815 | U28: 0.2584644416 | V28: 100
A29: Otsego Public Schools | B29: 03020 | C29: Allegan Area Educational Service Agency | D29: 03 | E29: LEA | F29: 06 | G29: 26 | H29: 080 | I29: Business Office | J29: 250 | K29: 97344 | L29: 85615.14 | M29: 28890.02 | N29: 75046.44 | O29: 0 | P29: 286895.6 | Q29: 33.93011256 | R29: 29.84191462 | S29: 10.06987211 | T29: 26.15810072 | U29: 0 | V29: 100
A30: Otsego Public Schools | B30: 03020 | C30: Allegan Area Educational Service Agency | D30: 03 | E30: LEA | F30: 06 | G30: 26 | H30: 080 | I30: Operational Maintenance | J30: 260 | K30: 27676.23 | L30: 586109.43 | M30: 161197.94 | N30: 227506.28 | O30: 2076.84 | P30: 1004566.72 | Q30: 2.755041497 | R30: 58.34450001 | S30: 16.04651406 | T30: 22.64720456 | U30: 0.2067398769 | V30: 100
A31: Otsego Public Schools | B31: 03020 | C31: Allegan Area Educational Service Agency | D31: 03 | E31: LEA | F31: 06 | G31: 26 | H31: 080 | I31: Transportation | J31: 270 | K31: 0 | L31: 363882.59 | M31: 58924.73 | N31: 158522.76 | O31: 0 | P31: 581330.08 | Q31: 0 | R31: 62.59483253 | S31: 10.13619147 | T31: 27.268976 | U31: 0 | V31: 100
A32: Otsego Public Schools | B32: 03020 | C32: Allegan Area Educational Service Agency | D32: 03 | E32: LEA | F32: 06 | G32: 26 | H32: 080 | I32: Other Support | J32: 280 | K32: 199956 | L32: 418507.45 | M32: 55833.31 | N32: 258552.01 | O32: 3000 | P32: 935848.77 | Q32: 21.36627267 | R32: 44.71955976 | S32: 5.966061162 | T32: 27.62754179 | U32: 0.3205646143 | V32: 100
A33: Otsego Public Schools | B33: 03020 | C33: Allegan Area Educational Service Agency | D33: 03 | E33: LEA | F33: 06 | G33: 26 | H33: 080 | I33: Community Services | J33: 300 | K33: 59934.92 | L33: 195032.2 | M33: 15812.62 | N33: 94568.13 | O33: 0 | P33: 365347.87 | Q33: 16.40489104 | R33: 53.38260218 | S33: 4.328099682 | T33: 25.8844071 | U33: 0 | V33: 100
A34: Allegan Public Schools | B34: 03030 | C34: Allegan Area Educational Service Agency | D34: 03 | E34: LEA | F34: 06 | G34: 26 | H34: 080 | I34: Instruction | J34: 100 | K34: 7560307.84 | L34: 557868.67 | M34: 1384508.44 | N34: 3646537.12 | O34: 111030.76 | P34: 13260252.83 | Q34: 57.01480912 | R34: 4.207074157 | S34: 10.44104104 | T34: 27.4997556 | U34: 0.837320083 | V34: 100
A35: Allegan Public Schools | B35: 03030 | C35: Allegan Area Educational Service Agency | D35: 03 | E35: LEA | F35: 06 | G35: 26 | H35: 080 | I35: Student Services | J35: 210 | K35: 824269.68 | L35: 131001.77 | M35: 159514.33 | N35: 310617.31 | O35: 13244.64 | P35: 1438647.73 | Q35: 57.29475415 | R35: 9.105896271 | S35: 11.08779632 | T35: 21.59092205 | U35: 0.9206312097 | V35: 100
A36: Allegan Public Schools | B36: 03030 | C36: Allegan Area Educational Service Agency | D36: 03 | E36: LEA | F36: 06 | G36: 26 | H36: 080 | I36: Instructional Staff Support | J36: 220 | K36: 315163.85 | L36: 157258.7 | M36: 62331.63 | N36: 155974.6 | O36: 11087.96 | P36: 701816.74 | Q36: 44.90685845 | R36: 22.40737375 | S36: 8.881468117 | T36: 22.22440576 | U36: 1.579893919 | V36: 100
A37: Allegan Public Schools | B37: 03030 | C37: Allegan Area Educational Service Agency | D37: 03 | E37: LEA | F37: 06 | G37: 26 | H37: 080 | I37: General Administration | J37: 230 | K37: 135027.3 | L37: 38228.78 | M37: 18412.21 | N37: 58198.49 | O37: 19150.04 | P37: 269016.82 | Q37: 50.19288385 | R37: 14.21055382 | S37: 6.844259775 | T37: 21.63377368 | U37: 7.118528871 | V37: 100
A38: Allegan Public Schools | B38: 03030 | C38: Allegan Area Educational Service Agency | D38: 03 | E38: LEA | F38: 06 | G38: 26 | H38: 080 | I38: School Administration | J38: 240 | K38: 598204.9 | L38: 184607 | M38: 182685.24 | N38: 259704.99 | O38: 7102.03 | P38: 1232304.16 | Q38: 48.54360793 | R38: 14.98063595 | S38: 14.82468744 | T38: 21.07474749 | U38: 0.5763211901 | V38: 100
A39: Allegan Public Schools | B39: 03030 | C39: Allegan Area Educational Service Agency | D39: 03 | E39: LEA | F39: 06 | G39: 26 | H39: 080 | I39: Business Office | J39: 250 | K39: 198284.46 | L39: 0 | M39: 31431.95 | N39: 66500.89 | O39: 24654.48 | P39: 320871.78 | Q39: 61.79554338 | R39: 0 | S39: 9.795797561 | T39: 20.72506657 | U39: 7.683592493 | V39: 100
A40: Allegan Public Schools | B40: 03030 | C40: Allegan Area Educational Service Agency | D40: 03 | E40: LEA | F40: 06 | G40: 26 | H40: 080 | I40: Operational Maintenance | J40: 260 | K40: 43456 | L40: 503794.39 | M40: 120942.95 | N40: 195476.24 | O40: 5484.45 | P40: 869154.03 | Q40: 4.999804235 | R40: 57.96376391 | S40: 13.91501918 | T40: 22.49040254 | U40: 0.6310101329 | V40: 100
A41: Allegan Public Schools | B41: 03030 | C41: Allegan Area Educational Service Agency | D41: 03 | E41: LEA | F41: 06 | G41: 26 | H41: 080 | I41: Transportation | J41: 270 | K41: 51594.59 | L41: 415943.27 | M41: 71110.02 | N41: 237090.12 | O41: 9619.45 | P41: 785357.45 | Q41: 6.569567781 | R41: 52.96228743 | S41: 9.054478314 | T41: 30.18881657 | U41: 1.224849907 | V41: 100
A42: Allegan Public Schools | B42: 03030 | C42: Allegan Area Educational Service Agency | D42: 03 | E42: LEA | F42: 06 | G42: 26 | H42: 080 | I42: Other Support | J42: 280 | K42: 61206 | L42: 474876.56 | M42: 81893.85 | N42: 180523.1 | O42: 6855.2 | P42: 805354.71 | Q42: 7.599881051 | R42: 58.96489511 | S42: 10.16866841 | T42: 22.41535286 | U42: 0.8512025713 | V42: 100
A43: Allegan Public Schools | B43: 03030 | C43: Allegan Area Educational Service Agency | D43: 03 | E43: LEA | F43: 06 | G43: 26 | H43: 080 | I43: Community Services | J43: 300 | K43: 45575.81 | L43: 139460.79 | M43: 12569.1 | N43: 44548.74 | O43: 0 | P43: 242154.44 | Q43: 18.82096814 | R43: 57.59167166 | S43: 5.190530473 | T43: 18.39682973 | U43: 0 | V43: 100
A44: Wayland Union Schools | B44: 03040 | C44: Allegan Area Educational Service Agency | D44: 03 | E44: LEA | F44: 06 | G44: 26 | H44: 072 | I44: Instruction | J44: 100 | K44: 8312602.29 | L44: 624508.85 | M44: 1930934.66 | N44: 3766449.39 | O44: 112090.88 | P44: 14746586.07 | Q44: 56.36967262 | R44: 4.234938494 | S44: 13.09411311 | T44: 25.54116168 | U44: 0.7601141001 | V44: 100
A45: Wayland Union Schools | B45: 03040 | C45: Allegan Area Educational Service Agency | D45: 03 | E45: LEA | F45: 06 | G45: 26 | H45: 072 | I45: Student Services | J45: 210 | K45: 565132.91 | L45: 125738.97 | M45: 149213.76 | N45: 280006.3 | O45: 18039.02 | P45: 1138130.96 | Q45: 49.65447122 | R45: 11.04784725 | S45: 13.11042097 | T45: 24.60229181 | U45: 1.584968746 | V45: 100
A46: Wayland Union Schools | B46: 03040 | C46: Allegan Area Educational Service Agency | D46: 03 | E46: LEA | F46: 06 | G46: 26 | H46: 072 | I46: Instructional Staff Support | J46: 220 | K46: 364875.39 | L46: 167901.57 | M46: 66850.31 | N46: 221906.48 | O46: 43380.19 | P46: 864913.94 | Q46: 42.18632318 | R46: 19.4125175 | S46: 7.729128519 | T46: 25.65648092 | U46: 5.015549871 | V46: 100
A47: Wayland Union Schools | B47: 03040 | C47: Allegan Area Educational Service Agency | D47: 03 | E47: LEA | F47: 06 | G47: 26 | H47: 072 | I47: General Administration | J47: 230 | K47: 140925.06 | L47: 48797.47 | M47: 24497.76 | N47: 29587.01 | O47: 17270.58 | P47: 261077.88 | Q47: 53.97816927 | R47: 18.69077151 | S47: 9.383315048 | T47: 11.3326376 | U47: 6.615106573 | V47: 100
A48: Wayland Union Schools | B48: 03040 | C48: Allegan Area Educational Service Agency | D48: 03 | E48: LEA | F48: 06 | G48: 26 | H48: 072 | I48: School Administration | J48: 240 | K48: 834543.94 | L48: 218960.4 | M48: 129088.4 | N48: 439072.07 | O48: 33094.78 | P48: 1654759.59 | Q48: 50.43294174 | R48: 13.23215779 | S48: 7.801036524 | T48: 26.53388883 | U48: 1.999975114 | V48: 100
A49: Wayland Union Schools | B49: 03040 | C49: Allegan Area Educational Service Agency | D49: 03 | E49: LEA | F49: 06 | G49: 26 | H49: 072 | I49: Business Office | J49: 250 | K49: 118476.51 | L49: 129932.16 | M49: 30963.71 | N49: 112020.11 | O49: 8100 | P49: 399492.49 | Q49: 29.65675525 | R49: 32.52430603 | S49: 7.750761472 | T49: 28.04060472 | U49: 2.027572533 | V49: 100
A50: Wayland Union Schools | B50: 03040 | C50: Allegan Area Educational Service Agency | D50: 03 | E50: LEA | F50: 06 | G50: 26 | H50: 072 | I50: Operational Maintenance | J50: 260 | K50: 46610.76 | L50: 148690.21 | M50: 38931.73 | N50: 162828.65 | O50: 4558.54 | P50: 401619.89 | Q50: 11.60569015 | R50: 37.02262107 | S50: 9.693675779 | T50: 40.5429746 | U50: 1.135038407 | V50: 100
A51: Wayland Union Schools | B51: 03040 | C51: Allegan Area Educational Service Agency | D51: 03 | E51: LEA | F51: 06 | G51: 26 | H51: 072 | I51: Transportation | J51: 270 | K51: 37183.48 | L51: 463892.32 | M51: 7112.38 | N51: 211858.81 | O51: 1633.46 | P51: 721680.45 | Q51: 5.152346859 | R51: 64.2794633 | S51: 0.9855303687 | T51: 29.3563183 | U51: 0.2263411736 | V51: 100
A52: Wayland Union Schools | B52: 03040 | C52: Allegan Area Educational Service Agency | D52: 03 | E52: LEA | F52: 06 | G52: 26 | H52: 072 | I52: Other Support | J52: 280 | K52: 170916.72 | L52: 941947.19 | M52: 72651.02 | N52: 429008.58 | O52: 24671.98 | P52: 1639195.49 | Q52: 10.42686617 | R52: 57.46399351 | S52: 4.432114439 | T52: 26.17189851 | U52: 1.505127372 | V52: 100
A53: Wayland Union Schools | B53: 03040 | C53: Allegan Area Educational Service Agency | D53: 03 | E53: LEA | F53: 06 | G53: 26 | H53: 072 | I53: Community Services | J53: 300 | K53: 25732.4 | L53: 57307.58 | M53: 13795.03 | N53: 33857.37 | O53: 2646.7 | P53: 133339.08 | Q53: 19.29846824 | R53: 42.97883261 | S53: 10.3458266 | T53: 25.39193311 | U53: 1.984939449 | V53: 100
A54: Fennville Public Schools | B54: 03050 | C54: Allegan Area Educational Service Agency | D54: 03 | E54: LEA | F54: 06 | G54: 26 | H54: 080 | I54: Instruction | J54: 100 | K54: 3801760.96 | L54: 282477.07 | M54: 980578.02 | N54: 1676916.93 | O54: 46014.35 | P54: 6787747.33 | Q54: 56.00917028 | R54: 4.161573145 | S54: 14.44629525 | T54: 24.70505822 | U54: 0.6779031063 | V54: 100
A55: Fennville Public Schools | B55: 03050 | C55: Allegan Area Educational Service Agency | D55: 03 | E55: LEA | F55: 06 | G55: 26 | H55: 080 | I55: Student Services | J55: 210 | K55: 161570.35 | L55: 20347.8 | M55: 34746.68 | N55: 74702.5 | O55: 4378.72 | P55: 295746.05 | Q55: 54.63144816 | R55: 6.880159515 | S55: 11.74882302 | T55: 25.25900177 | U55: 1.480567534 | V55: 100
A56: Fennville Public Schools | B56: 03050 | C56: Allegan Area Educational Service Agency | D56: 03 | E56: LEA | F56: 06 | G56: 26 | H56: 080 | I56: Instructional Staff Support | J56: 220 | K56: 49032.9 | L56: 58830.39 | M56: 16648.26 | N56: 39458.84 | O56: 0 | P56: 163970.39 | Q56: 29.9035088 | R56: 35.87866687 | S56: 10.1532112 | T56: 24.06461313 | U56: 0 | V56: 100
A57: Fennville Public Schools | B57: 03050 | C57: Allegan Area Educational Service Agency | D57: 03 | E57: LEA | F57: 06 | G57: 26 | H57: 080 | I57: General Administration | J57: 230 | K57: 123689.14 | L57: 45411.76 | M57: 36290.08 | N57: 67558.93 | O57: 0 | P57: 272949.91 | Q57: 45.31569181 | R57: 16.63739695 | S57: 13.29550906 | T57: 24.75140219 | U57: 0 | V57: 100
A58: Fennville Public Schools | B58: 03050 | C58: Allegan Area Educational Service Agency | D58: 03 | E58: LEA | F58: 06 | G58: 26 | H58: 080 | I58: School Administration | J58: 240 | K58: 298842.93 | L58: 154565.16 | M58: 110460.22 | N58: 190038.07 | O58: 12904.88 | P58: 766811.26 | Q58: 38.97216246 | R58: 20.15687146 | S58: 14.40513797 | T58: 24.78290029 | U58: 1.682927817 | V58: 100
A59: Fennville Public Schools | B59: 03050 | C59: Allegan Area Educational Service Agency | D59: 03 | E59: LEA | F59: 06 | G59: 26 | H59: 080 | I59: Business Office | J59: 250 | K59: 0 | L59: 61861 | M59: 13770.4 | N59: 26163.12 | O59: 2928.84 | P59: 104723.36 | Q59: 0 | R59: 59.07087015 | S59: 13.14931072 | T59: 24.98307923 | U59: 2.796739906 | V59: 100
A60: Fennville Public Schools | B60: 03050 | C60: Allegan Area Educational Service Agency | D60: 03 | E60: LEA | F60: 06 | G60: 26 | H60: 080 | I60: Operational Maintenance | J60: 260 | K60: 0 | L60: 126415.55 | M60: 27464.51 | N60: 41676.92 | O60: 0 | P60: 195556.98 | Q60: 0 | R60: 64.64384447 | S60: 14.04424941 | T60: 21.31190613 | U60: 0 | V60: 100
A61: Fennville Public Schools | B61: 03050 | C61: Allegan Area Educational Service Agency | D61: 03 | E61: LEA | F61: 06 | G61: 26 | H61: 080 | I61: Transportation | J61: 270 | K61: 50210.13 | L61: 294888.71 | M61: 32215.25 | N61: 143352.42 | O61: 0 | P61: 520666.51 | Q61: 9.64343376 | R61: 56.63677312 | S61: 6.1873098 | T61: 27.53248332 | U61: 0 | V61: 100
A62: Fennville Public Schools | B62: 03050 | C62: Allegan Area Educational Service Agency | D62: 03 | E62: LEA | F62: 06 | G62: 26 | H62: 080 | I62: Other Support | J62: 280 | K62: 81596.27 | L62: 341868.29 | M62: 56156.44 | N62: 178024.3 | O62: 5448.99 | P62: 663094.29 | Q62: 12.30537968 | R62: 51.55651242 | S62: 8.468846866 | T62: 26.84750912 | U62: 0.821751911 | V62: 100
A63: Fennville Public Schools | B63: 03050 | C63: Allegan Area Educational Service Agency | D63: 03 | E63: LEA | F63: 06 | G63: 26 | H63: 080 | I63: Community Services | J63: 300 | K63: 0 | L63: 51136.52 | M63: 3437.74 | N63: 21770.18 | O63: 2 | P63: 76346.44 | Q63: 0 | R63: 66.97957364 | S63: 4.502816372 | T63: 28.51499035 | U63: 0.0026196375 | V63: 100
A64: Martin Public Schools | B64: 03060 | C64: Allegan Area Educational Service Agency | D64: 03 | E64: LEA | F64: 06 | G64: 26 | H64: 080 | I64: Instruction | J64: 100 | K64: 1569653.38 | L64: 166967.19 | M64: 395656.44 | N64: 727725.96 | O64: 38300 | P64: 2898302.97 | Q64: 54.15767076 | R64: 5.760860467 | S64: 13.65131403 | T64: 25.10869179 | U64: 1.321462952 | V64: 100
A65: Martin Public Schools | B65: 03060 | C65: Allegan Area Educational Service Agency | D65: 03 | E65: LEA | F65: 06 | G65: 26 | H65: 080 | I65: Student Services | J65: 210 | K65: 55713.11 | L65: 5810 | M65: 6955.16 | N65: 26446.4 | O65: 7300 | P65: 102224.67 | Q65: 54.50065038 | R65: 5.683559556 | S65: 6.803797948 | T65: 25.87085877 | U65: 7.141133349 | V65: 100
A66: Martin Public Schools | B66: 03060 | C66: Allegan Area Educational Service Agency | D66: 03 | E66: LEA | F66: 06 | G66: 26 | H66: 080 | I66: Instructional Staff Support | J66: 220 | K66: 5886.1 | L66: 6560.77 | M66: 0 | N66: 4919.33 | O66: 0 | P66: 17366.2 | Q66: 33.89400099 | R66: 37.77896143 | S66: 0 | T66: 28.32703758 | U66: 0 | V66: 100
A67: Martin Public Schools | B67: 03060 | C67: Allegan Area Educational Service Agency | D67: 03 | E67: LEA | F67: 06 | G67: 26 | H67: 080 | I67: General Administration | J67: 230 | K67: 50617.52 | L67: 19104.92 | M67: 18006.92 | N67: 38017.52 | O67: 0 | P67: 125746.88 | Q67: 40.25349973 | R67: 15.19315628 | S67: 14.31997358 | T67: 30.2333704 | U67: 0 | V67: 100
A68: Martin Public Schools | B68: 03060 | C68: Allegan Area Educational Service Agency | D68: 03 | E68: LEA | F68: 06 | G68: 26 | H68: 080 | I68: School Administration | J68: 240 | K68: 149910.13 | L68: 80388.63 | M68: 29031.23 | N68: 106307.95 | O68: 7650 | P68: 373287.94 | Q68: 40.15938206 | R68: 21.53528721 | S68: 7.777167942 | T68: 28.47880647 | U68: 2.049356323 | V68: 100
A69: Martin Public Schools | B69: 03060 | C69: Allegan Area Educational Service Agency | D69: 03 | E69: LEA | F69: 06 | G69: 26 | H69: 080 | I69: Business Office | J69: 250 | K69: 40000 | L69: 0 | M69: 6331.61 | N69: 17279.77 | O69: 0 | P69: 63611.38 | Q69: 62.88183026 | R69: 0 | S69: 9.953580633 | T69: 27.1645891 | U69: 0 | V69: 100
A70: Martin Public Schools | B70: 03060 | C70: Allegan Area Educational Service Agency | D70: 03 | E70: LEA | F70: 06 | G70: 26 | H70: 080 | I70: Operational Maintenance | J70: 260 | K70: 37307.14 | L70: 78438.17 | M70: 26144.07 | N70: 53139.3 | O70: 4511.45 | P70: 199540.13 | Q70: 18.69655993 | R70: 39.30947123 | S70: 13.10216145 | T70: 26.63088372 | U70: 2.260923655 | V70: 100
A71: Martin Public Schools | B71: 03060 | C71: Allegan Area Educational Service Agency | D71: 03 | E71: LEA | F71: 06 | G71: 26 | H71: 080 | I71: Transportation | J71: 270 | K71: 10830.82 | L71: 81942.42 | M71: 205.5 | N71: 40067.85 | O71: 558.5 | P71: 133605.09 | Q71: 8.106592346 | R71: 61.33181004 | S71: 0.1538115052 | T71: 29.98976311 | U71: 0.418022996 | V71: 100
A72: Martin Public Schools | B72: 03060 | C72: Allegan Area Educational Service Agency | D72: 03 | E72: LEA | F72: 06 | G72: 26 | H72: 080 | I72: Other Support | J72: 280 | K72: 24749.96 | L72: 125596.67 | M72: 816.55 | N72: 66623.71 | O72: 2550 | P72: 220336.89 | Q72: 11.23278086 | R72: 57.00210709 | S72: 0.3705915973 | T72: 30.23720177 | U72: 1.157318686 | V72: 100
A73: Hopkins Public Schools | B73: 03070 | C73: Allegan Area Educational Service Agency | D73: 03 | E73: LEA | F73: 06 | G73: 26 | H73: 080 | I73: Instruction | J73: 100 | K73: 4199527.86 | L73: 356469.48 | M73: 1151353.75 | N73: 1931062.31 | O73: 142266.83 | P73: 7780680.23 | Q73: 53.9737881 | R73: 4.58146935 | S73: 14.79759759 | T73: 24.81868234 | U73: 1.828462625 | V73: 100
A74: Hopkins Public Schools | B74: 03070 | C74: Allegan Area Educational Service Agency | D74: 03 | E74: LEA | F74: 06 | G74: 26 | H74: 080 | I74: Student Services | J74: 210 | K74: 198088.82 | L74: 51502.89 | M74: 54155.6 | N74: 105358.67 | O74: 5790 | P74: 414895.98 | Q74: 47.7442129 | R74: 12.41344638 | S74: 13.05281386 | T74: 25.39399635 | U74: 1.395530514 | V74: 100
A75: Hopkins Public Schools | B75: 03070 | C75: Allegan Area Educational Service Agency | D75: 03 | E75: LEA | F75: 06 | G75: 26 | H75: 080 | I75: Instructional Staff Support | J75: 220 | K75: 14125 | L75: 59692.2 | M75: 2253.8 | N75: 30793.66 | O75: 1337.3 | P75: 108201.96 | Q75: 13.05429218 | R75: 55.16739253 | S75: 2.082956723 | T75: 28.45942902 | U75: 1.235929553 | V75: 100
A76: Hopkins Public Schools | B76: 03070 | C76: Allegan Area Educational Service Agency | D76: 03 | E76: LEA | F76: 06 | G76: 26 | H76: 080 | I76: General Administration | J76: 230 | K76: 121500 | L76: 18030.33 | M76: 4071.64 | N76: 62264.37 | O76: 8441.15 | P76: 214307.49 | Q76: 56.69423873 | R76: 8.413299041 | S76: 1.899905598 | T76: 29.05375356 | U76: 3.938803072 | V76: 100
A77: Hopkins Public Schools | B77: 03070 | C77: Allegan Area Educational Service Agency | D77: 03 | E77: LEA | F77: 06 | G77: 26 | H77: 080 | I77: School Administration | J77: 240 | K77: 328692.7 | L77: 125266.2 | M77: 75649.19 | N77: 194257.84 | O77: 15491.85 | P77: 739357.78 | Q77: 44.45651468 | R77: 16.94256873 | S77: 10.23174328 | T77: 26.27386162 | U77: 2.095311691 | V77: 100
A78: Hopkins Public Schools | B78: 03070 | C78: Allegan Area Educational Service Agency | D78: 03 | E78: LEA | F78: 06 | G78: 26 | H78: 080 | I78: Business Office | J78: 250 | K78: 92527.67 | L78: 0 | M78: 0 | N78: 39196.42 | O78: 9879.8 | P78: 141603.89 | Q78: 65.34260464 | R78: 0 | S78: 0 | T78: 27.68032714 | U78: 6.977068215 | V78: 100
A79: Hopkins Public Schools | B79: 03070 | C79: Allegan Area Educational Service Agency | D79: 03 | E79: LEA | F79: 06 | G79: 26 | H79: 080 | I79: Operational Maintenance | J79: 260 | K79: 24307.7 | L79: 433481.81 | M79: 106095.49 | N79: 200698.5 | O79: 30279.41 | P79: 794862.91 | Q79: 3.058099666 | R79: 54.53541794 | S79: 13.34764633 | T79: 25.24944836 | U79: 3.809387709 | V79: 100
A80: Hopkins Public Schools | B80: 03070 | C80: Allegan Area Educational Service Agency | D80: 03 | E80: LEA | F80: 06 | G80: 26 | H80: 080 | I80: Transportation | J80: 270 | K80: 50422.42 | L80: 351186.74 | M80: 58133.4 | N80: 181587.85 | O80: 9074 | P80: 650404.41 | Q80: 7.752472035 | R80: 53.99513512 | S80: 8.938039027 | T80: 27.91922183 | U80: 1.395131992 | V80: 100
A81: Hopkins Public Schools | B81: 03070 | C81: Allegan Area Educational Service Agency | D81: 03 | E81: LEA | F81: 06 | G81: 26 | H81: 080 | I81: Other Support | J81: 280 | K81: 35000.93 | L81: 442099.77 | M81: 33862.2 | N81: 191246.21 | O81: 11785.47 | P81: 713994.58 | Q81: 4.902128249 | R81: 61.91920533 | S81: 4.742641044 | T81: 26.7853868 | U81: 1.65063858 | V81: 100
A82: Hopkins Public Schools | B82: 03070 | C82: Allegan Area Educational Service Agency | D82: 03 | E82: LEA | F82: 06 | G82: 26 | H82: 080 | I82: Community Services | J82: 300 | K82: 12312.89 | L82: 0 | M82: 0 | N82: 4761.6 | O82: 0 | P82: 17074.49 | Q82: 72.11278346 | R82: 0 | S82: 0 | T82: 27.88721654 | U82: 0 | V82: 100
A83: Glenn Public School District | B83: 03440 | C83: Allegan Area Educational Service Agency | D83: 03 | E83: LEA | F83: 06 | G83: 26 | H83: 080 | I83: Instruction | J83: 100 | K83: 166498.29 | L83: 69880.24 | M83: 582.16 | N83: 104205.76 | O83: 25769.54 | P83: 366935.99 | Q83: 45.37529557 | R83: 19.04425892 | S83: 0.1586543746 | T83: 28.39889322 | U83: 7.022897917 | V83: 100
A84: Glenn Public School District | B84: 03440 | C84: Allegan Area Educational Service Agency | D84: 03 | E84: LEA | F84: 06 | G84: 26 | H84: 080 | I84: Instructional Staff Support | J84: 220 | K84: 1600 | L84: 0 | M84: 0 | N84: 279 | O84: 0 | P84: 1879 | Q84: 85.15167642 | R84: 0 | S84: 0 | T84: 14.84832358 | U84: 0 | V84: 100
A85: Glenn Public School District | B85: 03440 | C85: Allegan Area Educational Service Agency | D85: 03 | E85: LEA | F85: 06 | G85: 26 | H85: 080 | I85: General Administration | J85: 230 | K85: 27022 | L85: 21819.34 | M85: 132.25 | N85: 8733.16 | O85: 0 | P85: 57706.75 | Q85: 46.82641112 | R85: 37.81072405 | S85: 0.229175963 | T85: 15.13368887 | U85: 0 | V85: 100
A86: Glenn Public School District | B86: 03440 | C86: Allegan Area Educational Service Agency | D86: 03 | E86: LEA | F86: 06 | G86: 26 | H86: 080 | I86: Business Office | J86: 250 | K86: 4354.93 | L86: 0 | M86: 12.73 | N86: 1302.99 | O86: 0 | P86: 5670.65 | Q86: 76.7977216 | R86: 0 | S86: 0.2244892561 | T86: 22.97778914 | U86: 0 | V86: 100
A87: Glenn Public School District | B87: 03440 | C87: Allegan Area Educational Service Agency | D87: 03 | E87: LEA | F87: 06 | G87: 26 | H87: 080 | I87: Operational Maintenance | J87: 260 | K87: 0 | L87: 17219.78 | M87: 50.34 | N87: 5530.2 | O87: 0 | P87: 22800.32 | Q87: 0 | R87: 75.52429089 | S87: 0.2207863749 | T87: 24.25492274 | U87: 0 | V87: 100
A88: Outlook Academy | B88: 03902 | C88: Allegan Area Educational Service Agency | D88: 03 | E88: PSA | F88: 06 | G88: 26 | H88: 080 | I88: Instruction | J88: 100 | K88: 293020.67 | L88: 54164.95 | M88: 47717.64 | N88: 133688.24 | O88: 12846.28 | P88: 541437.78 | Q88: 54.11899221 | R88: 10.00391033 | S88: 8.81313454 | T88: 24.69133942 | U88: 2.372623499 | V88: 100
A89: Outlook Academy | B89: 03902 | C89: Allegan Area Educational Service Agency | D89: 03 | E89: PSA | F89: 06 | G89: 26 | H89: 080 | I89: Student Services | J89: 210 | K89: 45275 | L89: 0 | M89: 2642.65 | N89: 19675.04 | O89: 2884.65 | P89: 70477.34 | Q89: 64.24050624 | R89: 0 | S89: 3.749644921 | T89: 27.91683114 | U89: 4.093017699 | V89: 100
A90: Outlook Academy | B90: 03902 | C90: Allegan Area Educational Service Agency | D90: 03 | E90: PSA | F90: 06 | G90: 26 | H90: 080 | I90: Instructional Staff Support | J90: 220 | K90: 5803.78 | L90: 2280 | M90: 0 | N90: 3220.61 | O90: 0 | P90: 11304.39 | Q90: 51.34093923 | R90: 20.16915552 | S90: 0 | T90: 28.48990525 | U90: 0 | V90: 100
A91: Outlook Academy | B91: 03902 | C91: Allegan Area Educational Service Agency | D91: 03 | E91: PSA | F91: 06 | G91: 26 | H91: 080 | I91: School Administration | J91: 240 | K91: 15000 | L91: 23399.85 | M91: 6224.28 | N91: 9762.42 | O91: 0 | P91: 54386.55 | Q91: 27.58034845 | R91: 43.02506778 | S91: 11.44452075 | T91: 17.95006302 | U91: 0 | V91: 100
A92: Outlook Academy | B92: 03902 | C92: Allegan Area Educational Service Agency | D92: 03 | E92: PSA | F92: 06 | G92: 26 | H92: 080 | I92: Business Office | J92: 250 | K92: 13560 | L92: 0 | M92: 0 | N92: 5736.59 | O92: 0 | P92: 19296.59 | Q92: 70.2714832 | R92: 0 | S92: 0 | T92: 29.7285168 | U92: 0 | V92: 100
A93: Alcona Community Schools | B93: 01010 | C93: Alpena-Montmorency-Alcona ESD | D93: 04 | E93: LEA | F93: 01 | G93: 36 | H93: 106 | I93: Instruction | J93: 100 | K93: 2264972.33 | L93: 261987.42 | M93: 514561.86 | N93: 1062971.46 | O93: 75169.66 | P93: 4179662.73 | Q93: 54.19031334 | R93: 6.268147382 | S93: 12.31108568 | T93: 25.43199125 | U93: 1.798462337 | V93: 100
A94: Alcona Community Schools | B94: 01010 | C94: Alpena-Montmorency-Alcona ESD | D94: 04 | E94: LEA | F94: 01 | G94: 36 | H94: 106 | I94: Student Services | J94: 210 | K94: 4496.22 | L94: 2000 | M94: 0 | N94: 2560.63 | O94: 0 | P94: 9056.85 | Q94: 49.64441279 | R94: 22.08273296 | S94: 0 | T94: 28.27285425 | U94: 0 | V94: 100
A95: Alcona Community Schools | B95: 01010 | C95: Alpena-Montmorency-Alcona ESD | D95: 04 | E95: LEA | F95: 01 | G95: 36 | H95: 106 | I95: Instructional Staff Support | J95: 220 | K95: 40889.18 | L95: 0 | M95: 1147.63 | N95: 16089.37 | O95: 0 | P95: 58126.18 | Q95: 70.34554825 | R95: 0 | S95: 1.974377122 | T95: 27.68007462 | U95: 0 | V95: 100
A96: Alcona Community Schools | B96: 01010 | C96: Alpena-Montmorency-Alcona ESD | D96: 04 | E96: LEA | F96: 01 | G96: 36 | H96: 106 | I96: General Administration | J96: 230 | K96: 122884.86 | L96: 50 | M96: 17183.55 | N96: 47579.07 | O96: 0 | P96: 187697.48 | Q96: 65.46963763 | R96: 0.0266386102 | S96: 9.154917796 | T96: 25.34880596 | U96: 0 | V96: 100
A97: Alcona Community Schools | B97: 01010 | C97: Alpena-Montmorency-Alcona ESD | D97: 04 | E97: LEA | F97: 01 | G97: 36 | H97: 106 | I97: School Administration | J97: 240 | K97: 168336.29 | L97: 79840.92 | M97: 76960.17 | N97: 95133.32 | O97: 1767 | P97: 422037.7 | Q97: 39.88655279 | R97: 18.91795923 | S97: 18.23537802 | T97: 22.54142699 | U97: 0.4186829755 | V97: 100
A98: Alcona Community Schools | B98: 01010 | C98: Alpena-Montmorency-Alcona ESD | D98: 04 | E98: LEA | F98: 01 | G98: 36 | H98: 106 | I98: Business Office | J98: 250 | K98: 0 | L98: 55226 | M98: 13566.49 | N98: 25213.07 | O98: 0 | P98: 94005.56 | Q98: 0 | R98: 58.74758897 | S98: 14.43158256 | T98: 26.82082847 | U98: 0 | V98: 100
A99: Alcona Community Schools | B99: 01010 | C99: Alpena-Montmorency-Alcona ESD | D99: 04 | E99: LEA | F99: 01 | G99: 36 | H99: 106 | I99: Operational Maintenance | J99: 260 | K99: 2451.57 | L99: 117605.49 | M99: 15050.45 | N99: 46603.63 | O99: 0 | P99: 181711.14 | Q99: 1.34915779 | R99: 64.72112277 | S99: 8.282623729 | T99: 25.64709571 | U99: 0 | V99: 100
A100: Alcona Community Schools | B100: 01010 | C100: Alpena-Montmorency-Alcona ESD | D100: 04 | E100: LEA | F100: 01 | G100: 36 | H100: 106 | I100: Transportation | J100: 270 | K100: 30952.33 | L100: 193297.4 | M100: 92872.42 | N100: 89779.84 | O100: 2400 | P100: 409301.99 | Q100: 7.562223189 | R100: 47.22610804 | S100: 22.6904394 | T100: 21.93486526 | U100: 0.5863641171 | V100: 100
A101: Alcona Community Schools | B101: 01010 | C101: Alpena-Montmorency-Alcona ESD | D101: 04 | E101: LEA | F101: 01 | G101: 36 | H101: 106 | I101: Other Support | J101: 280 | K101: 0 | L101: 157332.7 | M101: 66.36 | N101: 60327.9 | O101: 0 | P101: 217726.96 | Q101: 0 | R101: 72.26146913 | S101: 0.0304785406 | T101: 27.70805232 | U101: 0 | V101: 100
A102: Alpena-Montmorency-Alcona ESD | B102: 04000 | C102: Alpena-Montmorency-Alcona ESD | D102: 04 | E102: ISD | F102: 01 | G102: 36 | H102: 106 | I102: Instruction | J102: 100 | K102: 350296.03 | L102: 244028.83 | M102: 194077.59 | N102: 256893.52 | O102: 13161.04 | P102: 1058457.01 | Q102: 33.09497001 | R102: 23.05514798 | S102: 18.33589727 | T102: 24.27056721 | U102: 1.243417529 | V102: 100
A103: Alpena-Montmorency-Alcona ESD | B103: 04000 | C103: Alpena-Montmorency-Alcona ESD | D103: 04 | E103: ISD | F103: 01 | G103: 36 | H103: 106 | I103: Student Services | J103: 210 | K103: 1385296.49 | L103: 40862.9 | M103: 220896.94 | N103: 604364.42 | O103: 12337.67 | P103: 2263758.42 | Q103: 61.19453727 | R103: 1.805091022 | S103: 9.757973203 | T103: 26.69739026 | U103: 0.5450082434 | V103: 100
A104: Alpena-Montmorency-Alcona ESD | B104: 04000 | C104: Alpena-Montmorency-Alcona ESD | D104: 04 | E104: ISD | F104: 01 | G104: 36 | H104: 106 | I104: Instructional Staff Support | J104: 220 | K104: 692311.33 | L104: 112627.04 | M104: 159588.85 | N104: 329897.69 | O104: 5629.82 | P104: 1300054.73 | Q104: 53.25247576 | R104: 8.663253739 | S104: 12.27554858 | T104: 25.37567707 | U104: 0.4330448457 | V104: 100
A105: Alpena-Montmorency-Alcona ESD | B105: 04000 | C105: Alpena-Montmorency-Alcona ESD | D105: 04 | E105: ISD | F105: 01 | G105: 36 | H105: 106 | I105: General Administration | J105: 230 | K105: 139143.44 | L105: 59951.17 | M105: 35113.8 | N105: 79803.01 | O105: 452.73 | P105: 314464.15 | Q105: 44.24779104 | R105: 19.06454838 | S105: 11.1662331 | T105: 25.37745877 | U105: 0.1439687163 | V105: 100
A106: Alpena-Montmorency-Alcona ESD | B106: 04000 | C106: Alpena-Montmorency-Alcona ESD | D106: 04 | E106: ISD | F106: 01 | G106: 36 | H106: 106 | I106: School Administration | J106: 240 | K106: 0 | L106: 1898.51 | M106: 172.8 | N106: 703.02 | O106: 6.76 | P106: 2781.09 | Q106: 0 | R106: 68.26496086 | S106: 6.213391152 | T106: 25.27857782 | U106: 0.2430701631 | V106: 100
A107: Alpena-Montmorency-Alcona ESD | B107: 04000 | C107: Alpena-Montmorency-Alcona ESD | D107: 04 | E107: ISD | F107: 01 | G107: 36 | H107: 106 | I107: Business Office | J107: 250 | K107: 227556.5 | L107: 0 | M107: 37980.92 | N107: 86554.33 | O107: 3038.45 | P107: 355130.2 | Q107: 64.07692165 | R107: 0 | S107: 10.69492823 | T107: 24.37256251 | U107: 0.8555876127 | V107: 100
A108: Alpena-Montmorency-Alcona ESD | B108: 04000 | C108: Alpena-Montmorency-Alcona ESD | D108: 04 | E108: ISD | F108: 01 | G108: 36 | H108: 106 | I108: Operational Maintenance | J108: 260 | K108: 0 | L108: 33666.68 | M108: 12632.35 | N108: 14532.34 | O108: 818.84 | P108: 61650.21 | Q108: 0 | R108: 54.60918949 | S108: 20.49036005 | T108: 23.57224736 | U108: 1.328203099 | V108: 100
A109: Alpena-Montmorency-Alcona ESD | B109: 04000 | C109: Alpena-Montmorency-Alcona ESD | D109: 04 | E109: ISD | F109: 01 | G109: 36 | H109: 106 | I109: Transportation | J109: 270 | K109: 3528.27 | L109: 3004.35 | M109: 2204.4 | N109: 2731.41 | O109: 40.55 | P109: 11508.98 | Q109: 30.65666983 | R109: 26.10439848 | S109: 19.15373908 | T109: 23.73285904 | U109: 0.3523335691 | V109: 100
A110: Alpena-Montmorency-Alcona ESD | B110: 04000 | C110: Alpena-Montmorency-Alcona ESD | D110: 04 | E110: ISD | F110: 01 | G110: 36 | H110: 106 | I110: Other Support | J110: 280 | K110: 25147 | L110: 38824 | M110: 4702.15 | N110: 27879.43 | O110: 2768.97 | P110: 99321.55 | Q110: 25.31877523 | R110: 39.08920068 | S110: 4.734269653 | T110: 28.06987003 | U110: 2.787884402 | V110: 100
A111: Alpena-Montmorency-Alcona ESD | B111: 04000 | C111: Alpena-Montmorency-Alcona ESD | D111: 04 | E111: ISD | F111: 01 | G111: 36 | H111: 106 | I111: Community Services | J111: 300 | K111: 3495.12 | L111: 0 | M111: 725.79 | N111: 1536.05 | O111: 7.19 | P111: 5764.15 | Q111: 60.63547965 | R111: 0 | S111: 12.59144887 | T111: 26.64833497 | U111: 0.124736518 | V111: 100
A112: Alpena Public Schools | B112: 04010 | C112: Alpena-Montmorency-Alcona ESD | D112: 04 | E112: LEA | F112: 01 | G112: 36 | H112: 106 | I112: Instruction | J112: 100 | K112: 10865603.47 | L112: 1179233.02 | M112: 2224842.5 | N112: 5062367.32 | O112: 189190.86 | P112: 19521237.17 | Q112: 55.66042447 | R112: 6.040769905 | S112: 11.39703637 | T112: 25.93261521 | U112: 0.9691540467 | V112: 100
A113: Alpena Public Schools | B113: 04010 | C113: Alpena-Montmorency-Alcona ESD | D113: 04 | E113: LEA | F113: 01 | G113: 36 | H113: 106 | I113: Student Services | J113: 210 | K113: 476656.11 | L113: 309057.1 | M113: 174147.22 | N113: 303382.7 | O113: 13700 | P113: 1276943.13 | Q113: 37.32790434 | R113: 24.20288678 | S113: 13.63782113 | T113: 23.75851304 | U113: 1.072874718 | V113: 100
A114: Alpena Public Schools | B114: 04010 | C114: Alpena-Montmorency-Alcona ESD | D114: 04 | E114: LEA | F114: 01 | G114: 36 | H114: 106 | I114: Instructional Staff Support | J114: 220 | K114: 424246.18 | L114: 138169.24 | M114: 81499 | N114: 230154 | O114: 600 | P114: 874668.42 | Q114: 48.50365811 | R114: 15.79675644 | S114: 9.317702359 | T114: 26.31328567 | U114: 0.0685974235 | V114: 100
A115: Alpena Public Schools | B115: 04010 | C115: Alpena-Montmorency-Alcona ESD | D115: 04 | E115: LEA | F115: 01 | G115: 36 | H115: 106 | I115: General Administration | J115: 230 | K115: 171708 | L115: 3244.8 | M115: 28548.26 | N115: 73865.7 | O115: 0 | P115: 277366.76 | Q115: 61.90648079 | R115: 1.169858998 | S115: 10.29260319 | T115: 26.63105702 | U115: 0 | V115: 100
A116: Alpena Public Schools | B116: 04010 | C116: Alpena-Montmorency-Alcona ESD | D116: 04 | E116: LEA | F116: 01 | G116: 36 | H116: 106 | I116: School Administration | J116: 240 | K116: 958206.78 | L116: 379634.01 | M116: 360193.44 | N116: 562779.3 | O116: 12590 | P116: 2273403.53 | Q116: 42.14855688 | R116: 16.69892762 | S116: 15.84379699 | T116: 24.75492329 | U116: 0.5537952165 | V116: 100
A117: Alpena Public Schools | B117: 04010 | C117: Alpena-Montmorency-Alcona ESD | D117: 04 | E117: LEA | F117: 01 | G117: 36 | H117: 106 | I117: Business Office | J117: 250 | K117: 210165.74 | L117: 98402.99 | M117: 75694.58 | N117: 130149.24 | O117: 0 | P117: 514412.55 | Q117: 40.85548457 | R117: 19.12919698 | S117: 14.71476153 | T117: 25.30055692 | U117: 0 | V117: 100
A118: Alpena Public Schools | B118: 04010 | C118: Alpena-Montmorency-Alcona ESD | D118: 04 | E118: LEA | F118: 01 | G118: 36 | H118: 106 | I118: Operational Maintenance | J118: 260 | K118: 32734.5 | L118: 986661.73 | M118: 327129.79 | N118: 454203.13 | O118: 0 | P118: 1800729.15 | Q118: 1.817846954 | R118: 54.79234509 | S118: 18.16651827 | T118: 25.22328969 | U118: 0 | V118: 100
A119: Alpena Public Schools | B119: 04010 | C119: Alpena-Montmorency-Alcona ESD | D119: 04 | E119: LEA | F119: 01 | G119: 36 | H119: 106 | I119: Transportation | J119: 270 | K119: 32734.5 | L119: 669512.75 | M119: 159481.11 | N119: 308670.03 | O119: 14876.21 | P119: 1185274.6 | Q119: 2.76176508 | R119: 56.48587678 | S119: 13.45520354 | T119: 26.04206907 | U119: 1.25508553 | V119: 100
A120: Alpena Public Schools | B120: 04010 | C120: Alpena-Montmorency-Alcona ESD | D120: 04 | E120: LEA | F120: 01 | G120: 36 | H120: 106 | I120: Other Support | J120: 280 | K120: 251810.26 | L120: 892247.01 | M120: 281331.71 | N120: 478713.11 | O120: 1618.55 | P120: 1905720.64 | Q120: 13.21338788 | R120: 46.81940213 | S120: 14.76248428 | T120: 25.11979458 | U120: 0.0849311261 | V120: 100
A121: Alpena Public Schools | B121: 04010 | C121: Alpena-Montmorency-Alcona ESD | D121: 04 | E121: LEA | F121: 01 | G121: 36 | H121: 106 | I121: Community Services | J121: 300 | K121: 54492.31 | L121: 0 | M121: 825.6 | N121: 15492.73 | O121: 0 | P121: 70810.64 | Q121: 76.95497456 | R121: 0 | S121: 1.165926477 | T121: 21.87909896 | U121: 0 | V121: 100
